Workbook

Sheet Utility Group Criteria
A1: VALUE LINE ELECTRIC UTILITIES
F4: (a) | I4: (b) | L4: (c) | R4: (d) | T4: (c)
F5: S&P | I5: Moody's | L5: Value Line | U5: Override:
F6: Credit | I6: Issuer | L6: Safety | N6: Finaneial | R6: Market | T6: Gas | U6: "Y" for Incl.
B7: Included | C7: SYM | D7: Company | F7: Rating | I7: Rating | L7: Rank | N7: Strength | P7: Beta | R7: Cap | T7: Utility | U7: "X" for Excl. | V7: Comments
A8: =A7+1 -> 1 | B8: =IF(AND(AND(G8<=$G$61,G8>=$G$62),AND(J8<=$J$61,J8>=$J$62),T8<>"N",U8<>"X"),"Y",IF(U8="Y","Y","")) -> Y | C8: ='Electric Utility Data'!B8 -> AQN | D8: ='Electric Utility Data'!C8 -> Algonquin Pwr & Util | F8: ='Electric Utility Data'!AA8 -> BBB | G8: =IF(F8="NR",0,VLOOKUP(F8,'Ordinal Ratings'!A$8:B$30,2,FALSE)) -> 9 | I8: ='Electric Utility Data'!AB8 -> NR | J8: =IF(I8="NR",0,VLOOKUP(I8,'Ordinal Ratings'!I$8:J$26,2,FALSE)) -> 0 | L8: ='Electric Utility Data'!W8 -> n/a | N8: ='Electric Utility Data'!Y8 -> n/a | P8: ='Electric Utility Data'!X8 -> n/a | R8: ='Electric Utility Data'!AC8 -> 4591 | T8: ='Electric Utility Data'!AD8 -> Y | U8: Y | V8: S&P rating meets criteria.
A9: =A8+1 -> 2 | C9: ='Electric Utility Data'!B9 -> ALE | D9: ='Electric Utility Data'!C9 -> ALLETE | F9: ='Electric Utility Data'!AA9 -> BBB+ | G9: =IF(F9="NR",0,VLOOKUP(F9,'Ordinal Ratings'!A$8:B$30,2,FALSE)) -> 8 | I9: ='Electric Utility Data'!AB9 -> A3 | J9: =IF(I9="NR",0,VLOOKUP(I9,'Ordinal Ratings'!I$8:J$26,2,FALSE)) -> 7 | L9: ='Electric Utility Data'!W9 -> 2 | N9: ='Electric Utility Data'!Y9 -> A | P9: ='Electric Utility Data'!X9 -> 0.75 | R9: ='Electric Utility Data'!AC9 -> 3984.27 | T9: ='Electric Utility Data'!AD9 -> N
A10: =A9+1 -> 3 | B10: Y | C10: ='Electric Utility Data'!B10 -> LNT | D10: ='Electric Utility Data'!C10 -> Alliant Energy | F10: ='Electric Utility Data'!AA10 -> A- | G10: =IF(F10="NR",0,VLOOKUP(F10,'Ordinal Ratings'!A$8:B$30,2,FALSE)) -> 7 | I10: ='Electric Utility Data'!AB10 -> Baa1 | J10: =IF(I10="NR",0,VLOOKUP(I10,'Ordinal Ratings'!I$8:J$26,2,FALSE)) -> 8 | L10: ='Electric Utility Data'!W10 -> 2 | N10: ='Electric Utility Data'!Y10 -> A | P10: ='Electric Utility Data'!X10 -> 0.7 | R10: ='Electric Utility Data'!AC10 -> 9986.13 | T10: ='Electric Utility Data'!AD10 -> Y
A11: 4 | B11: Y | C11: ='Electric Utility Data'!B11 -> AEE | D11: ='Electric Utility Data'!C11 -> Ameren Corp. | F11: ='Electric Utility Data'!AA11 -> BBB+ | G11: =IF(F11="NR",0,VLOOKUP(F11,'Ordinal Ratings'!A$8:B$30,2,FALSE)) -> 8 | I11: ='Electric Utility Data'!AB11 -> Baa1 | J11: =IF(I11="NR",0,VLOOKUP(I11,'Ordinal Ratings'!I$8:J$26,2,FALSE)) -> 8 | L11: ='Electric Utility Data'!W11 -> 2 | N11: ='Electric Utility Data'!Y11 -> A | P11: ='Electric Utility Data'!X11 -> 0.65 | R11: ='Electric Utility Data'!AC11 -> 14949.73 | T11: ='Electric Utility Data'!AD11 -> Y
A12: 5 | C12: ='Electric Utility Data'!B12 -> AEP | D12: ='Electric Utility Data'!C12 -> American Elec Pwr | F12: ='Electric Utility Data'!AA12 -> A- | G12: =IF(F12="NR",0,VLOOKUP(F12,'Ordinal Ratings'!A$8:B$30,2,FALSE)) -> 7 | I12: ='Electric Utility Data'!AB12 -> Baa1 | J12: =IF(I12="NR",0,VLOOKUP(I12,'Ordinal Ratings'!I$8:J$26,2,FALSE)) -> 8 | L12: ='Electric Utility Data'!W12 -> 1 | N12: ='Electric Utility Data'!Y12 -> A+ | P12: ='Electric Utility Data'!X12 -> 0.65 | R12: ='Electric Utility Data'!AC12 -> 34663 | T12: ='Electric Utility Data'!AD12 -> N
A13: 6 | B13: Y | C13: ='Electric Utility Data'!B13 -> AGR | D13: ='Electric Utility Data'!C13 -> Avangrid, Inc. | F13: ='Electric Utility Data'!AA13 -> BBB+ | G13: =IF(F13="NR",0,VLOOKUP(F13,'Ordinal Ratings'!A$8:B$30,2,FALSE)) -> 8 | I13: ='Electric Utility Data'!AB13 -> Baa1 | J13: =IF(I13="NR",0,VLOOKUP(I13,'Ordinal Ratings'!I$8:J$26,2,FALSE)) -> 8 | L13: ='Electric Utility Data'!W13 -> 2 | N13: ='Electric Utility Data'!Y13 -> B++ | P13: ='Electric Utility Data'!X13 -> 0.4 | R13: ='Electric Utility Data'!AC13 -> 16307.38 | T13: ='Electric Utility Data'!AD13 -> Y
A14: 7 | C14: ='Electric Utility Data'!B14 -> AVA | D14: ='Electric Utility Data'!C14 -> Avista Corp. | F14: ='Electric Utility Data'!AA14 -> BBB | G14: =IF(F14="NR",0,VLOOKUP(F14,'Ordinal Ratings'!A$8:B$30,2,FALSE)) -> 9 | I14: ='Electric Utility Data'!AB14 -> Baa1 | J14: =IF(I14="NR",0,VLOOKUP(I14,'Ordinal Ratings'!I$8:J$26,2,FALSE)) -> 8 | L14: ='Electric Utility Data'!W14 -> 2 | N14: ='Electric Utility Data'!Y14 -> A | P14: ='Electric Utility Data'!X14 -> 0.7 | R14: ='Electric Utility Data'!AC14 -> 3303.1 | T14: ='Electric Utility Data'!AD14 -> Y | U14: X | V14: Announced acquisition by Hydro One 7/19/17 for $5.3 billion.
A15: 8 | B15: Y | C15: ='Electric Utility Data'!B15 -> BKH | D15: ='Electric Utility Data'!C15 -> Black Hills Corp. | F15: ='Electric Utility Data'!AA15 -> BBB | G15: =IF(F15="NR",0,VLOOKUP(F15,'Ordinal Ratings'!A$8:B$30,2,FALSE)) -> 9 | I15: ='Electric Utility Data'!AB15 -> Baa2 | J15: =IF(I15="NR",0,VLOOKUP(I15,'Ordinal Ratings'!I$8:J$26,2,FALSE)) -> 9 | L15: ='Electric Utility Data'!W15 -> 2 | N15: ='Electric Utility Data'!Y15 -> A | P15: ='Electric Utility Data'!X15 -> 0.85 | R15: ='Electric Utility Data'!AC15 -> 3290.73 | T15: ='Electric Utility Data'!AD15 -> Y
A16: 9 | C16: ='Electric Utility Data'!B16 -> CNP | D16: ='Electric Utility Data'!C16 -> CenterPoint Energy | F16: ='Electric Utility Data'!AA16 -> A- | G16: =IF(F16="NR",0,VLOOKUP(F16,'Ordinal Ratings'!A$8:B$30,2,FALSE)) -> 7 | I16: ='Electric Utility Data'!AB16 -> Baa1 | J16: =IF(I16="NR",0,VLOOKUP(I16,'Ordinal Ratings'!I$8:J$26,2,FALSE)) -> 8 | L16: ='Electric Utility Data'!W16 -> 3 | N16: ='Electric Utility Data'!Y16 -> B+ | P16: ='Electric Utility Data'!X16 -> 0.9 | R16: ='Electric Utility Data'!AC16 -> 12007.84 | T16: ='Electric Utility Data'!AD16 -> Y | U16: X | V16: Announced acquisition of Vectren 4/23/18 for approx. $6 billion.
A17: 10 | B17: Y | C17: ='Electric Utility Data'!B17 -> CMS | D17: ='Electric Utility Data'!C17 -> CMS Energy Corp. | F17: ='Electric Utility Data'!AA17 -> BBB+ | G17: =IF(F17="NR",0,VLOOKUP(F17,'Ordinal Ratings'!A$8:B$30,2,FALSE)) -> 8 | I17: ='Electric Utility Data'!AB17 -> Baa1 | J17: =IF(I17="NR",0,VLOOKUP(I17,'Ordinal Ratings'!I$8:J$26,2,FALSE)) -> 8 | L17: ='Electric Utility Data'!W17 -> 2 | N17: ='Electric Utility Data'!Y17 -> B++ | P17: ='Electric Utility Data'!X17 -> 0.65 | R17: ='Electric Utility Data'!AC17 -> 13537.4 | T17: ='Electric Utility Data'!AD17 -> Y
A18: 11 | B18: Y | C18: ='Electric Utility Data'!B18 -> ED | D18: ='Electric Utility Data'!C18 -> Consolidated Edison | F18: ='Electric Utility Data'!AA18 -> A- | G18: =IF(F18="NR",0,VLOOKUP(F18,'Ordinal Ratings'!A$8:B$30,2,FALSE)) -> 7 | I18: ='Electric Utility Data'!AB18 -> A3 | J18: =IF(I18="NR",0,VLOOKUP(I18,'Ordinal Ratings'!I$8:J$26,2,FALSE)) -> 7 | L18: ='Electric Utility Data'!W18 -> 1 | N18: ='Electric Utility Data'!Y18 -> A+ | P18: ='Electric Utility Data'!X18 -> 0.5 | R18: ='Electric Utility Data'!AC18 -> 24637.42 | T18: ='Electric Utility Data'!AD18 -> Y
A19: 12 | C19: ='Electric Utility Data'!B19 -> D | D19: ='Electric Utility Data'!C19 -> Dominion Energy | F19: ='Electric Utility Data'!AA19 -> BBB+ | G19: =IF(F19="NR",0,VLOOKUP(F19,'Ordinal Ratings'!A$8:B$30,2,FALSE)) -> 8 | I19: ='Electric Utility Data'!AB19 -> Baa2 | J19: =IF(I19="NR",0,VLOOKUP(I19,'Ordinal Ratings'!I$8:J$26,2,FALSE)) -> 9 | L19: ='Electric Utility Data'!W19 -> 2 | N19: ='Electric Utility Data'!Y19 -> B++ | P19: ='Electric Utility Data'!X19 -> 0.65 | R19: ='Electric Utility Data'!AC19 -> 45749.18 | T19: ='Electric Utility Data'!AD19 -> Y | U19: X | V19: Announced acquisition of SCANA 01/03/18 for $7.43 billion.
A20: 13 | B20: Y | C20: ='Electric Utility Data'!B20 -> DTE | D20: ='Electric Utility Data'!C20 -> DTE Energy Co. | F20: ='Electric Utility Data'!AA20 -> BBB+ | G20: =IF(F20="NR",0,VLOOKUP(F20,'Ordinal Ratings'!A$8:B$30,2,FALSE)) -> 8 | I20: ='Electric Utility Data'!AB20 -> Baa1 | J20: =IF(I20="NR",0,VLOOKUP(I20,'Ordinal Ratings'!I$8:J$26,2,FALSE)) -> 8 | L20: ='Electric Utility Data'!W20 -> 2 | N20: ='Electric Utility Data'!Y20 -> B++ | P20: ='Electric Utility Data'!X20 -> 0.65 | R20: ='Electric Utility Data'!AC20 -> 19222.68 | T20: ='Electric Utility Data'!AD20 -> Y
A21: 14 | B21: Y | C21: ='Electric Utility Data'!B21 -> DUK | D21: ='Electric Utility Data'!C21 -> Duke Energy Corp. | F21: ='Electric Utility Data'!AA21 -> A- | G21: =IF(F21="NR",0,VLOOKUP(F21,'Ordinal Ratings'!A$8:B$30,2,FALSE)) -> 7 | I21: ='Electric Utility Data'!AB21 -> Baa1 | J21: =IF(I21="NR",0,VLOOKUP(I21,'Ordinal Ratings'!I$8:J$26,2,FALSE)) -> 8 | L21: ='Electric Utility Data'!W21 -> 2 | N21: ='Electric Utility Data'!Y21 -> A | P21: ='Electric Utility Data'!X21 -> 0.6 | R21: ='Electric Utility Data'!AC21 -> 56430.5 | T21: ='Electric Utility Data'!AD21 -> Y
A22: 15 | C22: ='Electric Utility Data'!B22 -> EIX | D22: ='Electric Utility Data'!C22 -> Edison International | F22: ='Electric Utility Data'!AA22 -> BBB+ | G22: =IF(F22="NR",0,VLOOKUP(F22,'Ordinal Ratings'!A$8:B$30,2,FALSE)) -> 8 | I22: ='Electric Utility Data'!AB22 -> A3 | J22: =IF(I22="NR",0,VLOOKUP(I22,'Ordinal Ratings'!I$8:J$26,2,FALSE)) -> 7 | L22: ='Electric Utility Data'!W22 -> 2 | N22: ='Electric Utility Data'!Y22 -> A | P22: ='Electric Utility Data'!X22 -> 0.6 | R22: ='Electric Utility Data'!AC22 -> 21396.01 | T22: ='Electric Utility Data'!AD22 -> N
A23: 16 | C23: ='Electric Utility Data'!B23 -> EE | D23: ='Electric Utility Data'!C23 -> El Paso Electric Co. | F23: ='Electric Utility Data'!AA23 -> BBB | G23: =IF(F23="NR",0,VLOOKUP(F23,'Ordinal Ratings'!A$8:B$30,2,FALSE)) -> 9 | I23: ='Electric Utility Data'!AB23 -> Baa1 | J23: =IF(I23="NR",0,VLOOKUP(I23,'Ordinal Ratings'!I$8:J$26,2,FALSE)) -> 8 | L23: ='Electric Utility Data'!W23 -> 2 | N23: ='Electric Utility Data'!Y23 -> B++ | P23: ='Electric Utility Data'!X23 -> 0.75 | R23: ='Electric Utility Data'!AC23 -> 2444.12 | T23: ='Electric Utility Data'!AD23 -> N
A24: 17 | B24: Y | C24: ='Electric Utility Data'!B24 -> EMA | D24: ='Electric Utility Data'!C24 -> Emera Inc. | F24: ='Electric Utility Data'!AA24 -> BBB+ | G24: =IF(F24="NR",0,VLOOKUP(F24,'Ordinal Ratings'!A$8:B$30,2,FALSE)) -> 8 | I24: ='Electric Utility Data'!AB24 -> Baa3 | J24: =IF(I24="NR",0,VLOOKUP(I24,'Ordinal Ratings'!I$8:J$26,2,FALSE)) -> 10 | L24: ='Electric Utility Data'!W24 -> 2 | N24: ='Electric Utility Data'!Y24 -> B+ | P24: ='Electric Utility Data'!X24 -> 0.65 | R24: ='Electric Utility Data'!AC24 -> 9741.37 | T24: ='Electric Utility Data'!AD24 -> Y
A25: 18 | B25: Y | C25: ='Electric Utility Data'!B25 -> ETR | D25: ='Electric Utility Data'!C25 -> Entergy Corp. | F25: ='Electric Utility Data'!AA25 -> BBB+ | G25: =IF(F25="NR",0,VLOOKUP(F25,'Ordinal Ratings'!A$8:B$30,2,FALSE)) -> 8 | I25: ='Electric Utility Data'!AB25 -> Baa2 | J25: =IF(I25="NR",0,VLOOKUP(I25,'Ordinal Ratings'!I$8:J$26,2,FALSE)) -> 9 | L25: ='Electric Utility Data'!W25 -> 3 | N25: ='Electric Utility Data'!Y25 -> B++ | P25: ='Electric Utility Data'!X25 -> 0.65 | R25: ='Electric Utility Data'!AC25 -> 14858.06 | T25: ='Electric Utility Data'!AD25 -> Y
A26: 19 | B26: =IF(AND(AND(G26<=$G$61,G26>=$G$62),AND(J26<=$J$61,J26>=$J$62),T26<>"N",U26<>"X"),"Y",IF(U26="Y","Y","")) ->  | C26: ='Electric Utility Data'!B26 -> EVRG | D26: ='Electric Utility Data'!C26 -> Evergy Inc. | F26: ='Electric Utility Data'!AA26 -> A- | G26: =IF(F26="NR",0,VLOOKUP(F26,'Ordinal Ratings'!A$8:B$30,2,FALSE)) -> 7 | I26: ='Electric Utility Data'!AB26 -> Baa2 | J26: =IF(I26="NR",0,VLOOKUP(I26,'Ordinal Ratings'!I$8:J$26,2,FALSE)) -> 9 | L26: ='Electric Utility Data'!W26 -> n/a | N26: ='Electric Utility Data'!Y26 -> n/a | P26: ='Electric Utility Data'!X26 -> n/a | R26: ='Electric Utility Data'!AC26 -> n/a | T26: ='Electric Utility Data'!AD26 -> N | V26: Evergy result of merger of Great Plains and Westar; trading commenced 6/5/18
A27: 20 | B27: Y | C27: ='Electric Utility Data'!B27 -> ES | D27: ='Electric Utility Data'!C27 -> Eversource Energy | F27: ='Electric Utility Data'!AA27 -> A+ | G27: =IF(F27="NR",0,VLOOKUP(F27,'Ordinal Ratings'!A$8:B$30,2,FALSE)) -> 5 | I27: ='Electric Utility Data'!AB27 -> Baa1 | J27: =IF(I27="NR",0,VLOOKUP(I27,'Ordinal Ratings'!I$8:J$26,2,FALSE)) -> 8 | L27: ='Electric Utility Data'!W27 -> 1 | N27: ='Electric Utility Data'!Y27 -> A | P27: ='Electric Utility Data'!X27 -> 0.65 | R27: ='Electric Utility Data'!AC27 -> 19745.54 | T27: ='Electric Utility Data'!AD27 -> Y | V27: Announced acquisition of Connecticut Water Service 4/19/17 for $748m / $24b total capital = 3.1%) rejected by CTWS. Completed acquisition of Aquarion Water Co. 12/17.
A28: 21 | B28: Y | C28: ='Electric Utility Data'!B28 -> EXC | D28: ='Electric Utility Data'!C28 -> Exelon Corp. | F28: ='Electric Utility Data'!AA28 -> BBB | G28: =IF(F28="NR",0,VLOOKUP(F28,'Ordinal Ratings'!A$8:B$30,2,FALSE)) -> 9 | I28: ='Electric Utility Data'!AB28 -> Baa2 | J28: =IF(I28="NR",0,VLOOKUP(I28,'Ordinal Ratings'!I$8:J$26,2,FALSE)) -> 9 | L28: ='Electric Utility Data'!W28 -> 3 | N28: ='Electric Utility Data'!Y28 -> B++ | P28: ='Electric Utility Data'!X28 -> 0.7 | R28: ='Electric Utility Data'!AC28 -> 40783.05 | T28: ='Electric Utility Data'!AD28 -> Y
A29: 22 | C29: ='Electric Utility Data'!B29 -> FE | D29: ='Electric Utility Data'!C29 -> FirstEnergy Corp. | F29: ='Electric Utility Data'!AA29 -> BBB- | G29: =IF(F29="NR",0,VLOOKUP(F29,'Ordinal Ratings'!A$8:B$30,2,FALSE)) -> 10 | I29: ='Electric Utility Data'!AB29 -> Baa3 | J29: =IF(I29="NR",0,VLOOKUP(I29,'Ordinal Ratings'!I$8:J$26,2,FALSE)) -> 10 | L29: ='Electric Utility Data'!W29 -> 3 | N29: ='Electric Utility Data'!Y29 -> B+ | P29: ='Electric Utility Data'!X29 -> 0.65 | R29: ='Electric Utility Data'!AC29 -> 17001.81 | T29: ='Electric Utility Data'!AD29 -> N
A30: 23 | B30: Y | C30: ='Electric Utility Data'!B30 -> FTS | D30: ='Electric Utility Data'!C30 -> Fortis Inc. | F30: ='Electric Utility Data'!AA30 -> A- | G30: =IF(F30="NR",0,VLOOKUP(F30,'Ordinal Ratings'!A$8:B$30,2,FALSE)) -> 7 | I30: ='Electric Utility Data'!AB30 -> Baa3 | J30: =IF(I30="NR",0,VLOOKUP(I30,'Ordinal Ratings'!I$8:J$26,2,FALSE)) -> 10 | L30: ='Electric Utility Data'!W30 -> 2 | N30: ='Electric Utility Data'!Y30 -> B++ | P30: ='Electric Utility Data'!X30 -> 0.7 | R30: ='Electric Utility Data'!AC30 -> 17930.44 | T30: ='Electric Utility Data'!AD30 -> Y
A31: 24 | C31: ='Electric Utility Data'!B31 -> HE | D31: ='Electric Utility Data'!C31 -> Hawaiian Elec. | F31: ='Electric Utility Data'!AA31 -> BBB- | G31: =IF(F31="NR",0,VLOOKUP(F31,'Ordinal Ratings'!A$8:B$30,2,FALSE)) -> 10 | I31: ='Electric Utility Data'!AB31 -> NR | J31: =IF(I31="NR",0,VLOOKUP(I31,'Ordinal Ratings'!I$8:J$26,2,FALSE)) -> 0 | L31: ='Electric Utility Data'!W31 -> 2 | N31: ='Electric Utility Data'!Y31 -> A | P31: ='Electric Utility Data'!X31 -> 0.65 | R31: ='Electric Utility Data'!AC31 -> 3786.58 | T31: ='Electric Utility Data'!AD31 -> N
A32: 25 | C32: ='Electric Utility Data'!B32 -> IDA | D32: ='Electric Utility Data'!C32 -> IDACORP, Inc. | F32: ='Electric Utility Data'!AA32 -> BBB | G32: =IF(F32="NR",0,VLOOKUP(F32,'Ordinal Ratings'!A$8:B$30,2,FALSE)) -> 9 | I32: ='Electric Utility Data'!AB32 -> Baa1 | J32: =IF(I32="NR",0,VLOOKUP(I32,'Ordinal Ratings'!I$8:J$26,2,FALSE)) -> 8 | L32: ='Electric Utility Data'!W32 -> 2 | N32: ='Electric Utility Data'!Y32 -> A | P32: ='Electric Utility Data'!X32 -> 0.65 | R32: ='Electric Utility Data'!AC32 -> 4693.01 | T32: ='Electric Utility Data'!AD32 -> N
A33: 26 | C33: ='Electric Utility Data'!B33 -> MGEE | D33: ='Electric Utility Data'!C33 -> MGE Energy | F33: ='Electric Utility Data'!AA33 -> NR | G33: =IF(F33="NR",0,VLOOKUP(F33,'Ordinal Ratings'!A$8:B$30,2,FALSE)) -> 0 | I33: ='Electric Utility Data'!AB33 -> NR | J33: =IF(I33="NR",0,VLOOKUP(I33,'Ordinal Ratings'!I$8:J$26,2,FALSE)) -> 0 | L33: ='Electric Utility Data'!W33 -> 1 | N33: ='Electric Utility Data'!Y33 -> A | P33: ='Electric Utility Data'!X33 -> 0.7 | R33: ='Electric Utility Data'!AC33 -> 2225.69 | T33: ='Electric Utility Data'!AD33 -> Y
A34: 27 | C34: ='Electric Utility Data'!B34 -> NEE | D34: ='Electric Utility Data'!C34 -> NextEra Energy, Inc. | F34: ='Electric Utility Data'!AA34 -> A- | G34: =IF(F34="NR",0,VLOOKUP(F34,'Ordinal Ratings'!A$8:B$30,2,FALSE)) -> 7 | I34: ='Electric Utility Data'!AB34 -> Baa1 | J34: =IF(I34="NR",0,VLOOKUP(I34,'Ordinal Ratings'!I$8:J$26,2,FALSE)) -> 8 | L34: ='Electric Utility Data'!W34 -> 1 | N34: ='Electric Utility Data'!Y34 -> A+ | P34: ='Electric Utility Data'!X34 -> 0.65 | R34: ='Electric Utility Data'!AC34 -> 79358.78 | T34: ='Electric Utility Data'!AD34 -> N | V34: Announced purchase of Gulf Power, Florida City Gas from Southern 5/21/18 for $6.475b / $64b total capital = 10.1%
A35: 28 | B35: Y | C35: ='Electric Utility Data'!B35 -> NWE | D35: ='Electric Utility Data'!C35 -> NorthWestern Corp. | F35: ='Electric Utility Data'!AA35 -> BBB | G35: =IF(F35="NR",0,VLOOKUP(F35,'Ordinal Ratings'!A$8:B$30,2,FALSE)) -> 9 | I35: ='Electric Utility Data'!AB35 -> Baa2 | J35: =IF(I35="NR",0,VLOOKUP(I35,'Ordinal Ratings'!I$8:J$26,2,FALSE)) -> 9 | L35: ='Electric Utility Data'!W35 -> 2 | N35: ='Electric Utility Data'!Y35 -> B++ | P35: ='Electric Utility Data'!X35 -> 0.65 | R35: ='Electric Utility Data'!AC35 -> 3110.44 | T35: ='Electric Utility Data'!AD35 -> Y
A36: 29 | C36: ='Electric Utility Data'!B36 -> OGE | D36: ='Electric Utility Data'!C36 -> OGE Energy Corp. | F36: ='Electric Utility Data'!AA36 -> BBB+ | G36: =IF(F36="NR",0,VLOOKUP(F36,'Ordinal Ratings'!A$8:B$30,2,FALSE)) -> 8 | I36: ='Electric Utility Data'!AB36 -> Baa1 | J36: =IF(I36="NR",0,VLOOKUP(I36,'Ordinal Ratings'!I$8:J$26,2,FALSE)) -> 8 | L36: ='Electric Utility Data'!W36 -> 2 | N36: ='Electric Utility Data'!Y36 -> A | P36: ='Electric Utility Data'!X36 -> 0.95 | R36: ='Electric Utility Data'!AC36 -> 7068.48 | T36: ='Electric Utility Data'!AD36 -> N
A37: 30 | C37: ='Electric Utility Data'!B37 -> OTTR | D37: ='Electric Utility Data'!C37 -> Otter Tail Corp. | F37: ='Electric Utility Data'!AA37 -> BBB | G37: =IF(F37="NR",0,VLOOKUP(F37,'Ordinal Ratings'!A$8:B$30,2,FALSE)) -> 9 | I37: ='Electric Utility Data'!AB37 -> Baa2 | J37: =IF(I37="NR",0,VLOOKUP(I37,'Ordinal Ratings'!I$8:J$26,2,FALSE)) -> 9 | L37: ='Electric Utility Data'!W37 -> 2 | N37: ='Electric Utility Data'!Y37 -> A | P37: ='Electric Utility Data'!X37 -> 0.85 | R37: ='Electric Utility Data'!AC37 -> 1923.89 | T37: ='Electric Utility Data'!AD37 -> N
A38: 31 | C38: ='Electric Utility Data'!B38 -> PCG | D38: ='Electric Utility Data'!C38 -> PG&E Corp. | F38: ='Electric Utility Data'!AA38 -> BBB | G38: =IF(F38="NR",0,VLOOKUP(F38,'Ordinal Ratings'!A$8:B$30,2,FALSE)) -> 9 | I38: ='Electric Utility Data'!AB38 -> Baa1 | J38: =IF(I38="NR",0,VLOOKUP(I38,'Ordinal Ratings'!I$8:J$26,2,FALSE)) -> 8 | L38: ='Electric Utility Data'!W38 -> 3 | N38: ='Electric Utility Data'!Y38 -> B | P38: ='Electric Utility Data'!X38 -> 0.65 | R38: ='Electric Utility Data'!AC38 -> 22528.74 | T38: ='Electric Utility Data'!AD38 -> Y | U38: X | V38: Eliminated dividends 12/20/17.
A39: 32 | C39: ='Electric Utility Data'!B39 -> PNW | D39: ='Electric Utility Data'!C39 -> Pinnacle West Capital | F39: ='Electric Utility Data'!AA39 -> A- | G39: =IF(F39="NR",0,VLOOKUP(F39,'Ordinal Ratings'!A$8:B$30,2,FALSE)) -> 7 | I39: ='Electric Utility Data'!AB39 -> A3 | J39: =IF(I39="NR",0,VLOOKUP(I39,'Ordinal Ratings'!I$8:J$26,2,FALSE)) -> 7 | L39: ='Electric Utility Data'!W39 -> 1 | N39: ='Electric Utility Data'!Y39 -> A+ | P39: ='Electric Utility Data'!X39 -> 0.65 | R39: ='Electric Utility Data'!AC39 -> 8993.82 | T39: ='Electric Utility Data'!AD39 -> N
A40: 33 | C40: ='Electric Utility Data'!B40 -> PNM | D40: ='Electric Utility Data'!C40 -> PNM Resources | F40: ='Electric Utility Data'!AA40 -> BBB+ | G40: =IF(F40="NR",0,VLOOKUP(F40,'Ordinal Ratings'!A$8:B$30,2,FALSE)) -> 8 | I40: ='Electric Utility Data'!AB40 -> Baa3 | J40: =IF(I40="NR",0,VLOOKUP(I40,'Ordinal Ratings'!I$8:J$26,2,FALSE)) -> 10 | L40: ='Electric Utility Data'!W40 -> 3 | N40: ='Electric Utility Data'!Y40 -> B+ | P40: ='Electric Utility Data'!X40 -> 0.75 | R40: ='Electric Utility Data'!AC40 -> 3058.71 | T40: ='Electric Utility Data'!AD40 -> N
A41: 34 | C41: ='Electric Utility Data'!B41 -> POR | D41: ='Electric Utility Data'!C41 -> Portland General Elec. | F41: ='Electric Utility Data'!AA41 -> BBB | G41: =IF(F41="NR",0,VLOOKUP(F41,'Ordinal Ratings'!A$8:B$30,2,FALSE)) -> 9 | I41: ='Electric Utility Data'!AB41 -> A3 | J41: =IF(I41="NR",0,VLOOKUP(I41,'Ordinal Ratings'!I$8:J$26,2,FALSE)) -> 7 | L41: ='Electric Utility Data'!W41 -> 2 | N41: ='Electric Utility Data'!Y41 -> B++ | P41: ='Electric Utility Data'!X41 -> 0.65 | R41: ='Electric Utility Data'!AC41 -> 3868.32 | T41: ='Electric Utility Data'!AD41 -> N
A42: 35 | B42: Y | C42: ='Electric Utility Data'!B42 -> PPL | D42: ='Electric Utility Data'!C42 -> PPL Corp. | F42: ='Electric Utility Data'!AA42 -> A- | G42: =IF(F42="NR",0,VLOOKUP(F42,'Ordinal Ratings'!A$8:B$30,2,FALSE)) -> 7 | I42: ='Electric Utility Data'!AB42 -> Baa2 | J42: =IF(I42="NR",0,VLOOKUP(I42,'Ordinal Ratings'!I$8:J$26,2,FALSE)) -> 9 | L42: ='Electric Utility Data'!W42 -> 2 | N42: ='Electric Utility Data'!Y42 -> B++ | P42: ='Electric Utility Data'!X42 -> 0.75 | R42: ='Electric Utility Data'!AC42 -> 19980.02 | T42: ='Electric Utility Data'!AD42 -> Y
A43: 36 | B43: Y | C43: ='Electric Utility Data'!B43 -> PEG | D43: ='Electric Utility Data'!C43 -> Pub Sv Enterprise Grp. | F43: ='Electric Utility Data'!AA43 -> BBB+ | G43: =IF(F43="NR",0,VLOOKUP(F43,'Ordinal Ratings'!A$8:B$30,2,FALSE)) -> 8 | I43: ='Electric Utility Data'!AB43 -> Baa1 | J43: =IF(I43="NR",0,VLOOKUP(I43,'Ordinal Ratings'!I$8:J$26,2,FALSE)) -> 8 | L43: ='Electric Utility Data'!W43 -> 1 | N43: ='Electric Utility Data'!Y43 -> A++ | P43: ='Electric Utility Data'!X43 -> 0.7 | R43: ='Electric Utility Data'!AC43 -> 26374.32 | T43: ='Electric Utility Data'!AD43 -> Y
A44: 37 | C44: ='Electric Utility Data'!B44 -> SCG | D44: ='Electric Utility Data'!C44 -> SCANA Corp. | F44: ='Electric Utility Data'!AA44 -> BBB | G44: =IF(F44="NR",0,VLOOKUP(F44,'Ordinal Ratings'!A$8:B$30,2,FALSE)) -> 9 | I44: ='Electric Utility Data'!AB44 -> Ba1 | J44: =IF(I44="NR",0,VLOOKUP(I44,'Ordinal Ratings'!I$8:J$26,2,FALSE)) -> 11 | L44: ='Electric Utility Data'!W44 -> 3 | N44: ='Electric Utility Data'!Y44 -> B | P44: ='Electric Utility Data'!X44 -> 0.7 | R44: ='Electric Utility Data'!AC44 -> 5554.12 | T44: ='Electric Utility Data'!AD44 -> Y | U44: X | V44: Announced acquisition by Dominion 01/03/18 for $7.43 billion.
A45: 38 | B45: Y | C45: ='Electric Utility Data'!B45 -> SRE | D45: ='Electric Utility Data'!C45 -> Sempra Energy | F45: ='Electric Utility Data'!AA45 -> BBB+ | G45: =IF(F45="NR",0,VLOOKUP(F45,'Ordinal Ratings'!A$8:B$30,2,FALSE)) -> 8 | I45: ='Electric Utility Data'!AB45 -> Baa1 | J45: =IF(I45="NR",0,VLOOKUP(I45,'Ordinal Ratings'!I$8:J$26,2,FALSE)) -> 8 | L45: ='Electric Utility Data'!W45 -> 2 | N45: ='Electric Utility Data'!Y45 -> A | P45: ='Electric Utility Data'!X45 -> 0.75 | R45: ='Electric Utility Data'!AC45 -> 30526.32 | T45: ='Electric Utility Data'!AD45 -> Y | V45: Acquisition of Oncor completed March 9, 2018.
A46: 39 | B46: Y | C46: ='Electric Utility Data'!B46 -> SO | D46: ='Electric Utility Data'!C46 -> Southern Company | F46: ='Electric Utility Data'!AA46 -> A- | G46: =IF(F46="NR",0,VLOOKUP(F46,'Ordinal Ratings'!A$8:B$30,2,FALSE)) -> 7 | I46: ='Electric Utility Data'!AB46 -> Baa2 | J46: =IF(I46="NR",0,VLOOKUP(I46,'Ordinal Ratings'!I$8:J$26,2,FALSE)) -> 9 | L46: ='Electric Utility Data'!W46 -> 2 | N46: ='Electric Utility Data'!Y46 -> A | P46: ='Electric Utility Data'!X46 -> 0.55 | R46: ='Electric Utility Data'!AC46 -> 48537.77 | T46: ='Electric Utility Data'!AD46 -> Y | V46: Announced sale of Gulf Power, Florida City Gas to NextEra 5/21/18 for $6.475b / $69b total capital = 9.4%. Announced sale of two gas utilities 10/16/17 for $1.7b / $70b total capital = 2.4%
A47: 40 | C47: ='Electric Utility Data'!B47 -> VVC | D47: ='Electric Utility Data'!C47 -> Vectren Corp. | F47: ='Electric Utility Data'!AA47 -> A- | G47: =IF(F47="NR",0,VLOOKUP(F47,'Ordinal Ratings'!A$8:B$30,2,FALSE)) -> 7 | I47: ='Electric Utility Data'!AB47 -> NR | J47: =IF(I47="NR",0,VLOOKUP(I47,'Ordinal Ratings'!I$8:J$26,2,FALSE)) -> 0 | L47: ='Electric Utility Data'!W47 -> 2 | N47: ='Electric Utility Data'!Y47 -> A | P47: ='Electric Utility Data'!X47 -> 0.7 | R47: ='Electric Utility Data'!AC47 -> 5935 | T47: ='Electric Utility Data'!AD47 -> Y | U47: X | V47: Announced acquisition by CenterPoint Energy 4/23/18.
A48: 41 | B48: Y | C48: ='Electric Utility Data'!B48 -> WEC | D48: ='Electric Utility Data'!C48 -> WEC Energy Group | F48: ='Electric Utility Data'!AA48 -> A- | G48: =IF(F48="NR",0,VLOOKUP(F48,'Ordinal Ratings'!A$8:B$30,2,FALSE)) -> 7 | I48: ='Electric Utility Data'!AB48 -> Baa1 | J48: =IF(I48="NR",0,VLOOKUP(I48,'Ordinal Ratings'!I$8:J$26,2,FALSE)) -> 8 | L48: ='Electric Utility Data'!W48 -> 1 | N48: ='Electric Utility Data'!Y48 -> A+ | P48: ='Electric Utility Data'!X48 -> 0.6 | R48: ='Electric Utility Data'!AC48 -> 20693.05 | T48: ='Electric Utility Data'!AD48 -> Y
A49: 42 | B49: Y | C49: ='Electric Utility Data'!B49 -> XEL | D49: ='Electric Utility Data'!C49 -> Xcel Energy Inc. | F49: ='Electric Utility Data'!AA49 -> A- | G49: =IF(F49="NR",0,VLOOKUP(F49,'Ordinal Ratings'!A$8:B$30,2,FALSE)) -> 7 | I49: ='Electric Utility Data'!AB49 -> A3 | J49: =IF(I49="NR",0,VLOOKUP(I49,'Ordinal Ratings'!I$8:J$26,2,FALSE)) -> 7 | L49: ='Electric Utility Data'!W49 -> 1 | N49: ='Electric Utility Data'!Y49 -> A+ | P49: ='Electric Utility Data'!X49 -> 0.6 | R49: ='Electric Utility Data'!AC49 -> 23571.39 | T49: ='Electric Utility Data'!AD49 -> Y
A52: (a) | B52: ='Electric Utility Data'!B55 -> Issuer credit rating from www.standardandpoors.com (retrieved Jul. 17, 2018).
A53: (b) | B53: ='Electric Utility Data'!B56 -> Long-term rating from www.moodys.com (retrieved Jul. 17, 2018).
A54: (c) | B54: ='Electric Utility Data'!B54&"; "&MID('Electric Utility Data'!J54,35,13)&" for Emera." -> The Value Line Investment Survey (May 18, Jun. 15, & Jul. 27, 2018); Jun. 22, 2018 for Emera.
A55: (d) | B55: ='Electric Utility Data'!B57 -> www.valueline.com (retrieved Jul. 17, 2018).
B57: =COUNTIF(B8:B49,"Y") -> 21
D59: Proxy Group Criteria | F59: S&P | I59: Moodys
D60: KU/LGE | F60: A- | G60: =IF(F60="NR",0,VLOOKUP(F60,'Ordinal Ratings'!A$8:B$30,2,FALSE)) -> 7 | I60: A3 | J60: =IF(I60="NR",0,VLOOKUP(I60,'Ordinal Ratings'!I$8:J$26,2,FALSE)) -> 7
D61: Low Rating | F61: =VLOOKUP(G61,'Ordinal Ratings'!$B$8:$C$28,2,FALSE) -> BBB- | G61: =VLOOKUP(F$60,'Ordinal Ratings'!A$8:B$30,2,FALSE)+3 -> 10 | I61: =VLOOKUP(J61,'Ordinal Ratings'!$J$8:$K$28,2,FALSE) -> Baa3 | J61: =VLOOKUP(I$60,'Ordinal Ratings'!I$8:J$26,2,FALSE)+3 -> 10
D62: High Rating | F62: =VLOOKUP(G62,'Ordinal Ratings'!$B$8:$C$28,2,FALSE) -> A+ | G62: =VLOOKUP(F$60,'Ordinal Ratings'!A$8:B$30,2,FALSE)-2 -> 5 | I62: =VLOOKUP(J62,'Ordinal Ratings'!$J$8:$K$28,2,FALSE) -> A1 | J62: =VLOOKUP(I$60,'Ordinal Ratings'!I$8:J$26,2,FALSE)-2 -> 5
C68: =IF($B8="Y",C8,"zzz") -> AQN | D68: Algonquin Pwr & Util
C69: zzz | D69: zzz
C70: LNT | D70: Alliant Energy
C71: AEE | D71: Ameren Corp.
C72: zzz | D72: zzz
C73: AGR | D73: Avangrid, Inc.
C74: zzz | D74: zzz
C75: BKH | D75: Black Hills Corp.
C76: zzz | D76: zzz
C77: CMS | D77: CMS Energy Corp.
C78: ED | D78: Consolidated Edison
C79: zzz | D79: zzz
C80: DTE | D80: DTE Energy Co.
C81: DUK | D81: Duke Energy Corp.
C82: zzz | D82: zzz
C83: zzz | D83: zzz
C84: EMA | D84: Emera Inc.
C85: ETR | D85: Entergy Corp.
C86: =IF($B27="Y",C27,"zzz") -> ES | D86: Eversource Energy
C87: EXC | D87: Exelon Corp.
C88: zzz | D88: zzz
C89: FTS | D89: Fortis Inc.
C90: =IF($B31="Y",C31,"zzz") -> zzz | D90: zzz
C91: zzz | D91: zzz
C92: zzz | D92: zzz
C93: zzz | D93: zzz
C94: NWE | D94: NorthWestern Corp.
C95: zzz | D95: zzz
C96: zzz | D96: zzz
C97: zzz | D97: zzz
C98: zzz | D98: zzz
C99: zzz | D99: zzz
C100: zzz | D100: zzz
C101: PPL | D101: PPL Corp.
C102: PEG | D102: Pub Sv Enterprise Grp.
C103: zzz | D103: zzz
C104: SRE | D104: Sempra Energy
C105: SO | D105: Southern Company
C106: zzz | D106: zzz
C107: WEC | D107: WEC Energy Group
C108: =IF($B49="Y",C49,"zzz") -> XEL | D108: Xcel Energy Inc.

Sheet Utility Group
B2: SYM | C2: Company
A3: =A2+1 -> 1 | B3: ='Utility Group Criteria'!C68 -> AQN | C3: ='Utility Group Criteria'!D68 -> Algonquin Pwr & Util
A4: =A3+1 -> 2 | B4: ='Utility Group Criteria'!C70 -> LNT | C4: ='Utility Group Criteria'!D70 -> Alliant Energy
A5: 3 | B5: ='Utility Group Criteria'!C71 -> AEE | C5: ='Utility Group Criteria'!D71 -> Ameren Corp.
A6: 4 | B6: ='Utility Group Criteria'!C73 -> AGR | C6: ='Utility Group Criteria'!D73 -> Avangrid, Inc.
A7: 5 | B7: ='Utility Group Criteria'!C75 -> BKH | C7: ='Utility Group Criteria'!D75 -> Black Hills Corp.
A8: 6 | B8: ='Utility Group Criteria'!C77 -> CMS | C8: ='Utility Group Criteria'!D77 -> CMS Energy Corp.
A9: 7 | B9: ='Utility Group Criteria'!C78 -> ED | C9: ='Utility Group Criteria'!D78 -> Consolidated Edison
A10: 8 | B10: ='Utility Group Criteria'!C80 -> DTE | C10: ='Utility Group Criteria'!D80 -> DTE Energy Co.
A11: 9 | B11: ='Utility Group Criteria'!C81 -> DUK | C11: ='Utility Group Criteria'!D81 -> Duke Energy Corp.
A12: 10 | B12: ='Utility Group Criteria'!C84 -> EMA | C12: ='Utility Group Criteria'!D84 -> Emera Inc.
A13: 11 | B13: ='Utility Group Criteria'!C85 -> ETR | C13: ='Utility Group Criteria'!D85 -> Entergy Corp.
A14: 12 | B14: ='Utility Group Criteria'!C86 -> ES | C14: ='Utility Group Criteria'!D86 -> Eversource Energy
A15: 13 | B15: ='Utility Group Criteria'!C87 -> EXC | C15: ='Utility Group Criteria'!D87 -> Exelon Corp.
A16: 14 | B16: ='Utility Group Criteria'!C89 -> FTS | C16: ='Utility Group Criteria'!D89 -> Fortis Inc.
A17: 15 | B17: ='Utility Group Criteria'!C94 -> NWE | C17: ='Utility Group Criteria'!D94 -> NorthWestern Corp.
A18: 16 | B18: ='Utility Group Criteria'!C101 -> PPL | C18: ='Utility Group Criteria'!D101 -> PPL Corp.
A19: 17 | B19: ='Utility Group Criteria'!C102 -> PEG | C19: ='Utility Group Criteria'!D102 -> Pub Sv Enterprise Grp.
A20: 18 | B20: ='Utility Group Criteria'!C104 -> SRE | C20: ='Utility Group Criteria'!D104 -> Sempra Energy
A21: 19 | B21: ='Utility Group Criteria'!C105 -> SO | C21: ='Utility Group Criteria'!D105 -> Southern Company
A22: 20 | B22: ='Utility Group Criteria'!C107 -> WEC | C22: ='Utility Group Criteria'!D107 -> WEC Energy Group
A23: 21 | B23: ='Utility Group Criteria'!C108 -> XEL | C23: ='Utility Group Criteria'!D108 -> Xcel Energy Inc.
A24: 22 | B24: ='Utility Group Criteria'!C69 -> zzz | C24: ='Utility Group Criteria'!D69 -> zzz
A25: 23 | B25: ='Utility Group Criteria'!C72 -> zzz | C25: ='Utility Group Criteria'!D72 -> zzz
A26: 24 | B26: ='Utility Group Criteria'!C74 -> zzz | C26: ='Utility Group Criteria'!D74 -> zzz
A27: 25 | B27: ='Utility Group Criteria'!C76 -> zzz | C27: ='Utility Group Criteria'!D76 -> zzz
A28: 26 | B28: ='Utility Group Criteria'!C79 -> zzz | C28: ='Utility Group Criteria'!D79 -> zzz
A29: 27 | B29: ='Utility Group Criteria'!C82 -> zzz | C29: ='Utility Group Criteria'!D82 -> zzz
A30: 28 | B30: ='Utility Group Criteria'!C83 -> zzz | C30: ='Utility Group Criteria'!D83 -> zzz
A31: 29 | B31: ='Utility Group Criteria'!C88 -> zzz | C31: ='Utility Group Criteria'!D88 -> zzz
A32: 30 | B32: ='Utility Group Criteria'!C90 -> zzz | C32: ='Utility Group Criteria'!D90 -> zzz
A33: 31 | B33: ='Utility Group Criteria'!C91 -> zzz | C33: ='Utility Group Criteria'!D91 -> zzz
A34: 32 | B34: ='Utility Group Criteria'!C92 -> zzz | C34: ='Utility Group Criteria'!D92 -> zzz
A35: 33 | B35: ='Utility Group Criteria'!C93 -> zzz | C35: ='Utility Group Criteria'!D93 -> zzz
A36: 34 | B36: ='Utility Group Criteria'!C95 -> zzz | C36: ='Utility Group Criteria'!D95 -> zzz
A37: 35 | B37: ='Utility Group Criteria'!C96 -> zzz | C37: ='Utility Group Criteria'!D96 -> zzz
A38: 36 | B38: ='Utility Group Criteria'!C97 -> zzz | C38: ='Utility Group Criteria'!D97 -> zzz
A39: 37 | B39: ='Utility Group Criteria'!C98 -> zzz | C39: ='Utility Group Criteria'!D98 -> zzz
A40: 38 | B40: ='Utility Group Criteria'!C99 -> zzz | C40: ='Utility Group Criteria'!D99 -> zzz
A41: 39 | B41: ='Utility Group Criteria'!C100 -> zzz | C41: ='Utility Group Criteria'!D100 -> zzz
A42: 40 | B42: ='Utility Group Criteria'!C103 -> zzz | C42: ='Utility Group Criteria'!D103 -> zzz
A43: 41 | B43: ='Utility Group Criteria'!C106 -> zzz | C43: ='Utility Group Criteria'!D106 -> zzz

Sheet Exhibit List
A1: Tab | B1: Designation | C1: Title I | D1: Title II
A2: 2 | B2: Exhibit No. 2 | C2: ROE ANALYSES | D2: SUMMARY OF RESULTS
A3: 3 (1) | B3: Exhibit No. 3 | C3: REGULATORY MECHANISMS | D3: UTILITY GROUP
A4: 3 (2,3,4) | B4: Exhibit No. 3 | C4: REGULATORY MECHANISMS | D4: UTILITY GROUP ELECTRIC OPERATING COS.
A5: 4 (1) | B5: Exhibit No. 4 | C5: CAPITAL STRUCTURE | D5: UTILITY GROUP
A6: 4 (2,3) | B6: Exhibit No. 4 | C6: CAPITAL STRUCTURE | D6: UTILITY GROUP ELECTRIC OPERATING COS.
A7: 5 (1) | B7: Exhibit No. 5 | C7: DCF MODEL - UTILITY GROUP | D7: DIVIDEND YIELD
A8: 5 (2) | B8: Exhibit No. 5 | C8: DCF MODEL - UTILITY GROUP | D8: GROWTH RATES
A9: 5 (3) | B9: Exhibit No. 5 | C9: DCF MODEL - UTILITY GROUP | D9: DCF COST OF EQUITY ESTIMATES
A10: 6 | B10: Exhibit No. 6 | C10: DCF MODEL - UTILITY GROUP | D10: BR+SV GROWTH RATE
A11: 7 (1) | B11: Exhibit No. 7 | C11: CAPM - CURRENT BOND YIELD | D11: UTILITY GROUP
A12: 7 (2) | B12: Exhibit No. 7 | C12: CAPM - PROJECTED BOND YIELD | D12: UTILITY GROUP
A13: 8 (1) | B13: Exhibit No. 8 | C13: EMPIRICAL CAPM - CURRENT BOND YIELD | D13: UTILITY GROUP
A14: 8 (2) | B14: Exhibit No. 8 | C14: EMPIRICAL CAPM - PROJECTED BOND YIELD | D14: UTILITY GROUP
A15: 9 (1) | B15: Exhibit No. 9 | C15: ELECTRIC UTILITY RISK PREMIUM | D15: CURRENT BOND YIELD
A16: 9 (2) | B16: Exhibit No. 9 | C16: ELECTRIC UTILITY RISK PREMIUM | D16: PROJECTED BOND YIELD
A17: 9 (3) | B17: Exhibit No. 9 | C17: ELECTRIC UTILITY RISK PREMIUM | D17: AUTHORIZED RETURNS
A18: 9 (4) | B18: Exhibit No. 9 | C18: ELECTRIC UTILITY RISK PREMIUM | D18: REGRESSION RESULTS
A19: 10 | B19: Exhibit No. 10 | C19: EXPECTED EARNINGS APPROACH | D19: UTILITY GROUP
A20: 11 | B20: Exhibit No. 11 | C20: FLOTATION COST STUDY | D20: VALUE LINE ELECTRIC UTILITY INDUSTRY
A21: 12 (1) | B21: Exhibit No. 12 | C21: DCF MODEL - NON-UTILITY GROUP | D21: DIVIDEND YIELD
A22: 12 (2) | B22: Exhibit No. 12 | C22: DCF MODEL - NON-UTILITY GROUP | D22: GROWTH RATES
A23: 12 (3) | B23: Exhibit No. 12 | C23: DCF MODEL - NON-UTILITY GROUP | D23: DCF COST OF EQUITY ESTIMATES

Sheet Proxy Group Risk Measures
A1: RISK MEASURES
A3: UTILITY GROUP
D5: (a) | G5: (b) | J5: (c) | Q5: (d)
J6: Value Line
D7: Credit Ratings | J7: Safety | L7: Financial | Q7: Market
B8: Company | D8: S&P | G8: Moody's | J8: Rank | L8: Strength | O8: Beta | Q8: Cap
A9: =A8+1 -> 1 | B9: =VLOOKUP('Utility Group'!$B3,vldatabase,2,FALSE) -> Algonquin Pwr & Util | D9: =VLOOKUP('Utility Group'!$B3,vldatabase,26,FALSE) -> BBB | E9: =VLOOKUP(D9,'Ordinal Ratings'!A$8:C$30,2,FALSE) -> 9 | G9: =VLOOKUP('Utility Group'!$B3,vldatabase,27,FALSE) -> NR | H9: =VLOOKUP(G9,'Ordinal Ratings'!I$9:K$28,2,FALSE) ->  | J9: =VLOOKUP('Utility Group'!$B3,vldatabase,22,FALSE) -> n/a | L9: =VLOOKUP('Utility Group'!$B3,vldatabase,24,FALSE) -> n/a | M9: =VLOOKUP(L9,'Ordinal Ratings'!E$8:F$18,2,FALSE) ->  | O9: =VLOOKUP('Utility Group'!$B3,vldatabase,23,FALSE) -> n/a | Q9: =VLOOKUP('Utility Group'!$B3,vldatabase,28,FALSE) -> 4591
A10: =A9+1 -> 2 | B10: =VLOOKUP('Utility Group'!$B4,vldatabase,2,FALSE) -> Alliant Energy | D10: =VLOOKUP('Utility Group'!$B4,vldatabase,26,FALSE) -> A- | E10: =VLOOKUP(D10,'Ordinal Ratings'!A$8:C$30,2,FALSE) -> 7 | G10: =VLOOKUP('Utility Group'!$B4,vldatabase,27,FALSE) -> Baa1 | H10: =VLOOKUP(G10,'Ordinal Ratings'!I$9:K$28,2,FALSE) -> 8 | J10: =VLOOKUP('Utility Group'!$B4,vldatabase,22,FALSE) -> 2 | L10: =VLOOKUP('Utility Group'!$B4,vldatabase,24,FALSE) -> A | M10: =VLOOKUP(L10,'Ordinal Ratings'!E$8:F$18,2,FALSE) -> 3 | O10: =VLOOKUP('Utility Group'!$B4,vldatabase,23,FALSE) -> 0.7 | Q10: =VLOOKUP('Utility Group'!$B4,vldatabase,28,FALSE) -> 9986.13
A11: 3 | B11: =VLOOKUP('Utility Group'!$B5,vldatabase,2,FALSE) -> Ameren Corp. | D11: =VLOOKUP('Utility Group'!$B5,vldatabase,26,FALSE) -> BBB+ | E11: =VLOOKUP(D11,'Ordinal Ratings'!A$8:C$30,2,FALSE) -> 8 | G11: =VLOOKUP('Utility Group'!$B5,vldatabase,27,FALSE) -> Baa1 | H11: =VLOOKUP(G11,'Ordinal Ratings'!I$9:K$28,2,FALSE) -> 8 | J11: =VLOOKUP('Utility Group'!$B5,vldatabase,22,FALSE) -> 2 | L11: =VLOOKUP('Utility Group'!$B5,vldatabase,24,FALSE) -> A | M11: =VLOOKUP(L11,'Ordinal Ratings'!E$8:F$18,2,FALSE) -> 3 | O11: =VLOOKUP('Utility Group'!$B5,vldatabase,23,FALSE) -> 0.65 | Q11: =VLOOKUP('Utility Group'!$B5,vldatabase,28,FALSE) -> 14949.73
A12: 4 | B12: =VLOOKUP('Utility Group'!$B6,vldatabase,2,FALSE) -> Avangrid, Inc. | D12: =VLOOKUP('Utility Group'!$B6,vldatabase,26,FALSE) -> BBB+ | E12: =VLOOKUP(D12,'Ordinal Ratings'!A$8:C$30,2,FALSE) -> 8 | G12: =VLOOKUP('Utility Group'!$B6,vldatabase,27,FALSE) -> Baa1 | H12: =VLOOKUP(G12,'Ordinal Ratings'!I$9:K$28,2,FALSE) -> 8 | J12: =VLOOKUP('Utility Group'!$B6,vldatabase,22,FALSE) -> 2 | L12: =VLOOKUP('Utility Group'!$B6,vldatabase,24,FALSE) -> B++ | M12: =VLOOKUP(L12,'Ordinal Ratings'!E$8:F$18,2,FALSE) -> 4 | O12: =VLOOKUP('Utility Group'!$B6,vldatabase,23,FALSE) -> 0.4 | Q12: =VLOOKUP('Utility Group'!$B6,vldatabase,28,FALSE) -> 16307.38
A13: 5 | B13: =VLOOKUP('Utility Group'!$B7,vldatabase,2,FALSE) -> Black Hills Corp. | D13: =VLOOKUP('Utility Group'!$B7,vldatabase,26,FALSE) -> BBB | E13: =VLOOKUP(D13,'Ordinal Ratings'!A$8:C$30,2,FALSE) -> 9 | G13: =VLOOKUP('Utility Group'!$B7,vldatabase,27,FALSE) -> Baa2 | H13: =VLOOKUP(G13,'Ordinal Ratings'!I$9:K$28,2,FALSE) -> 9 | J13: =VLOOKUP('Utility Group'!$B7,vldatabase,22,FALSE) -> 2 | L13: =VLOOKUP('Utility Group'!$B7,vldatabase,24,FALSE) -> A | M13: =VLOOKUP(L13,'Ordinal Ratings'!E$8:F$18,2,FALSE) -> 3 | O13: =VLOOKUP('Utility Group'!$B7,vldatabase,23,FALSE) -> 0.85 | Q13: =VLOOKUP('Utility Group'!$B7,vldatabase,28,FALSE) -> 3290.73
A14: 6 | B14: =VLOOKUP('Utility Group'!$B8,vldatabase,2,FALSE) -> CMS Energy Corp. | D14: =VLOOKUP('Utility Group'!$B8,vldatabase,26,FALSE) -> BBB+ | E14: =VLOOKUP(D14,'Ordinal Ratings'!A$8:C$30,2,FALSE) -> 8 | G14: =VLOOKUP('Utility Group'!$B8,vldatabase,27,FALSE) -> Baa1 | H14: =VLOOKUP(G14,'Ordinal Ratings'!I$9:K$28,2,FALSE) -> 8 | J14: =VLOOKUP('Utility Group'!$B8,vldatabase,22,FALSE) -> 2 | L14: =VLOOKUP('Utility Group'!$B8,vldatabase,24,FALSE) -> B++ | M14: =VLOOKUP(L14,'Ordinal Ratings'!E$8:F$18,2,FALSE) -> 4 | O14: =VLOOKUP('Utility Group'!$B8,vldatabase,23,FALSE) -> 0.65 | Q14: =VLOOKUP('Utility Group'!$B8,vldatabase,28,FALSE) -> 13537.4
A15: 7 | B15: =VLOOKUP('Utility Group'!$B9,vldatabase,2,FALSE) -> Consolidated Edison | D15: =VLOOKUP('Utility Group'!$B9,vldatabase,26,FALSE) -> A- | E15: =VLOOKUP(D15,'Ordinal Ratings'!A$8:C$30,2,FALSE) -> 7 | G15: =VLOOKUP('Utility Group'!$B9,vldatabase,27,FALSE) -> A3 | H15: =VLOOKUP(G15,'Ordinal Ratings'!I$9:K$28,2,FALSE) -> 7 | J15: =VLOOKUP('Utility Group'!$B9,vldatabase,22,FALSE) -> 1 | L15: =VLOOKUP('Utility Group'!$B9,vldatabase,24,FALSE) -> A+ | M15: =VLOOKUP(L15,'Ordinal Ratings'!E$8:F$18,2,FALSE) -> 2 | O15: =VLOOKUP('Utility Group'!$B9,vldatabase,23,FALSE) -> 0.5 | Q15: =VLOOKUP('Utility Group'!$B9,vldatabase,28,FALSE) -> 24637.42
A16: 8 | B16: =VLOOKUP('Utility Group'!$B10,vldatabase,2,FALSE) -> DTE Energy Co. | D16: =VLOOKUP('Utility Group'!$B10,vldatabase,26,FALSE) -> BBB+ | E16: =VLOOKUP(D16,'Ordinal Ratings'!A$8:C$30,2,FALSE) -> 8 | G16: =VLOOKUP('Utility Group'!$B10,vldatabase,27,FALSE) -> Baa1 | H16: =VLOOKUP(G16,'Ordinal Ratings'!I$9:K$28,2,FALSE) -> 8 | J16: =VLOOKUP('Utility Group'!$B10,vldatabase,22,FALSE) -> 2 | L16: =VLOOKUP('Utility Group'!$B10,vldatabase,24,FALSE) -> B++ | M16: =VLOOKUP(L16,'Ordinal Ratings'!E$8:F$18,2,FALSE) -> 4 | O16: =VLOOKUP('Utility Group'!$B10,vldatabase,23,FALSE) -> 0.65 | Q16: =VLOOKUP('Utility Group'!$B10,vldatabase,28,FALSE) -> 19222.68
A17: 9 | B17: =VLOOKUP('Utility Group'!$B11,vldatabase,2,FALSE) -> Duke Energy Corp. | D17: =VLOOKUP('Utility Group'!$B11,vldatabase,26,FALSE) -> A- | E17: =VLOOKUP(D17,'Ordinal Ratings'!A$8:C$30,2,FALSE) -> 7 | G17: =VLOOKUP('Utility Group'!$B11,vldatabase,27,FALSE) -> Baa1 | H17: =VLOOKUP(G17,'Ordinal Ratings'!I$9:K$28,2,FALSE) -> 8 | J17: =VLOOKUP('Utility Group'!$B11,vldatabase,22,FALSE) -> 2 | L17: =VLOOKUP('Utility Group'!$B11,vldatabase,24,FALSE) -> A | M17: =VLOOKUP(L17,'Ordinal Ratings'!E$8:F$18,2,FALSE) -> 3 | O17: =VLOOKUP('Utility Group'!$B11,vldatabase,23,FALSE) -> 0.6 | Q17: =VLOOKUP('Utility Group'!$B11,vldatabase,28,FALSE) -> 56430.5
A18: 10 | B18: =VLOOKUP('Utility Group'!$B12,vldatabase,2,FALSE) -> Emera Inc. | D18: =VLOOKUP('Utility Group'!$B12,vldatabase,26,FALSE) -> BBB+ | E18: =VLOOKUP(D18,'Ordinal Ratings'!A$8:C$30,2,FALSE) -> 8 | G18: =VLOOKUP('Utility Group'!$B12,vldatabase,27,FALSE) -> Baa3 | H18: =VLOOKUP(G18,'Ordinal Ratings'!I$9:K$28,2,FALSE) -> 10 | J18: =VLOOKUP('Utility Group'!$B12,vldatabase,22,FALSE) -> 2 | L18: =VLOOKUP('Utility Group'!$B12,vldatabase,24,FALSE) -> B+ | M18: =VLOOKUP(L18,'Ordinal Ratings'!E$8:F$18,2,FALSE) -> 5 | O18: =VLOOKUP('Utility Group'!$B12,vldatabase,23,FALSE) -> 0.65 | Q18: =VLOOKUP('Utility Group'!$B12,vldatabase,28,FALSE) -> 9741.37
A19: 11 | B19: =VLOOKUP('Utility Group'!$B13,vldatabase,2,FALSE) -> Entergy Corp. | D19: =VLOOKUP('Utility Group'!$B13,vldatabase,26,FALSE) -> BBB+ | E19: =VLOOKUP(D19,'Ordinal Ratings'!A$8:C$30,2,FALSE) -> 8 | G19: =VLOOKUP('Utility Group'!$B13,vldatabase,27,FALSE) -> Baa2 | H19: =VLOOKUP(G19,'Ordinal Ratings'!I$9:K$28,2,FALSE) -> 9 | J19: =VLOOKUP('Utility Group'!$B13,vldatabase,22,FALSE) -> 3 | L19: =VLOOKUP('Utility Group'!$B13,vldatabase,24,FALSE) -> B++ | M19: =VLOOKUP(L19,'Ordinal Ratings'!E$8:F$18,2,FALSE) -> 4 | O19: =VLOOKUP('Utility Group'!$B13,vldatabase,23,FALSE) -> 0.65 | Q19: =VLOOKUP('Utility Group'!$B13,vldatabase,28,FALSE) -> 14858.06
A20: 12 | B20: =VLOOKUP('Utility Group'!$B14,vldatabase,2,FALSE) -> Eversource Energy | D20: =VLOOKUP('Utility Group'!$B14,vldatabase,26,FALSE) -> A+ | E20: =VLOOKUP(D20,'Ordinal Ratings'!A$8:C$30,2,FALSE) -> 5 | G20: =VLOOKUP('Utility Group'!$B14,vldatabase,27,FALSE) -> Baa1 | H20: =VLOOKUP(G20,'Ordinal Ratings'!I$9:K$28,2,FALSE) -> 8 | J20: =VLOOKUP('Utility Group'!$B14,vldatabase,22,FALSE) -> 1 | L20: =VLOOKUP('Utility Group'!$B14,vldatabase,24,FALSE) -> A | M20: =VLOOKUP(L20,'Ordinal Ratings'!E$8:F$18,2,FALSE) -> 3 | O20: =VLOOKUP('Utility Group'!$B14,vldatabase,23,FALSE) -> 0.65 | Q20: =VLOOKUP('Utility Group'!$B14,vldatabase,28,FALSE) -> 19745.54
A21: 13 | B21: =VLOOKUP('Utility Group'!$B15,vldatabase,2,FALSE) -> Exelon Corp. | D21: =VLOOKUP('Utility Group'!$B15,vldatabase,26,FALSE) -> BBB | E21: =VLOOKUP(D21,'Ordinal Ratings'!A$8:C$30,2,FALSE) -> 9 | G21: =VLOOKUP('Utility Group'!$B15,vldatabase,27,FALSE) -> Baa2 | H21: =VLOOKUP(G21,'Ordinal Ratings'!I$9:K$28,2,FALSE) -> 9 | J21: =VLOOKUP('Utility Group'!$B15,vldatabase,22,FALSE) -> 3 | L21: =VLOOKUP('Utility Group'!$B15,vldatabase,24,FALSE) -> B++ | M21: =VLOOKUP(L21,'Ordinal Ratings'!E$8:F$18,2,FALSE) -> 4 | O21: =VLOOKUP('Utility Group'!$B15,vldatabase,23,FALSE) -> 0.7 | Q21: =VLOOKUP('Utility Group'!$B15,vldatabase,28,FALSE) -> 40783.05
A22: 14 | B22: =VLOOKUP('Utility Group'!$B16,vldatabase,2,FALSE) -> Fortis Inc. | D22: =VLOOKUP('Utility Group'!$B16,vldatabase,26,FALSE) -> A- | E22: =VLOOKUP(D22,'Ordinal Ratings'!A$8:C$30,2,FALSE) -> 7 | G22: =VLOOKUP('Utility Group'!$B16,vldatabase,27,FALSE) -> Baa3 | H22: =VLOOKUP(G22,'Ordinal Ratings'!I$9:K$28,2,FALSE) -> 10 | J22: =VLOOKUP('Utility Group'!$B16,vldatabase,22,FALSE) -> 2 | L22: =VLOOKUP('Utility Group'!$B16,vldatabase,24,FALSE) -> B++ | M22: =VLOOKUP(L22,'Ordinal Ratings'!E$8:F$18,2,FALSE) -> 4 | O22: =VLOOKUP('Utility Group'!$B16,vldatabase,23,FALSE) -> 0.7 | Q22: =VLOOKUP('Utility Group'!$B16,vldatabase,28,FALSE) -> 17930.44
A23: 15 | B23: =VLOOKUP('Utility Group'!$B17,vldatabase,2,FALSE) -> NorthWestern Corp. | D23: =VLOOKUP('Utility Group'!$B17,vldatabase,26,FALSE) -> BBB | E23: =VLOOKUP(D23,'Ordinal Ratings'!A$8:C$30,2,FALSE) -> 9 | G23: =VLOOKUP('Utility Group'!$B17,vldatabase,27,FALSE) -> Baa2 | H23: =VLOOKUP(G23,'Ordinal Ratings'!I$9:K$28,2,FALSE) -> 9 | J23: =VLOOKUP('Utility Group'!$B17,vldatabase,22,FALSE) -> 2 | L23: =VLOOKUP('Utility Group'!$B17,vldatabase,24,FALSE) -> B++ | M23: =VLOOKUP(L23,'Ordinal Ratings'!E$8:F$18,2,FALSE) -> 4 | O23: =VLOOKUP('Utility Group'!$B17,vldatabase,23,FALSE) -> 0.65 | Q23: =VLOOKUP('Utility Group'!$B17,vldatabase,28,FALSE) -> 3110.44
A24: 16 | B24: =VLOOKUP('Utility Group'!$B18,vldatabase,2,FALSE) -> PPL Corp. | D24: =VLOOKUP('Utility Group'!$B18,vldatabase,26,FALSE) -> A- | E24: =VLOOKUP(D24,'Ordinal Ratings'!A$8:C$30,2,FALSE) -> 7 | G24: =VLOOKUP('Utility Group'!$B18,vldatabase,27,FALSE) -> Baa2 | H24: =VLOOKUP(G24,'Ordinal Ratings'!I$9:K$28,2,FALSE) -> 9 | J24: =VLOOKUP('Utility Group'!$B18,vldatabase,22,FALSE) -> 2 | L24: =VLOOKUP('Utility Group'!$B18,vldatabase,24,FALSE) -> B++ | M24: =VLOOKUP(L24,'Ordinal Ratings'!E$8:F$18,2,FALSE) -> 4 | O24: =VLOOKUP('Utility Group'!$B18,vldatabase,23,FALSE) -> 0.75 | Q24: =VLOOKUP('Utility Group'!$B18,vldatabase,28,FALSE) -> 19980.02
A25: 17 | B25: =VLOOKUP('Utility Group'!$B19,vldatabase,2,FALSE) -> Pub Sv Enterprise Grp. | D25: =VLOOKUP('Utility Group'!$B19,vldatabase,26,FALSE) -> BBB+ | E25: =VLOOKUP(D25,'Ordinal Ratings'!A$8:C$30,2,FALSE) -> 8 | G25: =VLOOKUP('Utility Group'!$B19,vldatabase,27,FALSE) -> Baa1 | H25: =VLOOKUP(G25,'Ordinal Ratings'!I$9:K$28,2,FALSE) -> 8 | J25: =VLOOKUP('Utility Group'!$B19,vldatabase,22,FALSE) -> 1 | L25: =VLOOKUP('Utility Group'!$B19,vldatabase,24,FALSE) -> A++ | M25: =VLOOKUP(L25,'Ordinal Ratings'!E$8:F$18,2,FALSE) -> 1 | O25: =VLOOKUP('Utility Group'!$B19,vldatabase,23,FALSE) -> 0.7 | Q25: =VLOOKUP('Utility Group'!$B19,vldatabase,28,FALSE) -> 26374.32
A26: 18 | B26: =VLOOKUP('Utility Group'!$B20,vldatabase,2,FALSE) -> Sempra Energy | D26: =VLOOKUP('Utility Group'!$B20,vldatabase,26,FALSE) -> BBB+ | E26: =VLOOKUP(D26,'Ordinal Ratings'!A$8:C$30,2,FALSE) -> 8 | G26: =VLOOKUP('Utility Group'!$B20,vldatabase,27,FALSE) -> Baa1 | H26: =VLOOKUP(G26,'Ordinal Ratings'!I$9:K$28,2,FALSE) -> 8 | J26: =VLOOKUP('Utility Group'!$B20,vldatabase,22,FALSE) -> 2 | L26: =VLOOKUP('Utility Group'!$B20,vldatabase,24,FALSE) -> A | M26: =VLOOKUP(L26,'Ordinal Ratings'!E$8:F$18,2,FALSE) -> 3 | O26: =VLOOKUP('Utility Group'!$B20,vldatabase,23,FALSE) -> 0.75 | Q26: =VLOOKUP('Utility Group'!$B20,vldatabase,28,FALSE) -> 30526.32
A27: 19 | B27: =VLOOKUP('Utility Group'!$B21,vldatabase,2,FALSE) -> Southern Company | D27: =VLOOKUP('Utility Group'!$B21,vldatabase,26,FALSE) -> A- | E27: =VLOOKUP(D27,'Ordinal Ratings'!A$8:C$30,2,FALSE) -> 7 | G27: =VLOOKUP('Utility Group'!$B21,vldatabase,27,FALSE) -> Baa2 | H27: =VLOOKUP(G27,'Ordinal Ratings'!I$9:K$28,2,FALSE) -> 9 | J27: =VLOOKUP('Utility Group'!$B21,vldatabase,22,FALSE) -> 2 | L27: =VLOOKUP('Utility Group'!$B21,vldatabase,24,FALSE) -> A | M27: =VLOOKUP(L27,'Ordinal Ratings'!E$8:F$18,2,FALSE) -> 3 | O27: =VLOOKUP('Utility Group'!$B21,vldatabase,23,FALSE) -> 0.55 | Q27: =VLOOKUP('Utility Group'!$B21,vldatabase,28,FALSE) -> 48537.77
A28: 20 | B28: =VLOOKUP('Utility Group'!$B22,vldatabase,2,FALSE) -> WEC Energy Group | D28: =VLOOKUP('Utility Group'!$B22,vldatabase,26,FALSE) -> A- | E28: =VLOOKUP(D28,'Ordinal Ratings'!A$8:C$30,2,FALSE) -> 7 | G28: =VLOOKUP('Utility Group'!$B22,vldatabase,27,FALSE) -> Baa1 | H28: =VLOOKUP(G28,'Ordinal Ratings'!I$9:K$28,2,FALSE) -> 8 | J28: =VLOOKUP('Utility Group'!$B22,vldatabase,22,FALSE) -> 1 | L28: =VLOOKUP('Utility Group'!$B22,vldatabase,24,FALSE) -> A+ | M28: =VLOOKUP(L28,'Ordinal Ratings'!E$8:F$18,2,FALSE) -> 2 | O28: =VLOOKUP('Utility Group'!$B22,vldatabase,23,FALSE) -> 0.6 | Q28: =VLOOKUP('Utility Group'!$B22,vldatabase,28,FALSE) -> 20693.05
A29: 21 | B29: =VLOOKUP('Utility Group'!$B23,vldatabase,2,FALSE) -> Xcel Energy Inc. | D29: =VLOOKUP('Utility Group'!$B23,vldatabase,26,FALSE) -> A- | E29: =VLOOKUP(D29,'Ordinal Ratings'!A$8:C$30,2,FALSE) -> 7 | G29: =VLOOKUP('Utility Group'!$B23,vldatabase,27,FALSE) -> A3 | H29: =VLOOKUP(G29,'Ordinal Ratings'!I$9:K$28,2,FALSE) -> 7 | J29: =VLOOKUP('Utility Group'!$B23,vldatabase,22,FALSE) -> 1 | L29: =VLOOKUP('Utility Group'!$B23,vldatabase,24,FALSE) -> A+ | M29: =VLOOKUP(L29,'Ordinal Ratings'!E$8:F$18,2,FALSE) -> 2 | O29: =VLOOKUP('Utility Group'!$B23,vldatabase,23,FALSE) -> 0.6 | Q29: =VLOOKUP('Utility Group'!$B23,vldatabase,28,FALSE) -> 23571.39
B31: Average | D31: =VLOOKUP(E31,'Ordinal Ratings'!$B$8:$C$28,2,FALSE) -> BBB+ | E31: =ROUND(AVERAGE(E9:E29),0) -> 8 | G31: =VLOOKUP(H31,'Ordinal Ratings'!$J$8:$K$28,2,FALSE) -> Baa1 | H31: =ROUND(AVERAGE(H9:H29),0) -> 8 | J31: =AVERAGE(J9:J29) -> 1.85 | L31: =VLOOKUP(M31,'Ordinal Ratings'!$F$8:$G$17,2,FALSE) -> A | M31: =ROUND(AVERAGE(M9:M29),0) -> 3 | O31: =AVERAGE(O9:O29) -> 0.6475 | Q31: =AVERAGE(Q9:Q29) -> 20895.46381
A35: (a) | B35: ='Electric Utility Data'!B55 -> Issuer credit rating from www.standardandpoors.com (retrieved Jul. 17, 2018).
A36: (b) | B36: ='Electric Utility Data'!B56 -> Long-term rating from www.moodys.com (retrieved Jul. 17, 2018).
A37: (c) | B37: ='Utility Group Criteria'!B54 -> The Value Line Investment Survey (May 18, Jun. 15, & Jul. 27, 2018); Jun. 22, 2018 for Emera.
A38: (d) | B38: ='Electric Utility Data'!B57 -> www.valueline.com (retrieved Jul. 17, 2018).
A39: RISK MEASURES
A41: NON-UTILITY GROUP
D43: (a) | G43: (b) | J43: (c) | Q43: (c)
J44: Value Line
D45: Credit Ratings | J45: Safety | L45: Financial | Q45: Market
B46: Company | D46: S&P | G46: Moody's | J46: Rank | L46: Strength | O46: Beta | Q46: Cap
A47: =A46+1 -> 1 | B47: AT&T Inc. | D47: BBB | E47: =VLOOKUP(D47,'Ordinal Ratings'!A$8:B$30,2,FALSE) -> 9 | G47: Baa2 | H47: =VLOOKUP(G47,'Ordinal Ratings'!I$8:J$26,2,FALSE) -> 9 | J47: 1 | L47: A++ | M47: =VLOOKUP(L47,'Ordinal Ratings'!E$8:F$17,2,FALSE) -> 1 | O47: 0.75 | Q47: 201000
A48: =A47+1 -> 2 | B48: Church & Dwight | D48: BBB+ | E48: =VLOOKUP(D48,'Ordinal Ratings'!A$8:B$30,2,FALSE) -> 8 | G48: Baa1 | H48: =VLOOKUP(G48,'Ordinal Ratings'!I$8:J$26,2,FALSE) -> 8 | J48: 1 | L48: A+ | M48: =VLOOKUP(L48,'Ordinal Ratings'!E$8:F$17,2,FALSE) -> 2 | O48: 0.75 | Q48: 12200
A49: 3 | B49: Coca-Cola | D49: A+ | E49: =VLOOKUP(D49,'Ordinal Ratings'!A$8:B$30,2,FALSE) -> 5 | G49: Aa3 | H49: =VLOOKUP(G49,'Ordinal Ratings'!I$8:J$26,2,FALSE) -> 4 | J49: 1 | L49: A++ | M49: =VLOOKUP(L49,'Ordinal Ratings'!E$8:F$17,2,FALSE) -> 1 | O49: 0.75 | Q49: 192000
A50: 4 | B50: Federal Realty Inv. | D50: A- | E50: =VLOOKUP(D50,'Ordinal Ratings'!A$8:B$30,2,FALSE) -> 7 | G50: A3 | H50: =VLOOKUP(G50,'Ordinal Ratings'!I$8:J$26,2,FALSE) -> 7 | J50: 1 | L50: A | M50: =VLOOKUP(L50,'Ordinal Ratings'!E$8:F$17,2,FALSE) -> 3 | O50: 0.75 | Q50: 8100
A51: 5 | B51: Kellogg | D51: BBB | E51: =VLOOKUP(D51,'Ordinal Ratings'!A$8:B$30,2,FALSE) -> 9 | G51: Baa2 | H51: =VLOOKUP(G51,'Ordinal Ratings'!I$8:J$26,2,FALSE) -> 9 | J51: 1 | L51: A | M51: =VLOOKUP(L51,'Ordinal Ratings'!E$8:F$17,2,FALSE) -> 3 | O51: 0.75 | Q51: 24500
A52: 6 | B52: Kimberly-Clark | D52: A | E52: =VLOOKUP(D52,'Ordinal Ratings'!A$8:B$30,2,FALSE) -> 6 | G52: A2 | H52: =VLOOKUP(G52,'Ordinal Ratings'!I$8:J$26,2,FALSE) -> 6 | J52: 1 | L52: A++ | M52: =VLOOKUP(L52,'Ordinal Ratings'!E$8:F$17,2,FALSE) -> 1 | O52: 0.75 | Q52: 36200
A53: 7 | B53: Procter & Gamble | D53: AA- | E53: =VLOOKUP(D53,'Ordinal Ratings'!A$8:B$30,2,FALSE) -> 4 | G53: Aa3 | H53: =VLOOKUP(G53,'Ordinal Ratings'!I$8:J$26,2,FALSE) -> 4 | J53: 1 | L53: A++ | M53: =VLOOKUP(L53,'Ordinal Ratings'!E$8:F$17,2,FALSE) -> 1 | O53: 0.7 | Q53: 194000
A54: 8 | B54: Smucker (J.M.) | D54: BBB | E54: =VLOOKUP(D54,'Ordinal Ratings'!A$8:B$30,2,FALSE) -> 9 | G54: Baa2 | H54: =VLOOKUP(G54,'Ordinal Ratings'!I$8:J$26,2,FALSE) -> 9 | J54: 1 | L54: A+ | M54: =VLOOKUP(L54,'Ordinal Ratings'!E$8:F$17,2,FALSE) -> 2 | O54: 0.75 | Q54: 12400
A55: 9 | B55: Walmart Inc. | D55: AA | E55: =VLOOKUP(D55,'Ordinal Ratings'!A$8:B$30,2,FALSE) -> 3 | G55: Aa2 | H55: =VLOOKUP(G55,'Ordinal Ratings'!I$8:J$26,2,FALSE) -> 3 | J55: 1 | L55: A++ | M55: =VLOOKUP(L55,'Ordinal Ratings'!E$8:F$17,2,FALSE) -> 1 | O55: 0.75 | Q55: 260000
B57: Average | D57: =VLOOKUP(E57,'Ordinal Ratings'!$B$8:$C$28,2,FALSE) -> A- | E57: =ROUND(AVERAGE(E47:E55),0) -> 7 | G57: =VLOOKUP(H57,'Ordinal Ratings'!$J$8:$K$28,2,FALSE) -> A3 | H57: =ROUND(AVERAGE(H47:H55),0) -> 7 | J57: =AVERAGE(J47:J55) -> 1 | L57: =VLOOKUP(M57,'Ordinal Ratings'!$F$8:$G$17,2,FALSE) -> A+ | M57: =ROUND(AVERAGE(M47:M55),0) -> 2 | O57: =AVERAGE(O47:O55) -> 0.7444444444 | Q57: =AVERAGE(Q47:Q55) -> 104488.8889
A61: (a) | B61: www.standardandpoors.com (retrieved Jul. 18, 2018).
A62: (b) | B62: www.moodys.com (retrieved Jul. 18, 2018).
A63: (c) | B63: The Value Line Investment Survey (Jun. 15, Jun. 22, Jul. 6, Jul. 20, Jul. 27, 2018).

Sheet Tables
E4: Value Line
B5: Credit Rating | E5: Safety | F5: Financial
B6: S&P | C6: Moody's | E6: Rank | F6: Strength | G6: Beta
A7: Utility Group | B7: ='Proxy Group Risk Measures'!D31 -> BBB+ | C7: ='Proxy Group Risk Measures'!G31 -> Baa1 | E7: ='Proxy Group Risk Measures'!J31 -> 1.85 | F7: ='Proxy Group Risk Measures'!L31 -> A | G7: ='Proxy Group Risk Measures'!O31 -> 0.6475
A8: LGE/KU | B8: ='Utility Group Criteria'!F60 -> A- | C8: ='Utility Group Criteria'!I60 -> A3 | E8: ='Utility Group Criteria'!L42 -> 2 | F8: ='Utility Group Criteria'!N42 -> B++ | G8: ='Utility Group Criteria'!P42 -> 0.75
E11: Value Line
B12: Credit Rating | E12: Safety | F12: Financial
B13: S&P | C13: Moody's | E13: Rank | F13: Strength | G13: Beta
A14: Non-Utility Group | B14: ='Proxy Group Risk Measures'!D57 -> A- | C14: ='Proxy Group Risk Measures'!G57 -> A3 | E14: ='Proxy Group Risk Measures'!J57 -> 1 | F14: ='Proxy Group Risk Measures'!L57 -> A+ | G14: ='Proxy Group Risk Measures'!O57 -> 0.7444444444
A15: Utility Group | B15: =B7 -> BBB+ | C15: =C7 -> Baa1 | E15: =E7 -> 1.85 | F15: A | G15: 0.6475
A16: LGE/KU | B16: =B8 -> A- | C16: =C8 -> A3 | E16: 2 | F16: B++ | G16: 0.75

Sheet 2
A1: ='Exhibit List'!C2 -> ROE ANALYSES | I1: ='Exhibit List'!B2 -> Exhibit No. 2
I2: Page 1 of 1
A3: ='Exhibit List'!D2 -> SUMMARY OF RESULTS
B6: DCF | E6: Average | G6: Midpoint
C7: Value Line | E7: ='5 (3)'!D32 -> 0.1049267541 | G7: ='5 (3)'!D33 -> 0.118925789
C8: IBES | E8: ='5 (3)'!F32 -> 0.09420211587 | G8: ='5 (3)'!F33 -> 0.1121920556
C9: Zacks | E9: ='5 (3)'!H32 -> 0.09812388738 | G9: ='5 (3)'!H33 -> 0.1042980785
C10: Bloomberg | E10: ='5 (3)'!J32 -> 0.1016182732 | G10: ='5 (3)'!J33 -> 0.1071884747
C11: S&P Capital/IQ | E11: ='5 (3)'!L32 -> 0.1022404244 | G11: ='5 (3)'!L33 -> 0.1185480785
C12: FactSet | E12: ='5 (3)'!N32 -> 0.0969681484 | G12: ='5 (3)'!N33 -> 0.1175496781
C13: Internal br + sv | E13: ='5 (3)'!Q32 -> 0.08863122844 | G13: ='5 (3)'!Q33 -> 0.09897553101
B15: CAPM
C16: Current Bond Yield | E16: ='7 (1)'!AA31 -> 0.10085 | G16: ='7 (1)'!AA32 -> 0.1035
C17: Projected Bond Yield | E17: ='7 (2)'!AA31 -> 0.104 | G17: ='7 (2)'!AA32 -> 0.107
B19: Empirical CAPM
C20: Current Bond Yield | E20: ='8 (1)'!AE31 -> 0.1098 | G20: ='8 (1)'!AE32 -> 0.113
C21: Projected Bond Yield | E21: ='8 (2)'!AE31 -> 0.112 | G21: ='8 (2)'!AE32 -> 0.1155
B23: Utility Risk Premium
C24: Current Bond Yield | F24: ='9 (1)'!G22 -> 0.100372
C25: Projected Bond Yields | F25: ='9 (2)'!G22 -> 0.10980412
B27: Expected Earnings
C28: Industry | F28: ='Electric Utility Data'!S51 -> 0.1075
C29: Proxy Group | E29: ='10'!I32 -> 0.1108292635 | G29: ='10'!I33 -> 0.1133161765
B33: ROE Recommendation
C34: Recommended Cost of Equity Range | E34: 0.098 | F34: -- | G34: 0.108
B36: Flotation Cost Adjustment
C37: Dividend Yield | E37: ='5 (1)'!H31 -> 0.04
C38: Flotation Cost Percentage | E38: ='11'!U50 -> 0.03102253593
D39: Adjustment | E39: =ROUND(E37*E38,4) -> 0.0012
B41: Recommended ROE
C42: Range | E42: =E34+E39 -> 0.0992 | F42: -- | G42: =G34+E39 -> 0.1092
C43: Midpoint | F43: =AVERAGE(E42,G42) -> 0.1042
M47: UTILITY | T47: NON-UTILITY
O48: Cost of Equity | V48: Cost of Equity
M49: Growth Rate | O49: Average | Q49: Midpoint | T49: Growth Rate | V49: Average | X49: Midpoint
M50: Value Line | O50: =E7 -> 0.1049267541 | Q50: =G7 -> 0.118925789 | T50: Value Line | V50: ='12 (3)'!C20 -> 0.1091715175 | X50: ='12 (3)'!C21 -> 0.1111987421
M51: IBES | O51: 0.09420211587 | Q51: 0.1121920556 | T51: IBES | V51: ='12 (3)'!E20 -> 0.0987419837 | X51: ='12 (3)'!E21 -> 0.09856948663
M52: Zacks | O52: 0.09812388738 | Q52: 0.1042980785 | T52: Zacks | V52: ='12 (3)'!G20 -> 0.1047197615 | X52: ='12 (3)'!G21 -> 0.1040874681
M53: Bloomberg | O53: 0.1016182732 | Q53: 0.1071884747 | T53: Bloomberg | V53: ='12 (3)'!I20 -> 0.1042511277 | X53: ='12 (3)'!I21 -> 0.09770331378
M54: S&P Capital/IQ | O54: 0.1022404244 | Q54: 0.1185480785 | T54: S&P Capital/IQ | V54: ='12 (3)'!K20 -> 0.1100412243 | X54: ='12 (3)'!K21 -> 0.1131299408
M55: FactSet | O55: 0.0969681484 | Q55: 0.1175496781 | T55: FactSet | V55: ='12 (3)'!M20 -> 0.104675317 | X55: ='12 (3)'!M21 -> 0.09749831378
M56: br + sv | O56: 0.08863122844 | Q56: 0.09897553101

Sheet 3 (1)
B1: Count | D1: =COUNTIF(D10:D30,"√") -> 15 | E1: =COUNTIF(E10:E30,"√") -> 6 | F1: =COUNTIF(F10:F30,"√") -> 10 | G1: =COUNTIF(G10:G30,"√") -> 12 | H1: 13 | I1: 6 | J1: 12 | K1: 13 | M1: =A30-COUNTIF(M10:M30,"- -") -> 20
A2: ='Exhibit List'!C3 -> REGULATORY MECHANISMS | M2: ='Exhibit List'!B3 -> Exhibit No. 3
M3: Page 1 of 4
A4: ='Exhibit List'!D3 -> UTILITY GROUP
C6: Type of Adjustment Clause
E8: Decoupling | I8: New Capital
A9: Holding Company | C9: Elec. Fuel/ Purch. Pwr | D9: Conserv. Program Expense | E9: Full | F9: Partial | G9: Renew- ables Expense | H9: Environ- mental Compliance | I9: Gener- ation Capacity | J9: Generic Infra- structure | K9: Trans- mission Expense | L9: Other | M9: Future Test Year
A10: 1 | B10: Algonquin Pwr & Util | C10: √ | D10: - - | E10: - - | F10: √ | G10: - - | H10: √ | I10: - - | J10: √ | K10: √ | L10: Taxes, franchise fees; renewables mechanism available | M10: P
A11: 2 | B11: Alliant Energy | C11: √ | D11: - - | E11: - - | F11: √ | G11: - - | H11: √ | I11: - - | J11: √ | K11: √ | L11: Taxes, franchise fees; renewables mechanism available | M11: P
A12: 3 | B12: Ameren Corp. | C12: √ | D12: - - | E12: - - | F12: √ | G12: - - | H12: √ | I12: - - | J12: √ | K12: √ | L12: Taxes, franchise fees; renewables mechanism available | M12: P
A13: 4 | B13: Avangrid, Inc. | C13: D | D13: √ | E13: √ | F13: - - | G13: √ | H13: - - | I13: D | J13: - - | K13: - - | L13: Storm costs | M13: C
A14: 5 | B14: Black Hills Corp. | C14: √ | D14: √ | E14: - - | F14: √ | G14: √ | H14: √ | I14: √ | J14: √ | K14: √ | M14: O
A15: 6 | B15: CMS Energy Corp. | C15: √ | D15: √ | E15: - - | F15: - - | G15: √ | H15: - - | I15: - - | J15: - - | K15: √ | M15: C
A16: 7 | B16: Consolidated Edison | C16: D | D16: - - | E16: √ | F16: - - | G16: √ | H16: - - | I16: D | J16: - - | K16: - - | M16: C
A17: 8 | B17: DTE Energy Co. | C17: √ | D17: √ | E17: - - | F17: - - | G17: √ | H17: - - | I17: - - | J17: - - | K17: √ | M17: C
A18: 9 | B18: Duke Energy Corp. | C18: √ | D18: √ | E18: - - | F18: √ | G18: √ | H18: √ | I18: √ | J18: √ | K18: √ | L18: Taxes, franchise fees, bad debts, storm costs | M18: C,O,P
A19: 10 | B19: Emera Inc. | C19: √ | D19: √ | E19: - - | F19: - - | G19: - - | H19: √ | I19: √ | J19: - - | K19: - - | L19: Taxes, franchise fees | M19: C
A20: 11 | B20: Entergy Corp. | C20: √ | D20: √ | E20: - - | F20: √ | G20: - - | H20: √ | I20: √ | J20: √ | K20: √ | L20: Taxes, franchise fees, storm costs | M20: O,P
A21: 12 | B21: Eversource Energy | C21: √ | D21: √ | E21: √ | F21: - - | G21: √ | H21: - - | I21: - - | J21: √ | K21: √ | M21: C
A22: 13 | B22: Exelon Corp. | C22: D | D22: √ | E22: √ | F22: √ | G22: √ | H22: √ | I22: D | J22: √ | K22: √ | L22: Taxes, franchise fees, bad debts, nuclear decomm., societal benefits | M22: O,P
A23: 14 | B23: Fortis Inc. | C23: D | D23: √ | E23: - - | F23: √ | G23: √ | H23: √ | I23: D | J23: √ | K23: √ | L23: Franchise fees | M23: C
A24: 15 | B24: NorthWestern Corp. | C24: √ | D24: √ | E24: - - | F24: - - | G24: - - | H24: - - | I24: - - | J24: - - | K24: - - | L24: Purchased power contracts | M24: - -
A25: 16 | B25: PPL Corp. | C25: √ | D25: √ | E25: - - | F25: √ | G25: √ | H25: √ | I25: - - | J25: √ | K25: √ | L25: Taxes, franchise fees, universal service program costs | M25: O
A26: 17 | B26: Public Service Enterprise Group | C26: D | D26: √ | E26: - - | F26: - - | G26: √ | H26: √ | I26: D | J26: √ | K26: - - | L26: Taxes, franchise fees, societal benefits | M26: P
A27: 18 | B27: Sempra Energy | C27: √ | D27: - - | E27: √ | F27: - - | G27: - - | H27: - - | I27: - - | J27: - - | K27: - - | M27: C
A28: 19 | B28: Southern Company | C28: √ | D28: √ | E28: - - | F28: √ | G28: - - | H28: √ | I28: √ | J28: - - | K28: - - | L28: Taxes, franchise fees, storm costs | M28: C,O
A29: 20 | B29: WEC Energy Group | C29: √ | D29: - - | E29: - - | F29: - - | G29: - - | H29: - - | I29: - - | J29: - - | K29: - - | L29: Taxes, franchise fees | M29: C
A30: 21 | B30: Xcel Energy Inc. | C30: √ | D30: √ | E30: √ | F30: - - | G30: √ | H30: √ | I30: √ | J30: √ | K30: √ | L30: Taxes, franchise fees, university discounts | M30: C
A32: Sources:
A33: =M2 & ", pages 2-4, contain operating company data that are aggregated into the parent company data on this page." -> Exhibit No. 3, pages 2-4, contain operating company data that are aggregated into the parent company data on this page.
A35: Notes:
A36: D - Delivery-only utility.
A37: C - Fully-forecasted test years commonly used in the state listed for this operating company.
A38: O - Fully-forecasted test years occasionally used in the state listed for this operating company.
A39: P - Partially-forecasted test years commonly or occasionally used in the state listed for this operating company.

Sheet 3 (2-4)
B1: =COUNTIF(B10:B89,"*") -> 59 | D1: =COUNTIF(D10:D89,"D") -> 21 | F1: =SUM(F2:G2) -> 29 | J1: =COUNTIF(J10:J89,"D") -> 19 | N1: =B1-N2 -> 43
F2: =COUNTIF(F10:F89,"√") -> 13 | G2: =COUNTIF(G10:G89,"√*") -> 16 | J2: =COUNTIF(J10:J89,"√") -> 11 | K2: =COUNTIF(K10:K89,"√") -> 16 | N2: =COUNTIF(N10:N89,"- -") -> 16
A3: ='Exhibit List'!C4 -> REGULATORY MECHANISMS
A5: ='Exhibit List'!D4 -> UTILITY GROUP ELECTRIC OPERATING COS.
D6: Type of Adjustment Clause (a)
F8: Decoupling | J8: New Capital
A9: Holding Company/ Operating Company | C9: State | D9: Elec. Fuel/ Gas/ Purch. Pwr | E9: Conserv. Program Expense | F9: Full | G9: Partial | H9: Renew- ables Expense | I9: Environ- mental Compliance | J9: Gener- ation Capacity | K9: Generic Infra- structure | L9: Trans- mission Expense | M9: Other | N9: Future Test Year (b)
A10: ALGONQUIN PWR & UTIL
B11: Empire District Electric | C11: MO | D11: √ | E11: - - | F11: - - | G11: - - | H11: - - | I11: √ | J11: - - | K11: - - | L11: √ | M11: √ | N11: P
B12: Liberty Utilities | C12: NH | D12: D | E12: - - | F12: - - | G12: √ | H12: - - | I12: - - | J12: D | K12: √ | L12: - - | M12: - - | N12: - -
A13: ALLIANT ENERGY CORP.
B14: Interstate Power & Light | C14: IA | D14: √ | E14: √ | F14: - - | G14: - - | H14: √ | I14: √ | J14: - - | K14: - - | L14: √ | M14: √ | N14: - -
B15: Wisconsin Power & Light | C15: WI | D15: √ | E15: - - | F15: - - | G15: - - | H15: - - | I15: - - | J15: LIR | K15: LIR | L15: - - | M15: √ | N15: C
A16: AMEREN
B17: Ameren Illinois | C17: IL | D17: D | E17: √ | F17: - - | G17: - - | H17: √ | I17: √ | J17: D | K17: - - | L17: √ | M17: √ | N17: O
B18: Union Electric | C18: MO | D18: √ | E18: √ | F18: - - | G18: √ | H18: - - | I18: √ | J18: - - | K18: √ | L18: √ | M18: √ | N18: P
A19: AVANGRID
B20: Central Maine Pwr | C20: ME | D20: D | E20: - - | F20: √ | G20: - - | H20: - - | I20: - - | J20: D | K20: - - | L20: - - | M20: √ | N20: C
B21: NY State E&G | C21: NY | D21: D | E21: - - | F21: √ | G21: - - | H21: √ | I21: - - | J21: D | K21: - - | L21: - - | M21: - - | N21: C
B22: Rochester G&E | C22: NY | D22: D | E22: - - | F22: √ | G22: - - | H22: √ | I22: - - | J22: D | K22: - - | L22: - - | M22: - - | N22: C
B23: United Illuminating | C23: CT | D23: D | E23: √ | F23: √ | G23: - - | H23: - - | I23: - - | J23: D | K23: - - | L23: √ | M23: - - | N23: C
A24: BLACK HILLS CORP.
B25: BH Power | C25: SD | D25: √ | E25: √ | F25: - - | G25: √ | H25: - - | I25: √ | J25: - - | K25: - - | L25: √ | M25: √ | N25: - -
B26: Cheyenne Light | C26: WY | D26: √ | E26: √ | F26: - - | G26: √ | H26: √ | I26: - - | J26: - - | K26: - - | L26: - - | M26: √ | N26: O
B27: BH Colorado Elec | C27: CO | D27: √ | E27: √ | F27: - - | G27: - - | H27: √ | I27: - - | J27: √ | K27: √ | L27: - - | M27: √ | N27: - -
A28: CMS ENERGY
B29: Consumers Energy | C29: MI | D29: √ | E29: √ | F29: - - | G29: - - | H29: √ | I29: - - | J29: - - | K29: - - | L29: √ | M29: - - | N29: C
A30: CONSOLIDATED EDISON
B31: Consolidated Edison of NY | C31: NY | D31: D | E31: - - | F31: √ | G31: - - | H31: √ | I31: - - | J31: D | K31: - - | L31: - - | M31: - - | N31: C
B32: Orange & Rockland | C32: NY | D32: D | E32: - - | F32: √ | G32: - - | H32: √ | I32: - - | J32: D | K32: - - | L32: - - | M32: - - | N32: C
A33: DTE ENERGY
B34: DTE Electric | C34: MI | D34: √ | E34: √ | F34: - - | G34: - - | H34: √ | I34: - - | J34: - - | K34: - - | L34: √ | M34: - - | N34: C
A35: DUKE ENERGY
B36: Duke Energy Carolinas | C36: NC | D36: √ | E36: √ | F36: - - | G36: - - | H36: √ | I36: √ | J36: - - | K36: - - | L36: - - | M36: - - | N36: - -
B37: Duke Energy Florida | C37: FL | D37: √ | E37: √ | F37: - - | G37: - - | H37: - - | I37: √ | J37: √ | K37: - - | L37: - - | M37: √ | N37: C
B38: Duke Energy Indiana | C38: IN | D38: √ | E38: √ | F38: - - | G38: √ | H38: √ | I38: √ | J38: √ | K38: √ | L38: √ | M38: √ | N38: - -
B39: Duke Energy Ohio | C39: KY | D39: √ | E39: √ | F39: - - | G39: √ | H39: √ | I39: - - | J39: - - | K39: - - | L39: - - | M39: √ | N39: O
B40: Duke Energy Progress | C40: OH | D40: D | E40: √ | F40: - - | G40: √ | H40: √ | I40: - - | J40: D | K40: √ | L40: √ | M40: √ | N40: P
B41: Progress Energy Inc. | C41: SC | D41: √ | E41: - - | F41: - - | G41: - - | H41: - - | I41: √ | J41: - - | K41: - - | L41: - - | M41: - - | N41: - -
A42: EMERA INC.
B43: Emera Maine | C43: ME | D43: D | E43: - - | F43: - - | G43: - - | H43: - - | I43: - - | J43: - - | K43: - - | L43: - - | M43: - - | N43: C
B44: Tampa Electric Co. | C44: FL | D44: √ | E44: √ | F44: - - | G44: - - | H44: - - | I44: √ | J44: √ | K44: - - | L44: - - | M44: √ | N44: C
A45: ENTERGY CORP.
B46: Entergy Arkansas Inc. | C46: AR | D46: √ | E46: √ | F46: - - | G46: √ | H46: - - | I46: - - | J46: √ | K46: √ | L46: √ | M46: √ | N46: P
B47: Entergy Louisiana LLC | C47: LA | D47: √ | E47: √ | F47: - - | G47: √ | H47: - - | I47: √ | J47: √ | K47: - - | L47: √ | M47: √ | N47: O
B48: Entergy Mississippi Inc. | C48: MS | D48: √ | E48: √ | F48: - - | G48: √ | H48: - - | I48: √ | J48: - - | K48: - - | L48: √ | M48: √ | N48: O
B49: Entergy New Orleans Inc. | C49: LA | D49: √ | E49: √ | F49: - - | G49: √ | H49: - - | I49: √ | J49: √ | K49: - - | L49: √ | M49: √ | N49: O
B50: Entergy Texas Inc. | C50: TX | D50: √ | E50: √ | F50: - - | G50: - - | H50: - - | I50: - - | J50: - - | K50: √ | L50: √ | M50: √ | N50: - -
A51: EVERSOURCE ENERGY
B52: Connecticut Light & Power | C52: CT | D52: D | E52: √ | F52: √ | G52: - - | H52: - - | I52: - - | J52: D | K52: - - | L52: √ | M52: - - | N52: C
B53: NSTAR Electric Co. | C53: MA | D53: D | E53: √ | F53: - - | G53: - - | H53: - - | I53: - - | J53: D | K53: - - | L53: √ | M53: √ | N53: - -
B54: Public Service Co. of New Hampshire | C54: NH | D54: √ | E54: - - | F54: - - | G54: - - | H54: - - | I54: - - | J54: - - | K54: √ | L54: √ | M54: - - | N54: - -
B55: Western Massachussetts Electric Co. | C55: MA | D55: D | E55: √ | F55: √ | G55: - - | H55: √ | I55: - - | J55: D | K55: - - | L55: √ | M55: √ | N55: - -
A56: EXELON CORP.
B57: Baltimore G&E | C57: MD | D57: D | E57: √ | F57: √ | G57: - - | H57: - - | I57: - - | J57: D | K57: √ | L57: - - | M57: √ | N57: P
B58: Commonwealth Edison | C58: IL | D58: D | E58: √ | F58: - - | G58: - - | H58: √ | I58: √ | J58: D | K58: √ | L58: √ | M58: √ | N58: O
B59: PECO Energy | C59: PA | D59: D | E59: √ | F59: - - | G59: - - | H59: - - | I59: - - | J59: D | K59: √ | L59: - - | M59: √ | N59: O
B60: Atlantic City Electric | C60: NJ | D60: D | E60: √ | F60: - - | G60: - - | H60: √ | I60: √ | J60: D | K60: - - | L60: - - | M60: √ | N60: P
B61: Delmarva P&L | C61: MD | D61: D | E61: √ | F61: √ | G61: - - | H61: - - | I61: - - | J61: D | K61: √ | L61: - - | M61: - - | N61: P
B62: Potomac Electric Pwr | C62: DC | D62: D | E62: - - | F62: - - | G62: √ | H62: √ | I62: - - | J62: D | K62: √ | L62: - - | M62: √ | N62: P
A63: FORTIS, INC.
B64: UNS Electric | C64: AZ | D64: √ | E64: √ | F64: - - | G64: √ | H64: √ | I64: - - | J64: - - | K64: - - | L64: √ | M64: √ | N64: - -
B65: Central Hudson Gas & Electric | C65: NY | D65: D | E65: - - | F65: √ | G65: - - | H65: √ | I65: - - | J65: - - | K65: - - | L65: - - | M65: - - | N65: C
A66: NORTHWESTERN CORP.
B67: NorthWestern Corp. | C67: MT | D67: √ | E67: √ | F67: - - | G67: - - | H67: - - | I67: - - | J67: - - | K67: - - | L67: - - | M67: √ | N67: - -
B68: NorthWestern Corp. | C68: SD | D68: √ | E68: √ | F68: - - | G68: - - | H68: - - | I68: - - | J68: - - | K68: - - | L68: - - | M68: - - | N68: - -
A69: PPL CORP.
B70: Kentucky Utilities Co. | C70: KY | D70: √ | E70: √ | F70: - - | G70: √ | H70: √ | I70: √ | J70: - - | K70: - - | L70: - - | M70: √ | N70: O
B71: Louisville Gas & Electric Co. | C71: KY | D71: √ | E71: √ | F71: - - | G71: √ | H71: √ | I71: √ | J71: - - | K71: - - | L71: - - | M71: √ | N71: O
B72: PPL Electric Utilities Corp. | C72: PA | D72: D | E72: √ | F72: - - | G72: - - | H72: - - | I72: - - | J72: D | K72: √ | L72: √ | M72: √ | N72: O
A73: PUB SV ENTERPRISE GRP
B74: Pub Service Electric & Gas Co. | C74: MN | D74: √ | E74: √ | F74: - - | G74: - - | H74: √ | I74: √ | J74: - - | K74: - - | L74: √ | M74: - - | N74: C
A75: SEMPRA ENERGY
B76: San Diego Gas & Electric | C76: CA | D76: √ | E76: - - | F76: √ | G76: - - | H76: - - | I76: - - | J76: - - | K76: - - | L76: - - | M76: - - | N76: C
A77: SOUTHERN CO.
B78: Alabama Power Co. | C78: AL | D78: √ | E78: - - | F78: - - | G78: - - | H78: - - | I78: √ | J78: √ | K78: - - | L78: - - | M78: √ | N78: C
B79: Georgia Power Co. | C79: GA | D79: √ | E79: - - | F79: - - | G79: - - | H79: - - | I79: - - | J79: √ | K79: - - | L79: - - | M79: - - | N79: C
B80: Gulf Power Co. | C80: FL | D80: √ | E80: √ | F80: - - | G80: - - | H80: - - | I80: √ | J80: √ | K80: - - | L80: - - | M80: √ | N80: C
B81: Mississippi Power Co. | C81: MS | D81: √ | E81: √ | F81: - - | G81: √ | H81: - - | I81: √ | J81: - - | K81: - - | L81: - - | M81: √ | N81: O
A82: WEC ENERGY GROUP
B83: Wisconsin Electric Power Co. | C83: WI | D83: √ | E83: - - | F83: - - | G83: - - | H83: - - | I83: - - | J83: - - | K83: - - | L83: - - | M83: √ | N83: C
B84: Wisconsin Public Service Corp. | C84: WI | D84: √ | E84: - - | F84: - - | G84: - - | H84: - - | I84: - - | J84: - - | K84: - - | L84: - - | M84: √ | N84: C
A85: XCEL ENERGY, INC.
B86: Northern States Power Co. (MN) | C86: MN | D86: √ | E86: √ | F86: √ | G86: - - | H86: √ | I86: √ | J86: - - | K86: - - | L86: √ | M86: - - | N86: C
B87: Northern States Power Co. (WI) | C87: WI | D87: √ | E87: - - | F87: - - | G87: - - | H87: - - | I87: - - | J87: - - | K87: - - | L87: - - | M87: √ | N87: C
B88: Public Service Co. of Colorado | C88: CO | D88: √ | E88: √ | F88: - - | G88: - - | H88: √ | I88: √ | J88: √ | K88: √ | L88: - - | M88: √ | N88: - -
B89: Southwestern Public Service Co. | C89: TX | D89: √ | E89: √ | F89: - - | G89: - - | H89: - - | I89: - - | J89: - - | K89: √ | L89: √ | M89: √ | N89: - -
A92: Sources:
A93: (a) | B93: Regulatory Research Associates, Regulatory Focus, "Adjustment Clauses-A State-by-State Overview," Sep. 12, 2017.
A94: (b) | B94: Edison Electric Institute, "Alternative Regulation for Emerging Utility Challenges: 2015 Update," Nov. 11, 2015.
A96: Notes:
A97: D - Delivery-only utility.
A98: C - Fully-forecasted test years commonly used in the state listed for this operating company.
A99: O - Fully-forecasted test years occasionally used in the state listed for this operating company.
A100: P - Partially-forecasted test years commonly or occasionally used in the state listed for this operating company.
A101: LIR - Limited issue reopeners.

Sheet 4 (1)
A1: ='Exhibit List'!C5 -> CAPITAL STRUCTURE | N1: ='Exhibit List'!B5 -> Exhibit No. 4
N2: Page 1 of 3
A3: ='Exhibit List'!D5 -> UTILITY GROUP
D6: At Fiscal Year-End 2017 (a) | J6: Value Line Projected (b) | Q6: At Fiscal Year-End 2017
H8: Common | N8: Common | Q8: Long-term | S8: Common
B9: Company | D9: Debt | F9: Preferred | H9: Equity | J9: Debt | L9: Other | N9: Equity | Q9: Debt | R9: Preferred | S9: Stock | T9: Total
A10: =A9+1 -> 1 | B10: =VLOOKUP('Utility Group'!$B3,vldatabase,2,FALSE) -> Algonquin Pwr & Util | D10: =Q10/T10 -> 0.4812077426 | F10: =R10/T10 -> 0.0266313069 | H10: =S10/T10 -> 0.4921609505 | J10: =VLOOKUP('Utility Group'!$B3,vldatabase,13,FALSE) -> n/a | L10: =IF(J10="n/a","n/a",1-J10-N10) -> n/a | N10: =VLOOKUP('Utility Group'!$B3,vldatabase,15,FALSE) -> n/a | Q10: =VLOOKUP('Utility Group'!$B3,capitalization,3,FALSE) -> 3863.296 | R10: =VLOOKUP('Utility Group'!$B3,capitalization,4,FALSE) -> 213.805 | S10: =VLOOKUP('Utility Group'!$B3,capitalization,5,FALSE) -> 3951.232 | T10: =SUM(Q10:S10) -> 8028.333
A11: =A10+1 -> 2 | B11: =VLOOKUP('Utility Group'!$B4,vldatabase,2,FALSE) -> Alliant Energy | D11: =Q11/T11 -> 0.5261718116 | F11: =R11/T11 -> 0.0216251284 | H11: =S11/T11 -> 0.45220306 | J11: =VLOOKUP('Utility Group'!$B4,vldatabase,13,FALSE) -> 0.5 | L11: =IF(J11="n/a","n/a",1-J11-N11) -> 0 | N11: =VLOOKUP('Utility Group'!$B4,vldatabase,15,FALSE) -> 0.5 | Q11: =VLOOKUP('Utility Group'!$B4,capitalization,3,FALSE) -> 4866.3 | R11: =VLOOKUP('Utility Group'!$B4,capitalization,4,FALSE) -> 200 | S11: =VLOOKUP('Utility Group'!$B4,capitalization,5,FALSE) -> 4182.2 | T11: =SUM(Q11:S11) -> 9248.5
A12: 3 | B12: =VLOOKUP('Utility Group'!$B5,vldatabase,2,FALSE) -> Ameren Corp. | D12: 0.5199528209 | F12: 0 | H12: 0.4800471791 | J12: =VLOOKUP('Utility Group'!$B5,vldatabase,13,FALSE) -> 0.49 | L12: 0.01 | N12: =VLOOKUP('Utility Group'!$B5,vldatabase,15,FALSE) -> 0.5 | Q12: =VLOOKUP('Utility Group'!$B5,capitalization,3,FALSE) -> 7935 | R12: =VLOOKUP('Utility Group'!$B5,capitalization,4,FALSE) -> 0 | S12: =VLOOKUP('Utility Group'!$B5,capitalization,5,FALSE) -> 7326 | T12: 15261
A13: 4 | B13: =VLOOKUP('Utility Group'!$B6,vldatabase,2,FALSE) -> Avangrid, Inc. | D13: 0.2627106227 | F13: 0 | H13: 0.7372893773 | J13: =VLOOKUP('Utility Group'!$B6,vldatabase,13,FALSE) -> 0.365 | L13: 0 | N13: =VLOOKUP('Utility Group'!$B6,vldatabase,15,FALSE) -> 0.635 | Q13: =VLOOKUP('Utility Group'!$B6,capitalization,3,FALSE) -> 5379 | R13: =VLOOKUP('Utility Group'!$B6,capitalization,4,FALSE) -> 0 | S13: =VLOOKUP('Utility Group'!$B6,capitalization,5,FALSE) -> 15096 | T13: 20475
A14: 5 | B14: =VLOOKUP('Utility Group'!$B7,vldatabase,2,FALSE) -> Black Hills Corp. | D14: 0.6311900131 | F14: 0 | H14: 0.3688099869 | J14: =VLOOKUP('Utility Group'!$B7,vldatabase,13,FALSE) -> 0.54 | L14: -5.551115123e-17 | N14: =VLOOKUP('Utility Group'!$B7,vldatabase,15,FALSE) -> 0.46 | Q14: =VLOOKUP('Utility Group'!$B7,capitalization,3,FALSE) -> 3115.143 | R14: =VLOOKUP('Utility Group'!$B7,capitalization,4,FALSE) -> 0 | S14: =VLOOKUP('Utility Group'!$B7,capitalization,5,FALSE) -> 1820.206 | T14: 4935.349
A15: 6 | B15: =VLOOKUP('Utility Group'!$B8,vldatabase,2,FALSE) -> CMS Energy Corp. | D15: 0.6954570185 | F15: 0 | H15: 0.3045429815 | J15: =VLOOKUP('Utility Group'!$B8,vldatabase,13,FALSE) -> 0.62 | L15: 0.005 | N15: =VLOOKUP('Utility Group'!$B8,vldatabase,15,FALSE) -> 0.375 | Q15: =VLOOKUP('Utility Group'!$B8,capitalization,3,FALSE) -> 10226 | R15: =VLOOKUP('Utility Group'!$B8,capitalization,4,FALSE) -> 0 | S15: =VLOOKUP('Utility Group'!$B8,capitalization,5,FALSE) -> 4478 | T15: 14704
A16: 7 | B16: =VLOOKUP('Utility Group'!$B9,vldatabase,2,FALSE) -> Consolidated Edison | D16: 0.5096013226 | F16: 0 | H16: 0.4903986774 | J16: =VLOOKUP('Utility Group'!$B9,vldatabase,13,FALSE) -> 0.485 | L16: 0 | N16: =VLOOKUP('Utility Group'!$B9,vldatabase,15,FALSE) -> 0.515 | Q16: =VLOOKUP('Utility Group'!$B9,capitalization,3,FALSE) -> 16029 | R16: =VLOOKUP('Utility Group'!$B9,capitalization,4,FALSE) -> 0 | S16: =VLOOKUP('Utility Group'!$B9,capitalization,5,FALSE) -> 15425 | T16: 31454
A17: 8 | B17: =VLOOKUP('Utility Group'!$B10,vldatabase,2,FALSE) -> DTE Energy Co. | D17: 0.5516962843 | F17: 0 | H17: 0.4483037157 | J17: =VLOOKUP('Utility Group'!$B10,vldatabase,13,FALSE) -> 0.57 | L17: 5.551115123e-17 | N17: =VLOOKUP('Utility Group'!$B10,vldatabase,15,FALSE) -> 0.43 | Q17: =VLOOKUP('Utility Group'!$B10,capitalization,3,FALSE) -> 12294 | R17: =VLOOKUP('Utility Group'!$B10,capitalization,4,FALSE) -> 0 | S17: =VLOOKUP('Utility Group'!$B10,capitalization,5,FALSE) -> 9990 | T17: 22284
A18: 9 | B18: =VLOOKUP('Utility Group'!$B11,vldatabase,2,FALSE) -> Duke Energy Corp. | D18: 0.5560649251 | F18: 0 | H18: 0.4439350749 | J18: =VLOOKUP('Utility Group'!$B11,vldatabase,13,FALSE) -> 0.565 | L18: 5.551115123e-17 | N18: =VLOOKUP('Utility Group'!$B11,vldatabase,15,FALSE) -> 0.435 | Q18: =VLOOKUP('Utility Group'!$B11,capitalization,3,FALSE) -> 52279 | R18: =VLOOKUP('Utility Group'!$B11,capitalization,4,FALSE) -> 0 | S18: =VLOOKUP('Utility Group'!$B11,capitalization,5,FALSE) -> 41737 | T18: 94016
A19: 10 | B19: =VLOOKUP('Utility Group'!$B12,vldatabase,2,FALSE) -> Emera Inc. | D19: 0.6590542209 | F19: 0.03366252018 | H19: 0.3072832589 | J19: =VLOOKUP('Utility Group'!$B12,vldatabase,13,FALSE) -> 0.5997652582 | L19: 0.03328638498 | N19: =VLOOKUP('Utility Group'!$B12,vldatabase,15,FALSE) -> 0.3669483568 | Q19: =VLOOKUP('Utility Group'!$B12,capitalization,3,FALSE) -> 13881 | R19: =VLOOKUP('Utility Group'!$B12,capitalization,4,FALSE) -> 709 | S19: =VLOOKUP('Utility Group'!$B12,capitalization,5,FALSE) -> 6472 | T19: 21062
A20: 11 | B20: =VLOOKUP('Utility Group'!$B13,vldatabase,2,FALSE) -> Entergy Corp. | D20: 0.6479642205 | F20: 0.008501957226 | H20: 0.3435338223 | J20: =VLOOKUP('Utility Group'!$B13,vldatabase,13,FALSE) -> 0.6 | L20: 0.005 | N20: =VLOOKUP('Utility Group'!$B13,vldatabase,15,FALSE) -> 0.395 | Q20: =VLOOKUP('Utility Group'!$B13,capitalization,3,FALSE) -> 15075.266 | R20: =VLOOKUP('Utility Group'!$B13,capitalization,4,FALSE) -> 197.803 | S20: =VLOOKUP('Utility Group'!$B13,capitalization,5,FALSE) -> 7992.515 | T20: 23265.584
A21: 12 | B21: =VLOOKUP('Utility Group'!$B14,vldatabase,2,FALSE) -> Eversource Energy | D21: 0.5229917413 | F21: 0.006601086623 | H21: 0.4704071721 | J21: =VLOOKUP('Utility Group'!$B14,vldatabase,13,FALSE) -> 0.545 | L21: 0.01 | N21: =VLOOKUP('Utility Group'!$B14,vldatabase,15,FALSE) -> 0.445 | Q21: =VLOOKUP('Utility Group'!$B14,capitalization,3,FALSE) -> 12325.52 | R21: =VLOOKUP('Utility Group'!$B14,capitalization,4,FALSE) -> 155.57 | S21: =VLOOKUP('Utility Group'!$B14,capitalization,5,FALSE) -> 11086.242 | T21: 23567.332
A22: 13 | B22: =VLOOKUP('Utility Group'!$B15,vldatabase,2,FALSE) -> Exelon Corp. | D22: 0.516055184 | F22: 0 | H22: 0.483944816 | J22: =VLOOKUP('Utility Group'!$B15,vldatabase,13,FALSE) -> 0.5 | L22: 0 | N22: =VLOOKUP('Utility Group'!$B15,vldatabase,15,FALSE) -> 0.5 | Q22: =VLOOKUP('Utility Group'!$B15,capitalization,3,FALSE) -> 34264 | R22: =VLOOKUP('Utility Group'!$B15,capitalization,4,FALSE) -> 0 | S22: =VLOOKUP('Utility Group'!$B15,capitalization,5,FALSE) -> 32132 | T22: 66396
A23: 14 | B23: =VLOOKUP('Utility Group'!$B16,vldatabase,2,FALSE) -> Fortis Inc. | D23: 0.5609123083 | F23: 0.04254817145 | H23: 0.3965395203 | J23: =VLOOKUP('Utility Group'!$B16,vldatabase,13,FALSE) -> 0.53 | L23: 0.04 | N23: =VLOOKUP('Utility Group'!$B16,vldatabase,15,FALSE) -> 0.43 | Q23: =VLOOKUP('Utility Group'!$B16,capitalization,3,FALSE) -> 21396 | R23: =VLOOKUP('Utility Group'!$B16,capitalization,4,FALSE) -> 1623 | S23: =VLOOKUP('Utility Group'!$B16,capitalization,5,FALSE) -> 15126 | T23: 38145
A24: 15 | B24: =VLOOKUP('Utility Group'!$B17,vldatabase,2,FALSE) -> NorthWestern Corp. | D24: 0.49953178 | F24: 0 | H24: 0.50046822 | J24: =VLOOKUP('Utility Group'!$B17,vldatabase,13,FALSE) -> 0.46 | L24: 0 | N24: =VLOOKUP('Utility Group'!$B17,vldatabase,15,FALSE) -> 0.54 | Q24: =VLOOKUP('Utility Group'!$B17,capitalization,3,FALSE) -> 1795.549 | R24: =VLOOKUP('Utility Group'!$B17,capitalization,4,FALSE) -> 0 | S24: =VLOOKUP('Utility Group'!$B17,capitalization,5,FALSE) -> 1798.915 | T24: 3594.464
A25: 16 | B25: =VLOOKUP('Utility Group'!$B18,vldatabase,2,FALSE) -> PPL Corp. | D25: 0.6523775682 | F25: 0 | H25: 0.3476224318 | J25: =VLOOKUP('Utility Group'!$B18,vldatabase,13,FALSE) -> 0.56 | L25: -5.551115123e-17 | N25: =VLOOKUP('Utility Group'!$B18,vldatabase,15,FALSE) -> 0.44 | Q25: =VLOOKUP('Utility Group'!$B18,capitalization,3,FALSE) -> 20195 | R25: =VLOOKUP('Utility Group'!$B18,capitalization,4,FALSE) -> 0 | S25: =VLOOKUP('Utility Group'!$B18,capitalization,5,FALSE) -> 10761 | T25: 30956
A26: 17 | B26: =VLOOKUP('Utility Group'!$B19,vldatabase,2,FALSE) -> Pub Sv Enterprise Grp. | D26: 0.4855285157 | F26: 0 | H26: 0.5144714843 | J26: =VLOOKUP('Utility Group'!$B19,vldatabase,13,FALSE) -> 0.495 | L26: 0 | N26: =VLOOKUP('Utility Group'!$B19,vldatabase,15,FALSE) -> 0.505 | Q26: =VLOOKUP('Utility Group'!$B19,capitalization,3,FALSE) -> 13068 | R26: =VLOOKUP('Utility Group'!$B19,capitalization,4,FALSE) -> 0 | S26: =VLOOKUP('Utility Group'!$B19,capitalization,5,FALSE) -> 13847 | T26: 26915
A27: 18 | B27: =VLOOKUP('Utility Group'!$B20,vldatabase,2,FALSE) -> Sempra Energy | D27: =Q27/T27 -> 0.558290641 | F27: =R27/T27 -> 0.0006247657129 | H27: =S27/T27 -> 0.4410845933 | J27: =VLOOKUP('Utility Group'!$B20,vldatabase,13,FALSE) -> 0.56 | L27: =IF(J27="n/a","n/a",1-J27-N27) -> -5.551115123e-17 | N27: =VLOOKUP('Utility Group'!$B20,vldatabase,15,FALSE) -> 0.44 | Q27: =VLOOKUP('Utility Group'!$B20,capitalization,3,FALSE) -> 17872 | R27: =VLOOKUP('Utility Group'!$B20,capitalization,4,FALSE) -> 20 | S27: =VLOOKUP('Utility Group'!$B20,capitalization,5,FALSE) -> 14120 | T27: =SUM(Q27:S27) -> 32012
A28: 19 | B28: =VLOOKUP('Utility Group'!$B21,vldatabase,2,FALSE) -> Southern Company | D28: 0.6516184675 | F28: 0.004366223755 | H28: 0.3440153087 | J28: =VLOOKUP('Utility Group'!$B21,vldatabase,13,FALSE) -> 0.585 | L28: 5.551115123e-17 | N28: =VLOOKUP('Utility Group'!$B21,vldatabase,15,FALSE) -> 0.415 | Q28: =VLOOKUP('Utility Group'!$B21,capitalization,3,FALSE) -> 48354 | R28: =VLOOKUP('Utility Group'!$B21,capitalization,4,FALSE) -> 324 | S28: =VLOOKUP('Utility Group'!$B21,capitalization,5,FALSE) -> 25528 | T28: 74206
A29: =A28+1 -> 20 | B29: =VLOOKUP('Utility Group'!$B22,vldatabase,2,FALSE) -> WEC Energy Group | D29: 0.5025392416 | F29: 0.001593249653 | H29: 0.4958675087 | J29: =VLOOKUP('Utility Group'!$B22,vldatabase,13,FALSE) -> 0.48 | L29: 0 | N29: =VLOOKUP('Utility Group'!$B22,vldatabase,15,FALSE) -> 0.52 | Q29: =VLOOKUP('Utility Group'!$B22,capitalization,3,FALSE) -> 9588.7 | R29: =VLOOKUP('Utility Group'!$B22,capitalization,4,FALSE) -> 30.4 | S29: =VLOOKUP('Utility Group'!$B22,capitalization,5,FALSE) -> 9461.4 | T29: 19080.5
A30: 21 | B30: =VLOOKUP('Utility Group'!$B23,vldatabase,2,FALSE) -> Xcel Energy Inc. | D30: 0.5666237893 | F30: 0 | H30: 0.4333762107 | J30: =VLOOKUP('Utility Group'!$B23,vldatabase,13,FALSE) -> 0.58 | L30: 5.551115123e-17 | N30: =VLOOKUP('Utility Group'!$B23,vldatabase,15,FALSE) -> 0.42 | Q30: =VLOOKUP('Utility Group'!$B23,capitalization,3,FALSE) -> 14977 | R30: =VLOOKUP('Utility Group'!$B23,capitalization,4,FALSE) -> 0 | S30: =VLOOKUP('Utility Group'!$B23,capitalization,5,FALSE) -> 11455 | T30: 26432
Q31: =VLOOKUP('Utility Group'!$B34,capitalization,3,FALSE) ->  | R31: =VLOOKUP('Utility Group'!$B34,capitalization,4,FALSE) ->  | S31: =VLOOKUP('Utility Group'!$B34,capitalization,5,FALSE) ->  | T31: =SUM(Q31:S31) -> 
B32: Average | D32: =AVERAGE(D10:D30) -> 0.550359059 | F32: =AVERAGE(F10:F30) -> 0.006959733805 | H32: =AVERAGE(H10:H30) -> 0.4426812072 | J32: =AVERAGE(J10:J30) -> 0.5314882629 | L32: =AVERAGE(L10:L30) -> 0.005164319249 | N32: =AVERAGE(N10:N30) -> 0.4633474178
B34: Excluding High & Low | D34: =AVERAGE(D10:D12,D14,D16:D30) -> 0.5578617157 | F34: =AVERAGE(F10:F12,F14,F16:F30) -> 0.007692337363 | H34: =AVERAGE(H10:H12,H14,H16:H30) -> 0.4344459469 | J34: =AVERAGE(J10:J12,J14:J18,J20:J30) -> 0.5369444444 | L34: =AVERAGE(L10:L12,L14:L18,L20:L30) -> 0.003888888889 | N34: =AVERAGE(N10:N12,N14:N18,N20:N30) -> 0.4591666667
A38: (a) | B38: Company Form 10-K and Annual Reports.
A39: (b) | B39: ='Utility Group Criteria'!B54 -> The Value Line Investment Survey (May 18, Jun. 15, & Jul. 27, 2018); Jun. 22, 2018 for Emera.
H41: =MIN(H10:H30) -> 0.3045429815 | N41: =MIN(N10:N30) -> 0.3669483568
H42: =MAX(H10:H30) -> 0.7372893773 | N42: =MAX(N10:N30) -> 0.635
B43: ADJUSTED FOR ST. DEBT AT | F43: 0.0189
D45: =D34*100 -> 55.78617157 | F45: =D45/D48 -> 0.5473181293 | J45: =J34*100 -> 53.69444444 | L45: =J45/J48 -> 0.5267961944
D46: =F34*100 -> 0.7692337363 | F46: =D46/D48 -> 0.007546952187 | J46: =L34*100 -> 0.3888888889 | L46: =J46/J48 -> 0.003815388889
D47: =H34*100 -> 43.44459469 | F47: =D47/D48 -> 0.4262349185 | J47: =N34*100 -> 45.91666667 | L47: =J47/J48 -> 0.4504884167
D48: =100/1/(1-$F$43) -> 101.9264091 | F48: =SUM(F43:F47) -> 1 | J48: =100/1/(1-$F$43) -> 101.9264091 | L48: =SUM(F43,L45:L47) -> 1
B51: Short-term Debt Ratio
B52: LGE | D52: 0.0189
B53: KU | D53: 0.0125

Sheet 4 (2-3)
A1: ='Exhibit List'!C6 -> CAPITAL STRUCTURE | F1: ='Exhibit List'!B6 -> Exhibit No. 4 | G1: =A1 -> CAPITAL STRUCTURE | L1: =F1 -> Exhibit No. 4
F2: Page 2 of 3 | L2: Page 3 of 3
A3: ='Exhibit List'!D6 -> UTILITY GROUP ELECTRIC OPERATING COS. | G3: =A3 -> UTILITY GROUP ELECTRIC OPERATING COS.
C6: At Year-End 2017 | I6: At Year-End 2017
A8: Operating Company | C8: Debt | D8: Preferred | E8: Common Equity | G8: Operating Company | I8: Debt | J8: Preferred | K8: Common Equity
A9: ALGONQUIN PWR. & UTIL. | G9: EXELON CORP.
A10: Empire District Electric Co. | C10: ='Capital Structure - Op. Cos.'!J10 -> 0.4850529588 | D10: ='Capital Structure - Op. Cos.'!K10 -> 0 | E10: ='Capital Structure - Op. Cos.'!L10 -> 0.5149470412 | G10: Delmarva Power and Light | I10: ='Capital Structure - Op. Cos.'!J55 -> 0.4933586338 | J10: ='Capital Structure - Op. Cos.'!K55 -> 0 | K10: ='Capital Structure - Op. Cos.'!L55 -> 0.5066413662
A11: Liberty Utilities (Granite State Elec.) | C11: ='Capital Structure - Op. Cos.'!J11 -> 0.2447808253 | D11: ='Capital Structure - Op. Cos.'!K11 -> 0 | E11: ='Capital Structure - Op. Cos.'!L11 -> 0.7552191747 | G11: Baltimore Gas & Electric Co. | I11: ='Capital Structure - Op. Cos.'!J56 -> 0.4506820567 | J11: ='Capital Structure - Op. Cos.'!K56 -> 0 | K11: ='Capital Structure - Op. Cos.'!L56 -> 0.5493179433
A12: ALLIANT ENERGY CORP. | G12: Commonweath Edison Co. | I12: ='Capital Structure - Op. Cos.'!J57 -> 0.4433879718 | J12: ='Capital Structure - Op. Cos.'!K57 -> 0 | K12: ='Capital Structure - Op. Cos.'!L57 -> 0.5566120282
A13: Interstate Power & Light | C13: ='Capital Structure - Op. Cos.'!J13 -> 0.4703168677 | D13: ='Capital Structure - Op. Cos.'!K13 -> 0.03909533397 | E13: ='Capital Structure - Op. Cos.'!L13 -> 0.4905877983 | G13: PECO Energy Co. | I13: ='Capital Structure - Op. Cos.'!J58 -> 0.4479938272 | J13: ='Capital Structure - Op. Cos.'!K58 -> 0 | K13: ='Capital Structure - Op. Cos.'!L58 -> 0.5520061728
A14: Wisconsin Power & Light | C14: ='Capital Structure - Op. Cos.'!J14 -> 0.4935260707 | D14: ='Capital Structure - Op. Cos.'!K14 -> 0 | E14: ='Capital Structure - Op. Cos.'!L14 -> 0.5064739293 | G14: Potomac Electric Power Co. | I14: ='Capital Structure - Op. Cos.'!J59 -> 0.5006899271 | J14: ='Capital Structure - Op. Cos.'!K59 -> 0 | K14: ='Capital Structure - Op. Cos.'!L59 -> 0.4993100729
A15: AMEREN CORP. | G15: Atlantic City Electric Co. | I15: ='Capital Structure - Op. Cos.'!J60 -> 0.5180221811 | J15: ='Capital Structure - Op. Cos.'!K60 -> 0 | K15: ='Capital Structure - Op. Cos.'!L60 -> 0.4819778189
A16: Ameren Illinois Co. | C16: ='Capital Structure - Op. Cos.'!J16 -> 0.4609120521 | D16: ='Capital Structure - Op. Cos.'!K16 -> 0.01009771987 | E16: ='Capital Structure - Op. Cos.'!L16 -> 0.528990228 | G16: FORTIS, INC.
A17: Union Electric Co. | C17: ='Capital Structure - Op. Cos.'!J17 -> 0.4925391694 | D17: ='Capital Structure - Op. Cos.'!K17 -> 0.009947774186 | E17: ='Capital Structure - Op. Cos.'!L17 -> 0.4975130565 | G17: UNS Electric | I17: ='Capital Structure - Op. Cos.'!J62 -> 0.4637870163 | J17: ='Capital Structure - Op. Cos.'!K62 -> 0 | K17: ='Capital Structure - Op. Cos.'!L62 -> 0.5362129837
A18: AVANGRID | G18: Central Hudson Gas & Electric | I18: ='Capital Structure - Op. Cos.'!J63 -> 0.4942452057 | J18: ='Capital Structure - Op. Cos.'!K63 -> 0 | K18: ='Capital Structure - Op. Cos.'!L63 -> 0.5057547943
A19: Central Maine Pwr | C19: ='Capital Structure - Op. Cos.'!J19 -> 0.3617774508 | D19: ='Capital Structure - Op. Cos.'!K19 -> 0.0001987381737 | E19: ='Capital Structure - Op. Cos.'!L19 -> 0.6380238111 | G19: NORTHWESTERN CORP.
A20: NY State E&G | C20: ='Capital Structure - Op. Cos.'!J20 -> 0.4670084495 | D20: ='Capital Structure - Op. Cos.'!K20 -> 0 | E20: ='Capital Structure - Op. Cos.'!L20 -> 0.5329915505 | G20: NorthWestern Corporation | I20: ='Capital Structure - Op. Cos.'!J69 -> 0.49953178 | J20: ='Capital Structure - Op. Cos.'!K69 -> 0 | K20: ='Capital Structure - Op. Cos.'!L69 -> 0.50046822
A21: Rochester G&E | C21: ='Capital Structure - Op. Cos.'!J21 -> 0.5036605966 | D21: ='Capital Structure - Op. Cos.'!K21 -> 0 | E21: ='Capital Structure - Op. Cos.'!L21 -> 0.4963394034 | G21: PPL CORP.
A22: United Illuminating | C22: ='Capital Structure - Op. Cos.'!J22 -> 0.4400165464 | D22: ='Capital Structure - Op. Cos.'!K22 -> 0 | E22: ='Capital Structure - Op. Cos.'!L22 -> 0.5599834536 | G22: Kentucky Utilities Co. | I22: n/a | J22: n/a | K22: n/a
A23: BLACK HILLS CORP. | G23: Louisville Gas & Electric Co. | I23: n/a | J23: n/a | K23: n/a
A24: Black Hills Power | C24: ='Capital Structure - Op. Cos.'!J24 -> 0.4650254386 | D24: ='Capital Structure - Op. Cos.'!K24 -> 0 | E24: ='Capital Structure - Op. Cos.'!L24 -> 0.5349745614 | G24: PPL Electric Utilities Corp. | I24: ='Capital Structure - Op. Cos.'!J73 -> 0.4524005487 | J24: ='Capital Structure - Op. Cos.'!K73 -> 0 | K24: ='Capital Structure - Op. Cos.'!L73 -> 0.5475994513
A25: Cheyenne Light Fuel & Power | C25: ='Capital Structure - Op. Cos.'!J25 -> 0.4599271225 | D25: ='Capital Structure - Op. Cos.'!K25 -> 0 | E25: ='Capital Structure - Op. Cos.'!L25 -> 0.5400728775 | G25: PUB SV ENTERPRISE GRP
A26: CMS ENERGY | G26: Pub Service Electric & Gas Co. | I26: ='Capital Structure - Op. Cos.'!J75 -> 0.4436209335 | J26: ='Capital Structure - Op. Cos.'!K75 -> 0 | K26: ='Capital Structure - Op. Cos.'!L75 -> 0.5563790665
A27: Consumers Energy Co. | C27: ='Capital Structure - Op. Cos.'!J27 -> 0.4773642662 | D27: ='Capital Structure - Op. Cos.'!K27 -> 0.00298050588 | E27: ='Capital Structure - Op. Cos.'!L27 -> 0.519655228 | G27: SEMPRA ENERGY
A28: CONSOLIDATED EDISON | G28: San Diego Gas & Electric | I28: ='Capital Structure - Op. Cos.'!J77 -> 0.4968249709 | J28: ='Capital Structure - Op. Cos.'!K77 -> 0 | K28: ='Capital Structure - Op. Cos.'!L77 -> 0.5031750291
A29: Consolidated Edison of NY | C29: ='Capital Structure - Op. Cos.'!J29 -> 0.5160675381 | D29: ='Capital Structure - Op. Cos.'!K29 -> 0 | E29: ='Capital Structure - Op. Cos.'!L29 -> 0.4839324619 | G29: SOUTHERN CO.
A30: Orange & Rockland | C30: ='Capital Structure - Op. Cos.'!J30 -> 0.5053702697 | D30: ='Capital Structure - Op. Cos.'!K30 -> 0 | E30: ='Capital Structure - Op. Cos.'!L30 -> 0.4946297303 | G30: Alabama Power Co. | I30: ='Capital Structure - Op. Cos.'!J79 -> 0.5172226743 | J30: ='Capital Structure - Op. Cos.'!K79 -> 0.01973148902 | K30: ='Capital Structure - Op. Cos.'!L79 -> 0.4630458367
A31: DTE ENERGY CO. | G31: Georgia Power Co. | I31: ='Capital Structure - Op. Cos.'!J80 -> 0.4999790453 | J31: ='Capital Structure - Op. Cos.'!K80 -> 0 | K31: ='Capital Structure - Op. Cos.'!L80 -> 0.5000209547
A32: DTE Electric Co. | C32: ='Capital Structure - Op. Cos.'!J32 -> 0.4901529948 | D32: ='Capital Structure - Op. Cos.'!K32 -> 0 | E32: ='Capital Structure - Op. Cos.'!L32 -> 0.5098470052 | G32: Gulf Power Co. | I32: ='Capital Structure - Op. Cos.'!J81 -> 0.4563210227 | J32: ='Capital Structure - Op. Cos.'!K81 -> 0 | K32: ='Capital Structure - Op. Cos.'!L81 -> 0.5436789773
A33: DUKE ENERGY | G33: Mississippi Power Co. | I33: ='Capital Structure - Op. Cos.'!J82 -> 0.5999424791 | J33: ='Capital Structure - Op. Cos.'!K82 -> 0.009490940466 | K33: ='Capital Structure - Op. Cos.'!L82 -> 0.3905665804
A34: Duke Energy Carolinas | C34: ='Capital Structure - Op. Cos.'!J34 -> 0.4706951174 | D34: ='Capital Structure - Op. Cos.'!K34 -> 0 | E34: ='Capital Structure - Op. Cos.'!L34 -> 0.5293048826 | G34: WEC ENERGY GROUP
A35: Duke Energy Florida | C35: ='Capital Structure - Op. Cos.'!J35 -> 0.5580901439 | D35: ='Capital Structure - Op. Cos.'!K35 -> 0 | E35: ='Capital Structure - Op. Cos.'!L35 -> 0.4419098561 | G35: Wisconsin Electric Power Co. (We Energies) | I35: ='Capital Structure - Op. Cos.'!J84 -> 0.4283509534 | J35: ='Capital Structure - Op. Cos.'!K84 -> 0.004896789177 | K35: ='Capital Structure - Op. Cos.'!L84 -> 0.5667522574
A36: Duke Energy Indiana | C36: ='Capital Structure - Op. Cos.'!J36 -> 0.4786184211 | D36: ='Capital Structure - Op. Cos.'!K36 -> 0 | E36: ='Capital Structure - Op. Cos.'!L36 -> 0.5213815789 | G36: Wisconsin Public Service Corp. | I36: ='Capital Structure - Op. Cos.'!J85 -> 0.442229298 | J36: ='Capital Structure - Op. Cos.'!K85 -> 0 | K36: ='Capital Structure - Op. Cos.'!L85 -> 0.557770702
A37: Duke Energy Ohio | C37: ='Capital Structure - Op. Cos.'!J37 -> 0.3952198853 | D37: ='Capital Structure - Op. Cos.'!K37 -> 0 | E37: ='Capital Structure - Op. Cos.'!L37 -> 0.6047801147 | G37: XCEL ENERGY, INC.
A38: Duke Energy Progress | C38: ='Capital Structure - Op. Cos.'!J38 -> 0.4806611786 | D38: ='Capital Structure - Op. Cos.'!K38 -> 0 | E38: ='Capital Structure - Op. Cos.'!L38 -> 0.5193388214 | G38: Northern States Power Co. (MN) | I38: ='Capital Structure - Op. Cos.'!J87 -> 0.4769257414 | J38: ='Capital Structure - Op. Cos.'!K87 -> 0 | K38: ='Capital Structure - Op. Cos.'!L87 -> 0.5230742586
A39: Progress Energy Inc. | C39: ='Capital Structure - Op. Cos.'!J39 -> 0.5698357932 | D39: ='Capital Structure - Op. Cos.'!K39 -> 0 | E39: ='Capital Structure - Op. Cos.'!L39 -> 0.4301642068 | G39: Northern States Power Co. (WI) | I39: ='Capital Structure - Op. Cos.'!J88 -> 0.450725484 | J39: ='Capital Structure - Op. Cos.'!K88 -> 0 | K39: ='Capital Structure - Op. Cos.'!L88 -> 0.549274516
A40: EMERA INC. | G40: Public Service Co. of Colorado | I40: ='Capital Structure - Op. Cos.'!J89 -> 0.4368153938 | J40: ='Capital Structure - Op. Cos.'!K89 -> 0 | K40: ='Capital Structure - Op. Cos.'!L89 -> 0.5631846062
A41: Emera Maine | C41: ='Capital Structure - Op. Cos.'!J41 -> 0.3818524187 | D41: ='Capital Structure - Op. Cos.'!K41 -> 0.0004287705479 | E41: ='Capital Structure - Op. Cos.'!L41 -> 0.6177188108 | G41: Southwestern Public Service Co. | I41: ='Capital Structure - Op. Cos.'!J90 -> 0.4607305913 | J41: ='Capital Structure - Op. Cos.'!K90 -> 0 | K41: ='Capital Structure - Op. Cos.'!L90 -> 0.5392694087
A42: Tampa Electric Co. | C42: ='Capital Structure - Op. Cos.'!J42 -> 0.4259709591 | D42: ='Capital Structure - Op. Cos.'!K42 -> 0 | E42: ='Capital Structure - Op. Cos.'!L42 -> 0.5740290409
A43: ENTERGY CORP.
A44: Entergy Arkansas Inc. | C44: ='Capital Structure - Op. Cos.'!J44 -> 0.550769023 | D44: ='Capital Structure - Op. Cos.'!K44 -> 0.00584833177 | E44: ='Capital Structure - Op. Cos.'!L44 -> 0.4433826452
A45: Entergy Louisiana LLC | C45: ='Capital Structure - Op. Cos.'!J45 -> 0.5364653853 | D45: ='Capital Structure - Op. Cos.'!K45 -> 0 | E45: ='Capital Structure - Op. Cos.'!L45 -> 0.4635346147
A46: Entergy Mississippi Inc. | C46: ='Capital Structure - Op. Cos.'!J46 -> 0.5145583751 | D46: ='Capital Structure - Op. Cos.'!K46 -> 0.008256855832 | E46: ='Capital Structure - Op. Cos.'!L46 -> 0.4771847691
A47: Entergy New Orleans Inc. | C47: ='Capital Structure - Op. Cos.'!J47 -> 0.5029758203 | D47: ='Capital Structure - Op. Cos.'!K47 -> 0 | E47: ='Capital Structure - Op. Cos.'!L47 -> 0.4970241797 | G47: Minimum | I47: =MIN(C9:C53,I9:I41) -> 0.2447808253 | J47: =MIN(D9:D53,J9:J41) -> 0 | K47: =MIN(E9:E53,K9:K41) -> 0.3905665804
A48: Entergy Texas Inc. | C48: ='Capital Structure - Op. Cos.'!J48 -> 0.5574194935 | D48: ='Capital Structure - Op. Cos.'!K48 -> 0 | E48: ='Capital Structure - Op. Cos.'!L48 -> 0.4425805065 | G48: Maximum | I48: =MAX(C9:C53,I9:I41) -> 0.5999424791 | J48: =MAX(D9:D53,J9:J41) -> 0.03909533397 | K48: =MAX(E9:E53,K9:K41) -> 0.7552191747
A49: EVERSOURCE ENERGY | G49: Simple Average | I49: =AVERAGE(C9:C53,I9:I41) -> 0.4731667954 | J49: =AVERAGE(D9:D53,J9:J41) -> 0.002451650752 | K49: =AVERAGE(E9:E53,K9:K41) -> 0.5243815538
A50: Connecticut Light & Power | C50: ='Capital Structure - Op. Cos.'!J50 -> 0.4523700096 | D50: ='Capital Structure - Op. Cos.'!K50 -> 0.01718309101 | E50: ='Capital Structure - Op. Cos.'!L50 -> 0.5304468994 | G50: Weighted Average | I50: ='Capital Structure - Op. Cos.'!M92 -> 0.4854348289 | J50: ='Capital Structure - Op. Cos.'!N92 -> 0.002363046214 | K50: ='Capital Structure - Op. Cos.'!O92 -> 0.5122021248
A51: NSTAR Electric Co. | C51: ='Capital Structure - Op. Cos.'!J51 -> 0.457614282 | D51: ='Capital Structure - Op. Cos.'!K51 -> 0.006684451453 | E51: ='Capital Structure - Op. Cos.'!L51 -> 0.5357012666
A52: Public Service Co. of New Hampshire | C52: ='Capital Structure - Op. Cos.'!J52 -> 0.4260197056 | D52: ='Capital Structure - Op. Cos.'!K52 -> 0 | E52: ='Capital Structure - Op. Cos.'!L52 -> 0.5739802944
A53: Western Massachussetts Electric Co. | C53: ='Capital Structure - Op. Cos.'!J53 -> 0.4577513837 | D53: ='Capital Structure - Op. Cos.'!K53 -> 0 | E53: ='Capital Structure - Op. Cos.'!L53 -> 0.5422486163 | G53: Sources: Most recent Company 10-K and FERC Form 1 reports.
C56: =COUNT(C9:C53) -> 33 | E56: =COUNTIF(E10:E53,">=.5284") -> 15 | I56: =COUNT(I9:I41) -> 22 | K56: =COUNTIF(K10:K41,">=.5284") -> 12
G58: ADJUSTED FOR ST. DEBT AT | K58: 0.0125
I60: =AVERAGE(C10,C13:C53,I10:I32,I35:I41)*100 -> 47.50839706 | K60: =I60/I$63 -> 0.469145421
I61: =AVERAGE(D10,D13:D53,J10:J32,J35:J41)*100 -> 0.2365091526 | K61: =I61/I$63 -> 0.002335527882
I62: =AVERAGE(E10,E13:E53,K10:K32,K35:K41)*100 -> 52.25509378 | K62: 0.5160190511
I63: =100/1/(1-$K$58) -> 101.2658228 | K63: =SUM(K58:K62) -> 1
G66: Short-term Debt Ratio
G67: LGE | I67: 0.0189
G68: KU | I68: 0.0125

Sheet 5 (1)
A1: ='Exhibit List'!C7 -> DCF MODEL - UTILITY GROUP | I1: ='Exhibit List'!B7 -> Exhibit No. 5
I2: Page 1 of 3
A3: ='Exhibit List'!D7 -> DIVIDEND YIELD
D6: (a) | F6: (b)
B8: Company | D8: Price | F8: Dividends | H8: Yield
A9: =A8+1 -> 1 | B9: =VLOOKUP('Utility Group'!$B3,vldatabase,2,FALSE) -> Algonquin Pwr & Util | D9: =HLOOKUP('Utility Group'!$B3,stockprice,33,FALSE) -> 12.723 | F9: =VLOOKUP('Utility Group'!$B3,vldatabase,4,FALSE) -> 0.684 | H9: =F9/D9 -> 0.05376090545
A10: =A9+1 -> 2 | B10: =VLOOKUP('Utility Group'!$B4,vldatabase,2,FALSE) -> Alliant Energy | D10: =HLOOKUP('Utility Group'!$B4,stockprice,33,FALSE) -> 42.31033333 | F10: =VLOOKUP('Utility Group'!$B4,vldatabase,4,FALSE) -> 1.34 | H10: =F10/D10 -> 0.03167075025
A11: 3 | B11: =VLOOKUP('Utility Group'!$B5,vldatabase,2,FALSE) -> Ameren Corp. | D11: =HLOOKUP('Utility Group'!$B5,stockprice,33,FALSE) -> 60.497 | F11: =VLOOKUP('Utility Group'!$B5,vldatabase,4,FALSE) -> 1.88 | H11: 0.03107592112
A12: 4 | B12: =VLOOKUP('Utility Group'!$B6,vldatabase,2,FALSE) -> Avangrid, Inc. | D12: =HLOOKUP('Utility Group'!$B6,stockprice,33,FALSE) -> 52.02733333 | F12: =VLOOKUP('Utility Group'!$B6,vldatabase,4,FALSE) -> 1.76 | H12: 0.03382837227
A13: 5 | B13: =VLOOKUP('Utility Group'!$B7,vldatabase,2,FALSE) -> Black Hills Corp. | D13: =HLOOKUP('Utility Group'!$B7,stockprice,33,FALSE) -> 60.803 | F13: =VLOOKUP('Utility Group'!$B7,vldatabase,4,FALSE) -> 1.96 | H13: 0.03223525155
A14: 6 | B14: =VLOOKUP('Utility Group'!$B8,vldatabase,2,FALSE) -> CMS Energy Corp. | D14: =HLOOKUP('Utility Group'!$B8,stockprice,33,FALSE) -> 47.03166667 | F14: =VLOOKUP('Utility Group'!$B8,vldatabase,4,FALSE) -> 1.48 | H14: 0.03146815975
A15: 7 | B15: =VLOOKUP('Utility Group'!$B9,vldatabase,2,FALSE) -> Consolidated Edison | D15: =HLOOKUP('Utility Group'!$B9,stockprice,33,FALSE) -> 77.60033333 | F15: =VLOOKUP('Utility Group'!$B9,vldatabase,4,FALSE) -> 2.91 | H15: 0.03749983892
A16: 8 | B16: =VLOOKUP('Utility Group'!$B10,vldatabase,2,FALSE) -> DTE Energy Co. | D16: =HLOOKUP('Utility Group'!$B10,stockprice,33,FALSE) -> 104.353 | F16: =VLOOKUP('Utility Group'!$B10,vldatabase,4,FALSE) -> 3.72 | H16: 0.03564823244
A17: 9 | B17: =VLOOKUP('Utility Group'!$B11,vldatabase,2,FALSE) -> Duke Energy Corp. | D17: =HLOOKUP('Utility Group'!$B11,stockprice,33,FALSE) -> 79.26866667 | F17: =VLOOKUP('Utility Group'!$B11,vldatabase,4,FALSE) -> 3.71 | H17: 0.04680285611
A18: 10 | B18: =VLOOKUP('Utility Group'!$B12,vldatabase,2,FALSE) -> Emera Inc. | D18: =HLOOKUP('Utility Group'!$B12,stockprice,33,FALSE) -> 42.3903335 | F18: =VLOOKUP('Utility Group'!$B12,vldatabase,4,FALSE) -> 2.26 | H18: 0.05331404151
A19: 11 | B19: =VLOOKUP('Utility Group'!$B13,vldatabase,2,FALSE) -> Entergy Corp. | D19: =HLOOKUP('Utility Group'!$B13,stockprice,33,FALSE) -> 80.71566667 | F19: =VLOOKUP('Utility Group'!$B13,vldatabase,4,FALSE) -> 3.62 | H19: 0.0448487902
A20: 12 | B20: =VLOOKUP('Utility Group'!$B14,vldatabase,2,FALSE) -> Eversource Energy | D20: =HLOOKUP('Utility Group'!$B14,stockprice,33,FALSE) -> 58.24866667 | F20: =VLOOKUP('Utility Group'!$B14,vldatabase,4,FALSE) -> 2.05 | H20: 0.03519393863
A21: 13 | B21: =VLOOKUP('Utility Group'!$B15,vldatabase,2,FALSE) -> Exelon Corp. | D21: =HLOOKUP('Utility Group'!$B15,stockprice,33,FALSE) -> 42.111 | F21: =VLOOKUP('Utility Group'!$B15,vldatabase,4,FALSE) -> 1.45 | H21: 0.03443280853
A22: 14 | B22: =VLOOKUP('Utility Group'!$B16,vldatabase,2,FALSE) -> Fortis Inc. | D22: =HLOOKUP('Utility Group'!$B16,stockprice,33,FALSE) -> 42.22633337 | F22: =VLOOKUP('Utility Group'!$B16,vldatabase,4,FALSE) -> 1.78 | H22: 0.04215379026
A23: 15 | B23: =VLOOKUP('Utility Group'!$B17,vldatabase,2,FALSE) -> NorthWestern Corp. | D23: =HLOOKUP('Utility Group'!$B17,stockprice,33,FALSE) -> 57.658 | F23: =VLOOKUP('Utility Group'!$B17,vldatabase,4,FALSE) -> 2.25 | H23: 0.0390232058
A24: 16 | B24: =VLOOKUP('Utility Group'!$B18,vldatabase,2,FALSE) -> PPL Corp. | D24: =HLOOKUP('Utility Group'!$B18,stockprice,33,FALSE) -> 28.3866665 | F24: =VLOOKUP('Utility Group'!$B18,vldatabase,4,FALSE) -> 1.66 | H24: 0.0584781591
A25: 17 | B25: =VLOOKUP('Utility Group'!$B19,vldatabase,2,FALSE) -> Pub Sv Enterprise Grp. | D25: =HLOOKUP('Utility Group'!$B19,stockprice,33,FALSE) -> 52.61066663 | F25: =VLOOKUP('Utility Group'!$B19,vldatabase,4,FALSE) -> 1.82 | H25: 0.03459374527
A26: 18 | B26: =VLOOKUP('Utility Group'!$B20,vldatabase,2,FALSE) -> Sempra Energy | D26: =HLOOKUP('Utility Group'!$B20,stockprice,33,FALSE) -> 115.1720002 | F26: =VLOOKUP('Utility Group'!$B20,vldatabase,4,FALSE) -> 3.72 | H26: =F26/D26 -> 0.0322995172
A27: 19 | B27: =VLOOKUP('Utility Group'!$B21,vldatabase,2,FALSE) -> Southern Company | D27: =HLOOKUP('Utility Group'!$B21,stockprice,33,FALSE) -> 46.8456668 | F27: =VLOOKUP('Utility Group'!$B21,vldatabase,4,FALSE) -> 2.42 | H27: 0.05165899357
A28: 20 | B28: =VLOOKUP('Utility Group'!$B22,vldatabase,2,FALSE) -> WEC Energy Group | D28: =HLOOKUP('Utility Group'!$B22,stockprice,33,FALSE) -> 64.18533363 | F28: =VLOOKUP('Utility Group'!$B22,vldatabase,4,FALSE) -> 2.28 | H28: 0.03552213365
A29: 21 | B29: =VLOOKUP('Utility Group'!$B23,vldatabase,2,FALSE) -> Xcel Energy Inc. | D29: =HLOOKUP('Utility Group'!$B23,stockprice,33,FALSE) -> 45.50533323 | F29: =VLOOKUP('Utility Group'!$B23,vldatabase,4,FALSE) -> 1.56 | H29: 0.03428169599
B31: Average | H31: =ROUND(AVERAGE(H9:H29),3) -> 0.04
A34: (a) | B34: ='Stock Price (Utility)'!B38 -> Average of closing prices for 30 trading days ended Jul. 27, 2018.
A35: (b) | B35: ='Electric Utility Data'!B53 -> The Value Line Investment Survey, Summary & Index (Jul. 27, 2018).
H37: =MIN(H9:H29) -> 0.03107592112
H38: =MAX(H9:H29) -> 0.0584781591

Sheet 5 (2)
A1: ='Exhibit List'!C8 -> DCF MODEL - UTILITY GROUP | R1: ='Exhibit List'!B8 -> Exhibit No. 5
R2: Page 2 of 3
A3: ='Exhibit List'!D8 -> GROWTH RATES
D5: (a) | F5: (b) | H5: (c) | J5: (d) | L5: (e) | N5: (f) | Q5: (g)
D7: Earnings Growth
L8: S&P | Q8: br+sv
B9: Company | D9: V Line | F9: IBES | H9: Zacks | J9: Bloomberg | L9: Capital IQ | N9: FactSet | Q9: Growth
A10: =A9+1 -> 1 | B10: =VLOOKUP('Utility Group'!$B3,vldatabase,2,FALSE) -> Algonquin Pwr & Util | D10: =VLOOKUP('Utility Group'!$B3,vldatabase,19,FALSE) -> n/a | F10: =VLOOKUP('Utility Group'!$B3,vldatabase,30,FALSE) -> 0.1 | H10: =VLOOKUP('Utility Group'!$B3,vldatabase,31,FALSE) -> 0.08 | J10: =VLOOKUP('Utility Group'!$B3,vldatabase,32,FALSE) -> 0.08 | L10: =VLOOKUP('Utility Group'!$B3,vldatabase,33,FALSE) -> 0.101 | N10: =VLOOKUP('Utility Group'!$B3,vldatabase,34,FALSE) -> 0.176 | Q10: ='6'!Q8 -> n/a
A11: =A10+1 -> 2 | B11: =VLOOKUP('Utility Group'!$B4,vldatabase,2,FALSE) -> Alliant Energy | D11: =VLOOKUP('Utility Group'!$B4,vldatabase,19,FALSE) -> 0.065 | F11: =VLOOKUP('Utility Group'!$B4,vldatabase,30,FALSE) -> 0.0585 | H11: =VLOOKUP('Utility Group'!$B4,vldatabase,31,FALSE) -> 0.0558 | J11: =VLOOKUP('Utility Group'!$B4,vldatabase,32,FALSE) -> 0.05915 | L11: =VLOOKUP('Utility Group'!$B4,vldatabase,33,FALSE) -> 0.0591 | N11: =VLOOKUP('Utility Group'!$B4,vldatabase,34,FALSE) -> 0.0586 | Q11: ='6'!Q9 -> 0.04365695957
A12: 3 | B12: =VLOOKUP('Utility Group'!$B5,vldatabase,2,FALSE) -> Ameren Corp. | D12: =VLOOKUP('Utility Group'!$B5,vldatabase,19,FALSE) -> 0.075 | F12: =VLOOKUP('Utility Group'!$B5,vldatabase,30,FALSE) -> 0.063 | H12: =VLOOKUP('Utility Group'!$B5,vldatabase,31,FALSE) -> 0.0654 | J12: =VLOOKUP('Utility Group'!$B5,vldatabase,32,FALSE) -> 0.08973 | L12: =VLOOKUP('Utility Group'!$B5,vldatabase,33,FALSE) -> 0.0657 | N12: =VLOOKUP('Utility Group'!$B5,vldatabase,34,FALSE) -> 0.07 | Q12: ='6'!Q10 -> 0.04836234365
A13: 4 | B13: =VLOOKUP('Utility Group'!$B6,vldatabase,2,FALSE) -> Avangrid, Inc. | D13: =VLOOKUP('Utility Group'!$B6,vldatabase,19,FALSE) -> 0.13 | F13: =VLOOKUP('Utility Group'!$B6,vldatabase,30,FALSE) -> 0.097 | H13: =VLOOKUP('Utility Group'!$B6,vldatabase,31,FALSE) -> 0.0914 | J13: =VLOOKUP('Utility Group'!$B6,vldatabase,32,FALSE) -> 0.09705 | L13: =VLOOKUP('Utility Group'!$B6,vldatabase,33,FALSE) -> 0.089 | N13: =VLOOKUP('Utility Group'!$B6,vldatabase,34,FALSE) -> 0.0971 | Q13: ='6'!Q11 -> 0.01989663105
A14: 5 | B14: =VLOOKUP('Utility Group'!$B7,vldatabase,2,FALSE) -> Black Hills Corp. | D14: =VLOOKUP('Utility Group'!$B7,vldatabase,19,FALSE) -> 0.065 | F14: =VLOOKUP('Utility Group'!$B7,vldatabase,30,FALSE) -> 0.0393 | H14: =VLOOKUP('Utility Group'!$B7,vldatabase,31,FALSE) -> 0.0426 | J14: =VLOOKUP('Utility Group'!$B7,vldatabase,32,FALSE) -> 0.0501 | L14: =VLOOKUP('Utility Group'!$B7,vldatabase,33,FALSE) -> 0.0501 | N14: =VLOOKUP('Utility Group'!$B7,vldatabase,34,FALSE) -> 0.0489 | Q14: ='6'!Q12 -> 0.05737031111
A15: 6 | B15: =VLOOKUP('Utility Group'!$B8,vldatabase,2,FALSE) -> CMS Energy Corp. | D15: =VLOOKUP('Utility Group'!$B8,vldatabase,19,FALSE) -> 0.07 | F15: =VLOOKUP('Utility Group'!$B8,vldatabase,30,FALSE) -> 0.0705 | H15: =VLOOKUP('Utility Group'!$B8,vldatabase,31,FALSE) -> 0.0635 | J15: =VLOOKUP('Utility Group'!$B8,vldatabase,32,FALSE) -> 0.0635 | L15: =VLOOKUP('Utility Group'!$B8,vldatabase,33,FALSE) -> 0.0666 | N15: =VLOOKUP('Utility Group'!$B8,vldatabase,34,FALSE) -> 0.07 | Q15: ='6'!Q13 -> 0.06155325355
A16: 7 | B16: =VLOOKUP('Utility Group'!$B9,vldatabase,2,FALSE) -> Consolidated Edison | D16: =VLOOKUP('Utility Group'!$B9,vldatabase,19,FALSE) -> 0.03 | F16: =VLOOKUP('Utility Group'!$B9,vldatabase,30,FALSE) -> 0.0339 | H16: =VLOOKUP('Utility Group'!$B9,vldatabase,31,FALSE) -> 0.04 | J16: =VLOOKUP('Utility Group'!$B9,vldatabase,32,FALSE) -> 0.03 | L16: =VLOOKUP('Utility Group'!$B9,vldatabase,33,FALSE) -> 0.0318 | N16: =VLOOKUP('Utility Group'!$B9,vldatabase,34,FALSE) -> 0.0353 | Q16: ='6'!Q14 -> 0.02782952631
A17: 8 | B17: =VLOOKUP('Utility Group'!$B10,vldatabase,2,FALSE) -> DTE Energy Co. | D17: =VLOOKUP('Utility Group'!$B10,vldatabase,19,FALSE) -> 0.07 | F17: =VLOOKUP('Utility Group'!$B10,vldatabase,30,FALSE) -> 0.0558 | H17: =VLOOKUP('Utility Group'!$B10,vldatabase,31,FALSE) -> 0.0533 | J17: =VLOOKUP('Utility Group'!$B10,vldatabase,32,FALSE) -> 0.05533 | L17: =VLOOKUP('Utility Group'!$B10,vldatabase,33,FALSE) -> 0.0583 | N17: =VLOOKUP('Utility Group'!$B10,vldatabase,34,FALSE) -> 0.0487 | Q17: ='6'!Q15 -> 0.05361647686
A18: 9 | B18: =VLOOKUP('Utility Group'!$B11,vldatabase,2,FALSE) -> Duke Energy Corp. | D18: =VLOOKUP('Utility Group'!$B11,vldatabase,19,FALSE) -> 0.055 | F18: =VLOOKUP('Utility Group'!$B11,vldatabase,30,FALSE) -> 0.0422 | H18: =VLOOKUP('Utility Group'!$B11,vldatabase,31,FALSE) -> 0.0464 | J18: =VLOOKUP('Utility Group'!$B11,vldatabase,32,FALSE) -> 0.04445 | L18: =VLOOKUP('Utility Group'!$B11,vldatabase,33,FALSE) -> 0.0423 | N18: =VLOOKUP('Utility Group'!$B11,vldatabase,34,FALSE) -> 0.05 | Q18: ='6'!Q16 -> 0.02291554078
A19: 10 | B19: =VLOOKUP('Utility Group'!$B12,vldatabase,2,FALSE) -> Emera Inc. | D19: =VLOOKUP('Utility Group'!$B12,vldatabase,19,FALSE) -> 0.105 | F19: =VLOOKUP('Utility Group'!$B12,vldatabase,30,FALSE) -> 0.072 | H19: =VLOOKUP('Utility Group'!$B12,vldatabase,31,FALSE) -> n/a | J19: =VLOOKUP('Utility Group'!$B12,vldatabase,32,FALSE) -> 0.134 | L19: =VLOOKUP('Utility Group'!$B12,vldatabase,33,FALSE) -> 0.0653 | N19: =VLOOKUP('Utility Group'!$B12,vldatabase,34,FALSE) -> n/a | Q19: ='6'!Q17 -> 0.05630926207
A20: 11 | B20: =VLOOKUP('Utility Group'!$B13,vldatabase,2,FALSE) -> Entergy Corp. | D20: =VLOOKUP('Utility Group'!$B13,vldatabase,19,FALSE) -> 0.02 | F20: =VLOOKUP('Utility Group'!$B13,vldatabase,30,FALSE) -> -0.0021 | H20: =VLOOKUP('Utility Group'!$B13,vldatabase,31,FALSE) -> 0.07 | J20: =VLOOKUP('Utility Group'!$B13,vldatabase,32,FALSE) -> 0.03005 | L20: =VLOOKUP('Utility Group'!$B13,vldatabase,33,FALSE) -> 0.0895 | N20: =VLOOKUP('Utility Group'!$B13,vldatabase,34,FALSE) -> -0.02 | Q20: ='6'!Q18 -> 0.05881991051
A21: 12 | B21: =VLOOKUP('Utility Group'!$B14,vldatabase,2,FALSE) -> Eversource Energy | D21: =VLOOKUP('Utility Group'!$B14,vldatabase,19,FALSE) -> 0.055 | F21: =VLOOKUP('Utility Group'!$B14,vldatabase,30,FALSE) -> 0.0573 | H21: =VLOOKUP('Utility Group'!$B14,vldatabase,31,FALSE) -> 0.0575 | J21: =VLOOKUP('Utility Group'!$B14,vldatabase,32,FALSE) -> 0.06267 | L21: =VLOOKUP('Utility Group'!$B14,vldatabase,33,FALSE) -> 0.0532 | N21: =VLOOKUP('Utility Group'!$B14,vldatabase,34,FALSE) -> 0.055 | Q21: ='6'!Q19 -> 0.03635122547
A22: 13 | B22: =VLOOKUP('Utility Group'!$B15,vldatabase,2,FALSE) -> Exelon Corp. | D22: =VLOOKUP('Utility Group'!$B15,vldatabase,19,FALSE) -> 0.08 | F22: =VLOOKUP('Utility Group'!$B15,vldatabase,30,FALSE) -> 0.0419 | H22: =VLOOKUP('Utility Group'!$B15,vldatabase,31,FALSE) -> 0.0567 | J22: =VLOOKUP('Utility Group'!$B15,vldatabase,32,FALSE) -> 0.0531 | L22: =VLOOKUP('Utility Group'!$B15,vldatabase,33,FALSE) -> 0.0491 | N22: =VLOOKUP('Utility Group'!$B15,vldatabase,34,FALSE) -> 0.0492 | Q22: ='6'!Q20 -> 0.0534001277
A23: 14 | B23: =VLOOKUP('Utility Group'!$B16,vldatabase,2,FALSE) -> Fortis Inc. | D23: =VLOOKUP('Utility Group'!$B16,vldatabase,19,FALSE) -> 0.08 | F23: =VLOOKUP('Utility Group'!$B16,vldatabase,30,FALSE) -> 0.0414 | H23: =VLOOKUP('Utility Group'!$B16,vldatabase,31,FALSE) -> 0.055 | J23: =VLOOKUP('Utility Group'!$B16,vldatabase,32,FALSE) -> 0.06 | L23: =VLOOKUP('Utility Group'!$B16,vldatabase,33,FALSE) -> 0.0517 | N23: =VLOOKUP('Utility Group'!$B16,vldatabase,34,FALSE) -> n/a | Q23: ='6'!Q21 -> 0.03328060208
A24: 15 | B24: =VLOOKUP('Utility Group'!$B17,vldatabase,2,FALSE) -> NorthWestern Corp. | D24: =VLOOKUP('Utility Group'!$B17,vldatabase,19,FALSE) -> 0.035 | F24: =VLOOKUP('Utility Group'!$B17,vldatabase,30,FALSE) -> 0.0316 | H24: =VLOOKUP('Utility Group'!$B17,vldatabase,31,FALSE) -> 0.0301 | J24: =VLOOKUP('Utility Group'!$B17,vldatabase,32,FALSE) -> 0.02407 | L24: =VLOOKUP('Utility Group'!$B17,vldatabase,33,FALSE) -> 0.0301 | N24: =VLOOKUP('Utility Group'!$B17,vldatabase,34,FALSE) -> 0.03 | Q24: ='6'!Q22 -> 0.03629780187
A25: 16 | B25: =VLOOKUP('Utility Group'!$B18,vldatabase,2,FALSE) -> PPL Corp. | D25: =VLOOKUP('Utility Group'!$B18,vldatabase,19,FALSE) -> 0.02 | F25: =VLOOKUP('Utility Group'!$B18,vldatabase,30,FALSE) -> 0.0214 | H25: =VLOOKUP('Utility Group'!$B18,vldatabase,31,FALSE) -> 0.06 | J25: =VLOOKUP('Utility Group'!$B18,vldatabase,32,FALSE) -> 0.081 | L25: =VLOOKUP('Utility Group'!$B18,vldatabase,33,FALSE) -> 0.0414 | N25: =VLOOKUP('Utility Group'!$B18,vldatabase,34,FALSE) -> 0.0426 | Q25: ='6'!Q23 -> 0.06975450602
A26: 17 | B26: =VLOOKUP('Utility Group'!$B19,vldatabase,2,FALSE) -> Pub Sv Enterprise Grp. | D26: =VLOOKUP('Utility Group'!$B19,vldatabase,19,FALSE) -> 0.04 | F26: =VLOOKUP('Utility Group'!$B19,vldatabase,30,FALSE) -> 0.0634 | H26: =VLOOKUP('Utility Group'!$B19,vldatabase,31,FALSE) -> 0.0613 | J26: =VLOOKUP('Utility Group'!$B19,vldatabase,32,FALSE) -> 0.06535 | L26: =VLOOKUP('Utility Group'!$B19,vldatabase,33,FALSE) -> 0.0627 | N26: =VLOOKUP('Utility Group'!$B19,vldatabase,34,FALSE) -> 0.063 | Q26: ='6'!Q24 -> 0.04564427538
A27: 18 | B27: =VLOOKUP('Utility Group'!$B20,vldatabase,2,FALSE) -> Sempra Energy | D27: =VLOOKUP('Utility Group'!$B20,vldatabase,19,FALSE) -> 0.095 | F27: =VLOOKUP('Utility Group'!$B20,vldatabase,30,FALSE) -> 0.0845 | H27: =VLOOKUP('Utility Group'!$B20,vldatabase,31,FALSE) -> 0.085 | J27: =VLOOKUP('Utility Group'!$B20,vldatabase,32,FALSE) -> 0.16337 | L27: =VLOOKUP('Utility Group'!$B20,vldatabase,33,FALSE) -> 0.0843 | N27: =VLOOKUP('Utility Group'!$B20,vldatabase,34,FALSE) -> 0.13 | Q27: ='6'!Q25 -> 0.0820531912
A28: 19 | B28: =VLOOKUP('Utility Group'!$B21,vldatabase,2,FALSE) -> Southern Company | D28: =VLOOKUP('Utility Group'!$B21,vldatabase,19,FALSE) -> 0.03 | F28: =VLOOKUP('Utility Group'!$B21,vldatabase,30,FALSE) -> 0.0225 | H28: =VLOOKUP('Utility Group'!$B21,vldatabase,31,FALSE) -> 0.045 | J28: =VLOOKUP('Utility Group'!$B21,vldatabase,32,FALSE) -> 0.0438 | L28: =VLOOKUP('Utility Group'!$B21,vldatabase,33,FALSE) -> 0.0413 | N28: =VLOOKUP('Utility Group'!$B21,vldatabase,34,FALSE) -> 0.04 | Q28: ='6'!Q26 -> 0.04433787681
A29: 20 | B29: =VLOOKUP('Utility Group'!$B22,vldatabase,2,FALSE) -> WEC Energy Group | D29: =VLOOKUP('Utility Group'!$B22,vldatabase,19,FALSE) -> 0.07 | F29: =VLOOKUP('Utility Group'!$B22,vldatabase,30,FALSE) -> 0.0443 | H29: =VLOOKUP('Utility Group'!$B22,vldatabase,31,FALSE) -> 0.0413 | J29: =VLOOKUP('Utility Group'!$B22,vldatabase,32,FALSE) -> 0.02997 | L29: =VLOOKUP('Utility Group'!$B22,vldatabase,33,FALSE) -> 0.061 | N29: =VLOOKUP('Utility Group'!$B22,vldatabase,34,FALSE) -> 0.038 | Q29: ='6'!Q27 -> 0.04269632748
A30: 21 | B30: =VLOOKUP('Utility Group'!$B23,vldatabase,2,FALSE) -> Xcel Energy Inc. | D30: =VLOOKUP('Utility Group'!$B23,vldatabase,19,FALSE) -> 0.055 | F30: =VLOOKUP('Utility Group'!$B23,vldatabase,30,FALSE) -> 0.0586 | H30: =VLOOKUP('Utility Group'!$B23,vldatabase,31,FALSE) -> 0.0567 | J30: =VLOOKUP('Utility Group'!$B23,vldatabase,32,FALSE) -> 0.05848 | L30: =VLOOKUP('Utility Group'!$B23,vldatabase,33,FALSE) -> 0.0577 | N30: =VLOOKUP('Utility Group'!$B23,vldatabase,34,FALSE) -> 0.0584 | Q30: ='6'!Q28 -> 0.04424012894
A33: (a) | B33: ='Proxy Group Risk Measures'!B37 -> The Value Line Investment Survey (May 18, Jun. 15, & Jul. 27, 2018); Jun. 22, 2018 for Emera.
A34: (b) | B34: ='Electric Utility Data'!B58 -> www.finance.yahoo.com (retreived Jul. 17, 2018).
A35: (c) | B35: ='Electric Utility Data'!B59 -> www.zacks.com (retrieved Jul. 18, 2018).
A36: (d) | B36: ='Electric Utility Data'!B60 -> Bloomberg L.P. (retrieved Jul. 13, 2018).
A37: (e) | B37: ='Electric Utility Data'!B61 -> SNL Financial (retrieved Aug. 2, 2018).
A38: (f) | B38: ='Electric Utility Data'!B62 -> www.money.cnn.com (retrieved Jul. 18, 2018).
A39: (g) | B39: ="See " & 'Exhibit List'!B10 &"." -> See Exhibit No. 6.

Sheet 5 (3)
A1: ='Exhibit List'!C9 -> DCF MODEL - UTILITY GROUP | R1: ='Exhibit List'!B9 -> Exhibit No. 5
R2: Page 3 of 3
A3: ='Exhibit List'!D9 -> DCF COST OF EQUITY ESTIMATES
D5: (a) | F5: (a) | H5: (a) | J5: (a) | L5: (a) | N5: (a) | Q5: (a)
D7: Earnings Growth
L8: S&P | Q8: br+sv
B9: Company | D9: V Line | F9: IBES | H9: Zacks | J9: Bloomberg | L9: Capital/IQ | N9: FactSet | Q9: Growth
A10: =A9+1 -> 1 | B10: =VLOOKUP('Utility Group'!$B3,vldatabase,2,FALSE) -> Algonquin Pwr & Util | D10: =IF('5 (2)'!D10="n/a","n/a",'5 (1)'!$H9+'5 (2)'!D10) -> n/a | F10: =IF('5 (2)'!F10="n/a","n/a",'5 (1)'!$H9+'5 (2)'!F10) -> 0.1537609054 | H10: =IF('5 (2)'!H10="n/a","n/a",'5 (1)'!$H9+'5 (2)'!H10) -> 0.1337609054 | J10: =IF('5 (2)'!J10="n/a","n/a",'5 (1)'!$H9+'5 (2)'!J10) -> 0.1337609054 | L10: =IF('5 (2)'!L10="n/a","n/a",'5 (1)'!$H9+'5 (2)'!L10) -> 0.1547609054 | N10: =IF('5 (2)'!N10="n/a","n/a",'5 (1)'!$H9+'5 (2)'!N10) -> 0.2297609054 | Q10: =IF('5 (2)'!Q10="n/a","n/a",'5 (1)'!$H9+'5 (2)'!Q10) -> n/a | U10: =IF(D10="n/a","n/a",IF(D10<$D$43,"nmf",IF(D10>$D$44,"nmf",D10))) -> n/a | V10: =IF(F10="n/a","n/a",IF(F10<$D$43,"nmf",IF(F10>$D$44,"nmf",F10))) -> 0.1537609054 | W10: =IF(H10="n/a","n/a",IF(H10<$D$43,"nmf",IF(H10>$D$44,"nmf",H10))) -> 0.1337609054 | X10: =IF(J10="n/a","n/a",IF(J10<$D$43,"nmf",IF(J10>$D$44,"nmf",J10))) -> 0.1337609054 | Y10: =IF(L10="n/a","n/a",IF(L10<$D$43,"nmf",IF(L10>$D$44,"nmf",L10))) -> 0.1547609054 | Z10: =IF(N10="n/a","n/a",IF(N10<$D$43,"nmf",IF(N10>$D$44,"nmf",N10))) -> nmf | AB10: =IF(Q10="n/a","n/a",IF(Q10<$D$43,"nmf",IF(Q10>$D$44,"nmf",Q10))) -> n/a
A11: =A10+1 -> 2 | B11: =VLOOKUP('Utility Group'!$B4,vldatabase,2,FALSE) -> Alliant Energy | D11: =IF('5 (2)'!D11="n/a","n/a",'5 (1)'!$H10+'5 (2)'!D11) -> 0.09667075025 | F11: =IF('5 (2)'!F11="n/a","n/a",'5 (1)'!$H10+'5 (2)'!F11) -> 0.09017075025 | H11: =IF('5 (2)'!H11="n/a","n/a",'5 (1)'!$H10+'5 (2)'!H11) -> 0.08747075025 | J11: =IF('5 (2)'!J11="n/a","n/a",'5 (1)'!$H10+'5 (2)'!J11) -> 0.09082075025 | L11: =IF('5 (2)'!L11="n/a","n/a",'5 (1)'!$H10+'5 (2)'!L11) -> 0.09077075025 | N11: =IF('5 (2)'!N11="n/a","n/a",'5 (1)'!$H10+'5 (2)'!N11) -> 0.09027075025 | Q11: =IF('5 (2)'!Q11="n/a","n/a",'5 (1)'!$H10+'5 (2)'!Q11) -> 0.07532770982 | U11: =IF(D11="n/a","n/a",IF(D11<$D$43,"nmf",IF(D11>$D$44,"nmf",D11))) -> 0.09667075025 | V11: =IF(F11="n/a","n/a",IF(F11<$D$43,"nmf",IF(F11>$D$44,"nmf",F11))) -> 0.09017075025 | W11: =IF(H11="n/a","n/a",IF(H11<$D$43,"nmf",IF(H11>$D$44,"nmf",H11))) -> 0.08747075025 | X11: =IF(J11="n/a","n/a",IF(J11<$D$43,"nmf",IF(J11>$D$44,"nmf",J11))) -> 0.09082075025 | Y11: =IF(L11="n/a","n/a",IF(L11<$D$43,"nmf",IF(L11>$D$44,"nmf",L11))) -> 0.09077075025 | Z11: =IF(N11="n/a","n/a",IF(N11<$D$43,"nmf",IF(N11>$D$44,"nmf",N11))) -> 0.09027075025 | AB11: =IF(Q11="n/a","n/a",IF(Q11<$D$43,"nmf",IF(Q11>$D$44,"nmf",Q11))) -> 0.07532770982
A12: 3 | B12: =VLOOKUP('Utility Group'!$B5,vldatabase,2,FALSE) -> Ameren Corp. | D12: =IF('5 (2)'!D12="n/a","n/a",'5 (1)'!$H11+'5 (2)'!D12) -> 0.1060759211 | F12: =IF('5 (2)'!F12="n/a","n/a",'5 (1)'!$H11+'5 (2)'!F12) -> 0.09407592112 | H12: =IF('5 (2)'!H12="n/a","n/a",'5 (1)'!$H11+'5 (2)'!H12) -> 0.09647592112 | J12: =IF('5 (2)'!J12="n/a","n/a",'5 (1)'!$H11+'5 (2)'!J12) -> 0.1208059211 | L12: =IF('5 (2)'!L12="n/a","n/a",'5 (1)'!$H11+'5 (2)'!L12) -> 0.09677592112 | N12: =IF('5 (2)'!N12="n/a","n/a",'5 (1)'!$H11+'5 (2)'!N12) -> 0.1010759211 | Q12: =IF('5 (2)'!Q12="n/a","n/a",'5 (1)'!$H11+'5 (2)'!Q12) -> 0.07943826477 | U12: 0.1060759211 | V12: 0.09407592112 | W12: 0.09647592112 | X12: 0.1208059211 | Y12: 0.09677592112 | Z12: 0.1010759211 | AB12: 0.07943826477
A13: 4 | B13: =VLOOKUP('Utility Group'!$B6,vldatabase,2,FALSE) -> Avangrid, Inc. | D13: =IF('5 (2)'!D13="n/a","n/a",'5 (1)'!$H12+'5 (2)'!D13) -> 0.1638283723 | F13: =IF('5 (2)'!F13="n/a","n/a",'5 (1)'!$H12+'5 (2)'!F13) -> 0.1308283723 | H13: =IF('5 (2)'!H13="n/a","n/a",'5 (1)'!$H12+'5 (2)'!H13) -> 0.1252283723 | J13: =IF('5 (2)'!J13="n/a","n/a",'5 (1)'!$H12+'5 (2)'!J13) -> 0.1308783723 | L13: =IF('5 (2)'!L13="n/a","n/a",'5 (1)'!$H12+'5 (2)'!L13) -> 0.1228283723 | N13: =IF('5 (2)'!N13="n/a","n/a",'5 (1)'!$H12+'5 (2)'!N13) -> 0.1309283723 | Q13: =IF('5 (2)'!Q13="n/a","n/a",'5 (1)'!$H12+'5 (2)'!Q13) -> 0.05372500332 | U13: 0.1638283723 | V13: 0.1308283723 | W13: 0.1252283723 | X13: 0.1308783723 | Y13: 0.1228283723 | Z13: 0.1309283723 | AB13: nmf
A14: 5 | B14: =VLOOKUP('Utility Group'!$B7,vldatabase,2,FALSE) -> Black Hills Corp. | D14: =IF('5 (2)'!D14="n/a","n/a",'5 (1)'!$H13+'5 (2)'!D14) -> 0.09723525155 | F14: =IF('5 (2)'!F14="n/a","n/a",'5 (1)'!$H13+'5 (2)'!F14) -> 0.07153525155 | H14: =IF('5 (2)'!H14="n/a","n/a",'5 (1)'!$H13+'5 (2)'!H14) -> 0.07483525155 | J14: =IF('5 (2)'!J14="n/a","n/a",'5 (1)'!$H13+'5 (2)'!J14) -> 0.08233525155 | L14: =IF('5 (2)'!L14="n/a","n/a",'5 (1)'!$H13+'5 (2)'!L14) -> 0.08233525155 | N14: =IF('5 (2)'!N14="n/a","n/a",'5 (1)'!$H13+'5 (2)'!N14) -> 0.08113525155 | Q14: =IF('5 (2)'!Q14="n/a","n/a",'5 (1)'!$H13+'5 (2)'!Q14) -> 0.08960556266 | U14: 0.09723525155 | V14: 0.07153525155 | W14: 0.07483525155 | X14: 0.08233525155 | Y14: 0.08233525155 | Z14: 0.08113525155 | AB14: 0.08960556266
A15: 6 | B15: =VLOOKUP('Utility Group'!$B8,vldatabase,2,FALSE) -> CMS Energy Corp. | D15: =IF('5 (2)'!D15="n/a","n/a",'5 (1)'!$H14+'5 (2)'!D15) -> 0.1014681598 | F15: =IF('5 (2)'!F15="n/a","n/a",'5 (1)'!$H14+'5 (2)'!F15) -> 0.1019681598 | H15: =IF('5 (2)'!H15="n/a","n/a",'5 (1)'!$H14+'5 (2)'!H15) -> 0.09496815975 | J15: =IF('5 (2)'!J15="n/a","n/a",'5 (1)'!$H14+'5 (2)'!J15) -> 0.09496815975 | L15: =IF('5 (2)'!L15="n/a","n/a",'5 (1)'!$H14+'5 (2)'!L15) -> 0.09806815975 | N15: =IF('5 (2)'!N15="n/a","n/a",'5 (1)'!$H14+'5 (2)'!N15) -> 0.1014681598 | Q15: =IF('5 (2)'!Q15="n/a","n/a",'5 (1)'!$H14+'5 (2)'!Q15) -> 0.0930214133 | U15: 0.1014681598 | V15: 0.1019681598 | W15: 0.09496815975 | X15: 0.09496815975 | Y15: 0.09806815975 | Z15: 0.1014681598 | AB15: 0.0930214133
A16: 7 | B16: =VLOOKUP('Utility Group'!$B9,vldatabase,2,FALSE) -> Consolidated Edison | D16: =IF('5 (2)'!D16="n/a","n/a",'5 (1)'!$H15+'5 (2)'!D16) -> 0.06749983892 | F16: =IF('5 (2)'!F16="n/a","n/a",'5 (1)'!$H15+'5 (2)'!F16) -> 0.07139983892 | H16: =IF('5 (2)'!H16="n/a","n/a",'5 (1)'!$H15+'5 (2)'!H16) -> 0.07749983892 | J16: =IF('5 (2)'!J16="n/a","n/a",'5 (1)'!$H15+'5 (2)'!J16) -> 0.06749983892 | L16: =IF('5 (2)'!L16="n/a","n/a",'5 (1)'!$H15+'5 (2)'!L16) -> 0.06929983892 | N16: =IF('5 (2)'!N16="n/a","n/a",'5 (1)'!$H15+'5 (2)'!N16) -> 0.07279983892 | Q16: =IF('5 (2)'!Q16="n/a","n/a",'5 (1)'!$H15+'5 (2)'!Q16) -> 0.06532936523 | U16: nmf | V16: 0.07139983892 | W16: 0.07749983892 | X16: nmf | Y16: nmf | Z16: 0.07279983892 | AB16: nmf
A17: 8 | B17: =VLOOKUP('Utility Group'!$B10,vldatabase,2,FALSE) -> DTE Energy Co. | D17: =IF('5 (2)'!D17="n/a","n/a",'5 (1)'!$H16+'5 (2)'!D17) -> 0.1056482324 | F17: =IF('5 (2)'!F17="n/a","n/a",'5 (1)'!$H16+'5 (2)'!F17) -> 0.09144823244 | H17: =IF('5 (2)'!H17="n/a","n/a",'5 (1)'!$H16+'5 (2)'!H17) -> 0.08894823244 | J17: =IF('5 (2)'!J17="n/a","n/a",'5 (1)'!$H16+'5 (2)'!J17) -> 0.09097823244 | L17: =IF('5 (2)'!L17="n/a","n/a",'5 (1)'!$H16+'5 (2)'!L17) -> 0.09394823244 | N17: =IF('5 (2)'!N17="n/a","n/a",'5 (1)'!$H16+'5 (2)'!N17) -> 0.08434823244 | Q17: =IF('5 (2)'!Q17="n/a","n/a",'5 (1)'!$H16+'5 (2)'!Q17) -> 0.08926470931 | U17: 0.1056482324 | V17: 0.09144823244 | W17: 0.08894823244 | X17: 0.09097823244 | Y17: 0.09394823244 | Z17: 0.08434823244 | AB17: 0.08926470931
A18: 9 | B18: =VLOOKUP('Utility Group'!$B11,vldatabase,2,FALSE) -> Duke Energy Corp. | D18: =IF('5 (2)'!D18="n/a","n/a",'5 (1)'!$H17+'5 (2)'!D18) -> 0.1018028561 | F18: =IF('5 (2)'!F18="n/a","n/a",'5 (1)'!$H17+'5 (2)'!F18) -> 0.08900285611 | H18: =IF('5 (2)'!H18="n/a","n/a",'5 (1)'!$H17+'5 (2)'!H18) -> 0.09320285611 | J18: =IF('5 (2)'!J18="n/a","n/a",'5 (1)'!$H17+'5 (2)'!J18) -> 0.09125285611 | L18: =IF('5 (2)'!L18="n/a","n/a",'5 (1)'!$H17+'5 (2)'!L18) -> 0.08910285611 | N18: =IF('5 (2)'!N18="n/a","n/a",'5 (1)'!$H17+'5 (2)'!N18) -> 0.09680285611 | Q18: =IF('5 (2)'!Q18="n/a","n/a",'5 (1)'!$H17+'5 (2)'!Q18) -> 0.06971839689 | U18: 0.1018028561 | V18: 0.08900285611 | W18: 0.09320285611 | X18: 0.09125285611 | Y18: 0.08910285611 | Z18: 0.09680285611 | AB18: 0.06971839689
A19: 10 | B19: =VLOOKUP('Utility Group'!$B12,vldatabase,2,FALSE) -> Emera Inc. | D19: =IF('5 (2)'!D19="n/a","n/a",'5 (1)'!$H18+'5 (2)'!D19) -> 0.1583140415 | F19: =IF('5 (2)'!F19="n/a","n/a",'5 (1)'!$H18+'5 (2)'!F19) -> 0.1253140415 | H19: =IF('5 (2)'!H19="n/a","n/a",'5 (1)'!$H18+'5 (2)'!H19) -> n/a | J19: =IF('5 (2)'!J19="n/a","n/a",'5 (1)'!$H18+'5 (2)'!J19) -> 0.1873140415 | L19: =IF('5 (2)'!L19="n/a","n/a",'5 (1)'!$H18+'5 (2)'!L19) -> 0.1186140415 | N19: =IF('5 (2)'!N19="n/a","n/a",'5 (1)'!$H18+'5 (2)'!N19) -> n/a | Q19: =IF('5 (2)'!Q19="n/a","n/a",'5 (1)'!$H18+'5 (2)'!Q19) -> 0.1096233036 | U19: 0.1583140415 | V19: 0.1253140415 | W19: n/a | X19: nmf | Y19: 0.1186140415 | Z19: n/a | AB19: 0.1096233036
A20: 11 | B20: =VLOOKUP('Utility Group'!$B13,vldatabase,2,FALSE) -> Entergy Corp. | D20: =IF('5 (2)'!D20="n/a","n/a",'5 (1)'!$H19+'5 (2)'!D20) -> 0.0648487902 | F20: =IF('5 (2)'!F20="n/a","n/a",'5 (1)'!$H19+'5 (2)'!F20) -> 0.0427487902 | H20: =IF('5 (2)'!H20="n/a","n/a",'5 (1)'!$H19+'5 (2)'!H20) -> 0.1148487902 | J20: =IF('5 (2)'!J20="n/a","n/a",'5 (1)'!$H19+'5 (2)'!J20) -> 0.0748987902 | L20: =IF('5 (2)'!L20="n/a","n/a",'5 (1)'!$H19+'5 (2)'!L20) -> 0.1343487902 | N20: =IF('5 (2)'!N20="n/a","n/a",'5 (1)'!$H19+'5 (2)'!N20) -> 0.0248487902 | Q20: =IF('5 (2)'!Q20="n/a","n/a",'5 (1)'!$H19+'5 (2)'!Q20) -> 0.1036687007 | U20: nmf | V20: nmf | W20: 0.1148487902 | X20: 0.0748987902 | Y20: 0.1343487902 | Z20: nmf | AB20: 0.1036687007
A21: 12 | B21: =VLOOKUP('Utility Group'!$B14,vldatabase,2,FALSE) -> Eversource Energy | D21: =IF('5 (2)'!D21="n/a","n/a",'5 (1)'!$H20+'5 (2)'!D21) -> 0.09019393863 | F21: =IF('5 (2)'!F21="n/a","n/a",'5 (1)'!$H20+'5 (2)'!F21) -> 0.09249393863 | H21: =IF('5 (2)'!H21="n/a","n/a",'5 (1)'!$H20+'5 (2)'!H21) -> 0.09269393863 | J21: =IF('5 (2)'!J21="n/a","n/a",'5 (1)'!$H20+'5 (2)'!J21) -> 0.09786393863 | L21: =IF('5 (2)'!L21="n/a","n/a",'5 (1)'!$H20+'5 (2)'!L21) -> 0.08839393863 | N21: =IF('5 (2)'!N21="n/a","n/a",'5 (1)'!$H20+'5 (2)'!N21) -> 0.09019393863 | Q21: =IF('5 (2)'!Q21="n/a","n/a",'5 (1)'!$H20+'5 (2)'!Q21) -> 0.0715451641 | U21: 0.09019393863 | V21: 0.09249393863 | W21: 0.09269393863 | X21: 0.09786393863 | Y21: 0.08839393863 | Z21: 0.09019393863 | AB21: 0.0715451641
A22: 13 | B22: =VLOOKUP('Utility Group'!$B15,vldatabase,2,FALSE) -> Exelon Corp. | D22: =IF('5 (2)'!D22="n/a","n/a",'5 (1)'!$H21+'5 (2)'!D22) -> 0.1144328085 | F22: =IF('5 (2)'!F22="n/a","n/a",'5 (1)'!$H21+'5 (2)'!F22) -> 0.07633280853 | H22: =IF('5 (2)'!H22="n/a","n/a",'5 (1)'!$H21+'5 (2)'!H22) -> 0.09113280853 | J22: =IF('5 (2)'!J22="n/a","n/a",'5 (1)'!$H21+'5 (2)'!J22) -> 0.08753280853 | L22: =IF('5 (2)'!L22="n/a","n/a",'5 (1)'!$H21+'5 (2)'!L22) -> 0.08353280853 | N22: =IF('5 (2)'!N22="n/a","n/a",'5 (1)'!$H21+'5 (2)'!N22) -> 0.08363280853 | Q22: =IF('5 (2)'!Q22="n/a","n/a",'5 (1)'!$H21+'5 (2)'!Q22) -> 0.08783293623 | U22: 0.1144328085 | V22: 0.07633280853 | W22: 0.09113280853 | X22: 0.08753280853 | Y22: 0.08353280853 | Z22: 0.08363280853 | AB22: 0.08783293623
A23: 14 | B23: =VLOOKUP('Utility Group'!$B16,vldatabase,2,FALSE) -> Fortis Inc. | D23: =IF('5 (2)'!D23="n/a","n/a",'5 (1)'!$H22+'5 (2)'!D23) -> 0.1221537903 | F23: =IF('5 (2)'!F23="n/a","n/a",'5 (1)'!$H22+'5 (2)'!F23) -> 0.08355379026 | H23: =IF('5 (2)'!H23="n/a","n/a",'5 (1)'!$H22+'5 (2)'!H23) -> 0.09715379026 | J23: =IF('5 (2)'!J23="n/a","n/a",'5 (1)'!$H22+'5 (2)'!J23) -> 0.1021537903 | L23: =IF('5 (2)'!L23="n/a","n/a",'5 (1)'!$H22+'5 (2)'!L23) -> 0.09385379026 | N23: =IF('5 (2)'!N23="n/a","n/a",'5 (1)'!$H22+'5 (2)'!N23) -> n/a | Q23: =IF('5 (2)'!Q23="n/a","n/a",'5 (1)'!$H22+'5 (2)'!Q23) -> 0.07543439233 | U23: 0.1221537903 | V23: 0.08355379026 | W23: 0.09715379026 | X23: 0.1021537903 | Y23: 0.09385379026 | Z23: n/a | AB23: 0.07543439233
A24: 15 | B24: =VLOOKUP('Utility Group'!$B17,vldatabase,2,FALSE) -> NorthWestern Corp. | D24: =IF('5 (2)'!D24="n/a","n/a",'5 (1)'!$H23+'5 (2)'!D24) -> 0.0740232058 | F24: =IF('5 (2)'!F24="n/a","n/a",'5 (1)'!$H23+'5 (2)'!F24) -> 0.0706232058 | H24: =IF('5 (2)'!H24="n/a","n/a",'5 (1)'!$H23+'5 (2)'!H24) -> 0.0691232058 | J24: =IF('5 (2)'!J24="n/a","n/a",'5 (1)'!$H23+'5 (2)'!J24) -> 0.0630932058 | L24: =IF('5 (2)'!L24="n/a","n/a",'5 (1)'!$H23+'5 (2)'!L24) -> 0.0691232058 | N24: =IF('5 (2)'!N24="n/a","n/a",'5 (1)'!$H23+'5 (2)'!N24) -> 0.0690232058 | Q24: =IF('5 (2)'!Q24="n/a","n/a",'5 (1)'!$H23+'5 (2)'!Q24) -> 0.07532100767 | U24: 0.0740232058 | V24: 0.0706232058 | W24: nmf | X24: nmf | Y24: nmf | Z24: nmf | AB24: 0.07532100767
A25: 16 | B25: =VLOOKUP('Utility Group'!$B18,vldatabase,2,FALSE) -> PPL Corp. | D25: =IF('5 (2)'!D25="n/a","n/a",'5 (1)'!$H24+'5 (2)'!D25) -> 0.0784781591 | F25: =IF('5 (2)'!F25="n/a","n/a",'5 (1)'!$H24+'5 (2)'!F25) -> 0.0798781591 | H25: =IF('5 (2)'!H25="n/a","n/a",'5 (1)'!$H24+'5 (2)'!H25) -> 0.1184781591 | J25: =IF('5 (2)'!J25="n/a","n/a",'5 (1)'!$H24+'5 (2)'!J25) -> 0.1394781591 | L25: =IF('5 (2)'!L25="n/a","n/a",'5 (1)'!$H24+'5 (2)'!L25) -> 0.0998781591 | N25: =IF('5 (2)'!N25="n/a","n/a",'5 (1)'!$H24+'5 (2)'!N25) -> 0.1010781591 | Q25: =IF('5 (2)'!Q25="n/a","n/a",'5 (1)'!$H24+'5 (2)'!Q25) -> 0.1282326651 | U25: 0.0784781591 | V25: 0.0798781591 | W25: 0.1184781591 | X25: 0.1394781591 | Y25: 0.0998781591 | Z25: 0.1010781591 | AB25: 0.1282326651
A26: 17 | B26: =VLOOKUP('Utility Group'!$B19,vldatabase,2,FALSE) -> Pub Sv Enterprise Grp. | D26: =IF('5 (2)'!D26="n/a","n/a",'5 (1)'!$H25+'5 (2)'!D26) -> 0.07459374527 | F26: =IF('5 (2)'!F26="n/a","n/a",'5 (1)'!$H25+'5 (2)'!F26) -> 0.09799374527 | H26: =IF('5 (2)'!H26="n/a","n/a",'5 (1)'!$H25+'5 (2)'!H26) -> 0.09589374527 | J26: =IF('5 (2)'!J26="n/a","n/a",'5 (1)'!$H25+'5 (2)'!J26) -> 0.09994374527 | L26: =IF('5 (2)'!L26="n/a","n/a",'5 (1)'!$H25+'5 (2)'!L26) -> 0.09729374527 | N26: =IF('5 (2)'!N26="n/a","n/a",'5 (1)'!$H25+'5 (2)'!N26) -> 0.09759374527 | Q26: =IF('5 (2)'!Q26="n/a","n/a",'5 (1)'!$H25+'5 (2)'!Q26) -> 0.08023802065 | U26: 0.07459374527 | V26: 0.09799374527 | W26: 0.09589374527 | X26: 0.09994374527 | Y26: 0.09729374527 | Z26: 0.09759374527 | AB26: 0.08023802065
A27: 18 | B27: =VLOOKUP('Utility Group'!$B20,vldatabase,2,FALSE) -> Sempra Energy | D27: =IF('5 (2)'!D27="n/a","n/a",'5 (1)'!$H26+'5 (2)'!D27) -> 0.1272995172 | F27: =IF('5 (2)'!F27="n/a","n/a",'5 (1)'!$H26+'5 (2)'!F27) -> 0.1167995172 | H27: =IF('5 (2)'!H27="n/a","n/a",'5 (1)'!$H26+'5 (2)'!H27) -> 0.1172995172 | J27: =IF('5 (2)'!J27="n/a","n/a",'5 (1)'!$H26+'5 (2)'!J27) -> 0.1956695172 | L27: =IF('5 (2)'!L27="n/a","n/a",'5 (1)'!$H26+'5 (2)'!L27) -> 0.1165995172 | N27: =IF('5 (2)'!N27="n/a","n/a",'5 (1)'!$H26+'5 (2)'!N27) -> 0.1622995172 | Q27: =IF('5 (2)'!Q27="n/a","n/a",'5 (1)'!$H26+'5 (2)'!Q27) -> 0.1143527084 | U27: =IF(D27="n/a","n/a",IF(D27<$D$43,"nmf",IF(D27>$D$44,"nmf",D27))) -> 0.1272995172 | V27: =IF(F27="n/a","n/a",IF(F27<$D$43,"nmf",IF(F27>$D$44,"nmf",F27))) -> 0.1167995172 | W27: =IF(H27="n/a","n/a",IF(H27<$D$43,"nmf",IF(H27>$D$44,"nmf",H27))) -> 0.1172995172 | X27: =IF(J27="n/a","n/a",IF(J27<$D$43,"nmf",IF(J27>$D$44,"nmf",J27))) -> nmf | Y27: =IF(L27="n/a","n/a",IF(L27<$D$43,"nmf",IF(L27>$D$44,"nmf",L27))) -> 0.1165995172 | Z27: =IF(N27="n/a","n/a",IF(N27<$D$43,"nmf",IF(N27>$D$44,"nmf",N27))) -> 0.1622995172 | AB27: =IF(Q27="n/a","n/a",IF(Q27<$D$43,"nmf",IF(Q27>$D$44,"nmf",Q27))) -> 0.1143527084
A28: 19 | B28: =VLOOKUP('Utility Group'!$B21,vldatabase,2,FALSE) -> Southern Company | D28: =IF('5 (2)'!D28="n/a","n/a",'5 (1)'!$H27+'5 (2)'!D28) -> 0.08165899357 | F28: =IF('5 (2)'!F28="n/a","n/a",'5 (1)'!$H27+'5 (2)'!F28) -> 0.07415899357 | H28: =IF('5 (2)'!H28="n/a","n/a",'5 (1)'!$H27+'5 (2)'!H28) -> 0.09665899357 | J28: =IF('5 (2)'!J28="n/a","n/a",'5 (1)'!$H27+'5 (2)'!J28) -> 0.09545899357 | L28: =IF('5 (2)'!L28="n/a","n/a",'5 (1)'!$H27+'5 (2)'!L28) -> 0.09295899357 | N28: =IF('5 (2)'!N28="n/a","n/a",'5 (1)'!$H27+'5 (2)'!N28) -> 0.09165899357 | Q28: =IF('5 (2)'!Q28="n/a","n/a",'5 (1)'!$H27+'5 (2)'!Q28) -> 0.09599687038 | U28: 0.08165899357 | V28: 0.07415899357 | W28: 0.09665899357 | X28: 0.09545899357 | Y28: 0.09295899357 | Z28: 0.09165899357 | AB28: 0.09599687038
A29: 20 | B29: =VLOOKUP('Utility Group'!$B22,vldatabase,2,FALSE) -> WEC Energy Group | D29: =IF('5 (2)'!D29="n/a","n/a",'5 (1)'!$H28+'5 (2)'!D29) -> 0.1055221337 | F29: =IF('5 (2)'!F29="n/a","n/a",'5 (1)'!$H28+'5 (2)'!F29) -> 0.07982213365 | H29: =IF('5 (2)'!H29="n/a","n/a",'5 (1)'!$H28+'5 (2)'!H29) -> 0.07682213365 | J29: =IF('5 (2)'!J29="n/a","n/a",'5 (1)'!$H28+'5 (2)'!J29) -> 0.06549213365 | L29: =IF('5 (2)'!L29="n/a","n/a",'5 (1)'!$H28+'5 (2)'!L29) -> 0.09652213365 | N29: =IF('5 (2)'!N29="n/a","n/a",'5 (1)'!$H28+'5 (2)'!N29) -> 0.07352213365 | Q29: =IF('5 (2)'!Q29="n/a","n/a",'5 (1)'!$H28+'5 (2)'!Q29) -> 0.07821846113 | U29: 0.1055221337 | V29: 0.07982213365 | W29: 0.07682213365 | X29: nmf | Y29: 0.09652213365 | Z29: 0.07352213365 | AB29: 0.07821846113
A30: 21 | B30: =VLOOKUP('Utility Group'!$B23,vldatabase,2,FALSE) -> Xcel Energy Inc. | D30: =IF('5 (2)'!D30="n/a","n/a",'5 (1)'!$H29+'5 (2)'!D30) -> 0.08928169599 | F30: =IF('5 (2)'!F30="n/a","n/a",'5 (1)'!$H29+'5 (2)'!F30) -> 0.09288169599 | H30: =IF('5 (2)'!H30="n/a","n/a",'5 (1)'!$H29+'5 (2)'!H30) -> 0.09098169599 | J30: =IF('5 (2)'!J30="n/a","n/a",'5 (1)'!$H29+'5 (2)'!J30) -> 0.09276169599 | L30: =IF('5 (2)'!L30="n/a","n/a",'5 (1)'!$H29+'5 (2)'!L30) -> 0.09198169599 | N30: =IF('5 (2)'!N30="n/a","n/a",'5 (1)'!$H29+'5 (2)'!N30) -> 0.09268169599 | Q30: =IF('5 (2)'!Q30="n/a","n/a",'5 (1)'!$H29+'5 (2)'!Q30) -> 0.07852182493 | U30: 0.08928169599 | V30: 0.09288169599 | W30: 0.09098169599 | X30: 0.09276169599 | Y30: 0.09198169599 | Z30: 0.09268169599 | AB30: 0.07852182493
B32: Average (b) | D32: =U34 -> 0.1049267541 | F32: =V34 -> 0.09420211587 | H32: =W34 -> 0.09812388738 | J32: =X34 -> 0.1016182732 | L32: =Y34 -> 0.1022404244 | N32: =Z34 -> 0.0969681484 | Q32: =AB34 -> 0.08863122844 | T32: Max | U32: =MAX(U10:U30) -> 0.1638283723 | V32: 0.1537609054 | W32: 0.1337609054 | X32: 0.1394781591 | Y32: 0.1547609054 | Z32: 0.1622995172 | AB32: =MAX(AB10:AB30) -> 0.1282326651
B33: Midpoint (b,c) | D33: =AVERAGE(U32:U33) -> 0.118925789 | F33: =AVERAGE(V32:V33) -> 0.1121920556 | H33: =AVERAGE(W32:W33) -> 0.1042980785 | J33: =AVERAGE(X32:X33) -> 0.1071884747 | L33: =AVERAGE(Y32:Y33) -> 0.1185480785 | N33: =AVERAGE(Z32:Z33) -> 0.1175496781 | Q33: =AVERAGE(AB32:AB33) -> 0.09897553101 | T33: Min | U33: =MIN(U10:U30) -> 0.0740232058 | V33: 0.0706232058 | W33: 0.07483525155 | X33: 0.0748987902 | Y33: 0.08233525155 | Z33: 0.07279983892 | AB33: =MIN(AB10:AB30) -> 0.06971839689
T34: Average | U34: =AVERAGE(U10:U30) -> 0.1049267541 | V34: 0.09420211587 | W34: 0.09812388738 | X34: 0.1016182732 | Y34: 0.1022404244 | Z34: =AVERAGE(Z10:Z30) -> 0.0969681484 | AB34: =AVERAGE(AB10:AB30) -> 0.08863122844
A36: (a) | B36: ="Sum of dividend yield (" & R1 & ", p. 1) and respective growth rate (" & R1 & ", p. 2)." -> Sum of dividend yield (Exhibit No. 5, p. 1) and respective growth rate (Exhibit No. 5, p. 2).
A37: (b) | B37: Excludes highlighted figures.
A38: (c) | B38: Average of low and high values.
B43: Min | D43: 0.0695
B44: Max | D44: 0.169

Sheet 6
A1: ='Exhibit List'!$C$10 -> DCF MODEL - UTILITY GROUP | Q1: ='Exhibit List'!$B$10 -> Exhibit No. 6 | R1: =A1 -> DCF MODEL - UTILITY GROUP | AH1: =Q1 -> Exhibit No. 6
Q2: Page 1 of 2 | AH2: Page 2 of 2
A3: ='Exhibit List'!$D$10 -> BR+SV GROWTH RATE | R3: =A3 -> BR+SV GROWTH RATE
C5: (a) | D5: (a) | E5: (a) | I5: (b) | J5: (c) | M5: (d) | N5: (e) | T5: (a) | U5: (a) | V5: (f) | X5: (a) | Y5: (a) | Z5: (f) | AA5: (g) | AB5: (a) | AC5: (a) | AE5: (h) | AF5: (a) | AG5: (a) | AH5: (g)
C6: 2022 | I6: Adjustment | M6: "sv" Factor | T6: 2017 | X6: 2022 | AA6: Chg | AB6: 2022 Price | AF6: Common Shares
B7: Company | C7: EPS | D7: DPS | E7: BVPS | G7: b | H7: r | I7: Factor | J7: Adjusted r | K7: br | M7: s | N7: v | O7: sv | Q7: br + sv | S7: Company | T7: Eq Ratio | U7: Tot Cap | V7: Com Eq | X7: Eq Ratio | Y7: Tot Cap | Z7: Com Eq | AA7: Equity | AB7: High | AC7: Low | AD7: Avg. | AE7: M/B | AF7: 2017 | AG7: 2022 | AH7: Growth
A8: =A7+1 -> 1 | B8: =VLOOKUP('Utility Group'!$B3,vldatabase,2,FALSE) -> Algonquin Pwr & Util | C8: =VLOOKUP('Utility Group'!$B3,vldatabase,7,FALSE) -> n/a | D8: =VLOOKUP('Utility Group'!$B3,vldatabase,8,FALSE) -> n/a | E8: =VLOOKUP('Utility Group'!$B3,vldatabase,9,FALSE) -> n/a | G8: =IF(E8="n/a", "n/a",+(C8-D8)/C8) -> n/a | H8: =IF(E8="n/a","n/a",C8/E8) -> n/a | I8: =IF(AA8="n/a","n/a",2*(1+AA8)/(2+AA8)) -> n/a | J8: =IF(H8="n/a","n/a",H8*I8) -> n/a | K8: =IF(G8="n/a","n/a",G8*J8) -> n/a | M8: =IF(AE8="n/a","n/a",AE8*AH8) -> n/a | N8: =IF(AE8="n/a","n/a",1-1/AE8) -> n/a | O8: =IF(M8="n/a","n/a",M8*N8) -> n/a | Q8: =IF(K8="n/a","n/a",K8+O8) -> n/a | R8: =A8 -> 1 | S8: =B8 -> Algonquin Pwr & Util | T8: =VLOOKUP('Utility Group'!$B3,vldatabase,14,FALSE) -> n/a | U8: =VLOOKUP('Utility Group'!$B3,vldatabase,16,FALSE) -> n/a | V8: =IF(U8="n/a","n/a",T8*U8) -> n/a | X8: =VLOOKUP('Utility Group'!$B3,vldatabase,15,FALSE) -> n/a | Y8: =VLOOKUP('Utility Group'!$B3,vldatabase,17,FALSE) -> n/a | Z8: =IF(Y8="n/a","n/a",X8*Y8) -> n/a | AA8: =IF(V8="n/a","n/a",(+Z8/V8)^(1/5)-1) -> n/a | AB8: =VLOOKUP('Utility Group'!$B3,vldatabase,5,FALSE) -> n/a | AC8: =VLOOKUP('Utility Group'!$B3,vldatabase,6,FALSE) -> n/a | AD8: =IF(AB8="n/a","n/a",AVERAGE(AB8:AC8)) -> n/a | AE8: =IF(AD8="n/a","n/a",AD8/E8) -> n/a | AF8: =VLOOKUP('Utility Group'!$B3,vldatabase,10,FALSE) -> n/a | AG8: =VLOOKUP('Utility Group'!$B3,vldatabase,11,FALSE) -> n/a | AH8: =IF(AF8="n/a","n/a",(+AG8/AF8)^(1/5)-1) -> n/a
A9: =A8+1 -> 2 | B9: =VLOOKUP('Utility Group'!$B4,vldatabase,2,FALSE) -> Alliant Energy | C9: =VLOOKUP('Utility Group'!$B4,vldatabase,7,FALSE) -> 2.6 | D9: =VLOOKUP('Utility Group'!$B4,vldatabase,8,FALSE) -> 1.66 | E9: =VLOOKUP('Utility Group'!$B4,vldatabase,9,FALSE) -> 22.85 | G9: =IF(E9="n/a", "n/a",+(C9-D9)/C9) -> 0.3615384615 | H9: =IF(E9="n/a","n/a",C9/E9) -> 0.113785558 | I9: =IF(AA9="n/a","n/a",2*(1+AA9)/(2+AA9)) -> 1.004026446 | J9: =IF(H9="n/a","n/a",H9*I9) -> 0.1142437094 | K9: =IF(G9="n/a","n/a",G9*J9) -> 0.04130349494 | M9: =IF(AE9="n/a","n/a",AE9*AH9) -> 0.005489130337 | N9: =IF(AE9="n/a","n/a",1-1/AE9) -> 0.42875 | O9: =IF(M9="n/a","n/a",M9*N9) -> 0.002353464632 | Q9: =IF(K9="n/a","n/a",K9+O9) -> 0.04365695957 | R9: =A9 -> 2 | S9: =B9 -> Alliant Energy | T9: =VLOOKUP('Utility Group'!$B4,vldatabase,14,FALSE) -> 0.51 | U9: =VLOOKUP('Utility Group'!$B4,vldatabase,16,FALSE) -> 8192.8 | V9: =IF(U9="n/a","n/a",T9*U9) -> 4178.328 | X9: =VLOOKUP('Utility Group'!$B4,vldatabase,15,FALSE) -> 0.5 | Y9: =VLOOKUP('Utility Group'!$B4,vldatabase,17,FALSE) -> 8700 | Z9: =IF(Y9="n/a","n/a",X9*Y9) -> 4350 | AA9: =IF(V9="n/a","n/a",(+Z9/V9)^(1/5)-1) -> 0.008085447818 | AB9: =VLOOKUP('Utility Group'!$B4,vldatabase,5,FALSE) -> 45 | AC9: =VLOOKUP('Utility Group'!$B4,vldatabase,6,FALSE) -> 35 | AD9: =IF(AB9="n/a","n/a",AVERAGE(AB9:AC9)) -> 40 | AE9: =IF(AD9="n/a","n/a",AD9/E9) -> 1.750547046 | AF9: =VLOOKUP('Utility Group'!$B4,vldatabase,10,FALSE) -> 231.35 | AG9: =VLOOKUP('Utility Group'!$B4,vldatabase,11,FALSE) -> 235 | AH9: =IF(AF9="n/a","n/a",(+AG9/AF9)^(1/5)-1) -> 0.003135665705
A10: 3 | B10: =VLOOKUP('Utility Group'!$B5,vldatabase,2,FALSE) -> Ameren Corp. | C10: =VLOOKUP('Utility Group'!$B5,vldatabase,7,FALSE) -> 4 | D10: =VLOOKUP('Utility Group'!$B5,vldatabase,8,FALSE) -> 2.35 | E10: =VLOOKUP('Utility Group'!$B5,vldatabase,9,FALSE) -> 37.5 | G10: 0.4125 | H10: 0.1066666667 | I10: 1.026385416 | J10: 0.109481111 | K10: 0.04516095829 | M10: 0.009203982908 | N10: 0.347826087 | O10: 0.003201385359 | Q10: 0.04836234365 | R10: 3 | S10: Ameren Corp. | T10: =VLOOKUP('Utility Group'!$B5,vldatabase,14,FALSE) -> 0.498 | U10: =VLOOKUP('Utility Group'!$B5,vldatabase,16,FALSE) -> 14420 | V10: 7181.16 | X10: =VLOOKUP('Utility Group'!$B5,vldatabase,15,FALSE) -> 0.5 | Y10: =VLOOKUP('Utility Group'!$B5,vldatabase,17,FALSE) -> 18700 | Z10: 9350 | AA10: 0.05420094587 | AB10: =VLOOKUP('Utility Group'!$B5,vldatabase,5,FALSE) -> 65 | AC10: =VLOOKUP('Utility Group'!$B5,vldatabase,6,FALSE) -> 50 | AD10: 57.5 | AE10: 1.533333333 | AF10: =VLOOKUP('Utility Group'!$B5,vldatabase,10,FALSE) -> 242.63 | AG10: =VLOOKUP('Utility Group'!$B5,vldatabase,11,FALSE) -> 250 | AH10: 0.006002597548
A11: 4 | B11: =VLOOKUP('Utility Group'!$B6,vldatabase,2,FALSE) -> Avangrid, Inc. | C11: =VLOOKUP('Utility Group'!$B6,vldatabase,7,FALSE) -> 3.25 | D11: =VLOOKUP('Utility Group'!$B6,vldatabase,8,FALSE) -> 2.2 | E11: =VLOOKUP('Utility Group'!$B6,vldatabase,9,FALSE) -> 53.25 | G11: 0.3230769231 | H11: 0.06103286385 | I11: 1.009038809 | J11: 0.06158452824 | K11: 0.01989653989 | M11: -6.381206145e-06 | N11: -0.01428571429 | O11: 9.116008779e-08 | Q11: 0.01989663105 | R11: 4 | S11: Avangrid, Inc. | T11: =VLOOKUP('Utility Group'!$B6,vldatabase,14,FALSE) -> 0.744 | U11: =VLOOKUP('Utility Group'!$B6,vldatabase,16,FALSE) -> 20273 | V11: 15083.112 | X11: =VLOOKUP('Utility Group'!$B6,vldatabase,15,FALSE) -> 0.635 | Y11: =VLOOKUP('Utility Group'!$B6,vldatabase,17,FALSE) -> 26000 | Z11: 16510 | AA11: 0.01824250833 | AB11: =VLOOKUP('Utility Group'!$B6,vldatabase,5,FALSE) -> 60 | AC11: =VLOOKUP('Utility Group'!$B6,vldatabase,6,FALSE) -> 45 | AD11: 52.5 | AE11: 0.985915493 | AF11: =VLOOKUP('Utility Group'!$B6,vldatabase,10,FALSE) -> 309.01 | AG11: =VLOOKUP('Utility Group'!$B6,vldatabase,11,FALSE) -> 309 | AH11: -6.472366233e-06
A12: 5 | B12: =VLOOKUP('Utility Group'!$B7,vldatabase,2,FALSE) -> Black Hills Corp. | C12: =VLOOKUP('Utility Group'!$B7,vldatabase,7,FALSE) -> 4.25 | D12: =VLOOKUP('Utility Group'!$B7,vldatabase,8,FALSE) -> 2.45 | E12: =VLOOKUP('Utility Group'!$B7,vldatabase,9,FALSE) -> 42.75 | G12: 0.4235294118 | H12: 0.09941520468 | I12: 1.039574324 | J12: 0.1033494942 | K12: 0.04377155047 | M12: 0.03493259615 | N12: 0.3892857143 | O12: 0.01359876064 | Q12: 0.05737031111 | R12: 5 | S12: Black Hills Corp. | T12: =VLOOKUP('Utility Group'!$B7,vldatabase,14,FALSE) -> 0.355 | U12: =VLOOKUP('Utility Group'!$B7,vldatabase,16,FALSE) -> 4818.4 | V12: 1710.532 | X12: =VLOOKUP('Utility Group'!$B7,vldatabase,15,FALSE) -> 0.46 | Y12: =VLOOKUP('Utility Group'!$B7,vldatabase,17,FALSE) -> 5525 | Z12: 2541.5 | AA12: 0.08240996577 | AB12: =VLOOKUP('Utility Group'!$B7,vldatabase,5,FALSE) -> 80 | AC12: =VLOOKUP('Utility Group'!$B7,vldatabase,6,FALSE) -> 60 | AD12: 70 | AE12: 1.637426901 | AF12: =VLOOKUP('Utility Group'!$B7,vldatabase,10,FALSE) -> 53.54 | AG12: =VLOOKUP('Utility Group'!$B7,vldatabase,11,FALSE) -> 59.5 | AH12: 0.0213338355
A13: 6 | B13: =VLOOKUP('Utility Group'!$B8,vldatabase,2,FALSE) -> CMS Energy Corp. | C13: =VLOOKUP('Utility Group'!$B8,vldatabase,7,FALSE) -> 3 | D13: =VLOOKUP('Utility Group'!$B8,vldatabase,8,FALSE) -> 1.85 | E13: =VLOOKUP('Utility Group'!$B8,vldatabase,9,FALSE) -> 22.25 | G13: 0.3833333333 | H13: 0.1348314607 | I13: 1.039137166 | J13: 0.140108382 | K13: 0.05370821309 | M13: 0.01646489972 | N13: 0.4764705882 | O13: 0.007845040456 | Q13: 0.06155325355 | R13: 6 | S13: CMS Energy Corp. | T13: =VLOOKUP('Utility Group'!$B8,vldatabase,14,FALSE) -> 0.324 | U13: =VLOOKUP('Utility Group'!$B8,vldatabase,16,FALSE) -> 13692 | V13: 4436.208 | X13: =VLOOKUP('Utility Group'!$B8,vldatabase,15,FALSE) -> 0.375 | Y13: =VLOOKUP('Utility Group'!$B8,vldatabase,17,FALSE) -> 17500 | Z13: 6562.5 | AA13: 0.08146254579 | AB13: =VLOOKUP('Utility Group'!$B8,vldatabase,5,FALSE) -> 50 | AC13: =VLOOKUP('Utility Group'!$B8,vldatabase,6,FALSE) -> 35 | AD13: 42.5 | AE13: 1.91011236 | AF13: =VLOOKUP('Utility Group'!$B8,vldatabase,10,FALSE) -> 281.65 | AG13: =VLOOKUP('Utility Group'!$B8,vldatabase,11,FALSE) -> 294 | AH13: 0.008619859266
A14: 7 | B14: =VLOOKUP('Utility Group'!$B9,vldatabase,2,FALSE) -> Consolidated Edison | C14: =VLOOKUP('Utility Group'!$B9,vldatabase,7,FALSE) -> 4.75 | D14: =VLOOKUP('Utility Group'!$B9,vldatabase,8,FALSE) -> 3.3 | E14: =VLOOKUP('Utility Group'!$B9,vldatabase,9,FALSE) -> 58 | G14: 0.3052631579 | H14: 0.08189655172 | I14: 1.019068156 | J14: 0.08345816794 | K14: 0.0254767039 | M14: 0.009350960867 | N14: 0.2516129032 | O14: 0.002352822412 | Q14: 0.02782952631 | R14: 7 | S14: Consolidated Edison | T14: =VLOOKUP('Utility Group'!$B9,vldatabase,14,FALSE) -> 0.511 | U14: =VLOOKUP('Utility Group'!$B9,vldatabase,16,FALSE) -> 30149 | V14: 15406.139 | X14: =VLOOKUP('Utility Group'!$B9,vldatabase,15,FALSE) -> 0.515 | Y14: =VLOOKUP('Utility Group'!$B9,vldatabase,17,FALSE) -> 36200 | Z14: 18643 | AA14: 0.03887763661 | AB14: =VLOOKUP('Utility Group'!$B9,vldatabase,5,FALSE) -> 85 | AC14: =VLOOKUP('Utility Group'!$B9,vldatabase,6,FALSE) -> 70 | AD14: 77.5 | AE14: 1.336206897 | AF14: =VLOOKUP('Utility Group'!$B9,vldatabase,10,FALSE) -> 310 | AG14: =VLOOKUP('Utility Group'!$B9,vldatabase,11,FALSE) -> 321 | AH14: 0.006998138455
A15: 8 | B15: =VLOOKUP('Utility Group'!$B10,vldatabase,2,FALSE) -> DTE Energy Co. | C15: =VLOOKUP('Utility Group'!$B10,vldatabase,7,FALSE) -> 7.5 | D15: =VLOOKUP('Utility Group'!$B10,vldatabase,8,FALSE) -> 4.55 | E15: =VLOOKUP('Utility Group'!$B10,vldatabase,9,FALSE) -> 69 | G15: 0.3933333333 | H15: 0.1086956522 | I15: 1.03446738 | J15: 0.1124421066 | K15: 0.04422722858 | M15: 0.02621673223 | N15: 0.3581395349 | O15: 0.009389248288 | Q15: 0.05361647686 | R15: 8 | S15: DTE Energy Co. | T15: =VLOOKUP('Utility Group'!$B10,vldatabase,14,FALSE) -> 0.438 | U15: =VLOOKUP('Utility Group'!$B10,vldatabase,16,FALSE) -> 21697 | V15: 9503.286 | X15: =VLOOKUP('Utility Group'!$B10,vldatabase,15,FALSE) -> 0.43 | Y15: =VLOOKUP('Utility Group'!$B10,vldatabase,17,FALSE) -> 31200 | Z15: 13416 | AA15: 0.07139557913 | AB15: =VLOOKUP('Utility Group'!$B10,vldatabase,5,FALSE) -> 125 | AC15: =VLOOKUP('Utility Group'!$B10,vldatabase,6,FALSE) -> 90 | AD15: 107.5 | AE15: 1.557971014 | AF15: =VLOOKUP('Utility Group'!$B10,vldatabase,10,FALSE) -> 179.39 | AG15: =VLOOKUP('Utility Group'!$B10,vldatabase,11,FALSE) -> 195 | AH15: 0.01682748394
A16: 9 | B16: =VLOOKUP('Utility Group'!$B11,vldatabase,2,FALSE) -> Duke Energy Corp. | C16: =VLOOKUP('Utility Group'!$B11,vldatabase,7,FALSE) -> 5.5 | D16: =VLOOKUP('Utility Group'!$B11,vldatabase,8,FALSE) -> 4.4 | E16: =VLOOKUP('Utility Group'!$B11,vldatabase,9,FALSE) -> 66 | G16: 0.2 | H16: 0.08333333333 | I16: 1.015868654 | J16: 0.08465572117 | K16: 0.01693114423 | M16: 0.01852313216 | N16: 0.3230769231 | O16: 0.005984396545 | Q16: 0.02291554078 | R16: 9 | S16: Duke Energy Corp. | T16: =VLOOKUP('Utility Group'!$B11,vldatabase,14,FALSE) -> 0.46 | U16: =VLOOKUP('Utility Group'!$B11,vldatabase,16,FALSE) -> 90774 | V16: 41756.04 | X16: =VLOOKUP('Utility Group'!$B11,vldatabase,15,FALSE) -> 0.435 | Y16: =VLOOKUP('Utility Group'!$B11,vldatabase,17,FALSE) -> 112500 | Z16: 48937.5 | AA16: 0.03224905721 | AB16: =VLOOKUP('Utility Group'!$B11,vldatabase,5,FALSE) -> 110 | AC16: =VLOOKUP('Utility Group'!$B11,vldatabase,6,FALSE) -> 85 | AD16: 97.5 | AE16: 1.477272727 | AF16: =VLOOKUP('Utility Group'!$B11,vldatabase,10,FALSE) -> 700 | AG16: =VLOOKUP('Utility Group'!$B11,vldatabase,11,FALSE) -> 745 | AH16: 0.01253873562
A17: 10 | B17: =VLOOKUP('Utility Group'!$B12,vldatabase,2,FALSE) -> Emera Inc. | C17: =VLOOKUP('Utility Group'!$B12,vldatabase,7,FALSE) -> 4.3 | D17: =VLOOKUP('Utility Group'!$B12,vldatabase,8,FALSE) -> 3 | E17: =VLOOKUP('Utility Group'!$B12,vldatabase,9,FALSE) -> 35.65 | G17: 0.3023255814 | H17: 0.1206171108 | I17: 1.020297694 | J17: 0.1230653599 | K17: 0.0372058065 | M17: 0.03537676958 | N17: 0.54 | O17: 0.01910345557 | Q17: 0.05630926207 | R17: 10 | S17: Emera Inc. | T17: =VLOOKUP('Utility Group'!$B12,vldatabase,14,FALSE) -> 0.3153887983 | U17: =VLOOKUP('Utility Group'!$B12,vldatabase,16,FALSE) -> 20229 | V17: 6380 | X17: =VLOOKUP('Utility Group'!$B12,vldatabase,15,FALSE) -> 0.3669483568 | Y17: =VLOOKUP('Utility Group'!$B12,vldatabase,17,FALSE) -> 21300 | Z17: 7816 | AA17: 0.04143645144 | AB17: =VLOOKUP('Utility Group'!$B12,vldatabase,5,FALSE) -> 90 | AC17: =VLOOKUP('Utility Group'!$B12,vldatabase,6,FALSE) -> 65 | AD17: 77.5 | AE17: 2.173913043 | AF17: =VLOOKUP('Utility Group'!$B12,vldatabase,10,FALSE) -> 228.77 | AG17: =VLOOKUP('Utility Group'!$B12,vldatabase,11,FALSE) -> 248 | AH17: 0.01627331401
A18: 11 | B18: =VLOOKUP('Utility Group'!$B13,vldatabase,2,FALSE) -> Entergy Corp. | C18: =VLOOKUP('Utility Group'!$B13,vldatabase,7,FALSE) -> 6.75 | D18: =VLOOKUP('Utility Group'!$B13,vldatabase,8,FALSE) -> 3.9 | E18: =VLOOKUP('Utility Group'!$B13,vldatabase,9,FALSE) -> 56 | G18: 0.4222222222 | H18: 0.1205357143 | I18: 1.030609934 | J18: 0.1242253046 | K18: 0.05245068416 | M18: 0.01982872351 | N18: 0.3212121212 | O18: 0.006369226341 | Q18: 0.05881991051 | R18: 11 | S18: Entergy Corp. | T18: =VLOOKUP('Utility Group'!$B13,vldatabase,14,FALSE) -> 0.355 | U18: =VLOOKUP('Utility Group'!$B13,vldatabase,16,FALSE) -> 22528 | V18: 7997.44 | X18: =VLOOKUP('Utility Group'!$B13,vldatabase,15,FALSE) -> 0.395 | Y18: =VLOOKUP('Utility Group'!$B13,vldatabase,17,FALSE) -> 27500 | Z18: 10862.5 | AA18: 0.06315297741 | AB18: =VLOOKUP('Utility Group'!$B13,vldatabase,5,FALSE) -> 100 | AC18: =VLOOKUP('Utility Group'!$B13,vldatabase,6,FALSE) -> 65 | AD18: 82.5 | AE18: 1.473214286 | AF18: =VLOOKUP('Utility Group'!$B13,vldatabase,10,FALSE) -> 180.52 | AG18: =VLOOKUP('Utility Group'!$B13,vldatabase,11,FALSE) -> 193 | AH18: 0.01345949717
A19: 12 | B19: =VLOOKUP('Utility Group'!$B14,vldatabase,2,FALSE) -> Eversource Energy | C19: =VLOOKUP('Utility Group'!$B14,vldatabase,7,FALSE) -> 4 | D19: =VLOOKUP('Utility Group'!$B14,vldatabase,8,FALSE) -> 2.5 | E19: =VLOOKUP('Utility Group'!$B14,vldatabase,9,FALSE) -> 42 | G19: 0.375 | H19: 0.09523809524 | I19: 1.017834313 | J19: 0.09693660125 | K19: 0.03635122547 | M19: 0 | N19: 0.3777777778 | O19: 0 | Q19: 0.03635122547 | R19: 12 | S19: Eversource Energy | T19: =VLOOKUP('Utility Group'!$B14,vldatabase,14,FALSE) -> 0.482 | U19: =VLOOKUP('Utility Group'!$B14,vldatabase,16,FALSE) -> 23018 | V19: 11094.676 | X19: =VLOOKUP('Utility Group'!$B14,vldatabase,15,FALSE) -> 0.445 | Y19: =VLOOKUP('Utility Group'!$B14,vldatabase,17,FALSE) -> 29800 | Z19: 13261 | AA19: 0.03631630259 | AB19: =VLOOKUP('Utility Group'!$B14,vldatabase,5,FALSE) -> 75 | AC19: =VLOOKUP('Utility Group'!$B14,vldatabase,6,FALSE) -> 60 | AD19: 67.5 | AE19: 1.607142857 | AF19: =VLOOKUP('Utility Group'!$B14,vldatabase,10,FALSE) -> 316.89 | AG19: =VLOOKUP('Utility Group'!$B14,vldatabase,11,FALSE) -> 316.89 | AH19: 0
A20: 13 | B20: =VLOOKUP('Utility Group'!$B15,vldatabase,2,FALSE) -> Exelon Corp. | C20: =VLOOKUP('Utility Group'!$B15,vldatabase,7,FALSE) -> 3.75 | D20: =VLOOKUP('Utility Group'!$B15,vldatabase,8,FALSE) -> 1.7 | E20: =VLOOKUP('Utility Group'!$B15,vldatabase,9,FALSE) -> 39.75 | G20: 0.5466666667 | H20: 0.09433962264 | I20: 1.026644246 | J20: 0.09685323079 | K20: 0.05294643283 | M20: 0.00388881318 | N20: 0.1166666667 | O20: 0.000453694871 | Q20: 0.0534001277 | R20: 13 | S20: Exelon Corp. | T20: =VLOOKUP('Utility Group'!$B15,vldatabase,14,FALSE) -> 0.478 | U20: =VLOOKUP('Utility Group'!$B15,vldatabase,16,FALSE) -> 62422 | V20: 29837.716 | X20: =VLOOKUP('Utility Group'!$B15,vldatabase,15,FALSE) -> 0.5 | Y20: =VLOOKUP('Utility Group'!$B15,vldatabase,17,FALSE) -> 77900 | Z20: 38950 | AA20: 0.05474719044 | AB20: =VLOOKUP('Utility Group'!$B15,vldatabase,5,FALSE) -> 55 | AC20: =VLOOKUP('Utility Group'!$B15,vldatabase,6,FALSE) -> 35 | AD20: 45 | AE20: 1.132075472 | AF20: =VLOOKUP('Utility Group'!$B15,vldatabase,10,FALSE) -> 963.34 | AG20: =VLOOKUP('Utility Group'!$B15,vldatabase,11,FALSE) -> 980 | AH20: 0.003435118309
A21: 14 | B21: =VLOOKUP('Utility Group'!$B16,vldatabase,2,FALSE) -> Fortis Inc. | C21: =VLOOKUP('Utility Group'!$B16,vldatabase,7,FALSE) -> 3.5 | D21: =VLOOKUP('Utility Group'!$B16,vldatabase,8,FALSE) -> 2.2 | E21: =VLOOKUP('Utility Group'!$B16,vldatabase,9,FALSE) -> 41.25 | G21: 0.3714285714 | H21: 0.08484848485 | I21: 1.029148723 | J21: 0.08732170984 | K21: 0.03243377794 | M21: 0.00643586343 | N21: 0.1315789474 | O21: 0.0008468241355 | Q21: 0.03328060208 | R21: 14 | S21: Fortis Inc. | T21: =VLOOKUP('Utility Group'!$B16,vldatabase,14,FALSE) -> 0.371 | U21: =VLOOKUP('Utility Group'!$B16,vldatabase,16,FALSE) -> 36108 | V21: 13396.068 | X21: =VLOOKUP('Utility Group'!$B16,vldatabase,15,FALSE) -> 0.43 | Y21: =VLOOKUP('Utility Group'!$B16,vldatabase,17,FALSE) -> 41700 | Z21: 17931 | AA21: 0.06004776188 | AB21: =VLOOKUP('Utility Group'!$B16,vldatabase,5,FALSE) -> 55 | AC21: =VLOOKUP('Utility Group'!$B16,vldatabase,6,FALSE) -> 40 | AD21: 47.5 | AE21: 1.151515152 | AF21: =VLOOKUP('Utility Group'!$B16,vldatabase,10,FALSE) -> 421.1 | AG21: =VLOOKUP('Utility Group'!$B16,vldatabase,11,FALSE) -> 433 | AH21: 0.005589039294
A22: 15 | B22: =VLOOKUP('Utility Group'!$B17,vldatabase,2,FALSE) -> NorthWestern Corp. | C22: =VLOOKUP('Utility Group'!$B17,vldatabase,7,FALSE) -> 4 | D22: =VLOOKUP('Utility Group'!$B17,vldatabase,8,FALSE) -> 2.6 | E22: =VLOOKUP('Utility Group'!$B17,vldatabase,9,FALSE) -> 43.25 | G22: 0.35 | H22: 0.09248554913 | I22: 1.020085926 | J22: 0.094343207 | K22: 0.03302012245 | M22: 0.009795363768 | N22: 0.3346153846 | O22: 0.003277679415 | Q22: 0.03629780187 | R22: 15 | S22: NorthWestern Corp. | T22: =VLOOKUP('Utility Group'!$B17,vldatabase,14,FALSE) -> 0.498 | U22: =VLOOKUP('Utility Group'!$B17,vldatabase,16,FALSE) -> 3614.5 | V22: 1800.021 | X22: =VLOOKUP('Utility Group'!$B17,vldatabase,15,FALSE) -> 0.54 | Y22: =VLOOKUP('Utility Group'!$B17,vldatabase,17,FALSE) -> 4075 | Z22: 2200.5 | AA22: 0.04099527962 | AB22: =VLOOKUP('Utility Group'!$B17,vldatabase,5,FALSE) -> 75 | AC22: =VLOOKUP('Utility Group'!$B17,vldatabase,6,FALSE) -> 55 | AD22: 65 | AE22: 1.502890173 | AF22: =VLOOKUP('Utility Group'!$B17,vldatabase,10,FALSE) -> 49.37 | AG22: =VLOOKUP('Utility Group'!$B17,vldatabase,11,FALSE) -> 51 | AH22: 0.006517684353
A23: 16 | B23: =VLOOKUP('Utility Group'!$B18,vldatabase,2,FALSE) -> PPL Corp. | C23: =VLOOKUP('Utility Group'!$B18,vldatabase,7,FALSE) -> 2.75 | D23: =VLOOKUP('Utility Group'!$B18,vldatabase,8,FALSE) -> 1.8 | E23: =VLOOKUP('Utility Group'!$B18,vldatabase,9,FALSE) -> 20.75 | G23: 0.3454545455 | H23: 0.1325301205 | I23: 1.040986395 | J23: 0.1379620523 | K23: 0.04765961808 | M23: 0.04591145545 | N23: 0.48125 | O23: 0.02209488794 | Q23: 0.06975450602 | R23: 16 | S23: PPL Corp. | T23: =VLOOKUP('Utility Group'!$B18,vldatabase,14,FALSE) -> 0.352 | U23: =VLOOKUP('Utility Group'!$B18,vldatabase,16,FALSE) -> 30608 | V23: 10774.016 | X23: =VLOOKUP('Utility Group'!$B18,vldatabase,15,FALSE) -> 0.44 | Y23: =VLOOKUP('Utility Group'!$B18,vldatabase,17,FALSE) -> 36900 | Z23: 16236 | AA23: 0.08547614922 | AB23: =VLOOKUP('Utility Group'!$B18,vldatabase,5,FALSE) -> 45 | AC23: =VLOOKUP('Utility Group'!$B18,vldatabase,6,FALSE) -> 35 | AD23: 40 | AE23: 1.927710843 | AF23: =VLOOKUP('Utility Group'!$B18,vldatabase,10,FALSE) -> 693.4 | AG23: =VLOOKUP('Utility Group'!$B18,vldatabase,11,FALSE) -> 780 | AH23: 0.02381656752
A24: 17 | B24: =VLOOKUP('Utility Group'!$B19,vldatabase,2,FALSE) -> Pub Sv Enterprise Grp. | C24: =VLOOKUP('Utility Group'!$B19,vldatabase,7,FALSE) -> 3.75 | D24: =VLOOKUP('Utility Group'!$B19,vldatabase,8,FALSE) -> 2.2 | E24: =VLOOKUP('Utility Group'!$B19,vldatabase,9,FALSE) -> 34.75 | G24: 0.4133333333 | H24: 0.1079136691 | I24: 1.023315206 | J24: 0.1104296985 | K24: 0.04564427538 | M24: 0 | N24: 0.3380952381 | O24: 0 | Q24: 0.04564427538 | R24: 17 | S24: Pub Sv Enterprise Grp. | T24: =VLOOKUP('Utility Group'!$B19,vldatabase,14,FALSE) -> 0.534 | U24: =VLOOKUP('Utility Group'!$B19,vldatabase,16,FALSE) -> 25915 | V24: 13838.61 | X24: =VLOOKUP('Utility Group'!$B19,vldatabase,15,FALSE) -> 0.505 | Y24: =VLOOKUP('Utility Group'!$B19,vldatabase,17,FALSE) -> 34600 | Z24: 17473 | AA24: 0.04774356298 | AB24: =VLOOKUP('Utility Group'!$B19,vldatabase,5,FALSE) -> 60 | AC24: =VLOOKUP('Utility Group'!$B19,vldatabase,6,FALSE) -> 45 | AD24: 52.5 | AE24: 1.510791367 | AF24: =VLOOKUP('Utility Group'!$B19,vldatabase,10,FALSE) -> 505 | AG24: =VLOOKUP('Utility Group'!$B19,vldatabase,11,FALSE) -> 505 | AH24: 0
A25: 18 | B25: =VLOOKUP('Utility Group'!$B20,vldatabase,2,FALSE) -> Sempra Energy | C25: =VLOOKUP('Utility Group'!$B20,vldatabase,7,FALSE) -> 8 | D25: =VLOOKUP('Utility Group'!$B20,vldatabase,8,FALSE) -> 4.9 | E25: =VLOOKUP('Utility Group'!$B20,vldatabase,9,FALSE) -> 68.5 | G25: =IF(E25="n/a", "n/a",+(C25-D25)/C25) -> 0.3875 | H25: =IF(E25="n/a","n/a",C25/E25) -> 0.1167883212 | I25: =IF(AA25="n/a","n/a",2*(1+AA25)/(2+AA25)) -> 1.046561669 | J25: =IF(H25="n/a","n/a",H25*I25) -> 0.1222261803 | K25: =IF(G25="n/a","n/a",G25*J25) -> 0.04736264487 | M25: =IF(AE25="n/a","n/a",AE25*AH25) -> 0.06792554525 | N25: =IF(AE25="n/a","n/a",1-1/AE25) -> 0.5107142857 | O25: =IF(M25="n/a","n/a",M25*N25) -> 0.03469054632 | Q25: =IF(K25="n/a","n/a",K25+O25) -> 0.0820531912 | R25: =A25 -> 18 | S25: =B25 -> Sempra Energy | T25: =VLOOKUP('Utility Group'!$B20,vldatabase,14,FALSE) -> 0.435 | U25: =VLOOKUP('Utility Group'!$B20,vldatabase,16,FALSE) -> 29135 | V25: =IF(U25="n/a","n/a",T25*U25) -> 12673.725 | X25: =VLOOKUP('Utility Group'!$B20,vldatabase,15,FALSE) -> 0.44 | Y25: =VLOOKUP('Utility Group'!$B20,vldatabase,17,FALSE) -> 45900 | Z25: =IF(Y25="n/a","n/a",X25*Y25) -> 20196 | AA25: =IF(V25="n/a","n/a",(+Z25/V25)^(1/5)-1) -> 0.09767106583 | AB25: =VLOOKUP('Utility Group'!$B20,vldatabase,5,FALSE) -> 160 | AC25: =VLOOKUP('Utility Group'!$B20,vldatabase,6,FALSE) -> 120 | AD25: =IF(AB25="n/a","n/a",AVERAGE(AB25:AC25)) -> 140 | AE25: =IF(AD25="n/a","n/a",AD25/E25) -> 2.04379562 | AF25: =VLOOKUP('Utility Group'!$B20,vldatabase,10,FALSE) -> 251.36 | AG25: =VLOOKUP('Utility Group'!$B20,vldatabase,11,FALSE) -> 296 | AH25: =IF(AF25="n/a","n/a",(+AG25/AF25)^(1/5)-1) -> 0.03323499892
A26: 19 | B26: =VLOOKUP('Utility Group'!$B21,vldatabase,2,FALSE) -> Southern Company | C26: =VLOOKUP('Utility Group'!$B21,vldatabase,7,FALSE) -> 3.5 | D26: =VLOOKUP('Utility Group'!$B21,vldatabase,8,FALSE) -> 2.7 | E26: =VLOOKUP('Utility Group'!$B21,vldatabase,9,FALSE) -> 29.75 | G26: 0.2285714286 | H26: 0.1176470588 | I26: 1.031883878 | J26: 0.1213981033 | K26: 0.02774813789 | M26: 0.03613606496 | N26: 0.4590909091 | O26: 0.01658973891 | Q26: 0.04433787681 | R26: 19 | S26: Southern Company | T26: =VLOOKUP('Utility Group'!$B21,vldatabase,14,FALSE) -> 0.35 | U26: =VLOOKUP('Utility Group'!$B21,vldatabase,16,FALSE) -> 68953 | V26: 24133.55 | X26: =VLOOKUP('Utility Group'!$B21,vldatabase,15,FALSE) -> 0.415 | Y26: =VLOOKUP('Utility Group'!$B21,vldatabase,17,FALSE) -> 80000 | Z26: 33200 | AA26: 0.06586787933 | AB26: =VLOOKUP('Utility Group'!$B21,vldatabase,5,FALSE) -> 65 | AC26: =VLOOKUP('Utility Group'!$B21,vldatabase,6,FALSE) -> 45 | AD26: 55 | AE26: 1.848739496 | AF26: =VLOOKUP('Utility Group'!$B21,vldatabase,10,FALSE) -> 1007.6 | AG26: =VLOOKUP('Utility Group'!$B21,vldatabase,11,FALSE) -> 1110 | AH26: 0.01954632604
A27: 20 | B27: =VLOOKUP('Utility Group'!$B22,vldatabase,2,FALSE) -> WEC Energy Group | C27: =VLOOKUP('Utility Group'!$B22,vldatabase,7,FALSE) -> 4.25 | D27: =VLOOKUP('Utility Group'!$B22,vldatabase,8,FALSE) -> 2.75 | E27: =VLOOKUP('Utility Group'!$B22,vldatabase,9,FALSE) -> 35.75 | G27: 0.3529411765 | H27: 0.1188811189 | I27: 1.017225061 | J27: 0.1209288534 | K27: 0.0426807718 | M27: 3.456816586e-05 | N27: 0.45 | O27: 1.555567463e-05 | Q27: 0.04269632748 | R27: 20 | S27: WEC Energy Group | T27: =VLOOKUP('Utility Group'!$B22,vldatabase,14,FALSE) -> 0.519 | U27: =VLOOKUP('Utility Group'!$B22,vldatabase,16,FALSE) -> 18238 | V27: 9465.522 | X27: =VLOOKUP('Utility Group'!$B22,vldatabase,15,FALSE) -> 0.52 | Y27: =VLOOKUP('Utility Group'!$B22,vldatabase,17,FALSE) -> 21625 | Z27: 11245 | AA27: 0.03505392866 | AB27: =VLOOKUP('Utility Group'!$B22,vldatabase,5,FALSE) -> 70 | AC27: =VLOOKUP('Utility Group'!$B22,vldatabase,6,FALSE) -> 60 | AD27: 65 | AE27: 1.818181818 | AF27: =VLOOKUP('Utility Group'!$B22,vldatabase,10,FALSE) -> 315.57 | AG27: =VLOOKUP('Utility Group'!$B22,vldatabase,11,FALSE) -> 315.6 | AH27: 1.901249122e-05
A28: 21 | B28: =VLOOKUP('Utility Group'!$B23,vldatabase,2,FALSE) -> Xcel Energy Inc. | C28: =VLOOKUP('Utility Group'!$B23,vldatabase,7,FALSE) -> 3 | D28: =VLOOKUP('Utility Group'!$B23,vldatabase,8,FALSE) -> 1.9 | E28: =VLOOKUP('Utility Group'!$B23,vldatabase,9,FALSE) -> 28 | G28: 0.3666666667 | H28: 0.1071428571 | I28: 1.024364446 | J28: 0.1097533335 | K28: 0.04024288894 | M28: 0.009736866669 | N28: 0.4105263158 | O28: 0.003997240001 | Q28: 0.04424012894 | R28: 21 | S28: Xcel Energy Inc. | T28: =VLOOKUP('Utility Group'!$B23,vldatabase,14,FALSE) -> 0.441 | U28: =VLOOKUP('Utility Group'!$B23,vldatabase,16,FALSE) -> 25975 | V28: 11454.975 | X28: =VLOOKUP('Utility Group'!$B23,vldatabase,15,FALSE) -> 0.42 | Y28: =VLOOKUP('Utility Group'!$B23,vldatabase,17,FALSE) -> 34800 | Z28: 14616 | AA28: 0.049945793 | AB28: =VLOOKUP('Utility Group'!$B23,vldatabase,5,FALSE) -> 50 | AC28: =VLOOKUP('Utility Group'!$B23,vldatabase,6,FALSE) -> 45 | AD28: 47.5 | AE28: 1.696428571 | AF28: =VLOOKUP('Utility Group'!$B23,vldatabase,10,FALSE) -> 507.76 | AG28: =VLOOKUP('Utility Group'!$B23,vldatabase,11,FALSE) -> 522.5 | AH28: 0.005739626668
R31: (a) | S31: ='Proxy Group Risk Measures'!B37 -> The Value Line Investment Survey (May 18, Jun. 15, & Jul. 27, 2018); Jun. 22, 2018 for Emera.
R32: (b) | S32: Computed using the formula 2*(1+5-Yr. Change in Equity)/(2+5 Yr. Change in Equity).
R33: (c) | S33: Product of average year-end "r" for 2022 and Adjustment Factor.
R34: (d) | S34: Product of change in common shares outstanding and M/B Ratio.
R35: (e) | S35: Computed as 1 - B/M Ratio.
R36: (f) | S36: Product of total capital and equity ratio.
R37: (g) | S37: Five-year rate of change in common equity.
R38: (h) | S38: Average of High and Low expected market prices divided by 2022 BVPS.

Sheet 7 (1)
A1: ='Exhibit List'!C11 -> CAPM - CURRENT BOND YIELD | AB1: ='Exhibit List'!B11 -> Exhibit No. 7
AB2: Page 1 of 2
A3: ='Exhibit List'!D11 -> UTILITY GROUP
D5: (a) | F5: (b) | J5: (c) | P5: (d) | V5: (e) | X5: (f)
D6: Market Return (Rm) | AA6: Size
D7: Div | F7: Proj. | H7: Cost of | J7: Risk-Free | M7: Risk | S7: Unadjusted | V7: Market | X7: Size | AA7: Adjusted
B8: Company | D8: Yield | F8: Growth | H8: Equity | J8: Rate | M8: Premium | P8: Beta | S8: Ke | V8: Cap | X8: Adjustment | AA8: Ke
A9: =A8+1 -> 1 | B9: =VLOOKUP('Utility Group'!$B3,vldatabase,2,FALSE) -> Algonquin Pwr & Util | D9: ='2018 08 Market DCF'!$J$419 -> 0.023 | F9: ='2018 08 Market DCF'!$P$420 -> 0.109 | H9: =D9+F9 -> 0.132 | J9: =ROUND('Bond Yields'!$K$16,3) -> 0.031 | M9: =H9-J9 -> 0.101 | P9: =VLOOKUP('Utility Group'!$B3,vldatabase,23,FALSE) -> n/a | S9: =IF(P9="n/a","n/a",P9*M9+J9) -> n/a | V9: =VLOOKUP('Utility Group'!$B3,vldatabase,28,FALSE) -> 4591 | X9: =IF(V9>'Size Premium'!$A$5,'Size Premium'!$B$5,IF(V9>'Size Premium'!$A$6,'Size Premium'!$B$6,IF(V9>'Size Premium'!$A$7,'Size Premium'!$B$7,IF(V9>'Size Premium'!$A$8,'Size Premium'!$B$8,IF(V9>'Size Premium'!$A$9,'Size Premium'!$B$9,IF(V9>'Size Premium'!$A$10,'Size Premium'!$B$10,IF(V9>'Size Premium'!$A$11,'Size Premium'!$B$11,IF(V9>'Size Premium'!$A$12,'Size Premium'!$B$12,"ERROR")))))))) -> 0.0086 | AA9: =IF(S9="n/a","n/a",ROUND(S9+X9,3)) -> n/a
A10: =A9+1 -> 2 | B10: =VLOOKUP('Utility Group'!$B4,vldatabase,2,FALSE) -> Alliant Energy | D10: ='2018 08 Market DCF'!$J$419 -> 0.023 | F10: ='2018 08 Market DCF'!$P$420 -> 0.109 | H10: =D10+F10 -> 0.132 | J10: =ROUND('Bond Yields'!$K$16,3) -> 0.031 | M10: =H10-J10 -> 0.101 | P10: =VLOOKUP('Utility Group'!$B4,vldatabase,23,FALSE) -> 0.7 | S10: =IF(P10="n/a","n/a",P10*M10+J10) -> 0.1017 | V10: =VLOOKUP('Utility Group'!$B4,vldatabase,28,FALSE) -> 9986.13 | X10: =IF(V10>'Size Premium'!$A$5,'Size Premium'!$B$5,IF(V10>'Size Premium'!$A$6,'Size Premium'!$B$6,IF(V10>'Size Premium'!$A$7,'Size Premium'!$B$7,IF(V10>'Size Premium'!$A$8,'Size Premium'!$B$8,IF(V10>'Size Premium'!$A$9,'Size Premium'!$B$9,IF(V10>'Size Premium'!$A$10,'Size Premium'!$B$10,IF(V10>'Size Premium'!$A$11,'Size Premium'!$B$11,IF(V10>'Size Premium'!$A$12,'Size Premium'!$B$12,"ERROR")))))))) -> 0.0083 | AA10: =IF(S10="n/a","n/a",ROUND(S10+X10,3)) -> 0.11
A11: 3 | B11: =VLOOKUP('Utility Group'!$B5,vldatabase,2,FALSE) -> Ameren Corp. | D11: ='2018 08 Market DCF'!$J$419 -> 0.023 | F11: ='2018 08 Market DCF'!$P$420 -> 0.109 | H11: 0.132 | J11: =ROUND('Bond Yields'!$K$16,3) -> 0.031 | M11: 0.101 | P11: =VLOOKUP('Utility Group'!$B5,vldatabase,23,FALSE) -> 0.65 | S11: 0.09665 | V11: =VLOOKUP('Utility Group'!$B5,vldatabase,28,FALSE) -> 14949.73 | X11: =IF(V11>'Size Premium'!$A$5,'Size Premium'!$B$5,IF(V11>'Size Premium'!$A$6,'Size Premium'!$B$6,IF(V11>'Size Premium'!$A$7,'Size Premium'!$B$7,IF(V11>'Size Premium'!$A$8,'Size Premium'!$B$8,IF(V11>'Size Premium'!$A$9,'Size Premium'!$B$9,IF(V11>'Size Premium'!$A$10,'Size Premium'!$B$10,IF(V11>'Size Premium'!$A$11,'Size Premium'!$B$11,IF(V11>'Size Premium'!$A$12,'Size Premium'!$B$12,"ERROR")))))))) -> 0.0055 | AA11: 0.102
A12: 4 | B12: =VLOOKUP('Utility Group'!$B6,vldatabase,2,FALSE) -> Avangrid, Inc. | D12: ='2018 08 Market DCF'!$J$419 -> 0.023 | F12: ='2018 08 Market DCF'!$P$420 -> 0.109 | H12: 0.132 | J12: =ROUND('Bond Yields'!$K$16,3) -> 0.031 | M12: 0.101 | P12: =VLOOKUP('Utility Group'!$B6,vldatabase,23,FALSE) -> 0.4 | S12: 0.0714 | V12: =VLOOKUP('Utility Group'!$B6,vldatabase,28,FALSE) -> 16307.38 | X12: =IF(V12>'Size Premium'!$A$5,'Size Premium'!$B$5,IF(V12>'Size Premium'!$A$6,'Size Premium'!$B$6,IF(V12>'Size Premium'!$A$7,'Size Premium'!$B$7,IF(V12>'Size Premium'!$A$8,'Size Premium'!$B$8,IF(V12>'Size Premium'!$A$9,'Size Premium'!$B$9,IF(V12>'Size Premium'!$A$10,'Size Premium'!$B$10,IF(V12>'Size Premium'!$A$11,'Size Premium'!$B$11,IF(V12>'Size Premium'!$A$12,'Size Premium'!$B$12,"ERROR")))))))) -> 0.0055 | AA12: 0.077
A13: 5 | B13: =VLOOKUP('Utility Group'!$B7,vldatabase,2,FALSE) -> Black Hills Corp. | D13: ='2018 08 Market DCF'!$J$419 -> 0.023 | F13: ='2018 08 Market DCF'!$P$420 -> 0.109 | H13: 0.132 | J13: =ROUND('Bond Yields'!$K$16,3) -> 0.031 | M13: 0.101 | P13: =VLOOKUP('Utility Group'!$B7,vldatabase,23,FALSE) -> 0.85 | S13: 0.11685 | V13: =VLOOKUP('Utility Group'!$B7,vldatabase,28,FALSE) -> 3290.73 | X13: =IF(V13>'Size Premium'!$A$5,'Size Premium'!$B$5,IF(V13>'Size Premium'!$A$6,'Size Premium'!$B$6,IF(V13>'Size Premium'!$A$7,'Size Premium'!$B$7,IF(V13>'Size Premium'!$A$8,'Size Premium'!$B$8,IF(V13>'Size Premium'!$A$9,'Size Premium'!$B$9,IF(V13>'Size Premium'!$A$10,'Size Premium'!$B$10,IF(V13>'Size Premium'!$A$11,'Size Premium'!$B$11,IF(V13>'Size Premium'!$A$12,'Size Premium'!$B$12,"ERROR")))))))) -> 0.0136 | AA13: 0.13
A14: 6 | B14: =VLOOKUP('Utility Group'!$B8,vldatabase,2,FALSE) -> CMS Energy Corp. | D14: ='2018 08 Market DCF'!$J$419 -> 0.023 | F14: ='2018 08 Market DCF'!$P$420 -> 0.109 | H14: 0.132 | J14: =ROUND('Bond Yields'!$K$16,3) -> 0.031 | M14: 0.101 | P14: =VLOOKUP('Utility Group'!$B8,vldatabase,23,FALSE) -> 0.65 | S14: 0.09665 | V14: =VLOOKUP('Utility Group'!$B8,vldatabase,28,FALSE) -> 13537.4 | X14: =IF(V14>'Size Premium'!$A$5,'Size Premium'!$B$5,IF(V14>'Size Premium'!$A$6,'Size Premium'!$B$6,IF(V14>'Size Premium'!$A$7,'Size Premium'!$B$7,IF(V14>'Size Premium'!$A$8,'Size Premium'!$B$8,IF(V14>'Size Premium'!$A$9,'Size Premium'!$B$9,IF(V14>'Size Premium'!$A$10,'Size Premium'!$B$10,IF(V14>'Size Premium'!$A$11,'Size Premium'!$B$11,IF(V14>'Size Premium'!$A$12,'Size Premium'!$B$12,"ERROR")))))))) -> 0.0055 | AA14: 0.102
A15: 7 | B15: =VLOOKUP('Utility Group'!$B9,vldatabase,2,FALSE) -> Consolidated Edison | D15: ='2018 08 Market DCF'!$J$419 -> 0.023 | F15: ='2018 08 Market DCF'!$P$420 -> 0.109 | H15: 0.132 | J15: =ROUND('Bond Yields'!$K$16,3) -> 0.031 | M15: 0.101 | P15: =VLOOKUP('Utility Group'!$B9,vldatabase,23,FALSE) -> 0.5 | S15: 0.0815 | V15: =VLOOKUP('Utility Group'!$B9,vldatabase,28,FALSE) -> 24637.42 | X15: =IF(V15>'Size Premium'!$A$5,'Size Premium'!$B$5,IF(V15>'Size Premium'!$A$6,'Size Premium'!$B$6,IF(V15>'Size Premium'!$A$7,'Size Premium'!$B$7,IF(V15>'Size Premium'!$A$8,'Size Premium'!$B$8,IF(V15>'Size Premium'!$A$9,'Size Premium'!$B$9,IF(V15>'Size Premium'!$A$10,'Size Premium'!$B$10,IF(V15>'Size Premium'!$A$11,'Size Premium'!$B$11,IF(V15>'Size Premium'!$A$12,'Size Premium'!$B$12,"ERROR")))))))) -> 0.0055 | AA15: 0.087
A16: 8 | B16: =VLOOKUP('Utility Group'!$B10,vldatabase,2,FALSE) -> DTE Energy Co. | D16: ='2018 08 Market DCF'!$J$419 -> 0.023 | F16: ='2018 08 Market DCF'!$P$420 -> 0.109 | H16: 0.132 | J16: =ROUND('Bond Yields'!$K$16,3) -> 0.031 | M16: 0.101 | P16: =VLOOKUP('Utility Group'!$B10,vldatabase,23,FALSE) -> 0.65 | S16: 0.09665 | V16: =VLOOKUP('Utility Group'!$B10,vldatabase,28,FALSE) -> 19222.68 | X16: =IF(V16>'Size Premium'!$A$5,'Size Premium'!$B$5,IF(V16>'Size Premium'!$A$6,'Size Premium'!$B$6,IF(V16>'Size Premium'!$A$7,'Size Premium'!$B$7,IF(V16>'Size Premium'!$A$8,'Size Premium'!$B$8,IF(V16>'Size Premium'!$A$9,'Size Premium'!$B$9,IF(V16>'Size Premium'!$A$10,'Size Premium'!$B$10,IF(V16>'Size Premium'!$A$11,'Size Premium'!$B$11,IF(V16>'Size Premium'!$A$12,'Size Premium'!$B$12,"ERROR")))))))) -> 0.0055 | AA16: 0.102
A17: 9 | B17: =VLOOKUP('Utility Group'!$B11,vldatabase,2,FALSE) -> Duke Energy Corp. | D17: ='2018 08 Market DCF'!$J$419 -> 0.023 | F17: ='2018 08 Market DCF'!$P$420 -> 0.109 | H17: 0.132 | J17: =ROUND('Bond Yields'!$K$16,3) -> 0.031 | M17: 0.101 | P17: =VLOOKUP('Utility Group'!$B11,vldatabase,23,FALSE) -> 0.6 | S17: 0.0916 | V17: =VLOOKUP('Utility Group'!$B11,vldatabase,28,FALSE) -> 56430.5 | X17: =IF(V17>'Size Premium'!$A$5,'Size Premium'!$B$5,IF(V17>'Size Premium'!$A$6,'Size Premium'!$B$6,IF(V17>'Size Premium'!$A$7,'Size Premium'!$B$7,IF(V17>'Size Premium'!$A$8,'Size Premium'!$B$8,IF(V17>'Size Premium'!$A$9,'Size Premium'!$B$9,IF(V17>'Size Premium'!$A$10,'Size Premium'!$B$10,IF(V17>'Size Premium'!$A$11,'Size Premium'!$B$11,IF(V17>'Size Premium'!$A$12,'Size Premium'!$B$12,"ERROR")))))))) -> -0.003 | AA17: 0.089
A18: 10 | B18: =VLOOKUP('Utility Group'!$B12,vldatabase,2,FALSE) -> Emera Inc. | D18: ='2018 08 Market DCF'!$J$419 -> 0.023 | F18: ='2018 08 Market DCF'!$P$420 -> 0.109 | H18: 0.132 | J18: =ROUND('Bond Yields'!$K$16,3) -> 0.031 | M18: 0.101 | P18: =VLOOKUP('Utility Group'!$B12,vldatabase,23,FALSE) -> 0.65 | S18: 0.09665 | V18: =VLOOKUP('Utility Group'!$B12,vldatabase,28,FALSE) -> 9741.37 | X18: =IF(V18>'Size Premium'!$A$5,'Size Premium'!$B$5,IF(V18>'Size Premium'!$A$6,'Size Premium'!$B$6,IF(V18>'Size Premium'!$A$7,'Size Premium'!$B$7,IF(V18>'Size Premium'!$A$8,'Size Premium'!$B$8,IF(V18>'Size Premium'!$A$9,'Size Premium'!$B$9,IF(V18>'Size Premium'!$A$10,'Size Premium'!$B$10,IF(V18>'Size Premium'!$A$11,'Size Premium'!$B$11,IF(V18>'Size Premium'!$A$12,'Size Premium'!$B$12,"ERROR")))))))) -> 0.0083 | AA18: 0.105
A19: 11 | B19: =VLOOKUP('Utility Group'!$B13,vldatabase,2,FALSE) -> Entergy Corp. | D19: ='2018 08 Market DCF'!$J$419 -> 0.023 | F19: ='2018 08 Market DCF'!$P$420 -> 0.109 | H19: 0.132 | J19: =ROUND('Bond Yields'!$K$16,3) -> 0.031 | M19: 0.101 | P19: =VLOOKUP('Utility Group'!$B13,vldatabase,23,FALSE) -> 0.65 | S19: 0.09665 | V19: =VLOOKUP('Utility Group'!$B13,vldatabase,28,FALSE) -> 14858.06 | X19: =IF(V19>'Size Premium'!$A$5,'Size Premium'!$B$5,IF(V19>'Size Premium'!$A$6,'Size Premium'!$B$6,IF(V19>'Size Premium'!$A$7,'Size Premium'!$B$7,IF(V19>'Size Premium'!$A$8,'Size Premium'!$B$8,IF(V19>'Size Premium'!$A$9,'Size Premium'!$B$9,IF(V19>'Size Premium'!$A$10,'Size Premium'!$B$10,IF(V19>'Size Premium'!$A$11,'Size Premium'!$B$11,IF(V19>'Size Premium'!$A$12,'Size Premium'!$B$12,"ERROR")))))))) -> 0.0055 | AA19: 0.102
A20: 12 | B20: =VLOOKUP('Utility Group'!$B14,vldatabase,2,FALSE) -> Eversource Energy | D20: ='2018 08 Market DCF'!$J$419 -> 0.023 | F20: ='2018 08 Market DCF'!$P$420 -> 0.109 | H20: 0.132 | J20: =ROUND('Bond Yields'!$K$16,3) -> 0.031 | M20: 0.101 | P20: =VLOOKUP('Utility Group'!$B14,vldatabase,23,FALSE) -> 0.65 | S20: 0.09665 | V20: =VLOOKUP('Utility Group'!$B14,vldatabase,28,FALSE) -> 19745.54 | X20: =IF(V20>'Size Premium'!$A$5,'Size Premium'!$B$5,IF(V20>'Size Premium'!$A$6,'Size Premium'!$B$6,IF(V20>'Size Premium'!$A$7,'Size Premium'!$B$7,IF(V20>'Size Premium'!$A$8,'Size Premium'!$B$8,IF(V20>'Size Premium'!$A$9,'Size Premium'!$B$9,IF(V20>'Size Premium'!$A$10,'Size Premium'!$B$10,IF(V20>'Size Premium'!$A$11,'Size Premium'!$B$11,IF(V20>'Size Premium'!$A$12,'Size Premium'!$B$12,"ERROR")))))))) -> 0.0055 | AA20: 0.102
A21: 13 | B21: =VLOOKUP('Utility Group'!$B15,vldatabase,2,FALSE) -> Exelon Corp. | D21: ='2018 08 Market DCF'!$J$419 -> 0.023 | F21: ='2018 08 Market DCF'!$P$420 -> 0.109 | H21: 0.132 | J21: =ROUND('Bond Yields'!$K$16,3) -> 0.031 | M21: 0.101 | P21: =VLOOKUP('Utility Group'!$B15,vldatabase,23,FALSE) -> 0.7 | S21: 0.1017 | V21: =VLOOKUP('Utility Group'!$B15,vldatabase,28,FALSE) -> 40783.05 | X21: =IF(V21>'Size Premium'!$A$5,'Size Premium'!$B$5,IF(V21>'Size Premium'!$A$6,'Size Premium'!$B$6,IF(V21>'Size Premium'!$A$7,'Size Premium'!$B$7,IF(V21>'Size Premium'!$A$8,'Size Premium'!$B$8,IF(V21>'Size Premium'!$A$9,'Size Premium'!$B$9,IF(V21>'Size Premium'!$A$10,'Size Premium'!$B$10,IF(V21>'Size Premium'!$A$11,'Size Premium'!$B$11,IF(V21>'Size Premium'!$A$12,'Size Premium'!$B$12,"ERROR")))))))) -> -0.003 | AA21: 0.099
A22: 14 | B22: =VLOOKUP('Utility Group'!$B16,vldatabase,2,FALSE) -> Fortis Inc. | D22: ='2018 08 Market DCF'!$J$419 -> 0.023 | F22: ='2018 08 Market DCF'!$P$420 -> 0.109 | H22: 0.132 | J22: =ROUND('Bond Yields'!$K$16,3) -> 0.031 | M22: 0.101 | P22: =VLOOKUP('Utility Group'!$B16,vldatabase,23,FALSE) -> 0.7 | S22: 0.1017 | V22: =VLOOKUP('Utility Group'!$B16,vldatabase,28,FALSE) -> 17930.44 | X22: =IF(V22>'Size Premium'!$A$5,'Size Premium'!$B$5,IF(V22>'Size Premium'!$A$6,'Size Premium'!$B$6,IF(V22>'Size Premium'!$A$7,'Size Premium'!$B$7,IF(V22>'Size Premium'!$A$8,'Size Premium'!$B$8,IF(V22>'Size Premium'!$A$9,'Size Premium'!$B$9,IF(V22>'Size Premium'!$A$10,'Size Premium'!$B$10,IF(V22>'Size Premium'!$A$11,'Size Premium'!$B$11,IF(V22>'Size Premium'!$A$12,'Size Premium'!$B$12,"ERROR")))))))) -> 0.0055 | AA22: 0.107
A23: 15 | B23: =VLOOKUP('Utility Group'!$B17,vldatabase,2,FALSE) -> NorthWestern Corp. | D23: ='2018 08 Market DCF'!$J$419 -> 0.023 | F23: ='2018 08 Market DCF'!$P$420 -> 0.109 | H23: 0.132 | J23: =ROUND('Bond Yields'!$K$16,3) -> 0.031 | M23: 0.101 | P23: =VLOOKUP('Utility Group'!$B17,vldatabase,23,FALSE) -> 0.65 | S23: 0.09665 | V23: =VLOOKUP('Utility Group'!$B17,vldatabase,28,FALSE) -> 3110.44 | X23: =IF(V23>'Size Premium'!$A$5,'Size Premium'!$B$5,IF(V23>'Size Premium'!$A$6,'Size Premium'!$B$6,IF(V23>'Size Premium'!$A$7,'Size Premium'!$B$7,IF(V23>'Size Premium'!$A$8,'Size Premium'!$B$8,IF(V23>'Size Premium'!$A$9,'Size Premium'!$B$9,IF(V23>'Size Premium'!$A$10,'Size Premium'!$B$10,IF(V23>'Size Premium'!$A$11,'Size Premium'!$B$11,IF(V23>'Size Premium'!$A$12,'Size Premium'!$B$12,"ERROR")))))))) -> 0.0136 | AA23: 0.11
A24: 16 | B24: =VLOOKUP('Utility Group'!$B18,vldatabase,2,FALSE) -> PPL Corp. | D24: ='2018 08 Market DCF'!$J$419 -> 0.023 | F24: ='2018 08 Market DCF'!$P$420 -> 0.109 | H24: 0.132 | J24: =ROUND('Bond Yields'!$K$16,3) -> 0.031 | M24: 0.101 | P24: =VLOOKUP('Utility Group'!$B18,vldatabase,23,FALSE) -> 0.75 | S24: 0.10675 | V24: =VLOOKUP('Utility Group'!$B18,vldatabase,28,FALSE) -> 19980.02 | X24: =IF(V24>'Size Premium'!$A$5,'Size Premium'!$B$5,IF(V24>'Size Premium'!$A$6,'Size Premium'!$B$6,IF(V24>'Size Premium'!$A$7,'Size Premium'!$B$7,IF(V24>'Size Premium'!$A$8,'Size Premium'!$B$8,IF(V24>'Size Premium'!$A$9,'Size Premium'!$B$9,IF(V24>'Size Premium'!$A$10,'Size Premium'!$B$10,IF(V24>'Size Premium'!$A$11,'Size Premium'!$B$11,IF(V24>'Size Premium'!$A$12,'Size Premium'!$B$12,"ERROR")))))))) -> 0.0055 | AA24: 0.112
A25: 17 | B25: =VLOOKUP('Utility Group'!$B19,vldatabase,2,FALSE) -> Pub Sv Enterprise Grp. | D25: ='2018 08 Market DCF'!$J$419 -> 0.023 | F25: ='2018 08 Market DCF'!$P$420 -> 0.109 | H25: 0.132 | J25: =ROUND('Bond Yields'!$K$16,3) -> 0.031 | M25: 0.101 | P25: =VLOOKUP('Utility Group'!$B19,vldatabase,23,FALSE) -> 0.7 | S25: 0.1017 | V25: =VLOOKUP('Utility Group'!$B19,vldatabase,28,FALSE) -> 26374.32 | X25: =IF(V25>'Size Premium'!$A$5,'Size Premium'!$B$5,IF(V25>'Size Premium'!$A$6,'Size Premium'!$B$6,IF(V25>'Size Premium'!$A$7,'Size Premium'!$B$7,IF(V25>'Size Premium'!$A$8,'Size Premium'!$B$8,IF(V25>'Size Premium'!$A$9,'Size Premium'!$B$9,IF(V25>'Size Premium'!$A$10,'Size Premium'!$B$10,IF(V25>'Size Premium'!$A$11,'Size Premium'!$B$11,IF(V25>'Size Premium'!$A$12,'Size Premium'!$B$12,"ERROR")))))))) -> -0.003 | AA25: 0.099
A26: 18 | B26: =VLOOKUP('Utility Group'!$B20,vldatabase,2,FALSE) -> Sempra Energy | D26: ='2018 08 Market DCF'!$J$419 -> 0.023 | F26: ='2018 08 Market DCF'!$P$420 -> 0.109 | H26: =D26+F26 -> 0.132 | J26: =ROUND('Bond Yields'!$K$16,3) -> 0.031 | M26: =H26-J26 -> 0.101 | P26: =VLOOKUP('Utility Group'!$B20,vldatabase,23,FALSE) -> 0.75 | S26: =IF(P26="n/a","n/a",P26*M26+J26) -> 0.10675 | V26: =VLOOKUP('Utility Group'!$B20,vldatabase,28,FALSE) -> 30526.32 | X26: =IF(V26>'Size Premium'!$A$5,'Size Premium'!$B$5,IF(V26>'Size Premium'!$A$6,'Size Premium'!$B$6,IF(V26>'Size Premium'!$A$7,'Size Premium'!$B$7,IF(V26>'Size Premium'!$A$8,'Size Premium'!$B$8,IF(V26>'Size Premium'!$A$9,'Size Premium'!$B$9,IF(V26>'Size Premium'!$A$10,'Size Premium'!$B$10,IF(V26>'Size Premium'!$A$11,'Size Premium'!$B$11,IF(V26>'Size Premium'!$A$12,'Size Premium'!$B$12,"ERROR")))))))) -> -0.003 | AA26: =IF(S26="n/a","n/a",ROUND(S26+X26,3)) -> 0.104
A27: 19 | B27: =VLOOKUP('Utility Group'!$B21,vldatabase,2,FALSE) -> Southern Company | D27: ='2018 08 Market DCF'!$J$419 -> 0.023 | F27: ='2018 08 Market DCF'!$P$420 -> 0.109 | H27: 0.132 | J27: =ROUND('Bond Yields'!$K$16,3) -> 0.031 | M27: 0.101 | P27: =VLOOKUP('Utility Group'!$B21,vldatabase,23,FALSE) -> 0.55 | S27: 0.08655 | V27: =VLOOKUP('Utility Group'!$B21,vldatabase,28,FALSE) -> 48537.77 | X27: =IF(V27>'Size Premium'!$A$5,'Size Premium'!$B$5,IF(V27>'Size Premium'!$A$6,'Size Premium'!$B$6,IF(V27>'Size Premium'!$A$7,'Size Premium'!$B$7,IF(V27>'Size Premium'!$A$8,'Size Premium'!$B$8,IF(V27>'Size Premium'!$A$9,'Size Premium'!$B$9,IF(V27>'Size Premium'!$A$10,'Size Premium'!$B$10,IF(V27>'Size Premium'!$A$11,'Size Premium'!$B$11,IF(V27>'Size Premium'!$A$12,'Size Premium'!$B$12,"ERROR")))))))) -> -0.003 | AA27: 0.084
A28: 20 | B28: =VLOOKUP('Utility Group'!$B22,vldatabase,2,FALSE) -> WEC Energy Group | D28: ='2018 08 Market DCF'!$J$419 -> 0.023 | F28: ='2018 08 Market DCF'!$P$420 -> 0.109 | H28: 0.132 | J28: =ROUND('Bond Yields'!$K$16,3) -> 0.031 | M28: 0.101 | P28: =VLOOKUP('Utility Group'!$B22,vldatabase,23,FALSE) -> 0.6 | S28: 0.0916 | V28: =VLOOKUP('Utility Group'!$B22,vldatabase,28,FALSE) -> 20693.05 | X28: =IF(V28>'Size Premium'!$A$5,'Size Premium'!$B$5,IF(V28>'Size Premium'!$A$6,'Size Premium'!$B$6,IF(V28>'Size Premium'!$A$7,'Size Premium'!$B$7,IF(V28>'Size Premium'!$A$8,'Size Premium'!$B$8,IF(V28>'Size Premium'!$A$9,'Size Premium'!$B$9,IF(V28>'Size Premium'!$A$10,'Size Premium'!$B$10,IF(V28>'Size Premium'!$A$11,'Size Premium'!$B$11,IF(V28>'Size Premium'!$A$12,'Size Premium'!$B$12,"ERROR")))))))) -> 0.0055 | AA28: 0.097
A29: 21 | B29: =VLOOKUP('Utility Group'!$B23,vldatabase,2,FALSE) -> Xcel Energy Inc. | D29: ='2018 08 Market DCF'!$J$419 -> 0.023 | F29: ='2018 08 Market DCF'!$P$420 -> 0.109 | H29: 0.132 | J29: =ROUND('Bond Yields'!$K$16,3) -> 0.031 | M29: 0.101 | P29: =VLOOKUP('Utility Group'!$B23,vldatabase,23,FALSE) -> 0.6 | S29: 0.0916 | V29: =VLOOKUP('Utility Group'!$B23,vldatabase,28,FALSE) -> 23571.39 | X29: =IF(V29>'Size Premium'!$A$5,'Size Premium'!$B$5,IF(V29>'Size Premium'!$A$6,'Size Premium'!$B$6,IF(V29>'Size Premium'!$A$7,'Size Premium'!$B$7,IF(V29>'Size Premium'!$A$8,'Size Premium'!$B$8,IF(V29>'Size Premium'!$A$9,'Size Premium'!$B$9,IF(V29>'Size Premium'!$A$10,'Size Premium'!$B$10,IF(V29>'Size Premium'!$A$11,'Size Premium'!$B$11,IF(V29>'Size Premium'!$A$12,'Size Premium'!$B$12,"ERROR")))))))) -> 0.0055 | AA29: 0.097
B31: Average | S31: =AVERAGE(S9:S29) -> 0.0963975 | AA31: =AVERAGE(AA9:AA29) -> 0.10085
B32: Midpoint (g) | S32: =AVERAGE(S43:S44) -> 0.094125 | AA32: =AVERAGE(AA43:AA44) -> 0.1035
A34: (a) | B34: ="Weighted average for dividend-paying stocks in the S&P 500 based on data from "&'2018 08 Market DCF'!B426 -> Weighted average for dividend-paying stocks in the S&P 500 based on data from Dividend paying components of S&P 500 index from zacks.com (retrieved Aug 1, 2018).
A35: (b) | B35: ="Average of weighted average earnings growth rates from Value Line Investment Survey, IBES, and Zacks Investment Research for dividend-paying stocks in the S&P 500 based on data from "&'2018 08 Market DCF'!B429&", "&'2018 08 Market DCF'!B428&", and "&'2018 08 Market DCF'!B427&"." -> Average of weighted average earnings growth rates from Value Line Investment Survey, IBES, and Zacks Investment Research for dividend-paying stocks in the S&P 500 based on data from www.valueline.com (retrieved Aug 1, 2018)., http://finance.yahoo.com (retrieved Aug 1, 2018)., and www.zacks.com (retrieved Aug 1, 2018)..
A37: (c) | B37: ="Average yield on 30-year Treasury bonds for the six-months ending "&'Bond Yields'!B14&" based on data from the Federal Reserve at "&'Bond Yields'!B21&"." -> Average yield on 30-year Treasury bonds for the six-months ending Jul. 2018 based on data from the Federal Reserve at https://www.federalreserve.gov/datadownload/Choose.aspx?rel=H15.
A38: (d) | B38: ='Proxy Group Risk Measures'!B37 -> The Value Line Investment Survey (May 18, Jun. 15, & Jul. 27, 2018); Jun. 22, 2018 for Emera.
A39: (e) | B39: ='Proxy Group Risk Measures'!B38 -> www.valueline.com (retrieved Jul. 17, 2018).
A40: (f) | B40: ='Size Premium'!A18 -> Duff & Phelps Cost of Capital Navigator, 2018 Cost of Capital: Annual U.S. Guidance and Examples, (Chapter 7, pp. 10-11, and CRSP Deciles Size Study).
A41: (g) | B41: Average of low and high values.
P43: Min | S43: =MIN(S9:S29) -> 0.0714 | AA43: =MIN(AA9:AA29) -> 0.077
P44: Max | S44: =MAX(S9:S29) -> 0.11685 | AA44: =MAX(AA9:AA29) -> 0.13
Y45: Outlier Min | AA45: ='5 (3)'!D43 -> 0.0695

Sheet 7 (2)
A1: ='Exhibit List'!C12 -> CAPM - PROJECTED BOND YIELD | AB1: ='Exhibit List'!B12 -> Exhibit No. 7
AB2: Page 2 of 2
A3: ='Exhibit List'!D12 -> UTILITY GROUP
D5: (a) | F5: (b) | J5: (c) | P5: (d) | V5: (e) | X5: (f)
D6: Market Return (Rm) | AA6: Size
D7: Div | F7: Proj. | H7: Cost of | J7: Risk-Free | M7: Risk | S7: Unadjusted | V7: Market | X7: Size | AA7: Adjusted
B8: Company | D8: Yield | F8: Growth | H8: Equity | J8: Rate | M8: Premium | P8: Beta | S8: Ke | V8: Cap | X8: Adjustment | AA8: Ke
A9: =A8+1 -> 1 | B9: =VLOOKUP('Utility Group'!$B3,vldatabase,2,FALSE) -> Algonquin Pwr & Util | D9: ='7 (1)'!D9 -> 0.023 | F9: ='7 (1)'!F9 -> 0.109 | H9: =D9+F9 -> 0.132 | J9: =ROUND('Bond Yields'!$O$60,3) -> 0.04 | M9: =H9-J9 -> 0.092 | P9: =VLOOKUP('Utility Group'!$B3,vldatabase,23,FALSE) -> n/a | S9: =IF(P9="n/a","n/a",P9*M9+J9) -> n/a | V9: =VLOOKUP('Utility Group'!$B3,vldatabase,28,FALSE) -> 4591 | X9: =IF(V9>'Size Premium'!$A$5,'Size Premium'!$B$5,IF(V9>'Size Premium'!$A$6,'Size Premium'!$B$6,IF(V9>'Size Premium'!$A$7,'Size Premium'!$B$7,IF(V9>'Size Premium'!$A$8,'Size Premium'!$B$8,IF(V9>'Size Premium'!$A$9,'Size Premium'!$B$9,IF(V9>'Size Premium'!$A$10,'Size Premium'!$B$10,IF(V9>'Size Premium'!$A$11,'Size Premium'!$B$11,IF(V9>'Size Premium'!$A$12,'Size Premium'!$B$12,"ERROR")))))))) -> 0.0086 | AA9: =IF(S9="n/a","n/a",ROUND(S9+X9,3)) -> n/a
A10: =A9+1 -> 2 | B10: =VLOOKUP('Utility Group'!$B4,vldatabase,2,FALSE) -> Alliant Energy | D10: ='7 (1)'!D10 -> 0.023 | F10: ='7 (1)'!F10 -> 0.109 | H10: =D10+F10 -> 0.132 | J10: =ROUND('Bond Yields'!$O$60,3) -> 0.04 | M10: =H10-J10 -> 0.092 | P10: =VLOOKUP('Utility Group'!$B4,vldatabase,23,FALSE) -> 0.7 | S10: =IF(P10="n/a","n/a",P10*M10+J10) -> 0.1044 | V10: =VLOOKUP('Utility Group'!$B4,vldatabase,28,FALSE) -> 9986.13 | X10: =IF(V10>'Size Premium'!$A$5,'Size Premium'!$B$5,IF(V10>'Size Premium'!$A$6,'Size Premium'!$B$6,IF(V10>'Size Premium'!$A$7,'Size Premium'!$B$7,IF(V10>'Size Premium'!$A$8,'Size Premium'!$B$8,IF(V10>'Size Premium'!$A$9,'Size Premium'!$B$9,IF(V10>'Size Premium'!$A$10,'Size Premium'!$B$10,IF(V10>'Size Premium'!$A$11,'Size Premium'!$B$11,IF(V10>'Size Premium'!$A$12,'Size Premium'!$B$12,"ERROR")))))))) -> 0.0083 | AA10: =IF(S10="n/a","n/a",ROUND(S10+X10,3)) -> 0.113
A11: 3 | B11: =VLOOKUP('Utility Group'!$B5,vldatabase,2,FALSE) -> Ameren Corp. | D11: ='7 (1)'!D11 -> 0.023 | F11: ='7 (1)'!F11 -> 0.109 | H11: 0.132 | J11: =ROUND('Bond Yields'!$O$60,3) -> 0.04 | M11: 0.092 | P11: =VLOOKUP('Utility Group'!$B5,vldatabase,23,FALSE) -> 0.65 | S11: 0.0998 | V11: =VLOOKUP('Utility Group'!$B5,vldatabase,28,FALSE) -> 14949.73 | X11: =IF(V11>'Size Premium'!$A$5,'Size Premium'!$B$5,IF(V11>'Size Premium'!$A$6,'Size Premium'!$B$6,IF(V11>'Size Premium'!$A$7,'Size Premium'!$B$7,IF(V11>'Size Premium'!$A$8,'Size Premium'!$B$8,IF(V11>'Size Premium'!$A$9,'Size Premium'!$B$9,IF(V11>'Size Premium'!$A$10,'Size Premium'!$B$10,IF(V11>'Size Premium'!$A$11,'Size Premium'!$B$11,IF(V11>'Size Premium'!$A$12,'Size Premium'!$B$12,"ERROR")))))))) -> 0.0055 | AA11: 0.105
A12: 4 | B12: =VLOOKUP('Utility Group'!$B6,vldatabase,2,FALSE) -> Avangrid, Inc. | D12: ='7 (1)'!D12 -> 0.023 | F12: ='7 (1)'!F12 -> 0.109 | H12: 0.132 | J12: =ROUND('Bond Yields'!$O$60,3) -> 0.04 | M12: 0.092 | P12: =VLOOKUP('Utility Group'!$B6,vldatabase,23,FALSE) -> 0.4 | S12: 0.0768 | V12: =VLOOKUP('Utility Group'!$B6,vldatabase,28,FALSE) -> 16307.38 | X12: =IF(V12>'Size Premium'!$A$5,'Size Premium'!$B$5,IF(V12>'Size Premium'!$A$6,'Size Premium'!$B$6,IF(V12>'Size Premium'!$A$7,'Size Premium'!$B$7,IF(V12>'Size Premium'!$A$8,'Size Premium'!$B$8,IF(V12>'Size Premium'!$A$9,'Size Premium'!$B$9,IF(V12>'Size Premium'!$A$10,'Size Premium'!$B$10,IF(V12>'Size Premium'!$A$11,'Size Premium'!$B$11,IF(V12>'Size Premium'!$A$12,'Size Premium'!$B$12,"ERROR")))))))) -> 0.0055 | AA12: 0.082
A13: 5 | B13: =VLOOKUP('Utility Group'!$B7,vldatabase,2,FALSE) -> Black Hills Corp. | D13: ='7 (1)'!D13 -> 0.023 | F13: ='7 (1)'!F13 -> 0.109 | H13: 0.132 | J13: =ROUND('Bond Yields'!$O$60,3) -> 0.04 | M13: 0.092 | P13: =VLOOKUP('Utility Group'!$B7,vldatabase,23,FALSE) -> 0.85 | S13: 0.1182 | V13: =VLOOKUP('Utility Group'!$B7,vldatabase,28,FALSE) -> 3290.73 | X13: =IF(V13>'Size Premium'!$A$5,'Size Premium'!$B$5,IF(V13>'Size Premium'!$A$6,'Size Premium'!$B$6,IF(V13>'Size Premium'!$A$7,'Size Premium'!$B$7,IF(V13>'Size Premium'!$A$8,'Size Premium'!$B$8,IF(V13>'Size Premium'!$A$9,'Size Premium'!$B$9,IF(V13>'Size Premium'!$A$10,'Size Premium'!$B$10,IF(V13>'Size Premium'!$A$11,'Size Premium'!$B$11,IF(V13>'Size Premium'!$A$12,'Size Premium'!$B$12,"ERROR")))))))) -> 0.0136 | AA13: 0.132
A14: 6 | B14: =VLOOKUP('Utility Group'!$B8,vldatabase,2,FALSE) -> CMS Energy Corp. | D14: ='7 (1)'!D14 -> 0.023 | F14: ='7 (1)'!F14 -> 0.109 | H14: 0.132 | J14: =ROUND('Bond Yields'!$O$60,3) -> 0.04 | M14: 0.092 | P14: =VLOOKUP('Utility Group'!$B8,vldatabase,23,FALSE) -> 0.65 | S14: 0.0998 | V14: =VLOOKUP('Utility Group'!$B8,vldatabase,28,FALSE) -> 13537.4 | X14: =IF(V14>'Size Premium'!$A$5,'Size Premium'!$B$5,IF(V14>'Size Premium'!$A$6,'Size Premium'!$B$6,IF(V14>'Size Premium'!$A$7,'Size Premium'!$B$7,IF(V14>'Size Premium'!$A$8,'Size Premium'!$B$8,IF(V14>'Size Premium'!$A$9,'Size Premium'!$B$9,IF(V14>'Size Premium'!$A$10,'Size Premium'!$B$10,IF(V14>'Size Premium'!$A$11,'Size Premium'!$B$11,IF(V14>'Size Premium'!$A$12,'Size Premium'!$B$12,"ERROR")))))))) -> 0.0055 | AA14: 0.105
A15: 7 | B15: =VLOOKUP('Utility Group'!$B9,vldatabase,2,FALSE) -> Consolidated Edison | D15: ='7 (1)'!D15 -> 0.023 | F15: ='7 (1)'!F15 -> 0.109 | H15: 0.132 | J15: =ROUND('Bond Yields'!$O$60,3) -> 0.04 | M15: 0.092 | P15: =VLOOKUP('Utility Group'!$B9,vldatabase,23,FALSE) -> 0.5 | S15: 0.086 | V15: =VLOOKUP('Utility Group'!$B9,vldatabase,28,FALSE) -> 24637.42 | X15: =IF(V15>'Size Premium'!$A$5,'Size Premium'!$B$5,IF(V15>'Size Premium'!$A$6,'Size Premium'!$B$6,IF(V15>'Size Premium'!$A$7,'Size Premium'!$B$7,IF(V15>'Size Premium'!$A$8,'Size Premium'!$B$8,IF(V15>'Size Premium'!$A$9,'Size Premium'!$B$9,IF(V15>'Size Premium'!$A$10,'Size Premium'!$B$10,IF(V15>'Size Premium'!$A$11,'Size Premium'!$B$11,IF(V15>'Size Premium'!$A$12,'Size Premium'!$B$12,"ERROR")))))))) -> 0.0055 | AA15: 0.092
A16: 8 | B16: =VLOOKUP('Utility Group'!$B10,vldatabase,2,FALSE) -> DTE Energy Co. | D16: ='7 (1)'!D16 -> 0.023 | F16: ='7 (1)'!F16 -> 0.109 | H16: 0.132 | J16: =ROUND('Bond Yields'!$O$60,3) -> 0.04 | M16: 0.092 | P16: =VLOOKUP('Utility Group'!$B10,vldatabase,23,FALSE) -> 0.65 | S16: 0.0998 | V16: =VLOOKUP('Utility Group'!$B10,vldatabase,28,FALSE) -> 19222.68 | X16: =IF(V16>'Size Premium'!$A$5,'Size Premium'!$B$5,IF(V16>'Size Premium'!$A$6,'Size Premium'!$B$6,IF(V16>'Size Premium'!$A$7,'Size Premium'!$B$7,IF(V16>'Size Premium'!$A$8,'Size Premium'!$B$8,IF(V16>'Size Premium'!$A$9,'Size Premium'!$B$9,IF(V16>'Size Premium'!$A$10,'Size Premium'!$B$10,IF(V16>'Size Premium'!$A$11,'Size Premium'!$B$11,IF(V16>'Size Premium'!$A$12,'Size Premium'!$B$12,"ERROR")))))))) -> 0.0055 | AA16: 0.105
A17: 9 | B17: =VLOOKUP('Utility Group'!$B11,vldatabase,2,FALSE) -> Duke Energy Corp. | D17: ='7 (1)'!D17 -> 0.023 | F17: ='7 (1)'!F17 -> 0.109 | H17: 0.132 | J17: =ROUND('Bond Yields'!$O$60,3) -> 0.04 | M17: 0.092 | P17: =VLOOKUP('Utility Group'!$B11,vldatabase,23,FALSE) -> 0.6 | S17: 0.0952 | V17: =VLOOKUP('Utility Group'!$B11,vldatabase,28,FALSE) -> 56430.5 | X17: =IF(V17>'Size Premium'!$A$5,'Size Premium'!$B$5,IF(V17>'Size Premium'!$A$6,'Size Premium'!$B$6,IF(V17>'Size Premium'!$A$7,'Size Premium'!$B$7,IF(V17>'Size Premium'!$A$8,'Size Premium'!$B$8,IF(V17>'Size Premium'!$A$9,'Size Premium'!$B$9,IF(V17>'Size Premium'!$A$10,'Size Premium'!$B$10,IF(V17>'Size Premium'!$A$11,'Size Premium'!$B$11,IF(V17>'Size Premium'!$A$12,'Size Premium'!$B$12,"ERROR")))))))) -> -0.003 | AA17: 0.092
A18: 10 | B18: =VLOOKUP('Utility Group'!$B12,vldatabase,2,FALSE) -> Emera Inc. | D18: ='7 (1)'!D18 -> 0.023 | F18: ='7 (1)'!F18 -> 0.109 | H18: 0.132 | J18: =ROUND('Bond Yields'!$O$60,3) -> 0.04 | M18: 0.092 | P18: =VLOOKUP('Utility Group'!$B12,vldatabase,23,FALSE) -> 0.65 | S18: 0.0998 | V18: =VLOOKUP('Utility Group'!$B12,vldatabase,28,FALSE) -> 9741.37 | X18: =IF(V18>'Size Premium'!$A$5,'Size Premium'!$B$5,IF(V18>'Size Premium'!$A$6,'Size Premium'!$B$6,IF(V18>'Size Premium'!$A$7,'Size Premium'!$B$7,IF(V18>'Size Premium'!$A$8,'Size Premium'!$B$8,IF(V18>'Size Premium'!$A$9,'Size Premium'!$B$9,IF(V18>'Size Premium'!$A$10,'Size Premium'!$B$10,IF(V18>'Size Premium'!$A$11,'Size Premium'!$B$11,IF(V18>'Size Premium'!$A$12,'Size Premium'!$B$12,"ERROR")))))))) -> 0.0083 | AA18: 0.108
A19: 11 | B19: =VLOOKUP('Utility Group'!$B13,vldatabase,2,FALSE) -> Entergy Corp. | D19: ='7 (1)'!D19 -> 0.023 | F19: ='7 (1)'!F19 -> 0.109 | H19: 0.132 | J19: =ROUND('Bond Yields'!$O$60,3) -> 0.04 | M19: 0.092 | P19: =VLOOKUP('Utility Group'!$B13,vldatabase,23,FALSE) -> 0.65 | S19: 0.0998 | V19: =VLOOKUP('Utility Group'!$B13,vldatabase,28,FALSE) -> 14858.06 | X19: =IF(V19>'Size Premium'!$A$5,'Size Premium'!$B$5,IF(V19>'Size Premium'!$A$6,'Size Premium'!$B$6,IF(V19>'Size Premium'!$A$7,'Size Premium'!$B$7,IF(V19>'Size Premium'!$A$8,'Size Premium'!$B$8,IF(V19>'Size Premium'!$A$9,'Size Premium'!$B$9,IF(V19>'Size Premium'!$A$10,'Size Premium'!$B$10,IF(V19>'Size Premium'!$A$11,'Size Premium'!$B$11,IF(V19>'Size Premium'!$A$12,'Size Premium'!$B$12,"ERROR")))))))) -> 0.0055 | AA19: 0.105
A20: 12 | B20: =VLOOKUP('Utility Group'!$B14,vldatabase,2,FALSE) -> Eversource Energy | D20: ='7 (1)'!D20 -> 0.023 | F20: ='7 (1)'!F20 -> 0.109 | H20: 0.132 | J20: =ROUND('Bond Yields'!$O$60,3) -> 0.04 | M20: 0.092 | P20: =VLOOKUP('Utility Group'!$B14,vldatabase,23,FALSE) -> 0.65 | S20: 0.0998 | V20: =VLOOKUP('Utility Group'!$B14,vldatabase,28,FALSE) -> 19745.54 | X20: =IF(V20>'Size Premium'!$A$5,'Size Premium'!$B$5,IF(V20>'Size Premium'!$A$6,'Size Premium'!$B$6,IF(V20>'Size Premium'!$A$7,'Size Premium'!$B$7,IF(V20>'Size Premium'!$A$8,'Size Premium'!$B$8,IF(V20>'Size Premium'!$A$9,'Size Premium'!$B$9,IF(V20>'Size Premium'!$A$10,'Size Premium'!$B$10,IF(V20>'Size Premium'!$A$11,'Size Premium'!$B$11,IF(V20>'Size Premium'!$A$12,'Size Premium'!$B$12,"ERROR")))))))) -> 0.0055 | AA20: 0.105
A21: 13 | B21: =VLOOKUP('Utility Group'!$B15,vldatabase,2,FALSE) -> Exelon Corp. | D21: ='7 (1)'!D21 -> 0.023 | F21: ='7 (1)'!F21 -> 0.109 | H21: 0.132 | J21: =ROUND('Bond Yields'!$O$60,3) -> 0.04 | M21: 0.092 | P21: =VLOOKUP('Utility Group'!$B15,vldatabase,23,FALSE) -> 0.7 | S21: 0.1044 | V21: =VLOOKUP('Utility Group'!$B15,vldatabase,28,FALSE) -> 40783.05 | X21: =IF(V21>'Size Premium'!$A$5,'Size Premium'!$B$5,IF(V21>'Size Premium'!$A$6,'Size Premium'!$B$6,IF(V21>'Size Premium'!$A$7,'Size Premium'!$B$7,IF(V21>'Size Premium'!$A$8,'Size Premium'!$B$8,IF(V21>'Size Premium'!$A$9,'Size Premium'!$B$9,IF(V21>'Size Premium'!$A$10,'Size Premium'!$B$10,IF(V21>'Size Premium'!$A$11,'Size Premium'!$B$11,IF(V21>'Size Premium'!$A$12,'Size Premium'!$B$12,"ERROR")))))))) -> -0.003 | AA21: 0.101
A22: 14 | B22: =VLOOKUP('Utility Group'!$B16,vldatabase,2,FALSE) -> Fortis Inc. | D22: ='7 (1)'!D22 -> 0.023 | F22: ='7 (1)'!F22 -> 0.109 | H22: 0.132 | J22: =ROUND('Bond Yields'!$O$60,3) -> 0.04 | M22: 0.092 | P22: =VLOOKUP('Utility Group'!$B16,vldatabase,23,FALSE) -> 0.7 | S22: 0.1044 | V22: =VLOOKUP('Utility Group'!$B16,vldatabase,28,FALSE) -> 17930.44 | X22: =IF(V22>'Size Premium'!$A$5,'Size Premium'!$B$5,IF(V22>'Size Premium'!$A$6,'Size Premium'!$B$6,IF(V22>'Size Premium'!$A$7,'Size Premium'!$B$7,IF(V22>'Size Premium'!$A$8,'Size Premium'!$B$8,IF(V22>'Size Premium'!$A$9,'Size Premium'!$B$9,IF(V22>'Size Premium'!$A$10,'Size Premium'!$B$10,IF(V22>'Size Premium'!$A$11,'Size Premium'!$B$11,IF(V22>'Size Premium'!$A$12,'Size Premium'!$B$12,"ERROR")))))))) -> 0.0055 | AA22: 0.11
A23: 15 | B23: =VLOOKUP('Utility Group'!$B17,vldatabase,2,FALSE) -> NorthWestern Corp. | D23: ='7 (1)'!D23 -> 0.023 | F23: ='7 (1)'!F23 -> 0.109 | H23: 0.132 | J23: =ROUND('Bond Yields'!$O$60,3) -> 0.04 | M23: 0.092 | P23: =VLOOKUP('Utility Group'!$B17,vldatabase,23,FALSE) -> 0.65 | S23: 0.0998 | V23: =VLOOKUP('Utility Group'!$B17,vldatabase,28,FALSE) -> 3110.44 | X23: =IF(V23>'Size Premium'!$A$5,'Size Premium'!$B$5,IF(V23>'Size Premium'!$A$6,'Size Premium'!$B$6,IF(V23>'Size Premium'!$A$7,'Size Premium'!$B$7,IF(V23>'Size Premium'!$A$8,'Size Premium'!$B$8,IF(V23>'Size Premium'!$A$9,'Size Premium'!$B$9,IF(V23>'Size Premium'!$A$10,'Size Premium'!$B$10,IF(V23>'Size Premium'!$A$11,'Size Premium'!$B$11,IF(V23>'Size Premium'!$A$12,'Size Premium'!$B$12,"ERROR")))))))) -> 0.0136 | AA23: 0.113
A24: 16 | B24: =VLOOKUP('Utility Group'!$B18,vldatabase,2,FALSE) -> PPL Corp. | D24: ='7 (1)'!D24 -> 0.023 | F24: ='7 (1)'!F24 -> 0.109 | H24: 0.132 | J24: =ROUND('Bond Yields'!$O$60,3) -> 0.04 | M24: 0.092 | P24: =VLOOKUP('Utility Group'!$B18,vldatabase,23,FALSE) -> 0.75 | S24: 0.109 | V24: =VLOOKUP('Utility Group'!$B18,vldatabase,28,FALSE) -> 19980.02 | X24: =IF(V24>'Size Premium'!$A$5,'Size Premium'!$B$5,IF(V24>'Size Premium'!$A$6,'Size Premium'!$B$6,IF(V24>'Size Premium'!$A$7,'Size Premium'!$B$7,IF(V24>'Size Premium'!$A$8,'Size Premium'!$B$8,IF(V24>'Size Premium'!$A$9,'Size Premium'!$B$9,IF(V24>'Size Premium'!$A$10,'Size Premium'!$B$10,IF(V24>'Size Premium'!$A$11,'Size Premium'!$B$11,IF(V24>'Size Premium'!$A$12,'Size Premium'!$B$12,"ERROR")))))))) -> 0.0055 | AA24: 0.115
A25: 17 | B25: =VLOOKUP('Utility Group'!$B19,vldatabase,2,FALSE) -> Pub Sv Enterprise Grp. | D25: ='7 (1)'!D25 -> 0.023 | F25: ='7 (1)'!F25 -> 0.109 | H25: 0.132 | J25: =ROUND('Bond Yields'!$O$60,3) -> 0.04 | M25: 0.092 | P25: =VLOOKUP('Utility Group'!$B19,vldatabase,23,FALSE) -> 0.7 | S25: 0.1044 | V25: =VLOOKUP('Utility Group'!$B19,vldatabase,28,FALSE) -> 26374.32 | X25: =IF(V25>'Size Premium'!$A$5,'Size Premium'!$B$5,IF(V25>'Size Premium'!$A$6,'Size Premium'!$B$6,IF(V25>'Size Premium'!$A$7,'Size Premium'!$B$7,IF(V25>'Size Premium'!$A$8,'Size Premium'!$B$8,IF(V25>'Size Premium'!$A$9,'Size Premium'!$B$9,IF(V25>'Size Premium'!$A$10,'Size Premium'!$B$10,IF(V25>'Size Premium'!$A$11,'Size Premium'!$B$11,IF(V25>'Size Premium'!$A$12,'Size Premium'!$B$12,"ERROR")))))))) -> -0.003 | AA25: 0.101
A26: 18 | B26: =VLOOKUP('Utility Group'!$B20,vldatabase,2,FALSE) -> Sempra Energy | D26: ='7 (1)'!D26 -> 0.023 | F26: ='7 (1)'!F26 -> 0.109 | H26: =D26+F26 -> 0.132 | J26: =ROUND('Bond Yields'!$O$60,3) -> 0.04 | M26: =H26-J26 -> 0.092 | P26: =VLOOKUP('Utility Group'!$B20,vldatabase,23,FALSE) -> 0.75 | S26: =IF(P26="n/a","n/a",P26*M26+J26) -> 0.109 | V26: =VLOOKUP('Utility Group'!$B20,vldatabase,28,FALSE) -> 30526.32 | X26: =IF(V26>'Size Premium'!$A$5,'Size Premium'!$B$5,IF(V26>'Size Premium'!$A$6,'Size Premium'!$B$6,IF(V26>'Size Premium'!$A$7,'Size Premium'!$B$7,IF(V26>'Size Premium'!$A$8,'Size Premium'!$B$8,IF(V26>'Size Premium'!$A$9,'Size Premium'!$B$9,IF(V26>'Size Premium'!$A$10,'Size Premium'!$B$10,IF(V26>'Size Premium'!$A$11,'Size Premium'!$B$11,IF(V26>'Size Premium'!$A$12,'Size Premium'!$B$12,"ERROR")))))))) -> -0.003 | AA26: =IF(S26="n/a","n/a",ROUND(S26+X26,3)) -> 0.106
A27: 19 | B27: =VLOOKUP('Utility Group'!$B21,vldatabase,2,FALSE) -> Southern Company | D27: ='7 (1)'!D27 -> 0.023 | F27: ='7 (1)'!F27 -> 0.109 | H27: 0.132 | J27: =ROUND('Bond Yields'!$O$60,3) -> 0.04 | M27: 0.092 | P27: =VLOOKUP('Utility Group'!$B21,vldatabase,23,FALSE) -> 0.55 | S27: 0.0906 | V27: =VLOOKUP('Utility Group'!$B21,vldatabase,28,FALSE) -> 48537.77 | X27: =IF(V27>'Size Premium'!$A$5,'Size Premium'!$B$5,IF(V27>'Size Premium'!$A$6,'Size Premium'!$B$6,IF(V27>'Size Premium'!$A$7,'Size Premium'!$B$7,IF(V27>'Size Premium'!$A$8,'Size Premium'!$B$8,IF(V27>'Size Premium'!$A$9,'Size Premium'!$B$9,IF(V27>'Size Premium'!$A$10,'Size Premium'!$B$10,IF(V27>'Size Premium'!$A$11,'Size Premium'!$B$11,IF(V27>'Size Premium'!$A$12,'Size Premium'!$B$12,"ERROR")))))))) -> -0.003 | AA27: 0.088
A28: 20 | B28: =VLOOKUP('Utility Group'!$B22,vldatabase,2,FALSE) -> WEC Energy Group | D28: ='7 (1)'!D28 -> 0.023 | F28: ='7 (1)'!F28 -> 0.109 | H28: 0.132 | J28: =ROUND('Bond Yields'!$O$60,3) -> 0.04 | M28: 0.092 | P28: =VLOOKUP('Utility Group'!$B22,vldatabase,23,FALSE) -> 0.6 | S28: 0.0952 | V28: =VLOOKUP('Utility Group'!$B22,vldatabase,28,FALSE) -> 20693.05 | X28: =IF(V28>'Size Premium'!$A$5,'Size Premium'!$B$5,IF(V28>'Size Premium'!$A$6,'Size Premium'!$B$6,IF(V28>'Size Premium'!$A$7,'Size Premium'!$B$7,IF(V28>'Size Premium'!$A$8,'Size Premium'!$B$8,IF(V28>'Size Premium'!$A$9,'Size Premium'!$B$9,IF(V28>'Size Premium'!$A$10,'Size Premium'!$B$10,IF(V28>'Size Premium'!$A$11,'Size Premium'!$B$11,IF(V28>'Size Premium'!$A$12,'Size Premium'!$B$12,"ERROR")))))))) -> 0.0055 | AA28: 0.101
A29: 21 | B29: =VLOOKUP('Utility Group'!$B23,vldatabase,2,FALSE) -> Xcel Energy Inc. | D29: ='7 (1)'!D29 -> 0.023 | F29: ='7 (1)'!F29 -> 0.109 | H29: 0.132 | J29: =ROUND('Bond Yields'!$O$60,3) -> 0.04 | M29: 0.092 | P29: =VLOOKUP('Utility Group'!$B23,vldatabase,23,FALSE) -> 0.6 | S29: 0.0952 | V29: =VLOOKUP('Utility Group'!$B23,vldatabase,28,FALSE) -> 23571.39 | X29: =IF(V29>'Size Premium'!$A$5,'Size Premium'!$B$5,IF(V29>'Size Premium'!$A$6,'Size Premium'!$B$6,IF(V29>'Size Premium'!$A$7,'Size Premium'!$B$7,IF(V29>'Size Premium'!$A$8,'Size Premium'!$B$8,IF(V29>'Size Premium'!$A$9,'Size Premium'!$B$9,IF(V29>'Size Premium'!$A$10,'Size Premium'!$B$10,IF(V29>'Size Premium'!$A$11,'Size Premium'!$B$11,IF(V29>'Size Premium'!$A$12,'Size Premium'!$B$12,"ERROR")))))))) -> 0.0055 | AA29: 0.101
B31: Average | S31: =AVERAGE(S9:S29) -> 0.09957 | AA31: =AVERAGE(AA9:AA29) -> 0.104
B32: Midpoint (g) | S32: =AVERAGE(S44:S45) -> 0.0975 | AA32: =AVERAGE(AA44:AA45) -> 0.107
A34: (a) | B34: ='7 (1)'!B34 -> Weighted average for dividend-paying stocks in the S&P 500 based on data from Dividend paying components of S&P 500 index from zacks.com (retrieved Aug 1, 2018).
A35: (b) | B35: ='7 (1)'!B35 -> Average of weighted average earnings growth rates from Value Line Investment Survey, IBES, and Zacks Investment Research for dividend-paying stocks in the S&P 500 based on data from www.valueline.com (retrieved Aug 1, 2018)., http://finance.yahoo.com (retrieved Aug 1, 2018)., and www.zacks.com (retrieved Aug 1, 2018)..
A37: (c) | B37: ="Average yield on 30-year Treasury bonds for "&'Bond Yields'!O50&" based on data from the "&'Bond Yields'!B72&"; "&'Bond Yields'!B73&"; & "&'Bond Yields'!B75&"." -> Average yield on 30-year Treasury bonds for 2019-23 based on data from the Value Line Investment Survey, Forecast for the U.S. Economy (Jun. 1, 2018); IHS Global Insight (Jun. 6, 2018); & Wolters Kluwer, Blue Chip Financial Forecasts, (Jun. 1, 2018).
A39: (d) | B39: ='7 (1)'!B38 -> The Value Line Investment Survey (May 18, Jun. 15, & Jul. 27, 2018); Jun. 22, 2018 for Emera.
A40: (e) | B40: ='7 (1)'!B39 -> www.valueline.com (retrieved Jul. 17, 2018).
A41: (f) | B41: ='7 (1)'!B40 -> Duff & Phelps Cost of Capital Navigator, 2018 Cost of Capital: Annual U.S. Guidance and Examples, (Chapter 7, pp. 10-11, and CRSP Deciles Size Study).
A42: (g) | B42: Average of low and high values.
P44: Min | S44: =MIN(S9:S29) -> 0.0768 | AA44: =MIN(AA9:AA29) -> 0.082
P45: Max | S45: =MAX(S9:S29) -> 0.1182 | AA45: =MAX(AA9:AA29) -> 0.132

Sheet 8 (1)
A1: ='Exhibit List'!C13 -> EMPIRICAL CAPM - CURRENT BOND YIELD | AE1: ='Exhibit List'!B13 -> Exhibit No. 8
AE2: Page 1 of 2
A3: ='Exhibit List'!D13 -> UTILITY GROUP
D5: (a) | F5: (b) | J5: (c) | P5: (d) | S5: (e) | T5: (d) | AA5: (f) | AC5: (g)
D6: Market Return (Rm) | L6: Market | AE6: Size
D7: Div | F7: Proj. | H7: Cost of | J7: Risk-Free | M7: Risk | P7: Unadjusted RP | S7: Beta Adjusted RP | W7: Total | Y7: Unadjusted | AA7: Market | AC7: Size | AE7: Adjusted
B8: Company | D8: Yield | F8: Growth | H8: Equity | J8: Rate | M8: Premium | P8: Weight | Q8: RP1 | S8: Beta | T8: Weight | U8: RP2 | W8: RP | Y8: Ke | AA8: Cap | AC8: Adjustment | AE8: Ke
A9: =A8+1 -> 1 | B9: =VLOOKUP('Utility Group'!$B3,vldatabase,2,FALSE) -> Algonquin Pwr & Util | D9: ='7 (1)'!D9 -> 0.023 | F9: ='7 (1)'!F9 -> 0.109 | H9: =D9+F9 -> 0.132 | J9: ='7 (1)'!J9 -> 0.031 | M9: =H9-J9 -> 0.101 | P9: 0.25 | Q9: =M9*P9 -> 0.02525 | S9: =VLOOKUP('Utility Group'!$B3,vldatabase,23,FALSE) -> n/a | T9: 0.75 | U9: =IF(S9="n/a","n/a",M9*S9*T9) -> n/a | W9: =IF(U9="n/a","n/a",U9+Q9) -> n/a | Y9: =IF(W9="n/a","n/a",W9+J9) -> n/a | AA9: =VLOOKUP('Utility Group'!$B3,vldatabase,28,FALSE) -> 4591 | AC9: =IF(AA9>'Size Premium'!$A$5,'Size Premium'!$B$5,IF(AA9>'Size Premium'!$A$6,'Size Premium'!$B$6,IF(AA9>'Size Premium'!$A$7,'Size Premium'!$B$7,IF(AA9>'Size Premium'!$A$8,'Size Premium'!$B$8,IF(AA9>'Size Premium'!$A$9,'Size Premium'!$B$9,IF(AA9>'Size Premium'!$A$10,'Size Premium'!$B$10,IF(AA9>'Size Premium'!$A$11,'Size Premium'!$B$11,IF(AA9>'Size Premium'!$A$12,'Size Premium'!$B$12,"ERROR")))))))) -> 0.0086 | AE9: =IF(Y9="n/a","n/a",ROUND(Y9+AC9,3)) -> n/a
A10: =A9+1 -> 2 | B10: =VLOOKUP('Utility Group'!$B4,vldatabase,2,FALSE) -> Alliant Energy | D10: ='7 (1)'!D10 -> 0.023 | F10: ='7 (1)'!F10 -> 0.109 | H10: =D10+F10 -> 0.132 | J10: ='7 (1)'!J10 -> 0.031 | M10: =H10-J10 -> 0.101 | P10: 0.25 | Q10: =M10*P10 -> 0.02525 | S10: =VLOOKUP('Utility Group'!$B4,vldatabase,23,FALSE) -> 0.7 | T10: 0.75 | U10: =IF(S10="n/a","n/a",M10*S10*T10) -> 0.053025 | W10: =IF(U10="n/a","n/a",U10+Q10) -> 0.078275 | Y10: =IF(W10="n/a","n/a",W10+J10) -> 0.109275 | AA10: =VLOOKUP('Utility Group'!$B4,vldatabase,28,FALSE) -> 9986.13 | AC10: =IF(AA10>'Size Premium'!$A$5,'Size Premium'!$B$5,IF(AA10>'Size Premium'!$A$6,'Size Premium'!$B$6,IF(AA10>'Size Premium'!$A$7,'Size Premium'!$B$7,IF(AA10>'Size Premium'!$A$8,'Size Premium'!$B$8,IF(AA10>'Size Premium'!$A$9,'Size Premium'!$B$9,IF(AA10>'Size Premium'!$A$10,'Size Premium'!$B$10,IF(AA10>'Size Premium'!$A$11,'Size Premium'!$B$11,IF(AA10>'Size Premium'!$A$12,'Size Premium'!$B$12,"ERROR")))))))) -> 0.0083 | AE10: =IF(Y10="n/a","n/a",ROUND(Y10+AC10,3)) -> 0.118
A11: 3 | B11: =VLOOKUP('Utility Group'!$B5,vldatabase,2,FALSE) -> Ameren Corp. | D11: ='7 (1)'!D11 -> 0.023 | F11: ='7 (1)'!F11 -> 0.109 | H11: 0.132 | J11: ='7 (1)'!J11 -> 0.031 | M11: 0.101 | P11: 0.25 | Q11: 0.02525 | S11: =VLOOKUP('Utility Group'!$B5,vldatabase,23,FALSE) -> 0.65 | T11: 0.75 | U11: 0.0492375 | W11: 0.0744875 | Y11: 0.1054875 | AA11: =VLOOKUP('Utility Group'!$B5,vldatabase,28,FALSE) -> 14949.73 | AC11: =IF(AA11>'Size Premium'!$A$5,'Size Premium'!$B$5,IF(AA11>'Size Premium'!$A$6,'Size Premium'!$B$6,IF(AA11>'Size Premium'!$A$7,'Size Premium'!$B$7,IF(AA11>'Size Premium'!$A$8,'Size Premium'!$B$8,IF(AA11>'Size Premium'!$A$9,'Size Premium'!$B$9,IF(AA11>'Size Premium'!$A$10,'Size Premium'!$B$10,IF(AA11>'Size Premium'!$A$11,'Size Premium'!$B$11,IF(AA11>'Size Premium'!$A$12,'Size Premium'!$B$12,"ERROR")))))))) -> 0.0055 | AE11: 0.111
A12: 4 | B12: =VLOOKUP('Utility Group'!$B6,vldatabase,2,FALSE) -> Avangrid, Inc. | D12: ='7 (1)'!D12 -> 0.023 | F12: ='7 (1)'!F12 -> 0.109 | H12: 0.132 | J12: ='7 (1)'!J12 -> 0.031 | M12: 0.101 | P12: 0.25 | Q12: 0.02525 | S12: =VLOOKUP('Utility Group'!$B6,vldatabase,23,FALSE) -> 0.4 | T12: 0.75 | U12: 0.0303 | W12: 0.05555 | Y12: 0.08655 | AA12: =VLOOKUP('Utility Group'!$B6,vldatabase,28,FALSE) -> 16307.38 | AC12: =IF(AA12>'Size Premium'!$A$5,'Size Premium'!$B$5,IF(AA12>'Size Premium'!$A$6,'Size Premium'!$B$6,IF(AA12>'Size Premium'!$A$7,'Size Premium'!$B$7,IF(AA12>'Size Premium'!$A$8,'Size Premium'!$B$8,IF(AA12>'Size Premium'!$A$9,'Size Premium'!$B$9,IF(AA12>'Size Premium'!$A$10,'Size Premium'!$B$10,IF(AA12>'Size Premium'!$A$11,'Size Premium'!$B$11,IF(AA12>'Size Premium'!$A$12,'Size Premium'!$B$12,"ERROR")))))))) -> 0.0055 | AE12: 0.092
A13: 5 | B13: =VLOOKUP('Utility Group'!$B7,vldatabase,2,FALSE) -> Black Hills Corp. | D13: ='7 (1)'!D13 -> 0.023 | F13: ='7 (1)'!F13 -> 0.109 | H13: 0.132 | J13: ='7 (1)'!J13 -> 0.031 | M13: 0.101 | P13: 0.25 | Q13: 0.02525 | S13: =VLOOKUP('Utility Group'!$B7,vldatabase,23,FALSE) -> 0.85 | T13: 0.75 | U13: 0.0643875 | W13: 0.0896375 | Y13: 0.1206375 | AA13: =VLOOKUP('Utility Group'!$B7,vldatabase,28,FALSE) -> 3290.73 | AC13: =IF(AA13>'Size Premium'!$A$5,'Size Premium'!$B$5,IF(AA13>'Size Premium'!$A$6,'Size Premium'!$B$6,IF(AA13>'Size Premium'!$A$7,'Size Premium'!$B$7,IF(AA13>'Size Premium'!$A$8,'Size Premium'!$B$8,IF(AA13>'Size Premium'!$A$9,'Size Premium'!$B$9,IF(AA13>'Size Premium'!$A$10,'Size Premium'!$B$10,IF(AA13>'Size Premium'!$A$11,'Size Premium'!$B$11,IF(AA13>'Size Premium'!$A$12,'Size Premium'!$B$12,"ERROR")))))))) -> 0.0136 | AE13: 0.134
A14: 6 | B14: =VLOOKUP('Utility Group'!$B8,vldatabase,2,FALSE) -> CMS Energy Corp. | D14: ='7 (1)'!D14 -> 0.023 | F14: ='7 (1)'!F14 -> 0.109 | H14: 0.132 | J14: ='7 (1)'!J14 -> 0.031 | M14: 0.101 | P14: 0.25 | Q14: 0.02525 | S14: =VLOOKUP('Utility Group'!$B8,vldatabase,23,FALSE) -> 0.65 | T14: 0.75 | U14: 0.0492375 | W14: 0.0744875 | Y14: 0.1054875 | AA14: =VLOOKUP('Utility Group'!$B8,vldatabase,28,FALSE) -> 13537.4 | AC14: =IF(AA14>'Size Premium'!$A$5,'Size Premium'!$B$5,IF(AA14>'Size Premium'!$A$6,'Size Premium'!$B$6,IF(AA14>'Size Premium'!$A$7,'Size Premium'!$B$7,IF(AA14>'Size Premium'!$A$8,'Size Premium'!$B$8,IF(AA14>'Size Premium'!$A$9,'Size Premium'!$B$9,IF(AA14>'Size Premium'!$A$10,'Size Premium'!$B$10,IF(AA14>'Size Premium'!$A$11,'Size Premium'!$B$11,IF(AA14>'Size Premium'!$A$12,'Size Premium'!$B$12,"ERROR")))))))) -> 0.0055 | AE14: 0.111
A15: 7 | B15: =VLOOKUP('Utility Group'!$B9,vldatabase,2,FALSE) -> Consolidated Edison | D15: ='7 (1)'!D15 -> 0.023 | F15: ='7 (1)'!F15 -> 0.109 | H15: 0.132 | J15: ='7 (1)'!J15 -> 0.031 | M15: 0.101 | P15: 0.25 | Q15: 0.02525 | S15: =VLOOKUP('Utility Group'!$B9,vldatabase,23,FALSE) -> 0.5 | T15: 0.75 | U15: 0.037875 | W15: 0.063125 | Y15: 0.094125 | AA15: =VLOOKUP('Utility Group'!$B9,vldatabase,28,FALSE) -> 24637.42 | AC15: =IF(AA15>'Size Premium'!$A$5,'Size Premium'!$B$5,IF(AA15>'Size Premium'!$A$6,'Size Premium'!$B$6,IF(AA15>'Size Premium'!$A$7,'Size Premium'!$B$7,IF(AA15>'Size Premium'!$A$8,'Size Premium'!$B$8,IF(AA15>'Size Premium'!$A$9,'Size Premium'!$B$9,IF(AA15>'Size Premium'!$A$10,'Size Premium'!$B$10,IF(AA15>'Size Premium'!$A$11,'Size Premium'!$B$11,IF(AA15>'Size Premium'!$A$12,'Size Premium'!$B$12,"ERROR")))))))) -> 0.0055 | AE15: 0.1
A16: 8 | B16: =VLOOKUP('Utility Group'!$B10,vldatabase,2,FALSE) -> DTE Energy Co. | D16: ='7 (1)'!D16 -> 0.023 | F16: ='7 (1)'!F16 -> 0.109 | H16: 0.132 | J16: ='7 (1)'!J16 -> 0.031 | M16: 0.101 | P16: 0.25 | Q16: 0.02525 | S16: =VLOOKUP('Utility Group'!$B10,vldatabase,23,FALSE) -> 0.65 | T16: 0.75 | U16: 0.0492375 | W16: 0.0744875 | Y16: 0.1054875 | AA16: =VLOOKUP('Utility Group'!$B10,vldatabase,28,FALSE) -> 19222.68 | AC16: =IF(AA16>'Size Premium'!$A$5,'Size Premium'!$B$5,IF(AA16>'Size Premium'!$A$6,'Size Premium'!$B$6,IF(AA16>'Size Premium'!$A$7,'Size Premium'!$B$7,IF(AA16>'Size Premium'!$A$8,'Size Premium'!$B$8,IF(AA16>'Size Premium'!$A$9,'Size Premium'!$B$9,IF(AA16>'Size Premium'!$A$10,'Size Premium'!$B$10,IF(AA16>'Size Premium'!$A$11,'Size Premium'!$B$11,IF(AA16>'Size Premium'!$A$12,'Size Premium'!$B$12,"ERROR")))))))) -> 0.0055 | AE16: 0.111
A17: 9 | B17: =VLOOKUP('Utility Group'!$B11,vldatabase,2,FALSE) -> Duke Energy Corp. | D17: ='7 (1)'!D17 -> 0.023 | F17: ='7 (1)'!F17 -> 0.109 | H17: 0.132 | J17: ='7 (1)'!J17 -> 0.031 | M17: 0.101 | P17: 0.25 | Q17: 0.02525 | S17: =VLOOKUP('Utility Group'!$B11,vldatabase,23,FALSE) -> 0.6 | T17: 0.75 | U17: 0.04545 | W17: 0.0707 | Y17: 0.1017 | AA17: =VLOOKUP('Utility Group'!$B11,vldatabase,28,FALSE) -> 56430.5 | AC17: =IF(AA17>'Size Premium'!$A$5,'Size Premium'!$B$5,IF(AA17>'Size Premium'!$A$6,'Size Premium'!$B$6,IF(AA17>'Size Premium'!$A$7,'Size Premium'!$B$7,IF(AA17>'Size Premium'!$A$8,'Size Premium'!$B$8,IF(AA17>'Size Premium'!$A$9,'Size Premium'!$B$9,IF(AA17>'Size Premium'!$A$10,'Size Premium'!$B$10,IF(AA17>'Size Premium'!$A$11,'Size Premium'!$B$11,IF(AA17>'Size Premium'!$A$12,'Size Premium'!$B$12,"ERROR")))))))) -> -0.003 | AE17: 0.099
A18: 10 | B18: =VLOOKUP('Utility Group'!$B12,vldatabase,2,FALSE) -> Emera Inc. | D18: ='7 (1)'!D18 -> 0.023 | F18: ='7 (1)'!F18 -> 0.109 | H18: 0.132 | J18: ='7 (1)'!J18 -> 0.031 | M18: 0.101 | P18: 0.25 | Q18: 0.02525 | S18: =VLOOKUP('Utility Group'!$B12,vldatabase,23,FALSE) -> 0.65 | T18: 0.75 | U18: 0.0492375 | W18: 0.0744875 | Y18: 0.1054875 | AA18: =VLOOKUP('Utility Group'!$B12,vldatabase,28,FALSE) -> 9741.37 | AC18: =IF(AA18>'Size Premium'!$A$5,'Size Premium'!$B$5,IF(AA18>'Size Premium'!$A$6,'Size Premium'!$B$6,IF(AA18>'Size Premium'!$A$7,'Size Premium'!$B$7,IF(AA18>'Size Premium'!$A$8,'Size Premium'!$B$8,IF(AA18>'Size Premium'!$A$9,'Size Premium'!$B$9,IF(AA18>'Size Premium'!$A$10,'Size Premium'!$B$10,IF(AA18>'Size Premium'!$A$11,'Size Premium'!$B$11,IF(AA18>'Size Premium'!$A$12,'Size Premium'!$B$12,"ERROR")))))))) -> 0.0083 | AE18: 0.114
A19: 11 | B19: =VLOOKUP('Utility Group'!$B13,vldatabase,2,FALSE) -> Entergy Corp. | D19: ='7 (1)'!D19 -> 0.023 | F19: ='7 (1)'!F19 -> 0.109 | H19: 0.132 | J19: ='7 (1)'!J19 -> 0.031 | M19: 0.101 | P19: 0.25 | Q19: 0.02525 | S19: =VLOOKUP('Utility Group'!$B13,vldatabase,23,FALSE) -> 0.65 | T19: 0.75 | U19: 0.0492375 | W19: 0.0744875 | Y19: 0.1054875 | AA19: =VLOOKUP('Utility Group'!$B13,vldatabase,28,FALSE) -> 14858.06 | AC19: =IF(AA19>'Size Premium'!$A$5,'Size Premium'!$B$5,IF(AA19>'Size Premium'!$A$6,'Size Premium'!$B$6,IF(AA19>'Size Premium'!$A$7,'Size Premium'!$B$7,IF(AA19>'Size Premium'!$A$8,'Size Premium'!$B$8,IF(AA19>'Size Premium'!$A$9,'Size Premium'!$B$9,IF(AA19>'Size Premium'!$A$10,'Size Premium'!$B$10,IF(AA19>'Size Premium'!$A$11,'Size Premium'!$B$11,IF(AA19>'Size Premium'!$A$12,'Size Premium'!$B$12,"ERROR")))))))) -> 0.0055 | AE19: 0.111
A20: 12 | B20: =VLOOKUP('Utility Group'!$B14,vldatabase,2,FALSE) -> Eversource Energy | D20: ='7 (1)'!D20 -> 0.023 | F20: ='7 (1)'!F20 -> 0.109 | H20: 0.132 | J20: ='7 (1)'!J20 -> 0.031 | M20: 0.101 | P20: 0.25 | Q20: 0.02525 | S20: =VLOOKUP('Utility Group'!$B14,vldatabase,23,FALSE) -> 0.65 | T20: 0.75 | U20: 0.0492375 | W20: 0.0744875 | Y20: 0.1054875 | AA20: =VLOOKUP('Utility Group'!$B14,vldatabase,28,FALSE) -> 19745.54 | AC20: =IF(AA20>'Size Premium'!$A$5,'Size Premium'!$B$5,IF(AA20>'Size Premium'!$A$6,'Size Premium'!$B$6,IF(AA20>'Size Premium'!$A$7,'Size Premium'!$B$7,IF(AA20>'Size Premium'!$A$8,'Size Premium'!$B$8,IF(AA20>'Size Premium'!$A$9,'Size Premium'!$B$9,IF(AA20>'Size Premium'!$A$10,'Size Premium'!$B$10,IF(AA20>'Size Premium'!$A$11,'Size Premium'!$B$11,IF(AA20>'Size Premium'!$A$12,'Size Premium'!$B$12,"ERROR")))))))) -> 0.0055 | AE20: 0.111
A21: 13 | B21: =VLOOKUP('Utility Group'!$B15,vldatabase,2,FALSE) -> Exelon Corp. | D21: ='7 (1)'!D21 -> 0.023 | F21: ='7 (1)'!F21 -> 0.109 | H21: 0.132 | J21: ='7 (1)'!J21 -> 0.031 | M21: 0.101 | P21: 0.25 | Q21: 0.02525 | S21: =VLOOKUP('Utility Group'!$B15,vldatabase,23,FALSE) -> 0.7 | T21: 0.75 | U21: 0.053025 | W21: 0.078275 | Y21: 0.109275 | AA21: =VLOOKUP('Utility Group'!$B15,vldatabase,28,FALSE) -> 40783.05 | AC21: =IF(AA21>'Size Premium'!$A$5,'Size Premium'!$B$5,IF(AA21>'Size Premium'!$A$6,'Size Premium'!$B$6,IF(AA21>'Size Premium'!$A$7,'Size Premium'!$B$7,IF(AA21>'Size Premium'!$A$8,'Size Premium'!$B$8,IF(AA21>'Size Premium'!$A$9,'Size Premium'!$B$9,IF(AA21>'Size Premium'!$A$10,'Size Premium'!$B$10,IF(AA21>'Size Premium'!$A$11,'Size Premium'!$B$11,IF(AA21>'Size Premium'!$A$12,'Size Premium'!$B$12,"ERROR")))))))) -> -0.003 | AE21: 0.106
A22: 14 | B22: =VLOOKUP('Utility Group'!$B16,vldatabase,2,FALSE) -> Fortis Inc. | D22: ='7 (1)'!D22 -> 0.023 | F22: ='7 (1)'!F22 -> 0.109 | H22: 0.132 | J22: ='7 (1)'!J22 -> 0.031 | M22: 0.101 | P22: 0.25 | Q22: 0.02525 | S22: =VLOOKUP('Utility Group'!$B16,vldatabase,23,FALSE) -> 0.7 | T22: 0.75 | U22: 0.053025 | W22: 0.078275 | Y22: 0.109275 | AA22: =VLOOKUP('Utility Group'!$B16,vldatabase,28,FALSE) -> 17930.44 | AC22: =IF(AA22>'Size Premium'!$A$5,'Size Premium'!$B$5,IF(AA22>'Size Premium'!$A$6,'Size Premium'!$B$6,IF(AA22>'Size Premium'!$A$7,'Size Premium'!$B$7,IF(AA22>'Size Premium'!$A$8,'Size Premium'!$B$8,IF(AA22>'Size Premium'!$A$9,'Size Premium'!$B$9,IF(AA22>'Size Premium'!$A$10,'Size Premium'!$B$10,IF(AA22>'Size Premium'!$A$11,'Size Premium'!$B$11,IF(AA22>'Size Premium'!$A$12,'Size Premium'!$B$12,"ERROR")))))))) -> 0.0055 | AE22: 0.115
A23: 15 | B23: =VLOOKUP('Utility Group'!$B17,vldatabase,2,FALSE) -> NorthWestern Corp. | D23: ='7 (1)'!D23 -> 0.023 | F23: ='7 (1)'!F23 -> 0.109 | H23: 0.132 | J23: ='7 (1)'!J23 -> 0.031 | M23: 0.101 | P23: 0.25 | Q23: 0.02525 | S23: =VLOOKUP('Utility Group'!$B17,vldatabase,23,FALSE) -> 0.65 | T23: 0.75 | U23: 0.0492375 | W23: 0.0744875 | Y23: 0.1054875 | AA23: =VLOOKUP('Utility Group'!$B17,vldatabase,28,FALSE) -> 3110.44 | AC23: =IF(AA23>'Size Premium'!$A$5,'Size Premium'!$B$5,IF(AA23>'Size Premium'!$A$6,'Size Premium'!$B$6,IF(AA23>'Size Premium'!$A$7,'Size Premium'!$B$7,IF(AA23>'Size Premium'!$A$8,'Size Premium'!$B$8,IF(AA23>'Size Premium'!$A$9,'Size Premium'!$B$9,IF(AA23>'Size Premium'!$A$10,'Size Premium'!$B$10,IF(AA23>'Size Premium'!$A$11,'Size Premium'!$B$11,IF(AA23>'Size Premium'!$A$12,'Size Premium'!$B$12,"ERROR")))))))) -> 0.0136 | AE23: 0.119
A24: 16 | B24: =VLOOKUP('Utility Group'!$B18,vldatabase,2,FALSE) -> PPL Corp. | D24: ='7 (1)'!D24 -> 0.023 | F24: ='7 (1)'!F24 -> 0.109 | H24: 0.132 | J24: ='7 (1)'!J24 -> 0.031 | M24: 0.101 | P24: 0.25 | Q24: 0.02525 | S24: =VLOOKUP('Utility Group'!$B18,vldatabase,23,FALSE) -> 0.75 | T24: 0.75 | U24: 0.0568125 | W24: 0.0820625 | Y24: 0.1130625 | AA24: =VLOOKUP('Utility Group'!$B18,vldatabase,28,FALSE) -> 19980.02 | AC24: =IF(AA24>'Size Premium'!$A$5,'Size Premium'!$B$5,IF(AA24>'Size Premium'!$A$6,'Size Premium'!$B$6,IF(AA24>'Size Premium'!$A$7,'Size Premium'!$B$7,IF(AA24>'Size Premium'!$A$8,'Size Premium'!$B$8,IF(AA24>'Size Premium'!$A$9,'Size Premium'!$B$9,IF(AA24>'Size Premium'!$A$10,'Size Premium'!$B$10,IF(AA24>'Size Premium'!$A$11,'Size Premium'!$B$11,IF(AA24>'Size Premium'!$A$12,'Size Premium'!$B$12,"ERROR")))))))) -> 0.0055 | AE24: 0.119
A25: 17 | B25: =VLOOKUP('Utility Group'!$B19,vldatabase,2,FALSE) -> Pub Sv Enterprise Grp. | D25: ='7 (1)'!D25 -> 0.023 | F25: ='7 (1)'!F25 -> 0.109 | H25: 0.132 | J25: ='7 (1)'!J25 -> 0.031 | M25: 0.101 | P25: 0.25 | Q25: 0.02525 | S25: =VLOOKUP('Utility Group'!$B19,vldatabase,23,FALSE) -> 0.7 | T25: 0.75 | U25: 0.053025 | W25: 0.078275 | Y25: 0.109275 | AA25: =VLOOKUP('Utility Group'!$B19,vldatabase,28,FALSE) -> 26374.32 | AC25: =IF(AA25>'Size Premium'!$A$5,'Size Premium'!$B$5,IF(AA25>'Size Premium'!$A$6,'Size Premium'!$B$6,IF(AA25>'Size Premium'!$A$7,'Size Premium'!$B$7,IF(AA25>'Size Premium'!$A$8,'Size Premium'!$B$8,IF(AA25>'Size Premium'!$A$9,'Size Premium'!$B$9,IF(AA25>'Size Premium'!$A$10,'Size Premium'!$B$10,IF(AA25>'Size Premium'!$A$11,'Size Premium'!$B$11,IF(AA25>'Size Premium'!$A$12,'Size Premium'!$B$12,"ERROR")))))))) -> -0.003 | AE25: 0.106
A26: 18 | B26: =VLOOKUP('Utility Group'!$B20,vldatabase,2,FALSE) -> Sempra Energy | D26: ='7 (1)'!D26 -> 0.023 | F26: ='7 (1)'!F26 -> 0.109 | H26: =D26+F26 -> 0.132 | J26: ='7 (1)'!J26 -> 0.031 | M26: =H26-J26 -> 0.101 | P26: 0.25 | Q26: =M26*P26 -> 0.02525 | S26: =VLOOKUP('Utility Group'!$B20,vldatabase,23,FALSE) -> 0.75 | T26: 0.75 | U26: =IF(S26="n/a","n/a",M26*S26*T26) -> 0.0568125 | W26: =IF(U26="n/a","n/a",U26+Q26) -> 0.0820625 | Y26: =IF(W26="n/a","n/a",W26+J26) -> 0.1130625 | AA26: =VLOOKUP('Utility Group'!$B20,vldatabase,28,FALSE) -> 30526.32 | AC26: =IF(AA26>'Size Premium'!$A$5,'Size Premium'!$B$5,IF(AA26>'Size Premium'!$A$6,'Size Premium'!$B$6,IF(AA26>'Size Premium'!$A$7,'Size Premium'!$B$7,IF(AA26>'Size Premium'!$A$8,'Size Premium'!$B$8,IF(AA26>'Size Premium'!$A$9,'Size Premium'!$B$9,IF(AA26>'Size Premium'!$A$10,'Size Premium'!$B$10,IF(AA26>'Size Premium'!$A$11,'Size Premium'!$B$11,IF(AA26>'Size Premium'!$A$12,'Size Premium'!$B$12,"ERROR")))))))) -> -0.003 | AE26: =IF(Y26="n/a","n/a",ROUND(Y26+AC26,3)) -> 0.11
A27: 19 | B27: =VLOOKUP('Utility Group'!$B21,vldatabase,2,FALSE) -> Southern Company | D27: ='7 (1)'!D27 -> 0.023 | F27: ='7 (1)'!F27 -> 0.109 | H27: 0.132 | J27: ='7 (1)'!J27 -> 0.031 | M27: 0.101 | P27: 0.25 | Q27: 0.02525 | S27: =VLOOKUP('Utility Group'!$B21,vldatabase,23,FALSE) -> 0.55 | T27: 0.75 | U27: 0.0416625 | W27: 0.0669125 | Y27: 0.0979125 | AA27: =VLOOKUP('Utility Group'!$B21,vldatabase,28,FALSE) -> 48537.77 | AC27: =IF(AA27>'Size Premium'!$A$5,'Size Premium'!$B$5,IF(AA27>'Size Premium'!$A$6,'Size Premium'!$B$6,IF(AA27>'Size Premium'!$A$7,'Size Premium'!$B$7,IF(AA27>'Size Premium'!$A$8,'Size Premium'!$B$8,IF(AA27>'Size Premium'!$A$9,'Size Premium'!$B$9,IF(AA27>'Size Premium'!$A$10,'Size Premium'!$B$10,IF(AA27>'Size Premium'!$A$11,'Size Premium'!$B$11,IF(AA27>'Size Premium'!$A$12,'Size Premium'!$B$12,"ERROR")))))))) -> -0.003 | AE27: 0.095
A28: 20 | B28: =VLOOKUP('Utility Group'!$B22,vldatabase,2,FALSE) -> WEC Energy Group | D28: ='7 (1)'!D28 -> 0.023 | F28: ='7 (1)'!F28 -> 0.109 | H28: 0.132 | J28: ='7 (1)'!J28 -> 0.031 | M28: 0.101 | P28: 0.25 | Q28: 0.02525 | S28: =VLOOKUP('Utility Group'!$B22,vldatabase,23,FALSE) -> 0.6 | T28: 0.75 | U28: 0.04545 | W28: 0.0707 | Y28: 0.1017 | AA28: =VLOOKUP('Utility Group'!$B22,vldatabase,28,FALSE) -> 20693.05 | AC28: =IF(AA28>'Size Premium'!$A$5,'Size Premium'!$B$5,IF(AA28>'Size Premium'!$A$6,'Size Premium'!$B$6,IF(AA28>'Size Premium'!$A$7,'Size Premium'!$B$7,IF(AA28>'Size Premium'!$A$8,'Size Premium'!$B$8,IF(AA28>'Size Premium'!$A$9,'Size Premium'!$B$9,IF(AA28>'Size Premium'!$A$10,'Size Premium'!$B$10,IF(AA28>'Size Premium'!$A$11,'Size Premium'!$B$11,IF(AA28>'Size Premium'!$A$12,'Size Premium'!$B$12,"ERROR")))))))) -> 0.0055 | AE28: 0.107
A29: 21 | B29: =VLOOKUP('Utility Group'!$B23,vldatabase,2,FALSE) -> Xcel Energy Inc. | D29: ='7 (1)'!D29 -> 0.023 | F29: ='7 (1)'!F29 -> 0.109 | H29: 0.132 | J29: ='7 (1)'!J29 -> 0.031 | M29: 0.101 | P29: 0.25 | Q29: 0.02525 | S29: =VLOOKUP('Utility Group'!$B23,vldatabase,23,FALSE) -> 0.6 | T29: 0.75 | U29: 0.04545 | W29: 0.0707 | Y29: 0.1017 | AA29: =VLOOKUP('Utility Group'!$B23,vldatabase,28,FALSE) -> 23571.39 | AC29: =IF(AA29>'Size Premium'!$A$5,'Size Premium'!$B$5,IF(AA29>'Size Premium'!$A$6,'Size Premium'!$B$6,IF(AA29>'Size Premium'!$A$7,'Size Premium'!$B$7,IF(AA29>'Size Premium'!$A$8,'Size Premium'!$B$8,IF(AA29>'Size Premium'!$A$9,'Size Premium'!$B$9,IF(AA29>'Size Premium'!$A$10,'Size Premium'!$B$10,IF(AA29>'Size Premium'!$A$11,'Size Premium'!$B$11,IF(AA29>'Size Premium'!$A$12,'Size Premium'!$B$12,"ERROR")))))))) -> 0.0055 | AE29: 0.107
T30: 0.75
B31: Average | Y31: =AVERAGE(Y9:Y29) -> 0.105298125 | AE31: =AVERAGE(AE9:AE29) -> 0.1098
B32: Midpoint (h) | Y32: =AVERAGE(Y43:Y44) -> 0.10359375 | AE32: =AVERAGE(AE43:AE44) -> 0.113
A34: (a) | B34: ='7 (1)'!B34 -> Weighted average for dividend-paying stocks in the S&P 500 based on data from Dividend paying components of S&P 500 index from zacks.com (retrieved Aug 1, 2018).
A35: (b) | B35: ='7 (1)'!B35 -> Average of weighted average earnings growth rates from Value Line Investment Survey, IBES, and Zacks Investment Research for dividend-paying stocks in the S&P 500 based on data from www.valueline.com (retrieved Aug 1, 2018)., http://finance.yahoo.com (retrieved Aug 1, 2018)., and www.zacks.com (retrieved Aug 1, 2018)..
A37: (c) | B37: ='7 (1)'!B37 -> Average yield on 30-year Treasury bonds for the six-months ending Jul. 2018 based on data from the Federal Reserve at https://www.federalreserve.gov/datadownload/Choose.aspx?rel=H15.
A38: (d) | B38: Morin, Roger A., "New Regulatory Finance," Public Utilities Reports, Inc. at 190 (2006).
A39: (e) | B39: ='7 (1)'!B38 -> The Value Line Investment Survey (May 18, Jun. 15, & Jul. 27, 2018); Jun. 22, 2018 for Emera.
A40: (f) | B40: ='7 (1)'!B39 -> www.valueline.com (retrieved Jul. 17, 2018).
A41: (g) | B41: ='7 (1)'!B40 -> Duff & Phelps Cost of Capital Navigator, 2018 Cost of Capital: Annual U.S. Guidance and Examples, (Chapter 7, pp. 10-11, and CRSP Deciles Size Study).
A42: (h) | B42: Average of low and high values.
W43: Min | Y43: =MIN(Y9:Y29) -> 0.08655 | AE43: =MIN(AE9:AE29) -> 0.092
W44: Max | Y44: =MAX(Y9:Y29) -> 0.1206375 | AE44: =MAX(AE9:AE29) -> 0.134

Sheet 8 (2)
A1: ='Exhibit List'!C14 -> EMPIRICAL CAPM - PROJECTED BOND YIELD | AE1: ='Exhibit List'!B14 -> Exhibit No. 8
AE2: Page 2 of 2
A3: ='Exhibit List'!D14 -> UTILITY GROUP
D5: (a) | F5: (b) | J5: (c) | P5: (d) | S5: (e) | T5: (d) | AA5: (f) | AC5: (g)
D6: Market Return (Rm) | L6: Market | AE6: Size
D7: Div | F7: Proj. | H7: Cost of | J7: Risk-Free | M7: Risk | P7: Unadjusted RP | S7: Beta Adjusted RP | W7: Total | Y7: Unadjusted | AA7: Market | AC7: Size | AE7: Adjusted
B8: Company | D8: Yield | F8: Growth | H8: Equity | J8: Rate | M8: Premium | P8: Weight | Q8: RP1 | S8: Beta | T8: Weight | U8: RP2 | W8: RP | Y8: Ke | AA8: Cap | AC8: Adjustment | AE8: Ke
A9: =A8+1 -> 1 | B9: =VLOOKUP('Utility Group'!$B3,vldatabase,2,FALSE) -> Algonquin Pwr & Util | D9: ='7 (1)'!D9 -> 0.023 | F9: ='7 (1)'!F9 -> 0.109 | H9: =D9+F9 -> 0.132 | J9: ='7 (2)'!J9 -> 0.04 | M9: =H9-J9 -> 0.092 | P9: 0.25 | Q9: =M9*P9 -> 0.023 | S9: =VLOOKUP('Utility Group'!$B3,vldatabase,23,FALSE) -> n/a | T9: 0.75 | U9: =IF(S9="n/a","n/a",M9*S9*T9) -> n/a | W9: =IF(U9="n/a","n/a",U9+Q9) -> n/a | Y9: =IF(W9="n/a","n/a",W9+J9) -> n/a | AA9: =VLOOKUP('Utility Group'!$B3,vldatabase,28,FALSE) -> 4591 | AC9: =IF(AA9>'Size Premium'!$A$5,'Size Premium'!$B$5,IF(AA9>'Size Premium'!$A$6,'Size Premium'!$B$6,IF(AA9>'Size Premium'!$A$7,'Size Premium'!$B$7,IF(AA9>'Size Premium'!$A$8,'Size Premium'!$B$8,IF(AA9>'Size Premium'!$A$9,'Size Premium'!$B$9,IF(AA9>'Size Premium'!$A$10,'Size Premium'!$B$10,IF(AA9>'Size Premium'!$A$11,'Size Premium'!$B$11,IF(AA9>'Size Premium'!$A$12,'Size Premium'!$B$12,"ERROR")))))))) -> 0.0086 | AE9: =IF(Y9="n/a","n/a",ROUND(Y9+AC9,3)) -> n/a
A10: =A9+1 -> 2 | B10: =VLOOKUP('Utility Group'!$B4,vldatabase,2,FALSE) -> Alliant Energy | D10: ='7 (1)'!D10 -> 0.023 | F10: ='7 (1)'!F10 -> 0.109 | H10: =D10+F10 -> 0.132 | J10: ='7 (2)'!J10 -> 0.04 | M10: =H10-J10 -> 0.092 | P10: 0.25 | Q10: =M10*P10 -> 0.023 | S10: =VLOOKUP('Utility Group'!$B4,vldatabase,23,FALSE) -> 0.7 | T10: 0.75 | U10: =IF(S10="n/a","n/a",M10*S10*T10) -> 0.0483 | W10: =IF(U10="n/a","n/a",U10+Q10) -> 0.0713 | Y10: =IF(W10="n/a","n/a",W10+J10) -> 0.1113 | AA10: =VLOOKUP('Utility Group'!$B4,vldatabase,28,FALSE) -> 9986.13 | AC10: =IF(AA10>'Size Premium'!$A$5,'Size Premium'!$B$5,IF(AA10>'Size Premium'!$A$6,'Size Premium'!$B$6,IF(AA10>'Size Premium'!$A$7,'Size Premium'!$B$7,IF(AA10>'Size Premium'!$A$8,'Size Premium'!$B$8,IF(AA10>'Size Premium'!$A$9,'Size Premium'!$B$9,IF(AA10>'Size Premium'!$A$10,'Size Premium'!$B$10,IF(AA10>'Size Premium'!$A$11,'Size Premium'!$B$11,IF(AA10>'Size Premium'!$A$12,'Size Premium'!$B$12,"ERROR")))))))) -> 0.0083 | AE10: =IF(Y10="n/a","n/a",ROUND(Y10+AC10,3)) -> 0.12
A11: 3 | B11: =VLOOKUP('Utility Group'!$B5,vldatabase,2,FALSE) -> Ameren Corp. | D11: ='7 (1)'!D11 -> 0.023 | F11: ='7 (1)'!F11 -> 0.109 | H11: 0.132 | J11: ='7 (2)'!J11 -> 0.04 | M11: 0.092 | P11: 0.25 | Q11: 0.023 | S11: =VLOOKUP('Utility Group'!$B5,vldatabase,23,FALSE) -> 0.65 | T11: 0.75 | U11: 0.04485 | W11: 0.06785 | Y11: 0.10785 | AA11: =VLOOKUP('Utility Group'!$B5,vldatabase,28,FALSE) -> 14949.73 | AC11: =IF(AA11>'Size Premium'!$A$5,'Size Premium'!$B$5,IF(AA11>'Size Premium'!$A$6,'Size Premium'!$B$6,IF(AA11>'Size Premium'!$A$7,'Size Premium'!$B$7,IF(AA11>'Size Premium'!$A$8,'Size Premium'!$B$8,IF(AA11>'Size Premium'!$A$9,'Size Premium'!$B$9,IF(AA11>'Size Premium'!$A$10,'Size Premium'!$B$10,IF(AA11>'Size Premium'!$A$11,'Size Premium'!$B$11,IF(AA11>'Size Premium'!$A$12,'Size Premium'!$B$12,"ERROR")))))))) -> 0.0055 | AE11: 0.113
A12: 4 | B12: =VLOOKUP('Utility Group'!$B6,vldatabase,2,FALSE) -> Avangrid, Inc. | D12: ='7 (1)'!D12 -> 0.023 | F12: ='7 (1)'!F12 -> 0.109 | H12: 0.132 | J12: ='7 (2)'!J12 -> 0.04 | M12: 0.092 | P12: 0.25 | Q12: 0.023 | S12: =VLOOKUP('Utility Group'!$B6,vldatabase,23,FALSE) -> 0.4 | T12: 0.75 | U12: 0.0276 | W12: 0.0506 | Y12: 0.0906 | AA12: =VLOOKUP('Utility Group'!$B6,vldatabase,28,FALSE) -> 16307.38 | AC12: =IF(AA12>'Size Premium'!$A$5,'Size Premium'!$B$5,IF(AA12>'Size Premium'!$A$6,'Size Premium'!$B$6,IF(AA12>'Size Premium'!$A$7,'Size Premium'!$B$7,IF(AA12>'Size Premium'!$A$8,'Size Premium'!$B$8,IF(AA12>'Size Premium'!$A$9,'Size Premium'!$B$9,IF(AA12>'Size Premium'!$A$10,'Size Premium'!$B$10,IF(AA12>'Size Premium'!$A$11,'Size Premium'!$B$11,IF(AA12>'Size Premium'!$A$12,'Size Premium'!$B$12,"ERROR")))))))) -> 0.0055 | AE12: 0.096
A13: 5 | B13: =VLOOKUP('Utility Group'!$B7,vldatabase,2,FALSE) -> Black Hills Corp. | D13: ='7 (1)'!D13 -> 0.023 | F13: ='7 (1)'!F13 -> 0.109 | H13: 0.132 | J13: ='7 (2)'!J13 -> 0.04 | M13: 0.092 | P13: 0.25 | Q13: 0.023 | S13: =VLOOKUP('Utility Group'!$B7,vldatabase,23,FALSE) -> 0.85 | T13: 0.75 | U13: 0.05865 | W13: 0.08165 | Y13: 0.12165 | AA13: =VLOOKUP('Utility Group'!$B7,vldatabase,28,FALSE) -> 3290.73 | AC13: =IF(AA13>'Size Premium'!$A$5,'Size Premium'!$B$5,IF(AA13>'Size Premium'!$A$6,'Size Premium'!$B$6,IF(AA13>'Size Premium'!$A$7,'Size Premium'!$B$7,IF(AA13>'Size Premium'!$A$8,'Size Premium'!$B$8,IF(AA13>'Size Premium'!$A$9,'Size Premium'!$B$9,IF(AA13>'Size Premium'!$A$10,'Size Premium'!$B$10,IF(AA13>'Size Premium'!$A$11,'Size Premium'!$B$11,IF(AA13>'Size Premium'!$A$12,'Size Premium'!$B$12,"ERROR")))))))) -> 0.0136 | AE13: 0.135
A14: 6 | B14: =VLOOKUP('Utility Group'!$B8,vldatabase,2,FALSE) -> CMS Energy Corp. | D14: ='7 (1)'!D14 -> 0.023 | F14: ='7 (1)'!F14 -> 0.109 | H14: 0.132 | J14: ='7 (2)'!J14 -> 0.04 | M14: 0.092 | P14: 0.25 | Q14: 0.023 | S14: =VLOOKUP('Utility Group'!$B8,vldatabase,23,FALSE) -> 0.65 | T14: 0.75 | U14: 0.04485 | W14: 0.06785 | Y14: 0.10785 | AA14: =VLOOKUP('Utility Group'!$B8,vldatabase,28,FALSE) -> 13537.4 | AC14: =IF(AA14>'Size Premium'!$A$5,'Size Premium'!$B$5,IF(AA14>'Size Premium'!$A$6,'Size Premium'!$B$6,IF(AA14>'Size Premium'!$A$7,'Size Premium'!$B$7,IF(AA14>'Size Premium'!$A$8,'Size Premium'!$B$8,IF(AA14>'Size Premium'!$A$9,'Size Premium'!$B$9,IF(AA14>'Size Premium'!$A$10,'Size Premium'!$B$10,IF(AA14>'Size Premium'!$A$11,'Size Premium'!$B$11,IF(AA14>'Size Premium'!$A$12,'Size Premium'!$B$12,"ERROR")))))))) -> 0.0055 | AE14: 0.113
A15: 7 | B15: =VLOOKUP('Utility Group'!$B9,vldatabase,2,FALSE) -> Consolidated Edison | D15: ='7 (1)'!D15 -> 0.023 | F15: ='7 (1)'!F15 -> 0.109 | H15: 0.132 | J15: ='7 (2)'!J15 -> 0.04 | M15: 0.092 | P15: 0.25 | Q15: 0.023 | S15: =VLOOKUP('Utility Group'!$B9,vldatabase,23,FALSE) -> 0.5 | T15: 0.75 | U15: 0.0345 | W15: 0.0575 | Y15: 0.0975 | AA15: =VLOOKUP('Utility Group'!$B9,vldatabase,28,FALSE) -> 24637.42 | AC15: =IF(AA15>'Size Premium'!$A$5,'Size Premium'!$B$5,IF(AA15>'Size Premium'!$A$6,'Size Premium'!$B$6,IF(AA15>'Size Premium'!$A$7,'Size Premium'!$B$7,IF(AA15>'Size Premium'!$A$8,'Size Premium'!$B$8,IF(AA15>'Size Premium'!$A$9,'Size Premium'!$B$9,IF(AA15>'Size Premium'!$A$10,'Size Premium'!$B$10,IF(AA15>'Size Premium'!$A$11,'Size Premium'!$B$11,IF(AA15>'Size Premium'!$A$12,'Size Premium'!$B$12,"ERROR")))))))) -> 0.0055 | AE15: 0.103
A16: 8 | B16: =VLOOKUP('Utility Group'!$B10,vldatabase,2,FALSE) -> DTE Energy Co. | D16: ='7 (1)'!D16 -> 0.023 | F16: ='7 (1)'!F16 -> 0.109 | H16: 0.132 | J16: ='7 (2)'!J16 -> 0.04 | M16: 0.092 | P16: 0.25 | Q16: 0.023 | S16: =VLOOKUP('Utility Group'!$B10,vldatabase,23,FALSE) -> 0.65 | T16: 0.75 | U16: 0.04485 | W16: 0.06785 | Y16: 0.10785 | AA16: =VLOOKUP('Utility Group'!$B10,vldatabase,28,FALSE) -> 19222.68 | AC16: =IF(AA16>'Size Premium'!$A$5,'Size Premium'!$B$5,IF(AA16>'Size Premium'!$A$6,'Size Premium'!$B$6,IF(AA16>'Size Premium'!$A$7,'Size Premium'!$B$7,IF(AA16>'Size Premium'!$A$8,'Size Premium'!$B$8,IF(AA16>'Size Premium'!$A$9,'Size Premium'!$B$9,IF(AA16>'Size Premium'!$A$10,'Size Premium'!$B$10,IF(AA16>'Size Premium'!$A$11,'Size Premium'!$B$11,IF(AA16>'Size Premium'!$A$12,'Size Premium'!$B$12,"ERROR")))))))) -> 0.0055 | AE16: 0.113
A17: 9 | B17: =VLOOKUP('Utility Group'!$B11,vldatabase,2,FALSE) -> Duke Energy Corp. | D17: ='7 (1)'!D17 -> 0.023 | F17: ='7 (1)'!F17 -> 0.109 | H17: 0.132 | J17: ='7 (2)'!J17 -> 0.04 | M17: 0.092 | P17: 0.25 | Q17: 0.023 | S17: =VLOOKUP('Utility Group'!$B11,vldatabase,23,FALSE) -> 0.6 | T17: 0.75 | U17: 0.0414 | W17: 0.0644 | Y17: 0.1044 | AA17: =VLOOKUP('Utility Group'!$B11,vldatabase,28,FALSE) -> 56430.5 | AC17: =IF(AA17>'Size Premium'!$A$5,'Size Premium'!$B$5,IF(AA17>'Size Premium'!$A$6,'Size Premium'!$B$6,IF(AA17>'Size Premium'!$A$7,'Size Premium'!$B$7,IF(AA17>'Size Premium'!$A$8,'Size Premium'!$B$8,IF(AA17>'Size Premium'!$A$9,'Size Premium'!$B$9,IF(AA17>'Size Premium'!$A$10,'Size Premium'!$B$10,IF(AA17>'Size Premium'!$A$11,'Size Premium'!$B$11,IF(AA17>'Size Premium'!$A$12,'Size Premium'!$B$12,"ERROR")))))))) -> -0.003 | AE17: 0.101
A18: 10 | B18: =VLOOKUP('Utility Group'!$B12,vldatabase,2,FALSE) -> Emera Inc. | D18: ='7 (1)'!D18 -> 0.023 | F18: ='7 (1)'!F18 -> 0.109 | H18: 0.132 | J18: ='7 (2)'!J18 -> 0.04 | M18: 0.092 | P18: 0.25 | Q18: 0.023 | S18: =VLOOKUP('Utility Group'!$B12,vldatabase,23,FALSE) -> 0.65 | T18: 0.75 | U18: 0.04485 | W18: 0.06785 | Y18: 0.10785 | AA18: =VLOOKUP('Utility Group'!$B12,vldatabase,28,FALSE) -> 9741.37 | AC18: =IF(AA18>'Size Premium'!$A$5,'Size Premium'!$B$5,IF(AA18>'Size Premium'!$A$6,'Size Premium'!$B$6,IF(AA18>'Size Premium'!$A$7,'Size Premium'!$B$7,IF(AA18>'Size Premium'!$A$8,'Size Premium'!$B$8,IF(AA18>'Size Premium'!$A$9,'Size Premium'!$B$9,IF(AA18>'Size Premium'!$A$10,'Size Premium'!$B$10,IF(AA18>'Size Premium'!$A$11,'Size Premium'!$B$11,IF(AA18>'Size Premium'!$A$12,'Size Premium'!$B$12,"ERROR")))))))) -> 0.0083 | AE18: 0.116
A19: 11 | B19: =VLOOKUP('Utility Group'!$B13,vldatabase,2,FALSE) -> Entergy Corp. | D19: ='7 (1)'!D19 -> 0.023 | F19: ='7 (1)'!F19 -> 0.109 | H19: 0.132 | J19: ='7 (2)'!J19 -> 0.04 | M19: 0.092 | P19: 0.25 | Q19: 0.023 | S19: =VLOOKUP('Utility Group'!$B13,vldatabase,23,FALSE) -> 0.65 | T19: 0.75 | U19: 0.04485 | W19: 0.06785 | Y19: 0.10785 | AA19: =VLOOKUP('Utility Group'!$B13,vldatabase,28,FALSE) -> 14858.06 | AC19: =IF(AA19>'Size Premium'!$A$5,'Size Premium'!$B$5,IF(AA19>'Size Premium'!$A$6,'Size Premium'!$B$6,IF(AA19>'Size Premium'!$A$7,'Size Premium'!$B$7,IF(AA19>'Size Premium'!$A$8,'Size Premium'!$B$8,IF(AA19>'Size Premium'!$A$9,'Size Premium'!$B$9,IF(AA19>'Size Premium'!$A$10,'Size Premium'!$B$10,IF(AA19>'Size Premium'!$A$11,'Size Premium'!$B$11,IF(AA19>'Size Premium'!$A$12,'Size Premium'!$B$12,"ERROR")))))))) -> 0.0055 | AE19: 0.113
A20: 12 | B20: =VLOOKUP('Utility Group'!$B14,vldatabase,2,FALSE) -> Eversource Energy | D20: ='7 (1)'!D20 -> 0.023 | F20: ='7 (1)'!F20 -> 0.109 | H20: 0.132 | J20: ='7 (2)'!J20 -> 0.04 | M20: 0.092 | P20: 0.25 | Q20: 0.023 | S20: =VLOOKUP('Utility Group'!$B14,vldatabase,23,FALSE) -> 0.65 | T20: 0.75 | U20: 0.04485 | W20: 0.06785 | Y20: 0.10785 | AA20: =VLOOKUP('Utility Group'!$B14,vldatabase,28,FALSE) -> 19745.54 | AC20: =IF(AA20>'Size Premium'!$A$5,'Size Premium'!$B$5,IF(AA20>'Size Premium'!$A$6,'Size Premium'!$B$6,IF(AA20>'Size Premium'!$A$7,'Size Premium'!$B$7,IF(AA20>'Size Premium'!$A$8,'Size Premium'!$B$8,IF(AA20>'Size Premium'!$A$9,'Size Premium'!$B$9,IF(AA20>'Size Premium'!$A$10,'Size Premium'!$B$10,IF(AA20>'Size Premium'!$A$11,'Size Premium'!$B$11,IF(AA20>'Size Premium'!$A$12,'Size Premium'!$B$12,"ERROR")))))))) -> 0.0055 | AE20: 0.113
A21: 13 | B21: =VLOOKUP('Utility Group'!$B15,vldatabase,2,FALSE) -> Exelon Corp. | D21: ='7 (1)'!D21 -> 0.023 | F21: ='7 (1)'!F21 -> 0.109 | H21: 0.132 | J21: ='7 (2)'!J21 -> 0.04 | M21: 0.092 | P21: 0.25 | Q21: 0.023 | S21: =VLOOKUP('Utility Group'!$B15,vldatabase,23,FALSE) -> 0.7 | T21: 0.75 | U21: 0.0483 | W21: 0.0713 | Y21: 0.1113 | AA21: =VLOOKUP('Utility Group'!$B15,vldatabase,28,FALSE) -> 40783.05 | AC21: =IF(AA21>'Size Premium'!$A$5,'Size Premium'!$B$5,IF(AA21>'Size Premium'!$A$6,'Size Premium'!$B$6,IF(AA21>'Size Premium'!$A$7,'Size Premium'!$B$7,IF(AA21>'Size Premium'!$A$8,'Size Premium'!$B$8,IF(AA21>'Size Premium'!$A$9,'Size Premium'!$B$9,IF(AA21>'Size Premium'!$A$10,'Size Premium'!$B$10,IF(AA21>'Size Premium'!$A$11,'Size Premium'!$B$11,IF(AA21>'Size Premium'!$A$12,'Size Premium'!$B$12,"ERROR")))))))) -> -0.003 | AE21: 0.108
A22: 14 | B22: =VLOOKUP('Utility Group'!$B16,vldatabase,2,FALSE) -> Fortis Inc. | D22: ='7 (1)'!D22 -> 0.023 | F22: ='7 (1)'!F22 -> 0.109 | H22: 0.132 | J22: ='7 (2)'!J22 -> 0.04 | M22: 0.092 | P22: 0.25 | Q22: 0.023 | S22: =VLOOKUP('Utility Group'!$B16,vldatabase,23,FALSE) -> 0.7 | T22: 0.75 | U22: 0.0483 | W22: 0.0713 | Y22: 0.1113 | AA22: =VLOOKUP('Utility Group'!$B16,vldatabase,28,FALSE) -> 17930.44 | AC22: =IF(AA22>'Size Premium'!$A$5,'Size Premium'!$B$5,IF(AA22>'Size Premium'!$A$6,'Size Premium'!$B$6,IF(AA22>'Size Premium'!$A$7,'Size Premium'!$B$7,IF(AA22>'Size Premium'!$A$8,'Size Premium'!$B$8,IF(AA22>'Size Premium'!$A$9,'Size Premium'!$B$9,IF(AA22>'Size Premium'!$A$10,'Size Premium'!$B$10,IF(AA22>'Size Premium'!$A$11,'Size Premium'!$B$11,IF(AA22>'Size Premium'!$A$12,'Size Premium'!$B$12,"ERROR")))))))) -> 0.0055 | AE22: 0.117
A23: 15 | B23: =VLOOKUP('Utility Group'!$B17,vldatabase,2,FALSE) -> NorthWestern Corp. | D23: ='7 (1)'!D23 -> 0.023 | F23: ='7 (1)'!F23 -> 0.109 | H23: 0.132 | J23: ='7 (2)'!J23 -> 0.04 | M23: 0.092 | P23: 0.25 | Q23: 0.023 | S23: =VLOOKUP('Utility Group'!$B17,vldatabase,23,FALSE) -> 0.65 | T23: 0.75 | U23: 0.04485 | W23: 0.06785 | Y23: 0.10785 | AA23: =VLOOKUP('Utility Group'!$B17,vldatabase,28,FALSE) -> 3110.44 | AC23: =IF(AA23>'Size Premium'!$A$5,'Size Premium'!$B$5,IF(AA23>'Size Premium'!$A$6,'Size Premium'!$B$6,IF(AA23>'Size Premium'!$A$7,'Size Premium'!$B$7,IF(AA23>'Size Premium'!$A$8,'Size Premium'!$B$8,IF(AA23>'Size Premium'!$A$9,'Size Premium'!$B$9,IF(AA23>'Size Premium'!$A$10,'Size Premium'!$B$10,IF(AA23>'Size Premium'!$A$11,'Size Premium'!$B$11,IF(AA23>'Size Premium'!$A$12,'Size Premium'!$B$12,"ERROR")))))))) -> 0.0136 | AE23: 0.121
A24: 16 | B24: =VLOOKUP('Utility Group'!$B18,vldatabase,2,FALSE) -> PPL Corp. | D24: ='7 (1)'!D24 -> 0.023 | F24: ='7 (1)'!F24 -> 0.109 | H24: 0.132 | J24: ='7 (2)'!J24 -> 0.04 | M24: 0.092 | P24: 0.25 | Q24: 0.023 | S24: =VLOOKUP('Utility Group'!$B18,vldatabase,23,FALSE) -> 0.75 | T24: 0.75 | U24: 0.05175 | W24: 0.07475 | Y24: 0.11475 | AA24: =VLOOKUP('Utility Group'!$B18,vldatabase,28,FALSE) -> 19980.02 | AC24: =IF(AA24>'Size Premium'!$A$5,'Size Premium'!$B$5,IF(AA24>'Size Premium'!$A$6,'Size Premium'!$B$6,IF(AA24>'Size Premium'!$A$7,'Size Premium'!$B$7,IF(AA24>'Size Premium'!$A$8,'Size Premium'!$B$8,IF(AA24>'Size Premium'!$A$9,'Size Premium'!$B$9,IF(AA24>'Size Premium'!$A$10,'Size Premium'!$B$10,IF(AA24>'Size Premium'!$A$11,'Size Premium'!$B$11,IF(AA24>'Size Premium'!$A$12,'Size Premium'!$B$12,"ERROR")))))))) -> 0.0055 | AE24: 0.12
A25: 17 | B25: =VLOOKUP('Utility Group'!$B19,vldatabase,2,FALSE) -> Pub Sv Enterprise Grp. | D25: ='7 (1)'!D25 -> 0.023 | F25: ='7 (1)'!F25 -> 0.109 | H25: 0.132 | J25: ='7 (2)'!J25 -> 0.04 | M25: 0.092 | P25: 0.25 | Q25: 0.023 | S25: =VLOOKUP('Utility Group'!$B19,vldatabase,23,FALSE) -> 0.7 | T25: 0.75 | U25: 0.0483 | W25: 0.0713 | Y25: 0.1113 | AA25: =VLOOKUP('Utility Group'!$B19,vldatabase,28,FALSE) -> 26374.32 | AC25: =IF(AA25>'Size Premium'!$A$5,'Size Premium'!$B$5,IF(AA25>'Size Premium'!$A$6,'Size Premium'!$B$6,IF(AA25>'Size Premium'!$A$7,'Size Premium'!$B$7,IF(AA25>'Size Premium'!$A$8,'Size Premium'!$B$8,IF(AA25>'Size Premium'!$A$9,'Size Premium'!$B$9,IF(AA25>'Size Premium'!$A$10,'Size Premium'!$B$10,IF(AA25>'Size Premium'!$A$11,'Size Premium'!$B$11,IF(AA25>'Size Premium'!$A$12,'Size Premium'!$B$12,"ERROR")))))))) -> -0.003 | AE25: 0.108
A26: 18 | B26: =VLOOKUP('Utility Group'!$B20,vldatabase,2,FALSE) -> Sempra Energy | D26: ='7 (1)'!D26 -> 0.023 | F26: ='7 (1)'!F26 -> 0.109 | H26: =D26+F26 -> 0.132 | J26: ='7 (2)'!J26 -> 0.04 | M26: =H26-J26 -> 0.092 | P26: 0.25 | Q26: =M26*P26 -> 0.023 | S26: =VLOOKUP('Utility Group'!$B20,vldatabase,23,FALSE) -> 0.75 | T26: 0.75 | U26: =IF(S26="n/a","n/a",M26*S26*T26) -> 0.05175 | W26: =IF(U26="n/a","n/a",U26+Q26) -> 0.07475 | Y26: =IF(W26="n/a","n/a",W26+J26) -> 0.11475 | AA26: =VLOOKUP('Utility Group'!$B20,vldatabase,28,FALSE) -> 30526.32 | AC26: =IF(AA26>'Size Premium'!$A$5,'Size Premium'!$B$5,IF(AA26>'Size Premium'!$A$6,'Size Premium'!$B$6,IF(AA26>'Size Premium'!$A$7,'Size Premium'!$B$7,IF(AA26>'Size Premium'!$A$8,'Size Premium'!$B$8,IF(AA26>'Size Premium'!$A$9,'Size Premium'!$B$9,IF(AA26>'Size Premium'!$A$10,'Size Premium'!$B$10,IF(AA26>'Size Premium'!$A$11,'Size Premium'!$B$11,IF(AA26>'Size Premium'!$A$12,'Size Premium'!$B$12,"ERROR")))))))) -> -0.003 | AE26: =IF(Y26="n/a","n/a",ROUND(Y26+AC26,3)) -> 0.112
A27: 19 | B27: =VLOOKUP('Utility Group'!$B21,vldatabase,2,FALSE) -> Southern Company | D27: ='7 (1)'!D27 -> 0.023 | F27: ='7 (1)'!F27 -> 0.109 | H27: 0.132 | J27: ='7 (2)'!J27 -> 0.04 | M27: 0.092 | P27: 0.25 | Q27: 0.023 | S27: =VLOOKUP('Utility Group'!$B21,vldatabase,23,FALSE) -> 0.55 | T27: 0.75 | U27: 0.03795 | W27: 0.06095 | Y27: 0.10095 | AA27: =VLOOKUP('Utility Group'!$B21,vldatabase,28,FALSE) -> 48537.77 | AC27: =IF(AA27>'Size Premium'!$A$5,'Size Premium'!$B$5,IF(AA27>'Size Premium'!$A$6,'Size Premium'!$B$6,IF(AA27>'Size Premium'!$A$7,'Size Premium'!$B$7,IF(AA27>'Size Premium'!$A$8,'Size Premium'!$B$8,IF(AA27>'Size Premium'!$A$9,'Size Premium'!$B$9,IF(AA27>'Size Premium'!$A$10,'Size Premium'!$B$10,IF(AA27>'Size Premium'!$A$11,'Size Premium'!$B$11,IF(AA27>'Size Premium'!$A$12,'Size Premium'!$B$12,"ERROR")))))))) -> -0.003 | AE27: 0.098
A28: 20 | B28: =VLOOKUP('Utility Group'!$B22,vldatabase,2,FALSE) -> WEC Energy Group | D28: ='7 (1)'!D28 -> 0.023 | F28: ='7 (1)'!F28 -> 0.109 | H28: 0.132 | J28: ='7 (2)'!J28 -> 0.04 | M28: 0.092 | P28: 0.25 | Q28: 0.023 | S28: =VLOOKUP('Utility Group'!$B22,vldatabase,23,FALSE) -> 0.6 | T28: 0.75 | U28: 0.0414 | W28: 0.0644 | Y28: 0.1044 | AA28: =VLOOKUP('Utility Group'!$B22,vldatabase,28,FALSE) -> 20693.05 | AC28: =IF(AA28>'Size Premium'!$A$5,'Size Premium'!$B$5,IF(AA28>'Size Premium'!$A$6,'Size Premium'!$B$6,IF(AA28>'Size Premium'!$A$7,'Size Premium'!$B$7,IF(AA28>'Size Premium'!$A$8,'Size Premium'!$B$8,IF(AA28>'Size Premium'!$A$9,'Size Premium'!$B$9,IF(AA28>'Size Premium'!$A$10,'Size Premium'!$B$10,IF(AA28>'Size Premium'!$A$11,'Size Premium'!$B$11,IF(AA28>'Size Premium'!$A$12,'Size Premium'!$B$12,"ERROR")))))))) -> 0.0055 | AE28: 0.11
A29: 21 | B29: =VLOOKUP('Utility Group'!$B23,vldatabase,2,FALSE) -> Xcel Energy Inc. | D29: ='7 (1)'!D29 -> 0.023 | F29: ='7 (1)'!F29 -> 0.109 | H29: 0.132 | J29: ='7 (2)'!J29 -> 0.04 | M29: 0.092 | P29: 0.25 | Q29: 0.023 | S29: =VLOOKUP('Utility Group'!$B23,vldatabase,23,FALSE) -> 0.6 | T29: 0.75 | U29: 0.0414 | W29: 0.0644 | Y29: 0.1044 | AA29: =VLOOKUP('Utility Group'!$B23,vldatabase,28,FALSE) -> 23571.39 | AC29: =IF(AA29>'Size Premium'!$A$5,'Size Premium'!$B$5,IF(AA29>'Size Premium'!$A$6,'Size Premium'!$B$6,IF(AA29>'Size Premium'!$A$7,'Size Premium'!$B$7,IF(AA29>'Size Premium'!$A$8,'Size Premium'!$B$8,IF(AA29>'Size Premium'!$A$9,'Size Premium'!$B$9,IF(AA29>'Size Premium'!$A$10,'Size Premium'!$B$10,IF(AA29>'Size Premium'!$A$11,'Size Premium'!$B$11,IF(AA29>'Size Premium'!$A$12,'Size Premium'!$B$12,"ERROR")))))))) -> 0.0055 | AE29: 0.11
B31: Average | Y31: =AVERAGE(Y9:Y29) -> 0.1076775 | AE31: =AVERAGE(AE9:AE29) -> 0.112
B32: Midpoint (h) | Y32: =AVERAGE(Y44:Y45) -> 0.106125 | AE32: =AVERAGE(AE44:AE45) -> 0.1155
A34: (a) | B34: ='7 (1)'!B34 -> Weighted average for dividend-paying stocks in the S&P 500 based on data from Dividend paying components of S&P 500 index from zacks.com (retrieved Aug 1, 2018).
A35: (b) | B35: ='7 (1)'!B35 -> Average of weighted average earnings growth rates from Value Line Investment Survey, IBES, and Zacks Investment Research for dividend-paying stocks in the S&P 500 based on data from www.valueline.com (retrieved Aug 1, 2018)., http://finance.yahoo.com (retrieved Aug 1, 2018)., and www.zacks.com (retrieved Aug 1, 2018)..
A37: (c) | B37: ='7 (2)'!B37 -> Average yield on 30-year Treasury bonds for 2019-23 based on data from the Value Line Investment Survey, Forecast for the U.S. Economy (Jun. 1, 2018); IHS Global Insight (Jun. 6, 2018); & Wolters Kluwer, Blue Chip Financial Forecasts, (Jun. 1, 2018).
A39: (d) | B39: Morin, Roger A., "New Regulatory Finance," Public Utilities Reports, Inc. at 190 (2006).
A40: (e) | B40: ='7 (1)'!B38 -> The Value Line Investment Survey (May 18, Jun. 15, & Jul. 27, 2018); Jun. 22, 2018 for Emera.
A41: (f) | B41: ='7 (1)'!B39 -> www.valueline.com (retrieved Jul. 17, 2018).
A42: (g) | B42: ='7 (1)'!B40 -> Duff & Phelps Cost of Capital Navigator, 2018 Cost of Capital: Annual U.S. Guidance and Examples, (Chapter 7, pp. 10-11, and CRSP Deciles Size Study).
A43: (h) | B43: Average of low and high values.
W44: Min | Y44: =MIN(Y9:Y29) -> 0.0906 | AE44: =MIN(AE9:AE29) -> 0.096
W45: Max | Y45: =MAX(Y9:Y29) -> 0.12165 | AE45: =MAX(AE9:AE29) -> 0.135

Sheet 9 (1)
A1: ='Exhibit List'!C15 -> ELECTRIC UTILITY RISK PREMIUM | G1: ='Exhibit List'!B15 -> Exhibit No. 9
G2: Page 1 of 4
A3: ='Exhibit List'!D15 -> CURRENT BOND YIELD
A6: Current Equity Risk Premium
A7: (a) | B7: Avg. Yield over Study Period | G7: =ROUND(+'9 (3)'!G51,4) -> 0.0828
A8: (b) | B8: Average Utility Bond Yield | G8: ='Bond Yields'!I16 -> 0.0428
C9: Change in Bond Yield | G9: =-G7+G8 -> -0.04
A11: (c) | B11: Risk Premium/Interest Rate Relationship | G11: =ROUND('9 (4)'!B46,4) -> -0.4318
C12: Adjustment to Average Risk Premium | G12: =G9*G11 -> 0.017272
A14: (a) | B14: Average Risk Premium over Study Period | G14: =ROUND('9 (3)'!J51,4) -> 0.0371
C15: Adjusted Risk Premium | G15: =G12+G14 -> 0.054372
A18: Implied Cost of Equity
A19: (b) | B19: Baa Utility Bond Yield | G19: ='Bond Yields'!C16 -> 0.046
B20: Adjusted Equity Risk Premium | G20: =G15 -> 0.054372
B22: Risk Premium Cost of Equity | G22: =G19+G20 -> 0.100372
A26: (a) | B26: =G1 & ", page 3." -> Exhibit No. 9, page 3.
A27: (b) | B27: ="Average bond yield on all utility bonds and Baa subset for the six-months ending "&'Bond Yields'!B14&" based on data from Moody's Investors Service at www.credittrends.com." -> Average bond yield on all utility bonds and Baa subset for the six-months ending Jul. 2018 based on data from Moody's Investors Service at www.credittrends.com.
A29: (c) | B29: =G1 & ", page 4." -> Exhibit No. 9, page 4.

Sheet 9 (2)
A1: ='Exhibit List'!C16 -> ELECTRIC UTILITY RISK PREMIUM | G1: ='Exhibit List'!B16 -> Exhibit No. 9
G2: Page 2 of 4
A3: ='Exhibit List'!D16 -> PROJECTED BOND YIELD
A6: Current Equity Risk Premium
A7: (a) | B7: Avg. Yield over Study Period | G7: =ROUND(+'9 (3)'!G51,4) -> 0.0828
A8: (b) | B8: Average Utility Bond Yield 2019-2023 | G8: ='Bond Yields'!O39 -> 0.0594
C9: Change in Bond Yield | G9: =-G7+G8 -> -0.0234
A11: (c) | B11: Risk Premium/Interest Rate Relationship | G11: =ROUND('9 (4)'!B46,4) -> -0.4318
C12: Adjustment to Average Risk Premium | G12: =G9*G11 -> 0.01010412
A14: (a) | B14: Average Risk Premium over Study Period | G14: =ROUND('9 (3)'!J51,4) -> 0.0371
C15: Adjusted Risk Premium | G15: =G12+G14 -> 0.04720412
A18: Implied Cost of Equity
A19: (b) | B19: Baa Utility Bond Yield 2019-2023 | G19: ='Bond Yields'!E39 -> 0.0626
B20: Adjusted Equity Risk Premium | G20: =G15 -> 0.04720412
B22: Risk Premium Cost of Equity | G22: =G19+G20 -> 0.10980412
A26: (a) | B26: =G1 & ", page 3." -> Exhibit No. 9, page 3.
A27: (b) | B27: ="Yields on all utility bonds and Baa subset based on data from " &'Bond Yields'!B73&"; " & 'Bond Yields'!B74 & "; & Moody's Investors Service at www.credittrends.com." -> Yields on all utility bonds and Baa subset based on data from IHS Global Insight (Jun. 6, 2018); Energy Information Administration, Annual Energy Outlook 2018 (Feb. 6, 2018); & Moody's Investors Service at www.credittrends.com.
A30: (c) | B30: =G1 & ", page 4." -> Exhibit No. 9, page 4.

Sheet 9 (3)
A1: ='Exhibit List'!C17 -> ELECTRIC UTILITY RISK PREMIUM | K1: ='Exhibit List'!B17 -> Exhibit No. 9
K2: Page 3 of 4
A3: ='Exhibit List'!D17 -> AUTHORIZED RETURNS
D4: (a) | G4: (b)
D5: Allowed | G5: Average Utility | J5: Risk
B6: Year | D6: ROE | G6: Bond Yield | J6: Premium
B7: 1974 | D7: 0.131 | G7: 0.0927 | J7: =D7-G7 -> 0.0383
B8: =B7+1 -> 1975 | D8: 0.132 | G8: 0.0988 | J8: 0.0332
B9: 1976 | D9: 0.131 | G9: 0.0917 | J9: 0.0393
B10: 1977 | D10: 0.133 | G10: 0.0858 | J10: 0.0472
B11: 1978 | D11: 0.132 | G11: 0.0922 | J11: 0.0398
B12: 1979 | D12: 0.135 | G12: 0.1039 | J12: 0.0311
B13: 1980 | D13: 0.1423 | G13: 0.1315 | J13: 0.0108
B14: 1981 | D14: 0.1522 | G14: 0.1562 | J14: -0.004
B15: 1982 | D15: 0.1578 | G15: 0.1533 | J15: 0.0045
B16: 1983 | D16: 0.1536 | G16: 0.1331 | J16: 0.0205
B17: 1984 | D17: 0.1532 | G17: 0.1403 | J17: 0.0129
B18: 1985 | D18: 0.152 | G18: 0.1229 | J18: 0.0291
B19: 1986 | D19: 0.1393 | G19: 0.0946 | J19: 0.0447
B20: 1987 | D20: 0.1299 | G20: 0.0998 | J20: 0.0301
B21: 1988 | D21: 0.1279 | G21: 0.1045 | J21: 0.0234
B22: 1989 | D22: 0.1297 | G22: 0.0966 | J22: 0.0331
B23: 1990 | D23: 0.127 | G23: 0.0976 | J23: 0.0294
B24: 1991 | D24: 0.1255 | G24: 0.0921 | J24: 0.0334
B25: 1992 | D25: 0.1209 | G25: 0.0857 | J25: 0.0352
B26: 1993 | D26: 0.1141 | G26: 0.0756 | J26: 0.0385
B27: 1994 | D27: 0.1134 | G27: 0.083 | J27: 0.0304
B28: 1995 | D28: 0.1155 | G28: 0.0791 | J28: 0.0364
B29: 1996 | D29: 0.1139 | G29: 0.0774 | J29: 0.0365
B30: 1997 | D30: 0.114 | G30: 0.0763 | J30: 0.0377
B31: 1998 | D31: 0.1166 | G31: 0.07 | J31: 0.0466
B32: 1999 | D32: 0.1077 | G32: 0.0755 | J32: 0.0322
B33: 2000 | D33: 0.1143 | G33: 0.0809 | J33: 0.0334
B34: 2001 | D34: 0.1109 | G34: 0.0772 | J34: 0.0337
B35: 2002 | D35: 0.1116 | G35: 0.0753 | J35: 0.0363
B36: 2003 | D36: 0.1097 | G36: 0.0661 | J36: 0.0436
B37: 2004 | D37: 0.1075 | G37: 0.062 | J37: 0.0455
B38: 2005 | D38: 0.1054 | G38: 0.0567 | J38: 0.0487
B39: 2006 | D39: 0.1036 | G39: 0.0608 | J39: 0.0428
B40: 2007 | D40: 0.1036 | G40: 0.0611 | J40: 0.0425
B41: 2008 | D41: 0.1046 | G41: 0.0665 | J41: 0.0381
B42: 2009 | D42: 0.1048 | G42: 0.0628 | J42: 0.042
B43: 2010 | D43: 0.1034 | G43: 0.0556 | J43: 0.0478
B44: 2011 | D44: 0.1029 | G44: 0.0513 | J44: 0.0516
B45: 2012 | D45: 0.1017 | G45: 0.0426 | J45: 0.0591
B46: 2013 | D46: 0.1002 | G46: 0.0455 | J46: 0.0547
B47: 2014 | D47: 0.0992 | G47: 0.0441 | J47: =D47-G47 -> 0.0551
B48: 2015 | D48: 0.0985 | G48: 0.0437 | J48: =D48-G48 -> 0.0548
B49: 2016 | D49: 0.0977 | G49: 0.0411 | J49: =D49-G49 -> 0.0566
B50: 2017 | D50: 0.0974 | G50: 0.0407 | J50: =D50-G50 -> 0.0567
B51: Average | D51: =AVERAGE(D7:D50) -> 0.1199431818 | G51: =AVERAGE(G7:G50) -> 0.08282272727 | J51: =AVERAGE(J7:J50) -> 0.03712045455
A54: (a) | B54: Major Rate Case Decisions, Regulatory Focus, Regulatory Research Associates; UtilityScope Regulatory Service, Argus.
A56: (b) | B56: Moody's Investors Service.

Sheet 9 (4)
A1: ='Exhibit List'!C18 -> ELECTRIC UTILITY RISK PREMIUM | I1: ='Exhibit List'!B18 -> Exhibit No. 9
I2: Page 4 of 4
A3: ='Exhibit List'!D18 -> REGRESSION RESULTS
A29: SUMMARY OUTPUT
A31: Regression Statistics
A32: Multiple R | B32: 0.9343450841
A33: R Square | B33: 0.8730007362
A34: Adjusted R Square | B34: 0.8699769442
A35: Standard Error | B35: 0.004907630862
A36: Observations | B36: 44
A38: ANOVA
B39: df | C39: SS | D39: MS | E39: F | F39: Significance F
A40: Regression | B40: 1 | C40: 0.006953548282 | D40: 0.006953548282 | E40: 288.7105784 | F40: 1.975257637e-20
A41: Residual | B41: 42 | C41: 0.001011563308 | D41: 2.408484068e-05
A42: Total | B42: 43 | C42: 0.007965111591
B44: Coefficients | C44: Standard Error | D44: t Stat | E44: P-value | F44: Lower 95% | G44: Upper 95% | H44: Lower 95.0% | I44: Upper 95.0%
A45: Intercept | B45: 0.072885799 | C45: 0.002231138387 | D45: 32.66753843 | E45: 1.733867014e-31 | F45: 0.06838317944 | G45: 0.07738841855 | H45: 0.06838317944 | I45: 0.07738841855
A46: X Variable 1 | B46: -0.4318300741 | C46: 0.02541449804 | D46: -16.99148547 | E46: 1.975257637e-20 | F46: -0.4831186076 | G46: -0.3805415406 | H46: -0.4831186076 | I46: -0.3805415406

Sheet 10
A1: ='Exhibit List'!C19 -> EXPECTED EARNINGS APPROACH | J1: ='Exhibit List'!B19 -> Exhibit No. 10
J2: Page 1 of 1
A3: ='Exhibit List'!D19 -> UTILITY GROUP
D5: (a) | F5: (b) | I5: (c)
F6: Mid-Year
D7: Expected Return | F7: Adjustment | I7: Adjusted Return
B8: Company | D8: on Common Equity | F8: Factor | I8: on Common Equity
A10: =A9+1 -> 1 | B10: =VLOOKUP('Utility Group'!$B3,vldatabase,2,FALSE) -> Algonquin Pwr & Util | D10: =VLOOKUP('Utility Group'!$B3,vldatabase,18,FALSE) -> n/a | F10: ='6'!I8 -> n/a | I10: =IF(D10="n/a","n/a ",D10*F10) -> n/a | M10: =IF(I10="n/a","n/a",IF(I10<$M$44,"nmf",IF(I10>$M$45,"nmf",I10))) -> nmf
A11: =A10+1 -> 2 | B11: =VLOOKUP('Utility Group'!$B4,vldatabase,2,FALSE) -> Alliant Energy | D11: =VLOOKUP('Utility Group'!$B4,vldatabase,18,FALSE) -> 0.115 | F11: ='6'!I9 -> 1.004026446 | I11: =IF(D11="n/a","n/a ",D11*F11) -> 0.1154630413 | M11: =IF(I11="n/a","n/a",IF(I11<$M$44,"nmf",IF(I11>$M$45,"nmf",I11))) -> 0.1154630413
A12: 3 | B12: =VLOOKUP('Utility Group'!$B5,vldatabase,2,FALSE) -> Ameren Corp. | D12: =VLOOKUP('Utility Group'!$B5,vldatabase,18,FALSE) -> 0.105 | F12: ='6'!I10 -> 1.026385416 | I12: 0.1077704686 | M12: 0.1077704686
A13: 4 | B13: =VLOOKUP('Utility Group'!$B6,vldatabase,2,FALSE) -> Avangrid, Inc. | D13: =VLOOKUP('Utility Group'!$B6,vldatabase,18,FALSE) -> 0.06 | F13: ='6'!I11 -> 1.009038809 | I13: 0.06054232853 | M13: nmf
A14: 5 | B14: =VLOOKUP('Utility Group'!$B7,vldatabase,2,FALSE) -> Black Hills Corp. | D14: =VLOOKUP('Utility Group'!$B7,vldatabase,18,FALSE) -> 0.1 | F14: ='6'!I12 -> 1.039574324 | I14: 0.1039574324 | M14: 0.1039574324
A15: 6 | B15: =VLOOKUP('Utility Group'!$B8,vldatabase,2,FALSE) -> CMS Energy Corp. | D15: =VLOOKUP('Utility Group'!$B8,vldatabase,18,FALSE) -> 0.135 | F15: ='6'!I13 -> 1.039137166 | I15: 0.1402835174 | M15: 0.1402835174
A16: 7 | B16: =VLOOKUP('Utility Group'!$B9,vldatabase,2,FALSE) -> Consolidated Edison | D16: =VLOOKUP('Utility Group'!$B9,vldatabase,18,FALSE) -> 0.085 | F16: ='6'!I14 -> 1.019068156 | I16: 0.08662079325 | M16: 0.08662079325
A17: 8 | B17: =VLOOKUP('Utility Group'!$B10,vldatabase,2,FALSE) -> DTE Energy Co. | D17: =VLOOKUP('Utility Group'!$B10,vldatabase,18,FALSE) -> 0.11 | F17: ='6'!I15 -> 1.03446738 | I17: 0.1137914118 | M17: 0.1137914118
A18: 9 | B18: =VLOOKUP('Utility Group'!$B11,vldatabase,2,FALSE) -> Duke Energy Corp. | D18: =VLOOKUP('Utility Group'!$B11,vldatabase,18,FALSE) -> 0.085 | F18: ='6'!I16 -> 1.015868654 | I18: 0.08634883559 | M18: 0.08634883559
A19: 10 | B19: =VLOOKUP('Utility Group'!$B12,vldatabase,2,FALSE) -> Emera Inc. | D19: =VLOOKUP('Utility Group'!$B12,vldatabase,18,FALSE) -> 0.125 | F19: ='6'!I17 -> 1.020297694 | I19: 0.1275372117 | M19: 0.1275372117
A20: 11 | B20: =VLOOKUP('Utility Group'!$B13,vldatabase,2,FALSE) -> Entergy Corp. | D20: =VLOOKUP('Utility Group'!$B13,vldatabase,18,FALSE) -> 0.12 | F20: ='6'!I18 -> 1.030609934 | I20: 0.1236731921 | M20: 0.1236731921
A21: 12 | B21: =VLOOKUP('Utility Group'!$B14,vldatabase,2,FALSE) -> Eversource Energy | D21: =VLOOKUP('Utility Group'!$B14,vldatabase,18,FALSE) -> 0.095 | F21: ='6'!I19 -> 1.017834313 | I21: 0.09669425975 | M21: 0.09669425975
A22: 13 | B22: =VLOOKUP('Utility Group'!$B15,vldatabase,2,FALSE) -> Exelon Corp. | D22: =VLOOKUP('Utility Group'!$B15,vldatabase,18,FALSE) -> 0.095 | F22: ='6'!I20 -> 1.026644246 | I22: 0.09753120341 | M22: 0.09753120341
A23: 14 | B23: =VLOOKUP('Utility Group'!$B16,vldatabase,2,FALSE) -> Fortis Inc. | D23: =VLOOKUP('Utility Group'!$B16,vldatabase,18,FALSE) -> 0.085 | F23: ='6'!I21 -> 1.029148723 | I23: 0.08747764147 | M23: 0.08747764147
A24: 15 | B24: =VLOOKUP('Utility Group'!$B17,vldatabase,2,FALSE) -> NorthWestern Corp. | D24: =VLOOKUP('Utility Group'!$B17,vldatabase,18,FALSE) -> 0.095 | F24: ='6'!I22 -> 1.020085926 | I24: 0.09690816295 | M24: 0.09690816295
A25: 16 | B25: =VLOOKUP('Utility Group'!$B18,vldatabase,2,FALSE) -> PPL Corp. | D25: =VLOOKUP('Utility Group'!$B18,vldatabase,18,FALSE) -> 0.13 | F25: ='6'!I23 -> 1.040986395 | I25: 0.1353282314 | M25: 0.1353282314
A26: 17 | B26: =VLOOKUP('Utility Group'!$B19,vldatabase,2,FALSE) -> Pub Sv Enterprise Grp. | D26: =VLOOKUP('Utility Group'!$B19,vldatabase,18,FALSE) -> 0.11 | F26: ='6'!I24 -> 1.023315206 | I26: 0.1125646727 | M26: 0.1125646727
A27: 18 | B27: =VLOOKUP('Utility Group'!$B20,vldatabase,2,FALSE) -> Sempra Energy | D27: =VLOOKUP('Utility Group'!$B20,vldatabase,18,FALSE) -> 0.115 | F27: ='6'!I25 -> 1.046561669 | I27: =IF(D27="n/a","n/a ",D27*F27) -> 0.1203545919 | M27: =IF(I27="n/a","n/a",IF(I27<$M$44,"nmf",IF(I27>$M$45,"nmf",I27))) -> 0.1203545919
A28: 19 | B28: =VLOOKUP('Utility Group'!$B21,vldatabase,2,FALSE) -> Southern Company | D28: =VLOOKUP('Utility Group'!$B21,vldatabase,18,FALSE) -> 0.12 | F28: ='6'!I26 -> 1.031883878 | I28: 0.1238260654 | M28: 0.1238260654
A29: 20 | B29: =VLOOKUP('Utility Group'!$B22,vldatabase,2,FALSE) -> WEC Energy Group | D29: =VLOOKUP('Utility Group'!$B22,vldatabase,18,FALSE) -> 0.12 | F29: ='6'!I27 -> 1.017225061 | I29: 0.1220670074 | M29: 0.1220670074
A30: 21 | B30: =VLOOKUP('Utility Group'!$B23,vldatabase,2,FALSE) -> Xcel Energy Inc. | D30: =VLOOKUP('Utility Group'!$B23,vldatabase,18,FALSE) -> 0.105 | F30: ='6'!I28 -> 1.024364446 | I30: 0.1075582668 | M30: 0.1075582668
B32: Average (d) | I32: =AVERAGE(M10:M30) -> 0.1108292635 | L32: Max | M32: =MAX(M10:M30) -> 0.1402835174
B33: Midpoint (d,e) | I33: =AVERAGE(M32:M33) -> 0.1133161765 | L33: Min | M33: =MIN(M10:M30) -> 0.08634883559
A36: (a) | B36: ='Proxy Group Risk Measures'!B37 -> The Value Line Investment Survey (May 18, Jun. 15, & Jul. 27, 2018); Jun. 22, 2018 for Emera.
A37: (b) | B37: ="Adjustment to convert year-end return to an average rate of return from " & 'Exhibit List'!B10 & "." -> Adjustment to convert year-end return to an average rate of return from Exhibit No. 6.
A38: (c) | B38: (a) x (b).
A39: (d) | B39: Excludes highlighted values.
A40: (e) | B40: Average of low and high values.
K44: Criteria Min | M44: ='5 (3)'!D43 -> 0.0695
K45: Criteria Max | M45: ='5 (3)'!D44 -> 0.169

Sheet 11
A1: ='Exhibit List'!C20 -> FLOTATION COST STUDY | U1: ='Exhibit List'!B20 -> Exhibit No. 11
U2: Page 1 of 1
A3: ='Exhibit List'!D20 -> VALUE LINE ELECTRIC UTILITY INDUSTRY
E5: -1 | G5: =E5-1 -> -2 | I5: =G5-1 -> -3 | K5: =I5-1 -> -4 | M5: =K5-1 -> -5 | O5: =M5-1 -> -6 | Q5: =O5-1 -> -7 | S5: =Q5-1 -> -8 | U5: =S5-1 -> -9
K6: Underwriting | Q6: Total | S6: Gross Proceeds | U6: Flotation
G7: Shares | I7: Offering | K7: Discount | M7: Underwriting | O7: Offering | Q7: Flotation | S7: Before Flot. | U7: Cost | W7: Latest | X7: Net
A8: No. | B8: Sym | C8: Company | E8: Date | G8: Issued | I8: Price | K8: (per share) | M8: Discount | O8: Expense | Q8: Costs | S8: Costs | U8: (%) | W8: Price | X8: Proceeds
A9: 1 | B9: ALE | C9: ALLETE | E9: 2014-02-27 | G9: 3220000 | I9: 49.75 | K9: 1.74125 | M9: =G9*K9 -> 5606825 | O9: 450000 | Q9: =O9+M9 -> 6056825 | S9: =I9*G9 -> 160195000 | U9: =Q9/S9 -> 0.03780907644
A10: =A9+1 -> 2 | B10: LNT | C10: Alliant Energy | E10: 2003-07-03 | G10: =15000000+2250000 -> 17250000 | I10: 19.25 | K10: 0.77 | M10: =G10*K10 -> 13282500 | O10: 370000 | Q10: =O10+M10 -> 13652500 | S10: =I10*G10 -> 332062500 | U10: =Q10/S10 -> 0.04111424807
A11: 3 | B11: AEE | C11: Ameren Corp. | E11: 2009-09-10 | G11: =19000000+2850000 -> 21850000 | I11: 25.25 | K11: 0.7575 | M11: 16551375 | O11: 450000 | Q11: 17001375 | S11: 551712500 | U11: 0.0308156422
A12: 4 | B12: AEP | C12: American Elec Pwr | E12: 2009-04-02 | G12: =60000000+9000000 -> 69000000 | I12: 24.5 | K12: 0.735 | M12: 50715000 | O12: 400000 | Q12: 51115000 | S12: 1690500000 | U12: 0.03023661639
A13: 5 | B13: AGR | C13: AVANGRID, Inc. | E13: N/A
A14: 6 | B14: AVA | C14: Avista Corp. | E14: 2006-12-13 | G14: =2750000+412500 -> 3162500 | I14: 25.05 | K14: 0.48 | M14: 1518000 | O14: 300000 | Q14: 1818000 | S14: 79220625 | U14: 0.02294856926
A15: 7 | B15: BKH | C15: Black Hills Corp. | E15: 2015-11-19 | G15: =5500000+825000 -> 6325000 | I15: 40.25 | K15: 1.40875 | M15: 8910343.75 | O15: 1200000 | Q15: 10110343.75 | S15: 254581250 | U15: 0.03971362286
A16: 8 | B16: CNP | C16: CenterPoint Energy | E16: 2010-06-10 | G16: =22000000+3300000 -> 25300000 | I16: 12.9 | K16: 0.4515 | M16: 11422950 | O16: 390000 | Q16: 11812950 | S16: 326370000 | U16: 0.03619496277
A17: 9 | B17: CMS | C17: CMS Energy Corp. | E17: 2005-03-31 | G17: =20000000+3000000 -> 23000000 | I17: 12.25 | K17: 0.4288 | M17: 9862400 | O17: 325000 | Q17: 10187400 | S17: 281750000 | U17: 0.03615758651
A18: 10 | B18: ED | C18: Consolidated Edison | E18: 2017-08-10 | G18: 4100000 | I18: 83.7701 | K18: =W18-I18 -> 0.2899 | M18: 1188590 | O18: 350000 | Q18: 1538590 | S18: 343457410 | U18: 0.004479711182 | W18: 84.06 | X18: =S18-M18 -> 342268820
A19: 11 | B19: D | C19: Dominion Energy | E19: 2016-04-06 | G19: 10200000 | I19: 74.16 | K19: =W19-I19 -> 0.42 | M19: 4284000 | O19: 200000 | Q19: 4484000 | S19: 756432000 | U19: 0.0059278296 | W19: 74.58 | X19: =S19-M19-O19 -> 751948000
A20: 12 | B20: DTE | C20: DTE Energy Co. | E20: 2002-06-20 | G20: =5500000+825000 -> 6325000 | I20: 43.25 | K20: 1.4056 | M20: 8890420 | O20: 250000 | Q20: 9140420 | S20: 273556250 | U20: 0.03341331079
A21: 13 | B21: DUK | C21: Duke Energy Corp. | E21: 2016-03-02 | G21: =9250000+1387500 -> 10637500 | I21: 72 | K21: 2.16 | M21: 22977000 | O21: 400000 | Q21: 23377000 | S21: 765900000 | U21: 0.03052226139
A22: 14 | B22: EIX | C22: Edison International | E22: N/A
A23: 15 | B23: EE | C23: El Paso Electric Co. | E23: N/A
A24: 16 | B24: ETR | C24: Entergy Corp. | E24: N/A
A25: 17 | B25: ES | C25: Eversource Energy | E25: 2009-03-17 | G25: =16500000+2475000 -> 18975000 | I25: 20.2 | K25: 0.6565 | M25: 12457087.5 | O25: 350000 | Q25: 12807087.5 | S25: 383295000 | U25: 0.03341313479
A26: 18 | B26: EXC | C26: Exelon Corp. | E26: 2014-06-13 | G26: =50000000+7500000 -> 57500000 | I26: 35 | K26: 1.05 | M26: 60375000 | O26: 600000 | Q26: 60975000 | S26: 2012500000 | U26: 0.03029813665
A27: 19 | B27: FE | C27: FirstEnergy Corp. | E27: 2003-09-15 | G27: =28000000+4200000 -> 32200000 | I27: 30 | K27: 0.975 | M27: 31395000 | O27: 423000 | Q27: 31818000 | S27: 966000000 | U27: 0.0329378882
A28: 20 | B28: FTS | C28: Fortis Inc. | E28: N/A
A29: 21 | B29: GXP | C29: Great Plains Energy | E29: 2016-09-29 | G29: =52600000+7890000 -> 60490000 | I29: 26.45 | K29: 0.7935 | M29: 47998815 | O29: 500000 | Q29: 48498815 | S29: 1599960500 | U29: 0.03031250772
A30: 22 | B30: HE | C30: Hawaiian Elec. | E30: 2013-03-20 | G30: =6100000+900000 -> 7000000 | I30: 26.75 | K30: 1.00312 | M30: 7021840 | O30: 450000 | Q30: 7471840 | S30: 187250000 | U30: 0.03990301736
A31: 23 | B31: IDA | C31: IDACORP, Inc. | E31: 2004-12-10 | G31: =3500000+525000 -> 4025000 | I31: 30 | K31: 1.2 | M31: 4830000 | O31: 300000 | Q31: 5130000 | S31: 120750000 | U31: 0.04248447205
A32: 24 | B32: MGEE | C32: MGE Energy | E32: 2004-09-10 | G32: =1100000+165000 -> 1265000 | I32: 31.85 | K32: 1.035 | M32: 1309275 | O32: 125000 | Q32: 1434275 | S32: 40290250 | U32: 0.03559856293
A33: 25 | B33: NEE | C33: NextEra Energy, Inc. | E33: 2016-11-03 | G33: =12000000+1800000 -> 13800000 | I33: 124 | K33: =W33-I33 -> 1.89 | M33: 26082000 | O33: 750000 | Q33: 26832000 | S33: 1711200000 | U33: 0.0156802244 | W33: 125.89 | X33: =S33-M33-O33 -> 1684368000
A34: 26 | B34: NWE | C34: NorthWestern Corp. | E34: 2015-09-30 | G34: 1100000 | I34: 51.81 | K34: =W34-I34 -> 1.33 | M34: 1463000 | O34: 1000000 | Q34: 2463000 | S34: 56991000 | U34: 0.04321735011 | W34: 53.14 | X34: =S34-M34-O34 -> 54528000
A35: 27 | B35: OGE | C35: OGE Energy Corp. | E35: 2003-08-22 | G35: =4650000+674074 -> 5324074 | I35: 21.6 | K35: 0.79 | M35: 4206018.46 | O35: 325000 | Q35: 4531018.46 | S35: 114999998.4 | U35: 0.03940016107
A36: 28 | B36: OTTR | C36: Otter Tail Corp. | E36: N/A
A37: 29 | B37: PCG | C37: PG&E Corp. | E37: 2016-08-17 | G37: 4900000 | I37: 63.15 | K37: =W37-I37 -> 0.3 | M37: 1470000 | O37: 175000 | Q37: 1645000 | S37: 309435000 | U37: 0.005316140708 | W37: 63.45 | X37: =S37-M37-O37 -> 307790000
A38: 30 | B38: PNW | C38: Pinnacle West Capital | E38: 2010-04-09 | G38: =6000000+900000 -> 6900000 | I38: 38 | K38: 1.33 | M38: 9177000 | O38: 190000 | Q38: 9367000 | S38: 262200000 | U38: 0.03572463768
A39: 31 | B39: PNM | C39: PNM Resources | E39: 2006-12-07 | G39: =5000000+750000 -> 5750000 | I39: 30.79 | K39: 1.078 | M39: 6198500 | O39: 250000 | Q39: 6448500 | S39: 177042500 | U39: 0.03642345764
A40: 32 | B40: POR | C40: Portland General Elec. | E40: 2013-06-13 | G40: =11100000+1665000 -> 12765000 | I40: 29.5 | K40: 0.95875 | M40: 12238443.75 | O40: 600000 | Q40: 12838443.75 | S40: 376567500 | U40: 0.03409333984
A41: 33 | B41: PPL | C41: PPL Corp. | E41: 2012-04-11 | G41: =9900000+1485000 -> 11385000 | I41: 27.02 | K41: =W41-I41 -> 0.64 | M41: 7286400 | O41: 750000 | Q41: 8036400 | S41: 307622700 | U41: 0.02612420995 | W41: =I41+6336000/9900000 -> 27.66 | X41: =S41-M41-O41 -> 299586300
A42: 34 | B42: PEG | C42: Pub Sv Enterprise Grp. | E42: 2003-10-02 | G42: =8250000+1237500 -> 9487500 | I42: 41.75 | K42: 1.2525 | M42: 11883093.75 | O42: 350000 | Q42: 12233093.75 | S42: 396103125 | U42: 0.03088360828
A43: 35 | B43: SCG | C43: SCANA Corp. | E43: 2010-05-13 | G43: =7150000+1072500 -> 8222500 | I43: 37 | K43: 1.295 | M43: 10648137.5 | O43: 350000 | Q43: 10998137.5 | S43: 304232500 | U43: 0.03615043593
A44: 36 | B44: SRE | C44: Sempra Energy | E44: 2018-01-05 | G44: =23364486+3504672 -> 26869158 | I44: 107 | K44: 1.926 | M44: 51749998.31 | O44: 1500000 | Q44: 53249998.31 | S44: 2874999906 | U44: 0.01852173915
A45: 37 | B45: SO | C45: Southern Company | E45: 2016-08-18 | G45: 32500000 | I45: 49.3 | K45: =W45-I45 -> 1.66 | M45: 53950000 | O45: 557000 | Q45: 54507000 | S45: 1602250000 | U45: 0.03401903573 | W45: 50.96 | X45: =S45-M45-O45 -> 1547743000
A46: 38 | B46: VVC | C46: Vectren Corp. | E46: 2007-02-26 | G46: =4600000+690000 -> 5290000 | I46: 28.33 | K46: 0.99 | M46: 5237100 | O46: 425000 | Q46: 5662100 | S46: 149865700 | U46: 0.03778116007
A47: 39 | B47: WEC | C47: WEC Energy Group | E47: N/A
A48: 40 | B48: WR | C48: Westar Energy | E48: 2013-09-25 | G48: =8000000+1200000 -> 9200000 | I48: 31.15 | K48: 1.09025 | M48: 10030300 | O48: 250000 | Q48: 10280300 | S48: 286580000 | U48: 0.03587235676
A49: 41 | B49: XEL | C49: Xcel Energy Inc. | E49: 2010-08-04 | G49: =19000000+2850000 -> 21850000 | I49: 21.5 | K49: 0.645 | M49: 14093250 | O49: 600000 | Q49: 14693250 | S49: 469775000 | U49: 0.03127720717
C50: Average | U50: =AVERAGE(U9:U49) -> 0.03102253593
B52: Column Notes:
B53: (1-4) | C53: SEC Form 424B for each company's most recent open-market common stock issuance.
B54: (5) | C54: Column (2) * Column (4)
B55: (6) | C55: SEC Form 424B for each company's most recent open-market common stock issuance.
B56: (7) | C56: Column (5) + Column (6)
B57: (8) | C57: Column (2) * Column (3)
B58: (9) | C58: Column (7) / Column (8)

Sheet 12 (1)
A1: ='Exhibit List'!C21 -> DCF MODEL - NON-UTILITY GROUP | I1: ='Exhibit List'!B21 -> Exhibit No. 12
I2: Page 1 of 3
A3: ='Exhibit List'!D21 -> DIVIDEND YIELD
E6: (a) | G6: (b)
B8: Company | C8: Industry Group | E8: Price | G8: Dividends | I8: Yield
A9: =A8+1 -> 1 | B9: AT&T Inc. | C9: Telecommunications | E9: ='Stock Price (Non-Utility)'!C$34 -> 31.834 | G9: 2.02 | I9: =G9/E9 -> 0.0634541685
A10: =A9+1 -> 2 | B10: Church & Dwight | C10: Household Products | E10: ='Stock Price (Non-Utility)'!D$34 -> 53.404 | G10: 0.87 | I10: 0.01629091454
A11: 3 | B11: Coca-Cola | C11: Beverage | E11: ='Stock Price (Non-Utility)'!E$34 -> 44.43433333 | G11: 1.61 | I11: 0.03623324306
A12: 4 | B12: Federal Realty | C12: REIT | E12: ='Stock Price (Non-Utility)'!F$34 -> 124.1373333 | G12: 4.06 | I12: 0.03270571303
A13: 5 | B13: Kellogg | C13: Food Processing | E13: ='Stock Price (Non-Utility)'!G$34 -> 69.53633333 | G13: 2.22 | I13: 0.03192575584
A14: 6 | B14: Kimberly-Clark | C14: Household Products | E14: ='Stock Price (Non-Utility)'!H$34 -> 104.5593333 | G14: 4 | I14: 0.03825579097
A15: 7 | B15: Procter & Gamble | C15: Household Products | E15: ='Stock Price (Non-Utility)'!I$34 -> 78.426 | G15: 2.88 | I15: 0.03672251549
A16: 8 | B16: Smucker (J.M.) | C16: Food Processing | E16: ='Stock Price (Non-Utility)'!J$34 -> 108.4596667 | G16: 3.4 | I16: 0.03134805873
A17: 9 | B17: Walmart Inc. | C17: Retail Store | E17: ='Stock Price (Non-Utility)'!K$34 -> 86.158 | G17: 2.08 | I17: 0.02414169317
B19: Average | I19: =AVERAGE(I9:I17) -> 0.03456420592
A23: (a) | B23: ='Stock Price (Non-Utility)'!B37 -> Average of closing prices for 30 trading days ended Jul. 27, 2018.
A24: (b) | B24: The Value Line Investment Survey, Summary & Index (Jul. 27, 2018).

Sheet 12 (2)
A1: ='Exhibit List'!C22 -> DCF MODEL - NON-UTILITY GROUP | M1: ='Exhibit List'!B22 -> Exhibit No. 12
M2: Page 2 of 3
A3: ='Exhibit List'!D22 -> GROWTH RATES
C5: (a) | E5: (b) | G5: (c) | I5: (d) | K5: (e) | M5: (f)
C7: Earnings Growth
K8: S&P
B9: Company | C9: V Line | E9: IBES | G9: Zacks | I9: Bloomberg | K9: Capital IQ | M9: FactSet
A10: =A9+1 -> 1 | B10: ='12 (1)'!B9 -> AT&T Inc. | C10: 0.055 | E10: 0.0529 | G10: 0.0342 | I10: -0.005 | K10: 0.0701 | M10: 0.05
A11: 2 | B11: ='12 (1)'!B10 -> Church & Dwight | C11: 0.09 | E11: 0.1045 | G11: 0.1002 | I11: 0.10243 | K11: 0.1018 | M11: 0.1
A12: 3 | B12: ='12 (1)'!B11 -> Coca-Cola | C12: 0.065 | E12: 0.0723 | G12: 0.0805 | I12: 0.08247 | K12: 0.0758 | M12: 0.0775
A13: 4 | B13: ='12 (1)'!B12 -> Federal Realty | C13: n/a | E13: 0.05 | G13: 0.06 | I13: 0.04398 | K13: 0.06 | M13: 0.046
A14: 5 | B14: ='12 (1)'!B13 -> Kellogg | C14: 0.07 | E14: 0.067 | G14: 0.0729 | I14: 0.08023 | K14: 0.0828 | M14: 0.08
A15: 6 | B15: ='12 (1)'!B14 -> Kimberly-Clark | C15: 0.105 | E15: 0.062 | G15: 0.0697 | I15: 0.1407 | K15: 0.0632 | M15: 0.07
A16: 7 | B16: ='12 (1)'!B15 -> Procter & Gamble | C16: 0.09 | E16: 0.0592 | G16: 0.0716 | I16: 0.07298 | K16: 0.0738 | M16: 0.065
A17: 8 | B17: ='12 (1)'!B16 -> Smucker (J.M.) | C17: 0.065 | E17: 0.045 | G17: 0.075 | I17: 0.07 | K17: 0.212 | M17: 0.07
A18: 9 | B18: ='12 (1)'!B17 -> Walmart Inc. | C18: 0.055 | E18: 0.0647 | G18: 0.0673 | I18: 0.0683 | K18: 0.0731 | M18: 0.0725
A22: (a) | B22: ='Proxy Group Risk Measures'!B63 -> The Value Line Investment Survey (Jun. 15, Jun. 22, Jul. 6, Jul. 20, Jul. 27, 2018).
A23: (b) | B23: www.finance.yahoo.com (retrieved Jul. 18, 2018).
A24: (c) | B24: www.zacks.com (retrieved Jul. 18, 2018).
A25: (d) | B25: Bloomberg L.P. (retrieved Jul. 13, 2018).
A26: (e) | B26: SNL Financial (retrieved Jun. 5, 2018).
A27: (f) | B27: www.money.cnn.com (retrieved Jul. 18, 2018).

Sheet 12 (3)
A1: ='Exhibit List'!C23 -> DCF MODEL - NON-UTILITY GROUP | M1: ='Exhibit List'!B23 -> Exhibit No. 12
M2: Page 3 of 3
A3: ='Exhibit List'!D23 -> DCF COST OF EQUITY ESTIMATES
C5: (a) | E5: (a) | G5: (a) | I5: (a) | K5: (a) | M5: (a)
C7: Earnings Growth
K8: S&P
B9: Company | C9: V Line | E9: IBES | G9: Zacks | I9: Bloomberg | K9: Capital IQ | M9: FactSet
A10: =A9+1 -> 1 | B10: ='12 (1)'!B9 -> AT&T Inc. | C10: =IF('12 (2)'!C10="n/a","n/a",'12 (1)'!$I9+'12 (2)'!C10) -> 0.1184541685 | E10: =IF('12 (2)'!E10="n/a","n/a",'12 (1)'!$I9+'12 (2)'!E10) -> 0.1163541685 | G10: =IF('12 (2)'!G10="n/a","n/a",'12 (1)'!$I9+'12 (2)'!G10) -> 0.0976541685 | I10: =IF('12 (2)'!I10="n/a","n/a",'12 (1)'!$I9+'12 (2)'!I10) -> 0.0584541685 | K10: =IF('12 (2)'!K10="n/a","n/a",'12 (1)'!$I9+'12 (2)'!K10) -> 0.1335541685 | M10: =IF('12 (2)'!M10="n/a","n/a",'12 (1)'!$I9+'12 (2)'!M10) -> 0.1134541685 | P10: =IF(C10="n/a","n/a",IF(C10<$C$33,"nmf",IF(C10>$C$34,"nmf",C10))) -> 0.1184541685 | Q10: =IF(E10="n/a","n/a",IF(E10<$C$33,"nmf",IF(E10>$C$34,"nmf",E10))) -> 0.1163541685 | R10: =IF(G10="n/a","n/a",IF(G10<$C$33,"nmf",IF(G10>$C$34,"nmf",G10))) -> 0.0976541685 | S10: =IF(I10="n/a","n/a",IF(I10<$C$33,"nmf",IF(I10>$C$34,"nmf",I10))) -> nmf | T10: =IF(K10="n/a","n/a",IF(K10<$C$33,"nmf",IF(K10>$C$34,"nmf",K10))) -> 0.1335541685 | U10: =IF(M10="n/a","n/a",IF(M10<$C$33,"nmf",IF(M10>$C$34,"nmf",M10))) -> 0.1134541685
A11: 2 | B11: ='12 (1)'!B10 -> Church & Dwight | C11: =IF('12 (2)'!C11="n/a","n/a",'12 (1)'!$I10+'12 (2)'!C11) -> 0.1062909145 | E11: =IF('12 (2)'!E11="n/a","n/a",'12 (1)'!$I10+'12 (2)'!E11) -> 0.1207909145 | G11: =IF('12 (2)'!G11="n/a","n/a",'12 (1)'!$I10+'12 (2)'!G11) -> 0.1164909145 | I11: =IF('12 (2)'!I11="n/a","n/a",'12 (1)'!$I10+'12 (2)'!I11) -> 0.1187209145 | K11: =IF('12 (2)'!K11="n/a","n/a",'12 (1)'!$I10+'12 (2)'!K11) -> 0.1180909145 | M11: =IF('12 (2)'!M11="n/a","n/a",'12 (1)'!$I10+'12 (2)'!M11) -> 0.1162909145 | P11: 0.1062909145 | Q11: 0.1207909145 | R11: 0.1164909145 | S11: 0.1187209145 | T11: 0.1180909145 | U11: 0.1162909145
A12: 3 | B12: ='12 (1)'!B11 -> Coca-Cola | C12: =IF('12 (2)'!C12="n/a","n/a",'12 (1)'!$I11+'12 (2)'!C12) -> 0.1012332431 | E12: =IF('12 (2)'!E12="n/a","n/a",'12 (1)'!$I11+'12 (2)'!E12) -> 0.1085332431 | G12: =IF('12 (2)'!G12="n/a","n/a",'12 (1)'!$I11+'12 (2)'!G12) -> 0.1167332431 | I12: =IF('12 (2)'!I12="n/a","n/a",'12 (1)'!$I11+'12 (2)'!I12) -> 0.1187032431 | K12: =IF('12 (2)'!K12="n/a","n/a",'12 (1)'!$I11+'12 (2)'!K12) -> 0.1120332431 | M12: =IF('12 (2)'!M12="n/a","n/a",'12 (1)'!$I11+'12 (2)'!M12) -> 0.1137332431 | P12: 0.1012332431 | Q12: 0.1085332431 | R12: 0.1167332431 | S12: 0.1187032431 | T12: 0.1120332431 | U12: 0.1137332431
A13: 4 | B13: ='12 (1)'!B12 -> Federal Realty | C13: =IF('12 (2)'!C13="n/a","n/a",'12 (1)'!$I12+'12 (2)'!C13) -> n/a | E13: =IF('12 (2)'!E13="n/a","n/a",'12 (1)'!$I12+'12 (2)'!E13) -> 0.08270571303 | G13: =IF('12 (2)'!G13="n/a","n/a",'12 (1)'!$I12+'12 (2)'!G13) -> 0.09270571303 | I13: =IF('12 (2)'!I13="n/a","n/a",'12 (1)'!$I12+'12 (2)'!I13) -> 0.07668571303 | K13: =IF('12 (2)'!K13="n/a","n/a",'12 (1)'!$I12+'12 (2)'!K13) -> 0.09270571303 | M13: =IF('12 (2)'!M13="n/a","n/a",'12 (1)'!$I12+'12 (2)'!M13) -> 0.07870571303 | P13: n/a | Q13: 0.08270571303 | R13: 0.09270571303 | S13: 0.07668571303 | T13: 0.09270571303 | U13: 0.07870571303
A14: 5 | B14: ='12 (1)'!B13 -> Kellogg | C14: =IF('12 (2)'!C14="n/a","n/a",'12 (1)'!$I13+'12 (2)'!C14) -> 0.1019257558 | E14: =IF('12 (2)'!E14="n/a","n/a",'12 (1)'!$I13+'12 (2)'!E14) -> 0.09892575584 | G14: =IF('12 (2)'!G14="n/a","n/a",'12 (1)'!$I13+'12 (2)'!G14) -> 0.1048257558 | I14: =IF('12 (2)'!I14="n/a","n/a",'12 (1)'!$I13+'12 (2)'!I14) -> 0.1121557558 | K14: =IF('12 (2)'!K14="n/a","n/a",'12 (1)'!$I13+'12 (2)'!K14) -> 0.1147257558 | M14: =IF('12 (2)'!M14="n/a","n/a",'12 (1)'!$I13+'12 (2)'!M14) -> 0.1119257558 | P14: 0.1019257558 | Q14: 0.09892575584 | R14: 0.1048257558 | S14: 0.1121557558 | T14: 0.1147257558 | U14: 0.1119257558
A15: 6 | B15: ='12 (1)'!B14 -> Kimberly-Clark | C15: =IF('12 (2)'!C15="n/a","n/a",'12 (1)'!$I14+'12 (2)'!C15) -> 0.143255791 | E15: =IF('12 (2)'!E15="n/a","n/a",'12 (1)'!$I14+'12 (2)'!E15) -> 0.100255791 | G15: =IF('12 (2)'!G15="n/a","n/a",'12 (1)'!$I14+'12 (2)'!G15) -> 0.107955791 | I15: =IF('12 (2)'!I15="n/a","n/a",'12 (1)'!$I14+'12 (2)'!I15) -> 0.178955791 | K15: =IF('12 (2)'!K15="n/a","n/a",'12 (1)'!$I14+'12 (2)'!K15) -> 0.101455791 | M15: =IF('12 (2)'!M15="n/a","n/a",'12 (1)'!$I14+'12 (2)'!M15) -> 0.108255791 | P15: 0.143255791 | Q15: 0.100255791 | R15: 0.107955791 | S15: nmf | T15: 0.101455791 | U15: 0.108255791
A16: 7 | B16: ='12 (1)'!B15 -> Procter & Gamble | C16: =IF('12 (2)'!C16="n/a","n/a",'12 (1)'!$I15+'12 (2)'!C16) -> 0.1267225155 | E16: =IF('12 (2)'!E16="n/a","n/a",'12 (1)'!$I15+'12 (2)'!E16) -> 0.09592251549 | G16: =IF('12 (2)'!G16="n/a","n/a",'12 (1)'!$I15+'12 (2)'!G16) -> 0.1083225155 | I16: =IF('12 (2)'!I16="n/a","n/a",'12 (1)'!$I15+'12 (2)'!I16) -> 0.1097025155 | K16: =IF('12 (2)'!K16="n/a","n/a",'12 (1)'!$I15+'12 (2)'!K16) -> 0.1105225155 | M16: =IF('12 (2)'!M16="n/a","n/a",'12 (1)'!$I15+'12 (2)'!M16) -> 0.1017225155 | P16: 0.1267225155 | Q16: 0.09592251549 | R16: 0.1083225155 | S16: 0.1097025155 | T16: 0.1105225155 | U16: 0.1017225155
A17: 8 | B17: ='12 (1)'!B16 -> Smucker (J.M.) | C17: =IF('12 (2)'!C17="n/a","n/a",'12 (1)'!$I16+'12 (2)'!C17) -> 0.09634805873 | E17: =IF('12 (2)'!E17="n/a","n/a",'12 (1)'!$I16+'12 (2)'!E17) -> 0.07634805873 | G17: =IF('12 (2)'!G17="n/a","n/a",'12 (1)'!$I16+'12 (2)'!G17) -> 0.1063480587 | I17: =IF('12 (2)'!I17="n/a","n/a",'12 (1)'!$I16+'12 (2)'!I17) -> 0.1013480587 | K17: =IF('12 (2)'!K17="n/a","n/a",'12 (1)'!$I16+'12 (2)'!K17) -> 0.2433480587 | M17: =IF('12 (2)'!M17="n/a","n/a",'12 (1)'!$I16+'12 (2)'!M17) -> 0.1013480587 | P17: 0.09634805873 | Q17: 0.07634805873 | R17: 0.1063480587 | S17: 0.1013480587 | T17: nmf | U17: 0.1013480587
A18: 9 | B18: ='12 (1)'!B17 -> Walmart Inc. | C18: =IF('12 (2)'!C18="n/a","n/a",'12 (1)'!$I17+'12 (2)'!C18) -> 0.07914169317 | E18: =IF('12 (2)'!E18="n/a","n/a",'12 (1)'!$I17+'12 (2)'!E18) -> 0.08884169317 | G18: =IF('12 (2)'!G18="n/a","n/a",'12 (1)'!$I17+'12 (2)'!G18) -> 0.09144169317 | I18: =IF('12 (2)'!I18="n/a","n/a",'12 (1)'!$I17+'12 (2)'!I18) -> 0.09244169317 | K18: =IF('12 (2)'!K18="n/a","n/a",'12 (1)'!$I17+'12 (2)'!K18) -> 0.09724169317 | M18: =IF('12 (2)'!M18="n/a","n/a",'12 (1)'!$I17+'12 (2)'!M18) -> 0.09664169317 | P18: 0.07914169317 | Q18: 0.08884169317 | R18: 0.09144169317 | S18: 0.09244169317 | T18: 0.09724169317 | U18: 0.09664169317
A19: 10
B20: Average (b) | C20: =AVERAGE(P10:P18) -> 0.1091715175 | E20: =AVERAGE(Q10:Q18) -> 0.0987419837 | G20: =AVERAGE(R10:R18) -> 0.1047197615 | I20: =AVERAGE(S10:S18) -> 0.1042511277 | K20: =AVERAGE(T10:T18) -> 0.1100412243 | M20: =AVERAGE(U10:U18) -> 0.104675317 | N20: =AVERAGE(C20:M20) -> 0.105266822
B21: Midpoint (b,c) | C21: =AVERAGE(P21:P22) -> 0.1111987421 | E21: =AVERAGE(Q21:Q22) -> 0.09856948663 | G21: =AVERAGE(R21:R22) -> 0.1040874681 | I21: =AVERAGE(S21:S22) -> 0.09770331378 | K21: =AVERAGE(T21:T22) -> 0.1131299408 | M21: =AVERAGE(U21:U22) -> 0.09749831378 | O21: Min | P21: =MIN(P10:P18) -> 0.07914169317 | Q21: 0.07634805873 | R21: 0.09144169317 | S21: 0.07668571303 | T21: 0.09270571303 | U21: 0.07870571303
O22: Max | P22: =MAX(P10:P18) -> 0.143255791 | Q22: 0.1207909145 | R22: 0.1167332431 | S22: 0.1187209145 | T22: 0.1335541685 | U22: 0.1162909145
B25: ="Sum of dividend yield (" & '12 (3)'!M1 & ", p. 1) and respective growth rate (" & M1 & ", p. 2)." -> Sum of dividend yield (Exhibit No. 12, p. 1) and respective growth rate (Exhibit No. 12, p. 2).
A26: (a)
A27: (b) | B27: Excludes highlighted figures.
A28: (c) | B28: Average of low and high values.
B33: Criteria Min | C33: ='5 (3)'!D43 -> 0.0695
B34: Criteria Max | C34: ='5 (3)'!D44 -> 0.169

Sheet Stock Price (Utility)
C1: 1 | D1: =C1+1 -> 2 | E1: =D1+1 -> 3 | F1: 4 | G1: 5 | H1: 6 | I1: 7 | J1: 8 | K1: 9 | L1: 10 | M1: 11 | N1: 12 | O1: 13 | P1: 14 | Q1: 15 | R1: 16 | S1: 17 | T1: 18 | U1: =T1+1 -> 19 | V1: =U1+1 -> 20 | W1: =V1+1 -> 21
C2: (b) | L2: (b) | P2: (b)
C3: =TRANSPOSE('Utility Group'!B3:B23) -> AQN | D3: LNT | E3: AEE | F3: AGR | G3: BKH | H3: CMS | I3: ED | J3: DTE | K3: DUK | L3: EMA | M3: ETR | N3: ES | O3: EXC | P3: FTS | Q3: NWE | R3: PPL | S3: PEG | T3: SRE | U3: SO | V3: WEC | W3: XEL
A4: =A3+1 -> 1 | B4: 2018-07-27 | C4: 12.78 | D4: 42.94 | E4: 61.94 | F4: 49.69 | G4: 59.69 | H4: 48.12 | I4: 78.55 | J4: 108.61 | K4: 81.09 | L4: 42.41 | M4: 80.55 | N4: 60.08 | O4: 42.2 | P4: 42.32 | Q4: 58.91 | R4: 28.790001 | S4: 51.43 | T4: 114.970001 | U4: 47.970001 | V4: 65.690002 | W4: 46.59
A5: =A4+1 -> 2 | B5: 2018-07-26 | C5: 12.87 | D5: 43.06 | E5: 62.15 | F5: 49.81 | G5: 60.29 | H5: 48.14 | I5: 78.3 | J5: 108.82 | K5: 81.14 | L5: 42.549999 | M5: 80.43 | N5: 60.36 | O5: 42.27 | P5: 42.43 | Q5: 59.35 | R5: 28.959999 | S5: 51.799999 | T5: 115.769997 | U5: 48.080002 | V5: 65.470001 | W5: 46.880001
A6: 3 | B6: 2018-07-25 | C6: 12.79 | D6: 42.12 | E6: 61.36 | F6: 49.87 | G6: 59.79 | H6: 47.88 | I6: 77.39 | J6: 108.3 | K6: 80.18 | L6: 42.34 | M6: 79.25 | N6: 59.34 | O6: 41.88 | P6: 42.27 | Q6: 59.22 | R6: 28.76 | S6: 51.439999 | T6: 115.470001 | U6: 47.549999 | V6: 64.440002 | W6: 45.689999
A7: 4 | B7: 2018-07-24 | C7: 12.87 | D7: 42.19 | E7: 61 | F7: 50.09 | G7: 60.15 | H7: 47.41 | I7: 77.61 | J7: 106.72 | K7: 79.89 | L7: 42.369999 | M7: 78.98 | N7: 58.82 | O7: 41.65 | P7: 42.41 | Q7: 58.93 | R7: 28.450001 | S7: 51.16 | T7: 114.5 | U7: 47.540001 | V7: 64.43 | W7: 45.540001
A8: 5 | B8: 2018-07-23 | C8: 12.9 | D8: 42.18 | E8: 60.93 | F8: 52.27 | G8: 60.39 | H8: 47.09 | I8: 77.46 | J8: 106.43 | K8: 79.97 | L8: 42.240002 | M8: 79.41 | N8: 58.46 | O8: 41.61 | P8: 42.400002 | Q8: 58.87 | R8: 28.129999 | S8: 51.029999 | T8: 113.57 | U8: 47.360001 | V8: 64.300003 | W8: 45.279999
A9: 6 | B9: 2018-07-20 | C9: 12.93 | D9: 42.54 | E9: 61.34 | F9: 52.44 | G9: 60.44 | H9: 47.42 | I9: 78.05 | J9: 106.6 | K9: 80.65 | L9: 42.720001 | M9: 80.51 | N9: 58.75 | O9: 42.05 | P9: 42.639999 | Q9: 58.6 | R9: 28.01 | S9: 51.360001 | T9: 114.260002 | U9: 47.52 | V9: 64.839996 | W9: 45.630001
A10: 7 | B10: 2018-07-19 | C10: 13.09 | D10: 42.96 | E10: 61.71 | F10: 52.82 | G10: 60.9 | H10: 47.86 | I10: 78.78 | J10: 107.37 | K10: 81.2 | L10: 42.639999 | M10: 81 | N10: 59.16 | O10: 42.24 | P10: 42.990002 | Q10: 58.28 | R10: 28.309999 | S10: 52.169998 | T10: 115.309998 | U10: 47.919998 | V10: 65.239998 | W10: 45.91
A11: 8 | B11: 2018-07-18 | C11: 12.65 | D11: 42.69 | E11: 61.07 | F11: 52.49 | G11: 60.38 | H11: 47.38 | I11: 78.54 | J11: 106.06 | K11: 80.44 | L11: 42.049999 | M11: 80.54 | N11: 58.52 | O11: 41.92 | P11: 42.639999 | Q11: 57.73 | R11: 27.99 | S11: 51.75 | T11: 114.32 | U11: 47.549999 | V11: 64.720001 | W11: 45.619999
A12: 9 | B12: 2018-07-17 | C12: 12.63 | D12: 42.88 | E12: 61.27 | F12: 52.77 | G12: 60.89 | H12: 47.6 | I12: 78.96 | J12: 106.38 | K12: 80.65 | L12: 42.689999 | M12: 81.7 | N12: 58.87 | O12: 41.92 | P12: 42.889999 | Q12: 58.11 | R12: 28.41 | S12: 51.740002 | T12: 115.610001 | U12: 47.650002 | V12: 64.919998 | W12: 45.860001
A13: 10 | B13: 2018-07-16 | C13: 12.59 | D13: 42.78 | E13: 61.34 | F13: 52.99 | G13: 61.2 | H13: 47.71 | I13: 79.2 | J13: 106.3 | K13: 80.78 | L13: 42.540001 | M13: 81.81 | N13: 59.04 | O13: 42.15 | P13: 42.669998 | Q13: 58.26 | R13: 28.52 | S13: 51.810001 | T13: 115.760002 | U13: 47.709999 | V13: 65.040001 | W13: 46.07
A14: 11 | B14: 2018-07-13 | C14: 12.6 | D14: 42.93 | E14: 61.39 | F14: 52.9 | G14: 61.32 | H14: 47.85 | I14: 79.46 | J14: 106.19 | K14: 80.62 | L14: 42.509998 | M14: 81.89 | N14: 59.14 | O14: 42.39 | P14: 42.580002 | Q14: 58.67 | R14: 28.52 | S14: 52.040001 | T14: 116.510002 | U14: 47.959999 | V14: 65.190002 | W14: 46.27
A15: 12 | B15: 2018-07-12 | C15: 12.69 | D15: 43.14 | E15: 61.37 | F15: 52.76 | G15: 61.4 | H15: 47.92 | I15: 79.22 | J15: 105.92 | K15: 80.5 | L15: 42.580002 | M15: 82.18 | N15: 59.14 | O15: 42.35 | P15: 42.580002 | Q15: 58.63 | R15: 28.65 | S15: 52.330002 | T15: 115.629997 | U15: 47.98 | V15: 65.580002 | W15: 46.34
A16: 13 | B16: 2018-07-11 | C16: 12.59 | D16: 43.11 | E16: 61.38 | F16: 52.8 | G16: 62.34 | H16: 47.89 | I16: 79.03 | J16: 105.66 | K16: 80.38 | L16: 42.369999 | M16: 82.21 | N16: 59.25 | O16: 42.45 | P16: 42.150002 | Q16: 58.47 | R16: 28.469999 | S16: 52.619999 | T16: 115.68 | U16: 47.77 | V16: 65.309998 | W16: 46.389999
A17: 14 | B17: 2018-07-10 | C17: 12.56 | D17: 42.55 | E17: 60.5 | F17: 52.72 | G17: 62.56 | H17: 47.21 | I17: 77.86 | J17: 104 | K17: 79.52 | L17: 42.450001 | M17: 80.93 | N17: 58.72 | O17: 42.17 | P17: 42.139999 | Q17: 57.88 | R17: 28.309999 | S17: 52.040001 | T17: 117.300003 | U17: 47.34 | V17: 64.529999 | W17: 45.689999
A18: 15 | B18: 2018-07-09 | C18: 12.54 | D18: 42.18 | E18: 59.97 | F18: 52.22 | G18: 61 | H18: 46.78 | I18: 76.86 | J18: 103.15 | K18: 78.64 | L18: 42.150002 | M18: 80.15 | N18: 58.46 | O18: 41.85 | P18: 41.779999 | Q18: 56.75 | R18: 28.09 | S18: 51.389999 | T18: 115.629997 | U18: 46.369999 | V18: 64.029999 | W18: 45.16
A19: 16 | B19: 2018-07-06 | C19: 12.63 | D19: 43.84 | E19: 62.03 | F19: 54.13 | G19: 63.97 | H19: 48.59 | I19: 79.5 | J19: 107.03 | K19: 81.62 | L19: 42.799999 | M19: 82.56 | N19: 60.31 | O19: 43.09 | P19: 42.59 | Q19: 59.04 | R19: 29.57 | S19: 53.27 | T19: 117.779999 | U19: 47.759998 | V19: 66.410004 | W19: 46.959999
A20: 17 | B20: 2018-07-05 | C20: 12.64 | D20: 43.41 | E20: 61.55 | F20: 53.67 | G20: 62.9 | H20: 48.18 | I20: 78.99 | J20: 106.33 | K20: 80.61 | L20: 42.73 | M20: 81.96 | N20: 59.72 | O20: 42.92 | P20: 42.389999 | Q20: 58.63 | R20: 29.459999 | S20: 53.419998 | T20: 117.300003 | U20: 47.560001 | V20: 65.68 | W20: 46.59
A21: 18 | B21: 2018-07-03 | C21: 12.62 | D21: 42.99 | E21: 61.23 | F21: 53.31 | G21: 61.89 | H21: 47.96 | I21: 78.46 | J21: 105.02 | K21: 79.81 | L21: 42.84 | M21: 81.38 | N21: 59.52 | O21: 42.81 | P21: 42.07 | Q21: 58.17 | R21: 29.040001 | S21: 53.490002 | T21: 116.120003 | U21: 47 | V21: 65.18 | W21: 46.25
A22: 19 | B22: 2018-07-02 | C22: 12.67 | D22: 42.71 | E22: 61.22 | F22: 53.12 | G22: 61.6 | H22: 47.84 | I22: 78.34 | J22: 104.59 | K22: 79.76 | L22: 42.799999 | M22: 81.43 | N22: 59.02 | O22: 42.9 | P22: 42.110001 | Q22: 57.35 | R22: 28.74 | S22: 53.919998 | T22: 115.540001 | U22: 46.900002 | V22: 65.150002 | W22: 46.23
A23: 20 | B23: 2018-06-29 | C23: 12.7 | D23: 42.32 | E23: 60.85 | F23: 52.93 | G23: 61.21 | H23: 47.28 | I23: 77.98 | J23: 103.63 | K23: 79.08 | L23: 42.799999 | M23: 80.79 | N23: 58.61 | O23: 42.6 | P23: 42.02 | Q23: 57.25 | R23: 28.549999 | S23: 54.139999 | T23: 116.110001 | U23: 46.310001 | V23: 64.650002 | W23: 45.68
A24: 21 | B24: 2018-06-28 | C24: 12.65 | D24: 42.36 | E24: 60.84 | F24: 52.59 | G24: 61.44 | H24: 47.04 | I24: 77.94 | J24: 103.94 | K24: 79.23 | L24: 42.740002 | M24: 81.26 | N24: 58.28 | O24: 42.28 | P24: 42.009998 | Q24: 57.09 | R24: 28.620001 | S24: 54.189999 | T24: 115.110001 | U24: 46.34 | V24: 64.459999 | W24: 45.66
A25: 22 | B25: 2018-06-27 | C25: 12.85 | D25: 42.41 | E25: 60.49 | F25: 52.17 | G25: 61.02 | H25: 47.12 | I25: 77.9 | J25: 104.18 | K25: 79.52 | L25: 42.900002 | M25: 81.74 | N25: 57.99 | O25: 42.2 | P25: 42.009998 | Q25: 56.96 | R25: 28.719999 | S25: 54.060001 | T25: 115.93 | U25: 46.330002 | V25: 63.990002 | W25: 45.689999
A26: 23 | B26: 2018-06-26 | C26: 12.85 | D26: 42.28 | E26: 59.94 | F26: 51.88 | G26: 60.66 | H26: 46.51 | I26: 77.48 | J26: 103.2 | K26: 78.79 | L26: 42.990002 | M26: 80.9 | N26: 57.55 | O26: 42.03 | P26: 41.900002 | Q26: 56.93 | R26: 28.68 | S26: 53.720001 | T26: 115.730003 | U26: 46.09 | V26: 63.400002 | W26: 45.330002
A27: 24 | B27: 2018-06-25 | C27: 12.82 | D27: 42.26 | E27: 59.65 | F27: 52.09 | G27: 61.44 | H27: 46.51 | I27: 77.42 | J27: 102.79 | K27: 79.08 | L27: 42.82 | M27: 81.02 | N27: 57.33 | O27: 41.85 | P27: 42.080002 | Q27: 57.57 | R27: 28.790001 | S27: 54.240002 | T27: 116.610001 | U27: 46.599998 | V27: 63.439999 | W27: 45.150002
A28: 25 | B28: 2018-06-22 | C28: 12.77 | D28: 41.09 | E28: 58.68 | F28: 51.5 | G28: 60.69 | H28: 45.44 | I28: 75.76 | J28: 100.45 | K28: 77.43 | L28: 42.73 | M28: 80.21 | N28: 56.03 | O28: 41.5 | P28: 42.16 | Q28: 56.7 | R28: 28.26 | S28: 53.34 | T28: 115.139999 | U28: 45.810001 | V28: 62.290001 | W28: 43.849998
A29: 26 | B29: 2018-06-21 | C29: 12.71 | D29: 40.97 | E29: 58.51 | F29: 51.08 | G29: 60.43 | H29: 45.33 | I29: 75.45 | J29: 100.07 | K29: 76.91 | L29: 42.049999 | M29: 79.84 | N29: 55.7 | O29: 41.43 | P29: 42.110001 | Q29: 56.1 | R29: 27.84 | S29: 53.119999 | T29: 113.089996 | U29: 45.290001 | V29: 62.029999 | W29: 43.849998
A30: 27 | B30: 2018-06-20 | C30: 12.69 | D30: 41.05 | E30: 58.31 | F30: 51 | G30: 59.83 | H30: 45.12 | I30: 75.03 | J30: 99.29 | K30: 76.19 | L30: 41.57 | M30: 80.25 | N30: 55.81 | O30: 41.8 | P30: 41.91 | Q30: 55.88 | R30: 27.309999 | S30: 53.060001 | T30: 112.559998 | U30: 45.049999 | V30: 61.860001 | W30: 43.880001
A31: 28 | B31: 2018-06-19 | C31: 12.7 | D31: 41.08 | E31: 58.28 | F31: 51.4 | G31: 59.38 | H31: 45.21 | I31: 74.86 | J31: 99.1 | K31: 75.67 | L31: 41.200001 | M31: 79.98 | N31: 55.76 | O31: 41.61 | P31: 41.759998 | Q31: 56.01 | R31: 27.26 | S31: 52.860001 | T31: 113.269997 | U31: 45.060001 | V31: 61.77 | W31: 44.189999
A32: 29 | B32: 2018-06-18 | C32: 12.6 | D32: 40.33 | E32: 57.64 | F32: 50.8 | G32: 57.91 | H32: 44.48 | I32: 73.9 | J32: 97.4 | K32: 74.41 | L32: 41 | M32: 78.4 | N32: 55.09 | O32: 41.72 | P32: 41.279999 | Q32: 55.15 | R32: 27.309999 | S32: 52.849998 | T32: 112.669998 | U32: 44.57 | V32: 60.919998 | W32: 43.599998
A33: 30 | B33: 2018-06-15 | C33: 12.71 | D33: 39.96 | E33: 56.97 | F33: 50.51 | G33: 56.98 | H33: 44.08 | I33: 73.73 | J33: 97.06 | K33: 74.3 | L33: 41.130001 | M33: 78.21 | N33: 54.63 | O33: 41.49 | P33: 41.5 | Q33: 54.25 | R33: 27.08 | S33: 52.529999 | T33: 111.910004 | U33: 44.43 | V33: 60.599998 | W33: 43.330002
C34: _______ | D34: _______ | E34: _______ | F34: _______ | G34: _______ | H34: _______ | I34: _______ | J34: _______ | K34: _______ | L34: _______ | M34: _______ | N34: _______ | O34: _______ | P34: _______ | Q34: _______ | R34: _______ | S34: _______ | T34: _______ | U34: _______ | V34: _______ | W34: _______
B35: Average | C35: =AVERAGE(C4:C33) -> 12.723 | D35: 42.31033333 | E35: 60.497 | F35: =AVERAGE(F4:F33) -> 52.02733333 | G35: 60.803 | H35: 47.03166667 | I35: =AVERAGE(I4:I33) -> 77.60033333 | J35: =AVERAGE(J4:J33) -> 104.353 | K35: 79.26866667 | L35: 42.3903335 | M35: 80.71566667 | N35: 58.24866667 | O35: 42.111 | P35: 42.22633337 | Q35: 57.658 | R35: 28.3866665 | S35: 52.61066663 | T35: =AVERAGE(T4:T33) -> 115.1720002 | U35: 46.8456668 | V35: 64.18533363 | W35: 45.50533323
A38: (a) | B38: Average of closing prices for 30 trading days ended Jul. 27, 2018.
A40: (b) | B40: AQN, EMA, and FTS in $CAD.

Sheet Stock Price (Non-Utility)
C1: 1 | D1: =C1+1 -> 2 | E1: =D1+1 -> 3 | F1: 4 | G1: =F1+1 -> 5 | H1: =G1+1 -> 6 | I1: =H1+1 -> 7 | J1: =I1+1 -> 8 | K1: =J1+1 -> 9
B2: Date | C2: T | D2: CHD | E2: KO | F2: FRT | G2: K | H2: KMB | I2: PG | J2: SJM | K2: WMT
A3: =A2+1 -> 1 | B3: 2018-07-27 | C3: 31.08 | D3: 55.36 | E3: 46.21 | F3: 120.68 | G3: 71.4 | H3: 108.04 | I3: 80.58 | J3: 110.02 | K3: 88.13
A4: 2 | B4: 2018-07-26 | C4: 30.35 | D4: 55.31 | E4: 46.24 | F4: 122.89 | G4: 70.88 | H4: 108.06 | I4: 80.09 | J4: 110.15 | K4: 88.23
A5: 3 | B5: 2018-07-25 | C5: 30.25 | D5: 54.95 | E5: 46.09 | F5: 125.05 | G5: 70.85 | H5: 106.36 | I5: 79.47 | J5: 108.52 | K5: 87.9
A6: 4 | B6: 2018-07-24 | C6: 31.68 | D6: 54.67 | E6: 45.26 | F6: 123.93 | G6: 70.18 | H6: 106.16 | I6: 78.99 | J6: 107.61 | K6: 87.96
A7: 5 | B7: 2018-07-23 | C7: 31 | D7: 54.77 | E7: 44.95 | F7: 124.48 | G7: 69.86 | H7: 105.44 | I7: 78.51 | J7: 108.7 | K7: 87.63
A8: 6 | B8: 2018-07-20 | C8: 31.1 | D8: 54.98 | E8: 45.28 | F8: 124.26 | G8: 70.2 | H8: 104.68 | I8: 78.68 | J8: 109.47 | K8: 88.06
A9: 7 | B9: 2018-07-19 | C9: 31.27 | D9: 54.14 | E9: 45.11 | F9: 124.79 | G9: 69.6 | H9: 103.55 | I9: 78.73 | J9: 109.57 | K9: 87.72
A10: 8 | B10: 2018-07-18 | C10: 31.71 | D10: 53.79 | E10: 45.12 | F10: 123.16 | G10: 68.96 | H10: 103.9 | I10: 79.72 | J10: 109.01 | K10: 88.07
A11: 9 | B11: 2018-07-17 | C11: 31.76 | D11: 54.77 | E11: 45.25 | F11: 123.98 | G11: 70.65 | H11: 106.47 | I11: 80.03 | J11: 110.99 | K11: 88.19
A12: 10 | B12: 2018-07-16 | C12: 31.9 | D12: 54.87 | E12: 44.73 | F12: 124.73 | G12: 70.59 | H12: 105.4 | I12: 79.53 | J12: 108.41 | K12: 87.64
A13: 11 | B13: 2018-07-13 | C13: 31.67 | D13: 55.89 | E13: 44.74 | F13: 125.09 | G13: 71.17 | H13: 105.62 | I13: 79.31 | J13: 111.06 | K13: 87.7
A14: 12 | B14: 2018-07-12 | C14: 32.23 | D14: 54.93 | E14: 44.67 | F14: 125.6 | G14: 70.68 | H14: 105.13 | I14: 78.89 | J14: 109.73 | K14: 86.52
A15: 13 | B15: 2018-07-11 | C15: 31.87 | D15: 54.66 | E15: 44.79 | F15: 124.89 | G15: 70.33 | H15: 105.12 | I15: 79.16 | J15: 109.85 | K15: 86.53
A16: 14 | B16: 2018-07-10 | C16: 32.5 | D16: 54.47 | E16: 44.97 | F16: 126.28 | G16: 70.64 | H16: 104.76 | I16: 79.82 | J16: 109.14 | K16: 87.21
A17: 15 | B17: 2018-07-09 | C17: 32.15 | D17: 53.45 | E17: 44.4 | F17: 126.52 | G17: 70.47 | H17: 105.15 | I17: 77.86 | J17: 110.91 | K17: 85.93
A18: 16 | B18: 2018-07-06 | C18: 32.68 | D18: 54.66 | E18: 44.64 | F18: 126.89 | G18: 71.83 | H18: 106.85 | I18: 79.31 | J18: 111.74 | K18: 84.51
A19: 17 | B19: 2018-07-05 | C19: 32.6 | D19: 54.31 | E19: 44.66 | F19: 126.28 | G19: 71.54 | H19: 106.77 | I19: 79.21 | J19: 110.64 | K19: 84.57
A20: 18 | B20: 2018-07-03 | C20: 32.71 | D20: 53.28 | E20: 43.99 | F20: 125 | G20: 69.34 | H20: 104.6 | I20: 77.9 | J20: 107.29 | K20: 84.44
A21: 19 | B21: 2018-07-02 | C21: 32.21 | D21: 52.94 | E21: 43.75 | F21: 124.74 | G21: 69.61 | H21: 104.97 | I21: 78.13 | J21: 105.16 | K21: 84
A22: 20 | B22: 2018-06-29 | C22: 32.11 | D22: 53.16 | E22: 43.86 | F22: 126.55 | G22: 69.87 | H22: 105.34 | I22: 78.06 | J22: 107.48 | K22: 85.65
A23: 21 | B23: 2018-06-28 | C23: 32.19 | D23: 53.17 | E23: 43.47 | F23: 126.17 | G23: 69.67 | H23: 104.53 | I23: 78.05 | J23: 109.05 | K23: 85.86
A24: 22 | B24: 2018-06-27 | C24: 31.65 | D24: 52.28 | E24: 43.07 | F24: 124.95 | G24: 69.18 | H24: 103.4 | I24: 77.69 | J24: 110.04 | K24: 86.89
A25: 23 | B25: 2018-06-26 | C25: 31.62 | D25: 51.69 | E25: 43.33 | F25: 124.96 | G25: 68.7 | H25: 103.32 | I25: 78 | J25: 109.12 | K25: 85.98
A26: 24 | B26: 2018-06-25 | C26: 31.71 | D26: 51.57 | E26: 43.58 | F26: 125.73 | G26: 69.05 | H26: 103.88 | I26: 77.79 | J26: 108.23 | K26: 86.47
A27: 25 | B27: 2018-06-22 | C27: 31.69 | D27: 50.63 | E27: 43.25 | F27: 125.61 | G27: 67.4 | H27: 100.97 | I27: 77.43 | J27: 105.71 | K27: 84.82
A28: 26 | B28: 2018-06-21 | C28: 31.6 | D28: 50.69 | E28: 43.09 | F28: 123.69 | G28: 66.84 | H28: 100.14 | I28: 76.44 | J28: 105.39 | K28: 84.21
A29: 27 | B29: 2018-06-20 | C29: 32 | D29: 50.75 | E29: 43.26 | F29: 120.45 | G29: 66.69 | H29: 101.65 | I29: 75.85 | J29: 106.36 | K29: 83.61
A30: 28 | B30: 2018-06-19 | C30: 32.39 | D30: 51.44 | E30: 43.6 | F30: 118.2 | G30: 66.59 | H30: 102.34 | I30: 76.33 | J30: 104.52 | K30: 83.61
A31: 29 | B31: 2018-06-18 | C31: 32.19 | D31: 50.28 | E31: 43.55 | F31: 118.91 | G31: 66.26 | H31: 100.74 | I31: 75.84 | J31: 104.19 | K31: 83
A32: 30 | B32: 2018-06-15 | C32: 33.15 | D32: 50.26 | E32: 44.12 | F32: 119.66 | G32: 67.06 | H32: 103.44 | I32: 77.38 | J32: 105.73 | K32: 83.7
B34: Average | C34: =AVERAGE(C3:C32) -> 31.834 | D34: =AVERAGE(D3:D32) -> 53.404 | E34: 44.43433333 | F34: 124.1373333 | G34: 69.53633333 | H34: 104.5593333 | I34: 78.426 | J34: 108.4596667 | K34: 86.158
A37: (a) | B37: Average of closing prices for 30 trading days ended Jul. 27, 2018.

Sheet 2018 08 Market DCF
E1: EPS Growth Rates | H1: Market | I1: Weighted | K1: Weighted | N1: Weighted | Q1: Weighted
D2: Dividend | G2: Value | H2: Cap | I2: Dividend Yield | K2: IBES | N2: Zacks | Q2: Value Line
B3: Company | C3: Ticker | D3: Yield | E3: IBES | F3: Zacks | G3: Line | H3: ($Millions) | I3: Weight | J3: Product | K3: Mkt. Cap. | L3: Weight | M3: Product | N3: Mkt. Cap. | O3: Weight | P3: Product | Q3: Mkt. Cap. | R3: Weight | S3: Product
B4: (a) | D4: (b) | E4: (c) | F4: (b) | G4: (d) | H4: (b)
A5: 1 | B5: Agilent Technologies, Inc. | C5: A | D5: 0.009 | E5: 0.102 | F5: 0.1075 | G5: 0.12 | H5: 21129.64 | I5: =H5/H$418 -> 0.001034769024 | J5: =D5*I5 -> 9.312921212e-06 | K5: =IF(E5="n/a","--",IF(E5="NMF","--",$H5)) -> 21129.64 | L5: =IF(K5="--","--",K5/K$418) -> 0.001083276709 | M5: =IF(L5="--","--",E5*L5) -> 0.0001104942243 | N5: =IF(F5="n/a","--",IF(F5="NMF","--",$H5)) -> 21129.64 | O5: =IF(N5="--","--",N5/N$418) -> 0.00105596811 | P5: =IF(O5="--","--",F5*O5) -> 0.0001135165719 | Q5: =IF(G5="n/a","--",IF(G5="NMF","--",$H5)) -> 21129.64 | R5: =IF(Q5="--","--",Q5/Q$418) -> 0.001086048942 | S5: =IF(R5="--","--",G5*R5) -> 0.000130325873
A6: 2 | B6: American Airlines Group Inc. | C6: AAL | D6: 0.0101 | E6: 0.1189 | F6: 0.1053 | G6: 0.035 | H6: 18208.54 | I6: 0.0008917157678 | J6: 9.006329255e-06 | K6: 18208.54 | L6: 0.0009335174323 | M6: 0.0001109952227 | N6: =IF(F6="n/a","--",IF(F6="NMF","--",$H6)) -> 18208.54 | O6: 0.0009099841539 | P6: 9.582133141e-05 | Q6: =IF(G6="n/a","--",IF(G6="NMF","--",$H6)) -> 18208.54 | R6: 0.0009359064138 | S6: =IF(R6="--","--",G6*R6) -> 3.275672448e-05
A7: 3 | B7: Advance Auto Parts, Inc. | C7: AAP | D7: 0.0017 | E7: 0.14 | F7: 0.1096 | G7: 0.13 | H7: 10455.44 | I7: 0.0005120279115 | J7: 8.704474495e-07 | K7: 10455.44 | L7: 0.0005360306484 | M7: 7.504429078e-05 | N7: 10455.44 | O7: 0.0005225177154 | P7: 5.726794161e-05 | Q7: 10455.44 | R7: 0.0005374024142 | S7: 6.986231385e-05
A8: 4 | B8: Apple Inc. | C8: AAPL | D8: 0.0153 | E8: 0.1278 | F8: 0.1085 | G8: 0.13 | H8: 965533.94 | I8: 0.04728450708 | J8: 0.0007234529584 | K8: 965533.94 | L8: 0.04950110028 | M8: 0.006326240616 | N8: 965533.94 | O8: 0.04825321445 | P8: 0.005235473768 | Q8: 965533.94 | R8: 0.04962777945 | S8: 0.006451611328
A9: 5 | B9: AbbVie Inc. | C9: ABBV | D9: 0.0416 | E9: 0.1612 | F9: 0.1401 | G9: 0.145 | H9: 146357.91 | I9: 0.007167497014 | J9: 0.0002981678758 | K9: 146357.91 | L9: 0.007503493435 | M9: 0.001209563142 | N9: 146357.91 | O9: 0.00731433596 | P9: 0.001024738468 | Q9: 146357.91 | R9: 0.007522695762 | S9: 0.001090790885
A10: 6 | B10: AmerisourceBergen Corporation | C10: ABC | D10: 0.0186 | E10: 0.0999 | F10: 0.0997 | G10: 0.07 | H10: 17986.56 | I10: 0.0008808448761 | J10: 1.63837147e-05 | K10: 17986.56 | L10: 0.0009221369373 | M10: 9.212148003e-05 | N10: 17986.56 | O10: 0.0008988905527 | P10: 8.96193881e-05 | Q10: 17986.56 | R10: 0.0009244967947 | S10: 6.471477563e-05
A11: 7 | B11: Abbott Laboratories | C11: ABT | D11: 0.0171 | E11: 0.1184 | F11: 0.124 | G11: 0.095 | H11: 114903.93 | I11: 0.00562712036 | J11: 9.622375816e-05 | K11: 114903.93 | L11: 0.005890907327 | M11: 0.0006974834275 | N11: 114903.93 | O11: 0.005742401946 | P11: 0.0007120578413 | Q11: 114903.93 | R11: 0.005905982855 | S11: 0.0005610683713
A12: 8 | B12: Accenture PLC | C12: ACN | D12: 0.0167 | E12: 0.102 | F12: 0.1033 | G12: 0.095 | H12: 107497.24 | I12: 0.00526439703 | J12: 8.791543041e-05 | K12: 107497.24 | L12: 0.005511180329 | M12: 0.0005621403936 | N12: 107497.24 | O12: 0.005372247582 | P12: 0.0005549531752 | Q12: 107497.24 | R12: 0.005525284091 | S12: 0.0005249019887
A13: 9 | B13: Analog Devices, Inc. | C13: ADI | D13: 0.02 | E13: 0.1025 | F13: 0.124 | G13: 0.13 | H13: 35658.06 | I13: 0.00174626051 | J13: 3.49252102e-05 | K13: 35658.06 | L13: 0.001828121344 | M13: 0.0001873824377 | N13: 35658.06 | O13: 0.001782035768 | P13: 0.0002209724352 | Q13: 35658.06 | R13: 0.001832799722 | S13: 0.0002382639639
A14: 10 | B14: Archer Daniels Midland Company | C14: ADM | D14: 0.0278 | E14: NMF | F14: n/a | G14: 0.075 | H14: 26986.23 | I14: 0.001321580248 | J14: 3.673993089e-05 | K14: -- | L14: -- | M14: -- | N14: -- | O14: -- | P14: -- | Q14: 26986.23 | R14: 0.001387073634 | S14: 0.0001040305225
A15: 11 | B15: Automatic Data Processing, Inc. | C15: ADP | D15: 0.0204 | E15: 0.1466 | F15: 0.1133 | G15: 0.11 | H15: 59466.11 | I15: 0.00291219768 | J15: 5.940883266e-05 | K15: 59466.11 | L15: 0.003048715071 | M15: 0.0004469416294 | N15: 59466.11 | O15: 0.002971859237 | P15: 0.0003367116516 | Q15: 59466.11 | R15: 0.003056517093 | S15: 0.0003362168803
A16: 12 | B16: Alliance Data Systems Corporation | C16: ADS | D16: 0.0101 | E16: 0.1186 | F16: 0.13 | G16: 0.13 | H16: 12458.3 | I16: 0.0006101127575 | J16: 6.162138851e-06 | K16: 12458.3 | L16: 0.0006387134953 | M16: 7.575142054e-05 | N16: 12458.3 | O16: 0.0006226120043 | P16: 8.093956056e-05 | Q16: 12458.3 | R16: 0.0006403480386 | S16: 8.324524502e-05
A17: 13 | B17: Ameren Corporation | C17: AEE | D17: 0.0295 | E17: 0.063 | F17: 0.0654 | G17: 0.075 | H17: 15121.16 | I17: 0.0007405193826 | J17: 2.184532179e-05 | K17: 15121.16 | L17: 0.0007752332948 | M17: 4.883969757e-05 | N17: 15121.16 | O17: 0.0007556902415 | P17: 4.942214179e-05 | Q17: 15121.16 | R17: 0.0007772172084 | S17: 5.829129063e-05
A18: 14 | B18: American Electric Power Company, Inc. | C18: AEP | D18: 0.0349 | E18: 0.0559 | F18: 0.0559 | G18: 0.045 | H18: 35067.33 | I18: 0.001717331049 | J18: 5.99348536e-05 | K18: 35067.33 | L18: 0.001797835733 | M18: 0.0001004990175 | N18: 35067.33 | O18: 0.001752513635 | P18: 9.796551219e-05 | Q18: 35067.33 | R18: 0.001802436607 | S18: 8.110964733e-05
A19: 15 | B19: The AES Corporation | C19: AES | D19: 0.0389 | E19: 0.084 | F19: 0.0819 | G19: n/a | H19: 8836.3 | I19: 0.0004327347519 | J19: 1.683338185e-05 | K19: 8836.3 | L19: 0.0004530204007 | M19: 3.805371366e-05 | N19: 8836.3 | O19: 0.0004416000942 | P19: 3.616704772e-05 | Q19: -- | R19: -- | S19: --
A20: 16 | B20: Aetna Inc. | C20: AET | D20: 0.0106 | E20: 0.1006 | F20: 0.1071 | G20: 0.1 | H20: 61622.37 | I20: 0.003017794891 | J20: 3.198862584e-05 | K20: 61622.37 | L20: 0.003159262446 | M20: 0.0003178218021 | N20: 61622.37 | O20: 0.003079619795 | P20: 0.0003298272801 | Q20: 61622.37 | R20: 0.003167347372 | S20: 0.0003167347372
A21: 17 | B21: Aflac Incorporated | C21: AFL | D21: 0.0223 | E21: 0.11 | F21: 0.0845 | G21: 0.085 | H21: 36029.73 | I21: 0.001764462079 | J21: 3.934750437e-05 | K21: 36029.73 | L21: 0.001847176162 | M21: 0.0002031893778 | N21: 36029.73 | O21: 0.001800610229 | P21: 0.0001521515643 | Q21: 36029.73 | R21: 0.001851903304 | S21: 0.0001574117809
A22: 18 | B22: Allergan plc | C22: AGN | D22: 0.0156 | E22: 0.0601 | F22: 0.0852 | G22: 0.045 | H22: 62418.22 | I22: 0.003056769569 | J22: 4.768560528e-05 | K22: 62418.22 | L22: 0.003200064171 | M22: 0.0001923238567 | N22: 62418.22 | O22: 0.00311939294 | P22: 0.0002657722785 | Q22: 62418.22 | R22: 0.003208253514 | S22: 0.0001443714081
A23: 19 | B23: American International Group, Inc. | C23: AIG | D23: 0.0232 | E23: 0.3647 | F23: 0.11 | G23: NMF | H23: 49561.1 | I23: 0.002427125642 | J23: 5.63093149e-05 | K23: 49561.1 | L23: 0.002540903928 | M23: 0.0009266676627 | N23: 49561.1 | O23: 0.002476849635 | P23: 0.0002724534598 | Q23: -- | R23: -- | S23: --
